Workbook

Sheet Important - Wichtig (hidden)
A1: Si ce message s'affiche, c'est qu'Excelgestion n'est pas correctement installé…
A2: Comment ouvrir (= installer) excelgestion>>>
A3: excelgestion>>> contient des macros, il faut les activer à l’ouverture du fichier que vous venez de télécharger:
A4: • Sur Excel® 97/98 et 2000, à l’ouverture du fichier, veuillez cocher le bouton “Activer les macros”
A5: • Sur Excel® 2003/XP allez dans Menu Outils, Options, onglet Sécurité, bouton Sécurité des macros et cochez Niveau de sécurité moyen, puis fermez et réouvrez le fichier
A6: • Sur Excel® 2007/2010/2013/2016, voyez sur notre site le lien :
A7: www.christian-roux.ch/excelgestion/Macros_excel2007.htm
A8: Excelgestion>>> est sûr, ne contient ni virus, ni spyware. Nous ne signons pas nos applications Excel® numériquement car cela coûte beaucoup d'argent, argent qui devrait forcément se reporter sur le prix de nos logiciels. Cependant soyez assurés que nos macros sont sûres et écrites dans les règles de l'art.
A10: If this message is displayed, that's Excelgestion isn't correctly installed…
A11: How to open (= install) excelgestion>>>
A12: excelgestion>>> contains macros, you muss activate them when you open the present file:
A13: • With Excel® 97/98 et 2000, when opening the file, choose “Activate macros”
A14: • With Excel® 2003/XP go to the Menu Tools, Options, Tab Security, button macros Security and set up Middle security level, then close and reopen this file
A15: • With Excel® 2007/2010/2013/2016, see in our site the link :
A16: www.christian-roux.ch/excelgestion/Macros_excel2007.htm
A17: Excelgestion>>> is sure, do not contains virus or spyware. We do not sign our Excel® applications numericaly because it's very expensive. However be sure that our macros are carefully written.
A19: Wenn sich diese Nachricht lesen können, Excelgestion ist nicht richtig eingerichtet…
A20: Wie excelgestion>>> öffnen (= einrichten)
A21: excelgestion>>> enthält Macros, man muss die aktivieren wenn man diese Datei öffnet:
A22: • Mit Excel® 97/98 et 2000, wenn sie die Datei öffnen, wählen Sie "Makros aktivieren"
A23: • Mit Excel® 2003/XP allez dans Menu Outils, Options, onglet Sécurité, bouton Sécurité des macros et cochez Niveau de sécurité moyen, puis fermez et réouvrez le fichier
A24: • Mit Excel® 2007/2010/2013/2016, Sehen Sie auf unserer Webseite den Links:
A25: www.christian-roux.ch/excelgestion/Macros_excel2007.htm
A26: Excelgestion > > > ist sicher, enthält weder Virus, noch spyware. Wir unterschreiben nicht unsere Excel ®-Anwendungen numerisch weil das viel Geld kostet, Geld, das sich auf dem Preis von unseren Softwaren notgedrungen beziehen sollte. Doch seien Sie versichert, daß unsere Macros und in den Regeln der Art geschrieben, sicher sind.

Sheet Démarrage
A2: L'essentiel en bref
A3: Le programme excelgestion>>> est un programme de facturation et de gestion de stock pour PC/Mac qui fonctionne sur Microsoft Excel avec de la programmation VBA.
A4: Malgré qu'il semble n'être que des feuilles Excel®, il est un véritable programme qui peut gérer à satisfaction de gros volumes de devis, de factures (etc.), de commandes aux fournisseurs et fournir des statistiques.
A5: Des boutons se trouvent sur les feuilles qui permettent d'exécuter des tâches automatisées et d'interragir avec l'utilisateur. Pour lancer une tâche du programme, pressez sur le bouton correspondant (voir aussi sous"Macro" ainsi que les "raccourcis-clavier" dans l'Aide).
A6: L'aide indispensable se trouve dans la feuille "Aide" (voir les onglets ci-dessous). Si vous voulez utiliser le programme nous vous recommandons vivement de lire les "Premiers pas". Pour une utilisation optimale et complète, il est nécessaire de lire toute l'Aide.
A7: Souvent nous avons ajouté des commentaires au cellules en haut de feuilles. Lisez-les!
A8: Certaines feuilles et les macros sont protégées pour vous éviter des effacements accidentels. Mais malgré cela il ne faut absolument pas effacer des données au hasard ou faire des copier(ou couper)-coller… Notament, ne jamais effacer des données en bleu.
A9: Nous vous souhaitons beaucoup de plaisir et de satisfaction dans l'utilisation de ce programme, autant que nous en avons eu à le réaliser.
A10: Ce programme, basé sur la structure d'Excel, peut aisément être complété d'autres fonctions et adapté à des usages très différents. Il est utilisé par des garagistes, des dentistes ou des entreprises de produits horlogers, notamment. Faites-nous part de vos besoins spécifiques.
A11: De même pour d'autres langues ou d'autres pays, ce programme peut être adapté; voir dans la feuille Aide en Personnalisation. Pour d'autres monnaies, veuillez nous consulter.
A12: Le présent programme démo contient des données factices pour expliciter son fonctionnement. La version pleine ne les contient pas.
A13: Nous déclinons toute responsabilité quant à la perte éventuelle de vos données, de même nous ne pourrions être tenus pour responsables de malfonctionnement malgré toute la peine que nous nous sommes donnée. Les éventuels bugs ne sont pas couverts. La garantie se limite à l'envoi de questions et à leurs réponses par e-mail.
A14: Voir aussi notre site: www.christian.roux.ch/excelgestion Pour nous contacter: excelgestion@bluewin.ch © Christian Roux, oct-2002-2026

Sheet PremiersPas
A1: Premiers pas | B1: Action en rouge macro, en bleu feuille, en vert tâche
A2: Important à prendre en compte | B2: Ne faites JAMAIS de "Couper-Coller" en Excelgestion, toujours des "Copier-Collage spécial, 'Valeurs'), puis au besoin effacez les données inutiles Lisez la feuille Aide, imprimez-là en couleurs au besoin et/ou faites des recherches dedans (CTRL+F) pour trouver ce que vous recherchez. En principe TOUT est indiqué en Aide. Je réponds aussi à vos questions par e-mail: excelgestion@bluewin.ch Enregistrez le document, surtout au début de votre utilisation, souvent et sous des noms différents, pour qu'en cas de problème, vous puissiez revenir à une version précédente Ne modifiez pas la stucture du document tel ajouter/supprimer/masquer des lignes et/ou colonnes, renommer/supprimer/masquer des feuilles, etc. Faites bien attention de ne jamais effacer des formules, en particulier dans la feuille "Articles" Les feuilles "Archive", "Factures1", "FichePartners", "CdeFourn", "Stats", "Tab.de bord" sont en partie ou complètement protégées
A3: Pour bien commencer | B3: Dans l'Aide et dans cette feuille "PremiersPas", quand nous indiquons le nom d'une feuille Excel, nous l'indiquons en bleu (p.ex. "Factures1"). Quand nous parlons d'un bouton de programme à presser, nous l'indiquons en rouge (p.ex "Envoyer à Archive"). Enfin si nous indiquons d'aller à une rubrique de l'aide, nous utilisons le vert (p.ex. allez maintenant à "Pour ajouter un article"). Veuillez noter que, généralement, nous indiquons le mot "Facture" pour tout type de document (Offre, Devis, etc.)
A4: Comprendre l'usage des principales feuilles | B4: La feuille "Factures1" contient la facture en cours. Beaucoup de cellules sont protégées. Pour passer d'un champ à l'autre pressez TAB ou MAJ+TAB pour revenir en arrière La feuille "Articles" contient vos articles. Il est possible (dans la pluspart des cas), de facturer depuis cette feuille La feuille "Partners" contient vos clients La feuille "Archive" stocke les factures (ou autres documents) que vous avez facturé, chaque ligne est un article facturé. La 1ère ligne contient les infos valides pour l'entier du document
A5: Pour créer une facture | B5: Allez maintenant dans "Factures1" en A11, sélectionnez à l'aide de la souris ou en pressant ALT+BAS le type "Facture" puis pressez la touche Enter (ou TAB), en A12 indiquez au besoin (facultatif) une description de votre document. D'autres étapes sont à faire: en B15 indiquez le numéro du client; pressez "N° auto" pour numéroter le document, voyez l'aide "Numéro de facture" Allez maintenant dans "Articles". Pour ajouter un nouvel article, pressez sur "Art.New", indiquez le numéro de l'article, puis Enter, le numéro se positionne dans la colonne A à la ligne qui correspond au numéro (ne changez pas l'ordre des lignes), complétez les champs (Prix de vente1, Unité*, Prix d'achat* et TVA* (*facultatif). Voir l'Aide pour la suite
A6: Saisir la facture | B6: En feuille "Articles" vous allez repérer l'article souhaité en colonne B. Le principe est de se placer (n'importe où), de la ligne 6 aux suivantes qui contiennent vos articles sur la ligne de l'article à facturer et de presser le bouton "Facturer". Si vous avez plus d'articles que l'écran ne peut en afficher, pressez "Chercher article" et indiquez une chaîne de caractères significative, p.ex. pour, en colonne B "Astérix le Gaulois", tapez p.ex "rix" ou "Asté" ou "gaulois" (puis Enter puis au besoin une deuxième chaîne, telle que la 1ère, pour préciser votre recherche; sinon laissez tel quel, puis Enter), la colonne B se filtre. Activez une cellule de la ligne que vous voulez facturer, puis pressez "Facturer", indiquez la quantité, et un éventuel rabais. Recommencez l'opération pour chaque article, puis rendez-vous sur la feuille "Factures1"
A7: Pour indiquer le nom d'un client sur la facture | B7: Les clients se trouvent dans la feuille "Partner". Notez dans la colonne de gauche, le numéro du client (p.ex. "5") à qui vous voulez adresser votre facture Placez-vous sur la ligne où se trouve votre client (ou fournisseur), au besoin utilisez "Chercher client", puis pressez "Choisir client" ou Dans la feuille "Factures1", en cellule B15, saisissez le numéro du client. Utilisez la touche TAB pour vous déplacer d'un champ à l'autre
A8: Imprimer la facture | B8: En feuille "Factures1", pressez "Preview & impression" ou "Impression (Mac)", contrôlez que tout est en ordre puis cliquez sur imprimer et confirmez par OK (ou cliquez sur Annuler si vous ne voulez pas imprimer)
A9: Placer les données dans la feuille d'archive (pour pouvoir les réutiliser plus tard) | B9: En feuille "Factures1", pressez le bouton "Envoyer à Archive"
A10: Vider la facture (pour pouvoir en saisir une nouvelle) | B10: En feuille "Factures1", pressez le bouton "Réinitialiser", confirmez par OK, vous êtes à nouveau en A11…

Sheet Hilfe
A1: Aufgabe (von A - Z) | B1: Handlung in rot macro, in blau Blatt, in grün Aufgabe
A3: Um gut zu starten | B3: Um richtig auf Deutsch zu starten, müssen Sie zuerst die Oberfläche auf Deutsch zu legen. Tippen Sie CTRL+Shift+L, dann Ok, dann "3". Excel - das Programm - ist immer in seine Sprache (vermutlich für Sie auf Deutsch), aber auf das Dokument, die Texte sind jetzt auf Deutsch. Um unten die Liste der Blätter in der englischen Sprache (leider, nicht auf deutsch) zu haben, müssen Sie drücken "CTRL+Shift+L" und tippen "2", und wieder "CTRL+Shift+L" und tippen "3". Dann wird die Liste "Start, How to begin, Hilfe, Aide, Archive, Bill1, Articles, Partners, OrderSuppl., Statistics, Variables", so aussehen. Das sind die Liste der Blätter (falls Sie Problemen haben, fragen Sie uns und/oder schauen Sie das Microsoft-Excel Handbuch um die Basis zu kennen, und um besser Excelgestion zu geniessen). Im Blatt diesem "Hilfe", wenn wir den Namen eines Blattes Excel geben, geben wir ihn in der Bläue (zum Beispiel "Bill1 "). Wenn wir über einen Knopf der Programm um zu drücken sprechen, geben wir ihm im Rot (z.B. "Archivieren"). Endlich , wenn wir geben, in eine Rubrik des Hilfe-Blatt zu gehen, benutzen wir das Grün (z.B., gehen Sie jetzt in "Um gut zu starten"). Wichtig: Bemerken Sie bitte, daß wir, im allgemeinen, das Wort "Rechnung" für jeden Typ von Dokument geben (Anbieten, Kostenanschlag, u.s.w.). Liste der wichtigste Blätter: Archive - wo die Rechnungen die Sie erfasst haben, gelagert sind. Bill1 - wo Sie die Rechnungen erfassen. Articles - wo Ihre Artikel-Liste steht. Partners - wo die Kunden und Lieferanten (falls Sie Lieferanten haben) sind.
A4: Abschlagszahlung, Accompte | B4: Um einer Abschlagszahlung oder accompte gutzuschreiben, erfassen Sie zuerst ein virtuellen Artikel "Vorauszahlung" (sehen Sie Artikel, neuen erfassen). Dann fakturieren Sie diese Artikel mit Menge "1". Drücken Sie das Knopf "Zusatztext einfügen" und tippen Sie, als Einzel-Preis,die Vorauszahlung mit MINUS (z.B. "-100"). Später werden Sie diesen Betrag dem Artikel oder den Artikeln gewähren sollen, für die die Vorauszahlung bestimmt war.
A5: Aktualisierung des LagerBestandes | B5: Wenn Sie eine Rechnung oder eine Gutschrift erschaffen, wird der Status der Lagerbestand geändert (für andere Dokument ist das LagerBestand nicht modifiziert). Sehen Sie auch "Archive". Sehen Sie "Bestellung an Lieferant" und "Warenempfang"
A6: Archive | B6: Wenn Sie eine Rechnung in "Bill1" erfassen, können Sie sie bewahren, klickend "Archivieren" (eine Kopie von allen Daten ist auf dem Blatt "Archive" bewahrt). Später, z.B., wenn Sie von ein Angebot in eine Rechnung verwandeln wollen, können Sie sie die in "Bill1" "wieder zuführen". Im Blatt "Archive", activieren Sie eine Zelle der Zeile die Sie "wieder zuführen" wollen, klicken Sie auf "ArchiveToFactures1" (oben links). Dann im "Bill1" wenn nötig ändern Sie die Daten, die gerade vorbeigegangen sind von "Archive" zu "Bill1" (sehen Sie u.A. "Zusatzt Text einfügen"). Wenn nicht alle Zeilen sichtbar sind (in "Archive", Sie können "See all" anklicken um alle Zeilen zu sehen.
A7: Articles (Artikel Blatt) | B7: Enthält alle Artikel-Daten. Es stehen oben rotes Dreieck für viele Spalenten es sind Kommentaren zu sehen (auf französisch), Erfassen Sie Ihre eigenen Daten in der Struktur. Die Spalten mit blauen Texten müssen NICHT und nie erfasst oder gelöscht sein. Die Spalten mit Kopf "Freies Feld..." können nach Ihrem Belieben gefüllt sein aber (sehr wichig) füllen Sie Ihre Texten auf Blatt "Variables" (sehen Sie "Setups"). Sehen Sie auch "Artikel neuen erfassen". Tippen Sie CTRL+Shift+F um dem "Auto-Filter" zu sehen oder verstecken. Tippen Sie CTRL+F um eine Suche in dieses Blatt zu starten.
A8: Artikel, neuen erfassen | B8: Um einen neuen Artikel zu erfassen, gehen Sie auf Blatt "Articles". Drücken Sie den Knopf "Art. New", es wird Ihnen eine Nummer von Artikel gefragt, geben Sie Ihre gewünschte Nummer (z.B. A34GW oder 33156, seien Sie so einfach wie möglich). Der neue Artikel legt sich automatisch pro alphabetische Ordnung in die Liste. Wichtig, diese Ordnung NICHT und nie ändern. Füllen Sie minimal die folgende Felder (auf die aktuelle Zeile): Bechreibung, Verkaufspreis, Einheit, MWSt-Code. Das ist alles für jetzt. Es ist sehr wichtig, daß sich keine Zeilen als auch Spalten völlig leer in Blatt Artikel und Partners befindet. Fügen Sie immer neue Artikeln immer auf diese Art und Weise, und nicht zur Hand.
A9: Aufgabe | B9: Das Wort "Aufgabe" nach links ist eines
A10: Aut. Numm (Nummerierung automatisch) | B10: Klicken Sie auf "Aut Numm". Das 1. Mal wird es Sie der 1. und 2. gewünschte Nummern gefragt (tippen Sie, z.B. "1" und "2", oder "F001" und "F002"), dann stellt sich der 3. automatisch zur Schau. Seitdem ein Druck erhöht in der nächsten Nummer automatisch. Die Initialen dieses, der fakturiert, sind auch gefragt, aber Sie können sie ignorieren.
A11: Automatisch Rechnen (Handberechnung) | B11: Diese Funktionalität von Excel, die macht, daß in jedem Zeit, alle Berechnungen des Blattes "a jour" sind, ist in der Praxis sehr launisch. Die Handberechnung macht sich sehr einfach, drücken Sie Taste "F9"
A12: Bestellung an Lieferant | B12: Im voraus, sollen Sie im Blatt "Articles" Informationen erfasst haben, damit das Programm weiß, was zu machen. Besonders erfüllen Sie ein "Ref. Lieferant" (Spalten J) und eine Bestellmenge (Spalten AE - sehen Sie unten) Drücken Sie den Knopf CF1 dann (im Bedürfnis) filtrieren Sie nach einem "Ref. Lieferant" " zur Auswahl; nach Bestellvorschlag (Spalten AD, besonders nötig sind auch Spalten AB, AC), tippen Sie die gewünschte Bestellung (Spalten AE und Datum AF), Drücken Sie den Knopf CF2 , und tippen Sie der "Ref. Lieferant" beim dem Sie bestellen wollen. Die Bestellung macht sich sichtbar in "OrderSuppl.". Fügen Sie eventuelle Bemerkungen rechts von jedem Artikel und in den letzten 3 Zeilen des Formulars hinzu. Drücken Sie den Knopf "BestLieferantPreview" und drucken Sie die Bestellung. Dann auf CF3, um die Daten zu leeren.
A13: Bi-Fenêtre (Modus) | B13: Diese Modus, im Betrieb bis zur Version 4g19, ist durch die "Fakturierung serienmäßig" auf dem Blatt "Articles" ersetzt gewesen.
A14: Blatt | B14: Ein Blatt ist eine "Datenseite". Zum Beispiel sind Sie jetzt auf dem Blatt "Hilfe" (Sehen Sie unten). Wenn wir einen Blatt nennen wollen, schreiben wir in Bläue
A15: CF1 CF2 CF3 | B15: CF1 zeigt nur die nützlichen Säulen, um eine Bestellung zu verbringen (drücken Sie ein zweites Mal, um alle Säulen wieder zu sehen) CF2 verbringt die Bestellung CF3 löscht das Blatt "OrderSuppl." Sehen Sie auch "Bestellung an Lieferant" eine und "Warenempfang"
A16: Datum erfassen | B16: Auf Blatt "Bill1", Zelle B13, die Datum ist automatisch "heute", sie können aber auch eine andere Datum tippen
A17: Drücken Sie das Blatt "Bill1" | B17: Drücken Sie das Knopf "Ansicht und drücken" dans prüfen Sie das Ansicht. Wenn Ok, drücken Sie Drucken
A18: Eine Line in "Manual-Modus" im "Automatische-Modus" zurückzustellen | B18: Auf dem Blatt "Bill1", liegen Sie auf der Zeile, die im Manual-Modus (Z-Text einfügen/löschen) gelegt gewesen ist und drücken Sie CTRL+Shift+R
A19: Einer Zelle (=Feld) anderem zu gehen / einer Zelle Heraufsteigen (=Feld) anderem | B19: Drücken Sie TAB und Shift+TAB
A20: Fakturierung serienmäßig | B20: Schnelle Fakturierungsmodus. Im Blatt "Articles" drücken Sie "Art.Berec" (CTRL+MAJ+A) wenn Sie sind auf der Zeilen des Artikels der Sie fakturieren möchten. Der Zustand des LagerBestandes zeigt sicht. Es wird gefragt eine Menge und ein eventuelle Rabatt (lassen Sie leer, wenn es keinen Rabatt gibt, geben Sie "20" für 20 %). Wiederholen Sie die Operation nach Ihrem Belieben für andere Artikel. Dann gehen Sie auf dem Blatt "Bill1" und seit der Zelle A11, geben Sie das, was er sein soll: Typ doc, Nummer von Dokument, Kundennummer, u.s.w.
A21: Filter (Automatik) | B21: Excel erlaubt, auf der ersten Zeile ein automatischer Filter zu stellen (sehen Sie Hilfe und/od. Handbuch von Excel). Auf Excelgestion, nur das Blatt "Articles" kann ein Automatik Filter haben. Stellen Sie das Filter mit CTRL+Shift+F, oder ziehen Sie ihn gleich zurück. WICHTIG ziehen Sie den Filter zurück vorher wenn Sie ein Knopf drücken. Das Blatt "Partners" kann auch ein Filter zu haben. Sie können ihn immer lassen.
A22: Gutschrift | B22: Tippen Sie die Mengen im Negativ (mit das Zeichen "-" vor). Sie können auch so ein Artikel gutschreiben in eine Rechnung.
A23: Kopieren / Kleben / Schneiden | B23: Sie können Kopieren/Kleben Funktionnen (CTRL+C, CTRL+V) in den Blättern "Partners" und "Articles". Aber im Blatt "Bill1" muß man das nicht machen, unter Androhung die "Mechanik" des Programms zu verstellen. Wenn überhaupt Sie einen Kopieren/Kleben machen müssen in "Bill1", machen Sie es so: editieren Sie die Start-Zelle mit "F2" und auslesen den Texte, gehen Sie auf die End-Zelle und editieren Sie mit "F2" und dann Kleben Sie den Text. Man darf nicht Schneiden (CTRL+X) auf Excelgestion (auf Ihre eigene Risiko).
A24: Kunde, den Namen des Kunden in der Rechnung zu zeigen | B24: Tippen Sie sein Nummer (gemäss Blatt "Partners") in der Zelle B15 des Blattes "Bill1" oder, in Blatt "Partners"; stellen Sie Sie auf der Zeile des partner zu fakturieren, dann drücken Sie "Kunden wählen"
A25: Kunde, neue erfassen | B25: Im Blatt "Partners", erfassen Sie Personalien gemäss der gegebenen Struktur. Die Nummer in der Spalten A soll vorwärtschreitend sein.
A26: Lagerbestand im Blatt "Bill1" | B26: Wenn Sie fakturieren, zeigt Ihnen das Blatt "Bill1" in der Spalten J den LagerBestand (inklusive Saldo, was Sie fakturieren).
A27: Letzte Position löschen | B27: In "Bill1" löscht den letzte Getippte Artickel (CTRL+Z)
A28: Löschen | B28: Man muß keine Daten löschen. Besonders muß man keine Zeilen im Blatt "Archive" löschen, selbst wenn das (Momentan) möglich ist. Es ergäbe sich daraus aus Funktionsstörungen.
A29: MAC Macintosch | B29: Dieses Programm funktioniert auf Microsoft-Excel für Macintosh, ab version 98. Wir haben aber kein Test auf neuen Version gemacht. Sagen Sie uns Ihre Erfahrung. Nach Microsoft, es sollte alles gehen.
A30: Macro, Starten Sie eine …. | B30: Ein macro ist die Erfüllung eines Programms. Sie starten, wenn Sie auf der Knopf drücken (mit dem Maus). In dieser Hilfe ist der Name der macro im Rot immer gezeigt
A31: Maximas | B31: In alle Programmen sind Grenzen. Für das Blatt "Bill1" können Sie bis 33 Positionen gleichzeitig fakturieren (wenn Sie mehr zu fakturieren haben, müssen Sie mehrere Dokumenten erstellen). Für die Artikeln, ist es begrenzt bis 3000 Positionen (wir können viel mehr anbieten, aber bitte, fragen Sie uns). Für die Partners und die Archive, keine Limits (65000).
A32: MWSt, Code und Status | B32: Um den Satz von MWSt zu ändern, gehen Sie im Blatt "Variable", und ändern Sie Satz 1 in A2 und Satz 2 in A3.
A33: Netzwerk | B33: Dieses Programm funktioniert im Netzwerk (auf mehreren Posten gleichzeitig) nicht. Sie können aber es auf ein Server deponieren und auf mehrere PC/MAC arbeiten (aber nicht gleichzeitig).
A34: Neu beginnen | B34: Leere den Inhalt des Blattes "Bill1"
A35: Partners | B35: Die Gesamtheit der Kontakte (Kunden, Lieferanten, usw) sind im Blatt "Partners" gehalten. In der Spalten I: Sprache, In K-L: Rabatt (als Hinweise, nicht Automatisch) In der Spalten R (Gruppe), tippen Sie K für Kunden, L für Lieferanten. Ein Partner kann mehreren Gruppen gehören. Der Spalten S (Umsatz) gibt den Umsatz, Kunde pro Kunde (funktionniert nur wenn Sie nur Rechnungen/Gutschrift erstellen, sonst benutzen Sie das Blatt "Tabl.de Bord/Statistics")
A36: Partners und Artikeln, Neuen | B36: Es ist sehr wichtig, daß sich keine Zeile als auch leere Spalten in Blatt "Articles" und "Partners" befindet. Die Nummern sollen in der zunehmenden Ordnung(Auftrag) immer gehen: " 1,2,5,9,19, u.s.w. "
A37: Partners, Datenfilterung | B37: Das Blatt "Partners" ist nicht geschützt, man kann die Daten also filtrieren
A38: Payment / Pay.Multliple | B38: Seit dem Blatt "Archive" tippen Sie die Bezahlungen. Drücken Sie den Knopf (alles rechts vom Blatt oder Tasten CTRL+MAJ+P), geben Sie die Rechnungsnummer und erfassen Sie den Betrag tatsächlich bezahlt. Im Blatt "Statistics", im Umsatz (Zelle J4-J5) geben Sie die Daten, für die Sie wünschen, die bekommenen Bezahlungen, den Umsatz anzuzeigen. Wenn Sie in J3 tippen "Visa" (z.B.) nur die Beträge mit "Visa" (im Spalten IT von Archive) werden berechnet Wenn Sie auf "Pay.Multiple" anklicken, das Program die Rech.-Nr verlangt. So Sie können mehrere Zahlungmodus für eine einzige Rech.-Nr haben (z.B. ein Teil "Cash" und ein Teil "Paypal"). Sie müssen aber selber prüfen dass die Summe diese Beträge entspricht die Rechungsbeträg
A39: Präliminarien / Kommentars | B39: Auf Blatt "Bill1", Sie können Präliminarien unter dem Titel "Rechnung" aufnehmen (in der Zeile A12) und Kommentars unter dem Preis in der Zeile B52. Sie können auch auf irgend eine Zeile (17 bis 50), mit "Zusatztext einfügen" und tippen Sie Ihre Kommentar.
A40: Quittung | B40: Für ihre Verkäufe mit Quittung ein Partner "Vorübergehendert " (Partner Nr 3) existiert . Sie können auch im Weißen zu lassen (Nr 1)
A41: Registrierung/Sicherung der Datei | B41: Wenn Sie mit dem Programm anfangen, nehmen Sie die Gewohnheit, die Datei aufzunehmen, BEVOR eine neue und unbekannte Aufgabe zu machen. Wenn das Ergebnis ist nicht befriedigend, Sie können das Dokument dann schließen und es in seiner letzten Version wieder öffnen, ohne daß er geändert ist.
A42: Reisespesen | B42: Sie sind unter Form eines Artikels zu erfassen (zum Beispiel: N ° 200 Reisespesen, Einheitspreis "0.85", Einheit: "Km")
A43: Scanner | B43: Die Benutzung einen Scanner und das Drucken von Etiketten sind voll möglich aber nicht in Preis einbegriffen. Fragen Sie uns.
A44: Sprache | B44: Die Auswahl der Sprache (1, 2 od. 3) ist jeder Öffnung des Programms vorgeschlagen (Tippen Sie "No" wenn Sie dieses Dialog nicht mehr sehen wollen). Wenn Sie nichts zu ändern wünschen, drücken Sie Taste "Esc". Um Sprache im Laufe der Benutzung zu ändern, drücken Sie CTRL+MAJ+L..
A45: Statistics (Statistiken) | B45: Zeige Ihnen den Zustand des Lagernestandes (der nur während Rechnungen und Gutschriften geändert sind) im Blatt "Articles". Der Wert des Lagerbestandes und der Gesamt-Verkaufspreis sind auch berechnet, Rechnung nach Rechnung. Sie müssen ein Kaufpreis (Spalte G) für jede Artikel geben um alle Statistiken zu bekommen.
A46: Statistiken auf… | B46: Diese neue Funktionalität seit Version 4f befindet sich im Blatt "Statistics" in den Zellen H1-I6. Es erlaubt Ihnen, den Schlußbetrag von den Unterlagen nach einer Kundennummer zu kennen (im Zelle I2 zu erfassen). Wenn Sie nichts in diesem Feld erfassen, werden alle Kunden), ein Typ von Dokument ausgewählt sein (in I3 - Aufmerksam bitte zu erfassen, lassen Sie keinen Tippfehler) und seit/bis zu einem gegebenen Datum (in I4 und I5 erfassen). Der entsprechende Betrag ist in I6 angezeigt
A47: Suche auf Blatt Articles, Partners, oder andere | B47: Benützen Sie CTRL+F, tippen Sie das Wort/Werte, dann "Enter"
A48: Tastaturbefehle (wichtigsten) | B48: CTRL+Shift+S = Archivieren (im Bill1) CTRL+ Shift+R = Zusatztext einfügen (im Bill1) CTRL+R = Eine Line in "Manual-Modus" im "Automatische-Modus" zurückzustellen (im Bill1) CTRL+Shift+Z = Neu beginnen (im Bill1) CTRL+Shift+I = Ansicht & Drucken (im Bill1) CTRL+Shift+N = Aut. Numm. (im Bill1) CTRL+Shift+A = Art. berechnen (im Articles) CTRL+Shift+C = Kunde wahlen (im Partners) CTRL+Shift+L = Sprache Auswahl (irgendwo) CTRL+Shift+P = Payment (im Archive) CTRL+Shift+F = Put/Remove Filter (im Articles) CTRL+Shift+M = Alle Windows-Infos wieder schauen (igendwo) CTRL+Z = Letzte Position löschen (im Bill1)
A49: Tour guidé (TG) / Guided Tout (GT) | B49: In jedem Start von Excel, können Sie den "Tour Guidé (french)" oder "Guided Tour (englisch)" starten (noch nicht auf deutsch). Wenn das Dialog kommt nicht mehr, drücken Sie CTRL+Shit+L um wieder zu schauen. Dann tippen Sie TG oder GT. Diese Hilfe-Seite (die Sie jetzt lesen) ist aber mehr detailliert.
A50: Transportkosten | B50: Die Transportkosten sind zu erschaffen als ein / mehrere Artikeln. Auch wie ein Artikel zu fakturieren. Wir empfehlen Ihnen, viele mit verschieden Beträgen (zum Beispiel nach dem Posttarif) zu erschaffen, mit Nummern leicht zu erinnern. Geben Sie das richtige MWSt status.
A51: Variables | B51: Das Blatt "Variables" zeigt Ihnen die Kriterien, die Sie ändern können: MWSt-Tarife, Texte in den Füßen von Seite, sogar die Beschreibung des Dokumentes und seine Sprache. Wichtig, ändern Sie keine Zeilen 1-39 , 79 und 119. Die Zeilen 40-76 betreffen französische Sprache, Zeilen 80-116 englische Sprache und Zeilen 120-156 der Deutsche. Nach die Änderungen, CTRL+Shift+L und Sprache wählen, um zu aktualisieren. In A9 Tippen Sie ihre Firmenbezeichnung; sie wird dem Eindruck, im Fuß von Seite erscheinen.
A52: Verkaufsbedingungen | B52: Sehen Sie Fuß von Seites, Verkaufsbedingengen…
A53: Verkaufsbedingungen im Fuß von Seite | B53: Im Blatt "Variables" finden Sie im Spalten C und D die Liste der Bedingungen. Sie können sie ändern / ergänzen aber achten darauf, daß die Nummern in der Spalte C immer vorwärtschreitend sind. Um andere Füße von Seiten zu ändern / hinzufügen, geben Sie in Zeile 40-55 für französische Sprache, in 80-95 für englische Sprache und in 120-135 für Deutschen. Dann CTRL-MAJ-L um zu aktualisieren. Im Blatt "Bill1", erfassen Sie in A56 das Nummern, die Sie wünschen anzuzeigen (zu bemerken, daß diese Nummer - im Weiß und unsichtbar ist - er sieht sich also nur oben wo der Formeln sind und wird nicht gedruckt).
A54: Von einem Blatt zu anderem vorbeizugehen | B54: CTRL+PGDown (recht) und CTRL+PGUp (links)
A55: Wahrungs (auländischen, umrechnen) | B55: Das benutzte Geld ist der Schweizerische Franc ( CHF); wir passen gern das Programm in Euros ( € ) an. Das Blatt "Articles" erlaubt den Kauf in jedem Geld und seiner Umdrehung in den Schweizerischen Francs. Das Mix CHF/€ ist möglich, aber nicht inklusive. Fragen Sie uns. Wenn Sie wollen umrechnen (die Gesamtsumme) Ihre Rechnung von einer Währung zu einer andere (zum Beispiel von CHF zu EUR), geben Sie 1° den Wechselkurs im Blatt "Variables", in A7 , 2° in F56 des Blattes "Factures1", geben Sie die Währung (z.B. "EUR") und das Programm wird die Ganze Betrag der Rechnung im neue Währung umrechnen. (Bemerken Sie, daß , wenn Sie ein Dokument im Blatt "Archive" archivieren, die Währung, der Wechselkurs und der Betrag im ausländischen Geld sind, in diesem Fall, nicht bewahrt sind, behalten Sie diese Informationnen [z.B "EUR 1.6"] in der Zelle B53 des Blattes "Factures1") und räumen Sie sie um, wenn das Angebot in Rechnung umgerechnet muss. Wenn Sie nicht wünschen daß sich die Zellen F56-G56 im Grau schauen, löschen Sie den Inhalt der Zelle F56 (Taste Delete)
A56: Warenempfang | B56: Wenn Sie die Ware daß Sie bestellt haben bekommen, gehen Sie auf dem Blatt "Articles". Starten Sie CF1, um alle Spalten nicht zu sehen Falls Sie es haben, nehmen Sie Ihre Bestellformulare , was Sie für Sie gedruckt hatten. Filtrieren Sie die Daten auf diesem Lieferanten (Spalte S). Löschen Sie die Menge, die in Bestellung bekommen ist (Spalte AE) und führen Sie da im Eingang (Spalte J) ein, prüfen Sie die Preise von Ihrem Lieferanten und passen Sie ihre Preise dementsprechend dem Bedürfnis an Drücken Sie auf "Eingang" (Spalte O) um die Waren einzutrete Schließlich drücken Sie CF1 wieder um alle Spalten zu sehen
A57: Z-Text einfügen/löschen (und rückkehr in Auto-Modus) | B57: Sie können in "Bill1" eine Zeile von Kommentar oder einen Handverkauf aufnehmen. Dazu, aktivieren Sie einen Zeile auf der Zeile, die Sie erfassen möchten und drücken Sie der Knopf "Zusatztext einfügen/löschen" (CTRL+MAJ+R). • Wenn es ein Kommentar (im Prinzip unten des Artikels) ist, erfassen Sie ihn im Feld "Beschreibung" • Wenn es ein Verkauf eines Artikels außer dem Artikelliste ist, wird sie als Article 0 - auf Blatt "Articles" gerechnet sein - Sie sollen den 0 in der Nummer von Artikel lassen und von Hand alle entsprechenden Felder erfüllen (Beschreibung, Menge, Preis, Rabatt, TVA1 oder 2). Sie können auch ein Artikel (z.B. Nr 999) erschaffen und alle Handverkauf auf dieses Artikel zuschreiben (sehen Sie unten). • Wenn es ein generisch-Artikel ist, machen Sie wie oben. Note: es ist notwendig, daß die Spalte A mindestens einen Punkt enthält. Erstellen Sie ein Artikel mit "." als Nummer in Blatt "Articles". Wenn der Verkauf gedruckt ist, muss man "Neu beginnen", und nicht nur die Daten ändern. Für rückkehr in Auto-Modus, sehen Sie "Eine Line in "Manual-Modus" im "Automatische-Modus" zurückzustellen"

Sheet Aide
A1: Tâches (de A - Z) | B1: Action en rouge macro, en bleu feuille, en vert tâche
A2: +1 ou -1 (macros) | B2: Permet d'ajouter ou de retirer, par incrément de 1, dans les colonnes Qté et % (Rabais), de la feuille Factures1 et la colonne D de Articles.
A3: Archivage de la commande au fournisseur (1) et Réception de marchandise (2) en feuille Articles | B3: Enregistrez votre fichier AVANT de lancer ces opérations! (1) Passez les quantité commandées de la colonne AE à l'une des colonnes W, X, Y ou Z (faites un tournus sur ces 4 colonnes pour conserver vos 4 dernières commandes aux fournisseurs) - Pressez le bouton "Dépl.(acer)" et choisissez col. W, X, Y ou Z) - Cliquez sur "Cde" (ligne 4) et effacez les quantités (Delete) en colonne AE. (2) Quand vous recevez la marchandise que vous avez commandé - Dans la colonne qui correspond à la livraison, contrôlez (et au besoin modifiez) les quantités que vous avez effectivement reçues (filtrez les données sur la colonne au besoin) - Enlevez le filtre. Cliquez en ligne 4 sur "Cde Fourn 1, 2, 3 ou 4" puis le bouton "Cumuler Entrées", les quantités s'additionnent aux valeurs existantes en colonne M. Contrôlez que tout est juste puis enregistrez votre fichier!
A4: Articles (feuille) | B4: Contient toutes les données articles. Voir les commentaires (triangle rouge en haut à droite de la cellule) pour plusieurs des colonnes. Saisissez vos propres données selon la structure établie (voir l'aide "Articles, Nouveaux..."). Vous pouvez mettre vos propres intitulés de colonne dans les colonnes marquées "vide", mais ne changez pas les autres colonnes. Surtout ne déplacez pas l'ordre des colonnes, sinon le programme ne fonctionnera plus • Faire très attention de ne pas effacer des données en bleu • Faire CTRL+MAJ+F pour afficher/masquer le filtre ou pressez sur le bouton "Filtre" • Les numéros doivent être en ordre croissant: "1,5,9,11, etc.", les éventuels zéros devant ne sont que visuels, ne pas les saisir.
A5: Articles, Nouveaux … | B5: Pour créer un nouvel article, pressez le bouton "Art.New" (il vous sera demandé un numéro d'article à choix) en cliquant sur le bouton correspondant dans la feuille "Articles" et saisissez les données. Les données sont automatiquement retriées selon l'ordre des numéros, n'en modifiez pas l'ordre. Il est très important qu'aucune ligne ni colonne totalement vide ne se trouve dans les feuille Articles et Partners.
A6: Avance sur paiement, Accompte | B6: Pour déduire une avance ou un accompte, procédez ainsi: 1) en Factures1 indiquez le montant que vous recevez en C220 (p.ex. "500"), vous voyez qu'il s'indique en négatif et en rouge en G220, 2) une fois que vous avez passé la facture en Archive, il faut enregistrer le montant de l'acompte en col AB de Archive, indiquez "500" en regard de la facture. Note: les statistiques fonctionnent et indiqueront le total (payé et encours), avance comprise.
A7: Bi-Fenêtre (mode) | B7: Ce mode, en service jusqu'à la version 4g19, a été remplacé par la "facturation en série" depuis la feuille Articles.
A8: Calcul Automatique | B8: Cette fonctionnalité d'Excel, qui fait que à chaque passage du curseur d'une cellule à l'autre, tous les calculs de la feuille en cours sont mis à jour, est très capricieuse en programmation. Le calcul manuel se fait en pressant la touche "F9", quant au réglage oui ou non de "Calcul Automatique", il se trouve dans menu Outils, Options, onglet Calcul, et choisir le Mode de calcul.
A9: CF1 CF2 CF3 | B9: CF1 ne montre que les colonnes utiles pour passer une commande (pressez une seconde fois pour voir toutes les colonnes) CF2 passe la commande, CF3 efface la feuille CdeFourn Voir "Commande fournisseur, Créer une" et "Réception de marchandise".
A10: Chercher Article(Q) | B10: Permet de filtrer deux mots sur la désignation d'article (colonne B). Lors de la prochaine pression, le programme enlève et filtre automatique, il faut represser pour faire une nouvelle demande. CTRL+MAJ+Q. Quand on revient sur Factures1, et qu'on veut lancer d'autres portions du programme, il faut que la liste soit déroulée et non filtrée.
A11: Chercher Client(q) | B11: Permet de filtrer sur le nom et/ou la localité que vous recherchez en les indiquant dans les boîtes de dialogue. Par exemple "Ro" "Matran" montrera tous les partners dont le nom contient "Ro" et sont à "Matran". Lors de la prochaine pression, le programme enlève et filtre automatique, il faut represser pour faire une nouvelle demande. CTRL+Q.
A12: Choisir une valeur dans une liste déroulante | B12: ALT+Flèche BAS, puis ENTER.
A13: Client, créer un client | B13: Dans la feuille Partners, saisissez ses coordonnées selon la structure donnée. Le numéro en colonne A doit être progressif.
A14: Client, indiquer le nom du client dans la facture | B14: Tapez son numéro (selon les indication du client de la feuille Partners) en cellule B15 de la feuille "Factures1" ou, en Partner; placez vous sur la ligne du partner à facturer puis pressez sur "Choisir client".
A15: Commande fournisseur, Créer une | B15: Sur la feuille "Articles", lorsque le stock baisse (col. K) et que le programme vous propose de passer une commande (col. AD), saisissez les quantités en col AE, que vous voudrez commander. Faites-le pour un (1) fournisseur (col. J). (Au besoin pressez le bouton "CF1" pour masquer certaines colonnes inutiles à ce stade). Quand vous avez saisi toutes ces quantités, pressez le bouton "CF2", indiquez le numéro du fournisseur auprès de qui vous voulez commander, et les quantités et données basculent dans la feuille "CdeFourn". Lancez le bouton "CdeFournPreview", etc. Voir: Archivage de la commande au fournisseur (1) et Réception de marchandise (2) en feuille Articles
A16: Conditions de ventes | B16: Voir Pied de page, Conditions de vente en…
A17: Copier/Coller | B17: Vous pouvez-faire des copier-coller dans les feuilles "Partners" et "Articles". Mais dans la feuille "Factures1", il ne faut pas le faire sous peine de dérégler la "mécanique" du programme. Si toutefois vous devez faire un copier-coller en "Factures1", procédez ainsi: 1) éditez la cellule que vous désirez copier (F2), 2) positionnez-vous sur la cellule d'arrivée et pressez F2, 3) Collez les données (CTRL+V).
A18: Déplacement (Frais de...) | B18: Ils sont à créer sous forme d'un article (p.ex. N° 200 Frais de déplacement, Prix unitaire 0.85 (le km) et, pour tel mandat facturez 223km à 0.85. Simple n'est-ce pas?
A19: Échéance | B19: En G15 feuille Factures1 s’affiche l’échéance, soit la date du jour plus le nombre de jours (en A17 feuille Variables). Si vous effacez G15, l’échéance est effacée pour la facture en cours. Si vous indiquez "0" en A17, l’échéance ne s’affiche plus. En feuille Archive, colonne Z, quand la date est dépassée, l’échéance devient en couleur, pour vous indiquer qu'il faut envoyer un rappel. Quand le paiement est effectué par le client, il faut effacer l'échéance en col. Z.
A20: Effacement(s) | B20: Il ne faut pas effacer des données "comme ça". Il ne faut JAMAIS faire des Couper-coller, mais des Copier-collage spécial (Valeurs), puis Effacer les données restantes au besoin. Il ne faut ni effacer, modifier la structure des feuille, effacer des formules. Il en résulterait des dysfonctionnements.
A21: Effacer dernière position | B21: Efface la dernière position sur la feuille "Factures1" (CTRL+Z).
A22: Enregistrement de fichier | B22: Si vous débutez avec le programme, prenez l'habitude d'enregistrer le fichier AVANT de faire une tâche nouvelle et inconnue. Si le résultat n'est pas celui escompté vous pouvez alors fermer le document et le rouvrir dans sa dernière version sans qu'il ne soit altéré.
A23: Envoyer à Archives | B23: Si vous saisissez une facture en "Factures1", vous pouvez/devez la conserver en cliquant sur "Envoyer à Archives" (une copie de toutes les données est conservée sur la feuille "Archives"). Ultérieurement, par ex. si vous voulez transformer une offre en facture, vous pouvez la "réinjecter" en "Factures1". Dans la feuille "Archives", lancez la macro Hist.à Fac.1 et indiquez le numéro de la facture que vous voulez "réinjecter". De retour sur "Factures1", modifiez au besoin les données qui viennent de passer. À noter que toutes les données (notamment "Description" sont maintenant en "texte pur" et non en lien à la feuille "Articles", vous pouvez les remettre en automatique (voir Ligne manuel/auto)). C'est au moment où vous lancez cette action que la mise à jour du stock s'exécute, seulement si vous envoyez une Facture ou une Note de crédit (pour tout autre document, le stock n'est pas mis à jour) La feuille Archive est protégée mais SANS mot de passe. Vous pouvez donc faire des modifications (à vos risques et périls), mais il ne faut EN AUCUN CAS effacer ou supprimer des lignes. Pour reprotéger la feuille, veuillez décocher "Objets" et ne pas donner de mot de passe.
A24: Espace en haut de facture (Ligne 12) | B24: Le haut de la facture (feuille Factures1) peut être dégagé plus ou moins (ligne 12) pour une question d'esthétique. Utilisez le bouton L12 pour régler la hauteur de cette ligne. Par défaut "12.75" soit une ligne, mettez-la à "25.5" ou plus si vous le souhaitez. La valeur est mémorisée jusqu'au prochain changement.
A25: État du stock | B25: NEW: L'état du stock par unité s'affiche en "Factures1", en colonne J (de 17 à 216), comme cela vous pouvez savoir si l'article que vous facturez est en stock ou non.
A26: Facturation "à la volée" | B26: Mode rapide de facturation. Directement depuis la feuille "Articles", vous indiquez, l'une après l'autre, les quantités à facturer en colonne D "Commande". Quand vous avez indiqué tous vos articles, vous pressez le bouton "Facture'à la Volée'" et le contenu de la col D se transfert en feuille "Factures1". Puis pour effacer la col D, vous pressez "Reset'à la Volée'". Il n'est pas possible d'indiquer à cette étape des rabais ou des "lignes manuelles". Mais quand vous avez transféré les quantités dans "Factures1" vous pouvez le faire. La facture présentera les articles dans l'ordre de la feuille "Articles".
A27: Facturation en série | B27: Mode de facturation. Depuis la feuille Articles, vous pressez Fact.Art (au clavier: CTRL+MAJ+A) en étant sur la ligne de l'article à facturer. Le stock actuel vous est indiqué. Il vous est demandé la quantité à facturer ainsi que le rabais éventuel (laissez vierge s'il n'y a pas de rabais, indiquez "20" pour 20%). Répétez l'opération à votre convenance pour d'autres articles. Puis allez sur la feuille Factures1 et depuis la cellule A11 indiquez ce qui doit l'être: type de doc, numéro de document, numéro de clients, etc.
A28: Facture | B28: Quand vous facturez, la feuille "Factures1" vous indique en colonne J le solde du stock (inclus ce que vous êtes en train de facturer).
A29: Feuille | B29: Une feuille est une "page de données". P.ex. vous êtes maintenant sur la feuille "Aide" (voir onglet ci-dessous). L'appel à une feuille donnée se marque en bleu.
A30: Filtre (automatique) | B30: Excel permet de placer sur la première ligne un filtre automatique (voir Aide Excel). Par défaut seule la feuille "Articles" peut recevoir le filtre. IMPORTANT Avant d'exécuter les macro, la feuille "Articles" ne doit PAS avoir le filtre sous risque de malfonctionnement • Pour mettre ou enlever le filtre tapez CTRL+MAJ+F.
A31: Frais de transport | B31: Les frais de transport sont à créer et à facturer comme un/des article(s). Nous vous conseillons d'en créer plusieurs de montants différents (p.ex. selon le tarif postal) avec des numéros d'articles faciles à retenir de montants et de taux de TVA adaptés à vos besoins.
A32: Impression (Mac) | B32: Réalise la même tâche que Preview & Impression mais en deux temps (pour Mac): 1) la feuille "Factures1" est filtrée en vue l'impression. Imprimez ou faites un PDF sur Mac (Vous pouvez au besoin enregistrer le fichier, l'ouvrir sur un clône d'Excel qui offre l'impression en PDF et, telle qu'elle, imprimer la feuille "Factures1"). 2) Après impression, relancez la macro qui remet la feuille "Factures1" dans son état originel.
A33: Impression de la feuille Factures1 | B33: Pressez "Preview & impression (PC)" ou "Impression (Mac)" Note: les rayures jaune-pâles ne seront pas imprimée. Si vous souhaitez les imprimer (toujours) dites-moi et je ferai en sorte.
A34: Langue | B34: Le choix de la langue est proposé à chaque ouverture du programme. Si vous souhaitez ne rien changer, pressez Esc. Pour changer de langue en cours d'utilisation, pressez CTRL+MAJ+L. En principe il ne faut pas changer les noms de macros en français, car sinon la présente feuille d'Aide devient incompréhensible.
A35: Ligne manuel/auto(R) | B35: Si vous devez remettre une ligne en automatique, pressez CTRL+R. Refaites l'opération pour chaque ligne. Cette fonction passe de manuel à auto et de auto à manuel à chaque pression (valable pour la ligne en cours uniquement).
A36: Ligne manuel/auto(R) (et la remettre automatiquement au besoin) | B36: IMPORTANT: Excelgestion ne doit pas avoir de lignes vides dans les lignes 17-50. Mais vous pouvez insérer dans Factures1 une ligne vide ou une ligne de commentaire ou encore une vente manuelle. • Pour insérer une ligne vide, commencez par créer un article (dans la feuille "Articles") ayant comme numéro un point ".", puis facturez cet article (en colonne A de la feuille "Factures1") • Si c'est un commentaire, créez aussi un article ayant comme numéro un point ".", puis dans la feuille "Factures1" sur la ligne du commentaire, pressez CTRL+MAJ+R pour mettre la ligne en manuel, puis saisissez le commentaire en colonne B • Pour une vente manuelle nous conseillons vivement de créer un n° d'article spécifique (p.ex. "Générique1") qui servira à toutes les ventes manuelles (ou créez deux numéros s'il y a deux taux de TVA possibles), puis facturez sur ce numéro en modifiant le libellé (comme ci-dessus, pressez CTRL+MAJ+R) Quand la vente est imprimée, il faut réinitialiser la feuille Factures1 par Réinitialiser • Si vous ajoutez une/des ligne(s) manuelle(s) et que vous archivez le document, lors du rappel, toutes les lignes apparaîtront comme vous les aviez saisies. Elles seront en manuel. De même tout le document (lignes auto ou manuelles) sera en manuel. Vous pouvez faire des modifications de prix et quantités mais le champ "Désignation" ne se mettra plus à jour. Remettez les lignes manuelles en automatique (voir Remettre une ligne "manuelle" en automatique).
A37: Liste(s) déroulante(s) | B37: Voir "Choisir une valeur dans une liste déroulante".
A38: MAC Macintosch | B38: Ce programme fonctionne sur Excel de Microsoft pour le Macintosh, dès la version 98 mais pas sur la version 2008 (car les macros n'ont pas été implémentées). Il faut que en cellule A5 de la feuille "Variables", vous choisissiez "Mac" pour que le programme soit opérationnel sur un ordinateur Macintosh. Effacez le "Mac" à chaque fois que le programme est lancé depuis un PC. Testé sur version Office de 2011.
A39: Macro, Lancer une… | B39: Une macro est l'exécution d'un programme. Elles s'exécutent en cliquant sur des boutons. Dans cette aide le nom des macro est toujours indiqué en rouge.
A40: Manuel | B40: L'exécution de cette macro (aussi CTRL+Maj+M) remet l'affichage standard d'Excel.
A41: Maximas | B41: Prenez garde de ne pas dépasser le nombre d'articles possibles sur un document: Pour les Factures 200 positions, pour l'Archives 3000 (plus sur demande) lignes, pour les Articles et les Partners, nous avons testé avec 15000 positions et le programme est actuellement limité à 3000 Articles et/ou Partners. Si vous avez plus d'articles, nous consulter pour que nous adaptions le programme.
A42: Monnaies (étrangères), conversions | B42: La monnaie utilisée est le franc suisse (CHF); nous adaptons volontiers le programme en Euros (€). La feuille "Articles" permet l'achat en toute monnaie et sa conversion en francs suisses Si vous voulez convertir (le total de) votre facture d'une monnaie à une autre (p.ex. de CHF à EUR), 1° indiquez le taux de change dans la feuille "Variables", en A7, 2° en F56 de la feuille "Factures1" indiquez la monnaie (p.ex. "EUR") et le programme converti le total de la facture dans la monnaie. (A noter que si vous stockez un document en feuille "Archive", la monnaie, le taux de change et le montant en monnaie étrangère ne sont PAS conservés, dans ce cas, gardez ces infos [p.ex. "EUR 1.6"] dans la cellule B53 de la feuille "Factures1") et déplacez-les quand l'offre est convertie en facture. Si vous ne voulez pas que les cellules F56-G56 s'affichent en gris, effacez le contenu de la cellule F56 (touche Del).
A43: NEW: Compilation de plusieurs Bulletins de livraison sur une facture | B43: Permet de facturer en une fois plusieurs bulletins de livraison (BL) réalisés précédemment • Réalisez le 1er BL (type de document: Bulletin de livraison) normalement, mais pour le numéro, donner le numéro suivant (N° auto) ajouté d'un "A" (p.ex. "1019A + vos initiales si souhaité") • Optionnel: créez un 1er article (sur la 1ère ligne de facturation) avec texte manuel sur ce BL (et tous les suivants) avec comme article "." (point) en texte "Livraison du XX.XX.XXXX") • Créez une FichePartner et indiquer que le client "2538" (p.ex.) est crédité d'un BL "1019A" • Créez ultérieurement un prochain BL pour ce client, en indiquant comme n° "1019B" puis "1019C", etc. Consignez la dernière lettre donnée dans FichePartner • Quand vous voulez facturer, dans feuille Archive, lancez "ArchToFact1" et indiquez "1019". Tous les BL 1019 s'ajoutent dans Factures1 (max 200 lignes), donnez comme numéro "1019Z" et tracez l'indication dans FichePartner • Terminez la facture comme normalement.
A44: Next typ | B44: Si vous utilisez une tablette, il peut être difficile de choisir le type de document en A11 de "Factures1" via la liste déroulante, aussi nous avons placé le bouton "Next typ" que vous pouvez presser pour choisir le type de document. Presser une ou plusieurs fois jusqu'à l'affichage souhaité.
A45: Note de crédit | B45: Indiquez les quantités en négatif (mettre le signe "-" devant).
A46: Nouvelle facture (CTRL+MAJ+V) | B46: Imprime le document, le place en Archive, le réinitialise et insère le prochain numéro de facture. (Cette macro n'est plus en service, mais nous la réinsérons sur demande).
A47: Numéro de facture | B47: Cliquez en "Factures1" sur N° auto, le prochain numéro apparaît. Saisissez le numéro de départ en feuille "Variables, en cellule A21. Dès lors une pression sur N° auto incrémentera au prochain numéro automatiquement. Les initiales de celui qui facture sont aussi demandées (mais vous pouvez les ignorer). En A22 vous pouvez indiquer une partie fixe du numéro, p.ex. "2020-", le numéro sera "2020-1000"
A48: Partners | B48: L'ensemble des contacts (Clients, Prospects, Fournisseurs, Employés) est tenu dans la feuille "Partners" Indiquer dans la colonne Groupe: C pour Client, F pour Fournisseur, P pour Prospect et E pour Employé. Un partner peut appartenir à plusieurs groupes En colonne S s'affiche le chiffre d'affaires, client par client (ne fonctionne que si vous ne faites que des Factures/Notes de crédit, sinon utiliser la feuille "Tabl.de bord") Dans les deux dernières colonnes, on peut indiquer qui (et à quelle date) a fait la dernière mutation. Cela peut être important pour la traçabilité.
A49: Partners, Fiche | B49: La feuille "FichePartners" vous permet de collecter et conserver toute l'information sur vos échanges avec vos clients, fournisseurs et prospects Les données-modèle que vous trouvez sur la 1ère ligne de cette feuille vous expliquent l'usage à faire. Dans la feuille "Variables" colonnes O-R, vous pouvez ajouter des Types d'Activité, Sujets, Priorités, Statuts, si nécessaire.
A50: Partners, Filtrage de données | B50: La feuille "Partners" n'est pas protégée, on peut donc filtrer les données.
A51: Partners, Nouveaux … | B51: Il est très important qu'aucune ligne ni colonne vide ne se trouve dans les feuille Articles et Partners. Les numéros doivent toujours aller dans l'ordre croissant: "1,2,5,9,19, etc".
A52: Passer d'une cellule (=champ) à l'autre / Remonter d'une cellule (= champ) à l'autre | B52: TAB / MAJ+TAB.
A53: Passer d'une feuille à l'autre | B53: CTRL+PGDown ou CTRL+PGUp.
A54: Personnalisation | B54: La feuille "Variables" vous indique les critères que vous pouvez changer: TVA, textes en pieds de page, même la description du document et sa langue. Important, ne changez pas les lignes 1-39, 79 et 119. Les lignes 40-76 concernent le français, les lignes 80-116 l'anglais et les lignes 120-156 l'allemand • En A9 indiquez votre raison sociale; elle apparaîtra à l'impression, en pied de page.
A55: Pied de page n° 2 et n° 3 | B55: Il vous est possible d'ajouter deux autres niveaux de pied de page en Factures1 Pour le pied de page 2, indiquez le texte que vous souhaitez en A225 de Factures1 Pour le pied de page 3, indiquez des textes prédéfinis en feuille Variables, col N, puis indiquez le numéro en col M du pied de page souhaité en A222 de la feuille Variables (numéro en blanc, ne s'affiche ni ne s'imprime). Utilisez les boutons L225 et L226 pour régler la hauteur de ces lignes.
A56: Pied de page, Conditions de vente en… | B56: Dans la feuille Variables, vous trouvez en colonne C et D la liste des conditions. Vous pouvez la modifier/compléter mais veillez à ce que les numéros en colonne C soient toujours progressifs. Pour changer/ajouter d'autres pieds de pages, indiquez-les en lignes 40-55 pour le français, en 80-95 pour l'anglais et en 120-135 pour l'allemand. Puis relancez la langue (en pressant CTRL-MAJ-L) Saisissez en Factures1 en 223, le numéros que vous souhaitez afficher (à noter que ce numéro est invisible - en blanc - il ne se voit donc que dans la Barre des formules et ne sera pas imprimé) Utilisez le bouton L224 pour régler la hauteur de cette ligne.
A57: Placer/Enlever le mode filtre en Articles | B57: CTRL+MAJ+F ou pressez sur le bouton Filtre en Haut à gauche de la feuille Articles.
A58: PmtOuverts (Voir les paiements ouverts) | B58: Depuis la feuille "Archives" vous enregistrez les paiements. Pressez le bouton (tout à gauche de la feuille), indiquez le numéro de facture (au besoin faire une recherche sur la colonne M) et saisissez le montant effectivement payé en col. AB. Indiquez la date du paiement en AC, le type de paiement en AD et une remarque éventuelle en AE. Si le paiement est complet, vous pouvez effacer le Dépassement (effacez simplement la cellule en AA). Si vous recevez plusieurs paiements partiel, indiquez (p.ex.) "=400+300+150" En feuille "Stats" vous pouvez voir l'était des paiements en ligne 13, et la Balance, en ligne 14.
A59: Poids | B59: Vous pouvez connaître le poids total de tous les articles d'un document. Sur chaque article (sauf les prestations), indiquez le poids en kg en col. AH de la feuille Articles. Faites votre document et voyez au fur et à mesure le poids total de tous les articles, en G14 de la feuille Factures1. Ainsi vous pouvez déterminer le prix du transport (frais d'envoi)
A60: Préliminaires/Commentaires | B60: Vous pouvez insérer des préliminaires sous le titre "Facture" (en cellule A12) et des commentaires sous le prix hors TVA (en cellule B52).
A61: Quantité totale | B61: La Quantité totale d'éléments dans un document s'affiche en feuille "Factures1", en C219.
A62: Quittance | B62: Pour vos ventes sur le champ dans le magasin, un partner "Passant" existe (n° 2, n° 3 en allemand) à moins que vous ne préfériez laisser en blanc (n° 1).
A63: Raccourcis clavier (principaux) | B63: CTRL+MAJ+S = Envoyer à Archives (en Factures1) CTRL+ MAJ+R = Remplir ligne manuellement (en Factures1) CTRL+R = Ligne manuel/auto(R) (en Factures1) CTRL+MAJ+Z = Réinitialiser (en Factures1) CTRL+MAJ+I = Preview + Impression (en Factures1) CTRL+MAJ+N = N° auto (en Factures1) CTRL+MAJ+A = Facturer Article (en Articles) CTRL+MAJ+C = Choisir client (en Partners) CTRL+MAJ+L = Choisir langue (partout) CTRL+MAJ+F = Mettre/Enlever Filtre (en Articles) CTRL+Z = Effacer dernière position (en Factures1) CTRL+Q = Chercher client (en Partners) CTRL+MAJ+Q = Chercher article (en Articles).
A64: Recherche sur une des feuilles Article ou Partners | B64: Utilisez la fonction intégrée à Excel: CTRL+F.
A65: Réinitialiser | B65: Vide le contenu de la feuille "Factures1".
A66: Réseau, Fonctionnement en | B66: Ce programme ne fonctionne pas en réseau (sur plusieurs postes en même temps).
A67: Saisie de nouveaux articles, de nouveaux partners et de nouveau Textes en pied (important) | B67: Les numéros (en colonne A) doivent toujours être progressifs (1, 2, 3, etc) sinon le programme ne fonctionne pas correctement.
A68: Saisir la date | B68: • Vous pouvez saisir la date en la tapant en Factures1, cellule B13. Mais pour aller plus vite vous pouvez saisir la date du jour ainsi: CTRL+MAJ+, (=virgule), Enter ou TAB.
A69: Scanner (ou douchette) | B69: L'utilisation d'un scanner pour une saisie des factures plus rapide est tout-à-fait possible. Veuillez nous consulter.
A70: Statistiques | B70: Vous indique l'état du stock (qui ne change que lors de Factures et de Notes de crédit) dans la feuille "Articles". La Valeur du Stock et le Prix de vente total sont aussi calculés facture après facture.
A71: Statistiques des ventes | B71: La feuille "Stats" vous donne de nombreuses statistiques. Pressez le bouton "Stats".
A72: Statistiques sur… | B72: Se trouve en feuille Tab.de bord, dans les colonne B à G. Pressez "Statistiques du jour/heure" pour ajouter une nouvelle ligne avec les données de l'instant.
A73: Stats | B73: Vous indiquez (ou non): Date départ / Date fin (mention obligatoire) Partner n° (mention facultative) TypeDoc1 (p.ex. Facture) TypeDoc2 (p.ex. Avoir), ainsi vous pouvez visualiser deux types en même temps Art n° (mention facultative) En B8 à B19 s'affichent les résultats, selon ce que vous avez indiqué.
A74: Stock (mise à jour du) | B74: Dès la version 3g, Excelgestion>>> vous permet de gérer votre stock Voir "Commande fournisseur, Créer une", "Réception de marchandise" et "Envoyer à Archives".
A75: Tâche | B75: Le mot "Tâche" à gauche en est une. Chaque ligne de cette feuille d'aide est une action à faire, une tâche, l'appel à une tâche se désigne en vert.
A76: Tour guidé (TG) | B76: A chaque lancement d'Excel, vous pouvez lancer le Tour guidé, en indiquant "TG" lors de la demande de choix de langue. Vous pouvez aussi en tout temps le relancer en pressant CTRL+MAJ+T. Le Tour guidé présente Excelgestion de façon simple et didactique, mais la présente aide est toutefois plus complète.
A77: Travailler avec plusieurs PC/Mac simultanément. Travailler "en réseau" | B77: Si vous avez une liste des clients et articles stable, il est possible de faire des offres, devis (tous documents sauf "Facture, Avoir, Quittance et Note d'honoraires") sur plusieurs PC/Mac simultanément. 1.- Déterminez un ordi comme "Principal", mettez une copie d'Excelgestion XLS sur chaque machine. Attribuez des nouveaux numéros de documents différents pour chaque machine (p.ex. dès 1200, dès 1500, etc. Idem pour les nouveaux clients et articles s'il y en a). 2.- Travaillez normalement sur chaque poste. S'il y a des mutations d'articles ou de clients, mettez-les en rouge, bien visibles. 3.- En fin de journée, regroupez les fichiers sur un ordi. Copiez-collez les nouveaux documents de la feuille Archive (déprotegez la feuille, sans mot de passe), en sélectionnant les lignes en cliquant-glissant dans l'entête, de chaque machine, dans l'ordi principal. 4.- mettez à jour de la même façon les nouveaux clients et les mutations d'articles et de clients. Si vous êtes en réseau cela facilitera mais ce n'est pas obligatoire, une clé USB suffit. Demandez-moi!
A78: TVA, Taux de TVA et prix HT/TTC | B78: Pour modifier le taux de TVA, aller en feuille "Variables", et modifiez le ou les taux 1 en A2 et le taux 2 en A3. Tout le reste est fixe. Vous pouvez choisir en Variables, en A13 des prix HT ou TTC. Si vous devez faire une facture pour l'export, deux cas de figures: • Si vos prix sont HT, effacez article par article le chiffre 1 ou 2 de la colonne H en feuille Factures1 (lancez le programme "Remplir ligne manuellement") • Si vos prix sont TTC et que vos prix export doivent être HT, saisissez dans la colonne T de la feuille Articles, p.ex. "=C2*0.929368" pour que tous vos prix ayent une variante HT. Lors de la facturation, indiquez "2" en C15 de Factures1 et de même effacez article par article le chiffre 1 ou 2 de la colonne H en Feuille Factures1.

Sheet Htemp (hidden)
A1: Référence | B1: Désignation | C1: Qté | D1: Unité | E1: P.U. | F1: % | G1: Total net | H1: T | I1: TVA | J1: Type doc | K1: Date doc | L1: Rem1 | M1: N°/réf. | N1: V/n° client | O1: Val C15 | P1: Total net | Q1: TVA | R1: Total final | S1: PiedPageN° | T1: Total TVA1 | U1: Total TVA2 | V1: Imprimer | W1: Cat. Pers | X1: En faveur N° | Y1: En faveur Nom | Z1: Échéance | AA1: Dépassement | AB1: Paiement (inclure l'éventuel Acompte col AI) | AC1: Date Paiement | AD1: Type Paiement | AE1: Remarque | AF1: Blank | AG1: Ligne225 | AH1: Ligne226 | AI1: Acompte | AJ1: État du stock
A2: 1017 | B2: Tintin L'Oreille Cassée | C2: 1 | D2: BD | E2: 17.8 | F2: 0 | G2: 17.8 | H2: 2 | I2: 0.4341463415 | J2: Facture | K2: 45986 | L2: 0 | M2: 1008 / cr | N2: 3 | O2: 1 | P2: 984.8681749 | Q2: 74.93182508 | R2: 1059.8 | S2: 2 | T2: 74.49767874 | U2: 0.4341463415 | V2: Imprimer | W2: 0 | X2: 0 | Z2: 46016 | AA2: -30 | AG2: 0 | AH2: 1 | AI2: 0 | AJ2: 0
A3: 1020 | B3: Peinture intérieur dispersion Chambre Ouest Surface murale: 128m2 Le prix comprend: - fourniture à pied d’oeuvre des matériaux et matériels nécessaires; - protection des parties d’ouvrage non concernées; - grattage des peintures existantes; - brossage à la brosse métallique, lavage, jusqu’à l’obtention d’un support propre; - 1 couche d’impression; - nettoyage après travaux | C3: 1 | D3: Forfait | E3: 1034 | F3: 0 | G3: 1034 | H3: 1 | I3: 73.92571959 | J3: Facture | K3: 45986 | M3: 1008 / cr | N3: 3
A4: 9999 | B4: Frais d'envoi | C4: 1 | D4: Selon poids | E4: 8 | F4: 0 | G4: 8 | H4: 1 | I4: 0.5719591458 | J4: Facture | K4: 45986 | M4: 1008 / cr | N4: 3

Sheet Archive
A1: Référence | B1: Désignation | C1: Qté | D1: Unité | E1: Prix unitaire | F1: % | G1: Total net | H1: T | I1: TVA | J1: Type doc | K1: Date doc | L1: Rem1 | M1: Fact. n°/réf. | N1: V/n° client | O1: Val C15 | P1: Total net | Q1: TVA | R1: Total final | S1: PiedPageN° | T1: Total TVA1 | U1: Total TVA2 | V1: Imprimer | W1: Cat. Pers | X1: En faveur N° | Y1: En faveur Nom | Z1: Échéance | AA1: Dépassement | AB1: Paiement | AC1: Date Paiement | AD1: Type Paiement | AE1: Remarque | AF1: Blank | AG1: Ligne225 | AH1: Ligne226 | AI1: Acompte | AJ1: MB Unit
A2: =Factures1!A17 -> 1019 | B2: =Factures1!B17 -> Tintin et les Picaros | C2: =Factures1!C17 -> 1 | D2: =Factures1!D17 -> BD | E2: =Factures1!E17 -> 17.8 | F2: =Factures1!F17 -> 0 | G2: =IF(Variables!$A$13="HT",Factures1!G17+I2,Factures1!G17) -> 17.8 | H2: =Factures1!H17 -> 2 | I2: =Factures1!I17 -> 0.4341463415 | J2: =Factures1!$A$11 -> Facture | K2: =Factures1!$B$13 -> 2025-11-26 | L2: =Factures1!$A$12 -> 0 | M2: =Factures1!$B$14 -> 1011 / cr | N2: =Factures1!$B$15 -> 3338 | O2: =Factures1!$C$15 -> 1 | P2: =Factures1!$G$217 -> 364.6267636 | Q2: =Factures1!$G$218 -> 27.17323641 | R2: =Factures1!$F$221 -> 391.8 | S2: =Factures1!$A$223 -> 2 | T2: =Factures1!$C$222 -> 26.73909006 | U2: =Factures1!$D$222 -> 0.4341463415 | V2: Imprimer | W2: =Factures1!$G$13 -> 0 | X2: =Factures1!C13 -> 0 | Y2: =IF(ISBLANK(VLOOKUP($X$2,Partners!$A$2:$R$3000,3)),"",VLOOKUP($X$2,Partners!$A$2:$R$3000,3)) ->  | Z2: =Factures1!$G$15 -> 2026-01-25 | AA2: =TODAY()-Z2 -> -60 | AG2: =Factures1!A225 -> 0 | AH2: =Factures1!A222 -> 1 | AI2: =Factures1!C220 -> 0 | AJ2: =Factures1!J217 -> 0
A3: =Factures1!A18 -> 7613312141120 | B3: =Factures1!B18 -> Micro voix avec interrupteur Shure SM58 | C3: =Factures1!C18 -> 1 | D3: =Factures1!D18 -> Sono | E3: =Factures1!E18 -> 340 | F3: =Factures1!F18 -> 0 | G3: =IF(Variables!$A$13="HT",Factures1!G18+I3,Factures1!G18) -> 340 | H3: =Factures1!H18 -> 1 | I3: =Factures1!I18 -> 24.3082637 | J3: =Factures1!$A$11 -> Facture | K3: =Factures1!$B$13 -> 2025-11-26 | M3: =Factures1!$B$14 -> 1011 / cr | N3: =Factures1!$B$15 -> 3338
A4: =Factures1!A19 -> 9999 | B4: =Factures1!B19 -> Frais d'envoi | C4: =Factures1!C19 -> 1 | D4: =Factures1!D19 -> Selon poids | E4: =Factures1!E19 -> 34 | F4: =Factures1!F19 -> 0 | G4: =IF(Variables!$A$13="HT",Factures1!G19+I4,Factures1!G19) -> 34 | H4: =Factures1!H19 -> 1 | I4: =Factures1!I19 -> 2.43082637 | J4: =Factures1!$A$11 -> Facture | K4: =Factures1!$B$13 -> 2025-11-26 | M4: =Factures1!$B$14 -> 1011 / cr | N4: =Factures1!$B$15 -> 3338
A5: =Factures1!A20 -> 0 | B5: =Factures1!B20 ->  | C5: =Factures1!C20 -> 0 | D5: =Factures1!D20 ->  | E5: =Factures1!E20 ->  | F5: =Factures1!F20 -> 0 | G5: =IF(Variables!$A$13="HT",Factures1!G20+I5,Factures1!G20) -> 0 | H5: =Factures1!H20 -> 0 | I5: =Factures1!I20 -> 0 | J5: =Factures1!$A$11 -> Facture | K5: =Factures1!$B$13 -> 2025-11-26 | M5: =Factures1!$B$14 -> 1011 / cr | N5: =Factures1!$B$15 -> 3338
A6: =Factures1!A21 -> 0 | B6: =Factures1!B21 ->  | C6: =Factures1!C21 -> 0 | D6: =Factures1!D21 ->  | E6: =Factures1!E21 ->  | F6: =Factures1!F21 -> 0 | G6: =IF(Variables!$A$13="HT",Factures1!G21+I6,Factures1!G21) -> 0 | H6: =Factures1!H21 -> 0 | I6: =Factures1!I21 -> 0 | J6: =Factures1!$A$11 -> Facture | K6: =Factures1!$B$13 -> 2025-11-26 | M6: =Factures1!$B$14 -> 1011 / cr | N6: =Factures1!$B$15 -> 3338
A7: =Factures1!A22 -> 0 | B7: =Factures1!B22 ->  | C7: =Factures1!C22 -> 0 | D7: =Factures1!D22 ->  | E7: =Factures1!E22 ->  | F7: =Factures1!F22 -> 0 | G7: =IF(Variables!$A$13="HT",Factures1!G22+I7,Factures1!G22) -> 0 | H7: =Factures1!H22 -> 0 | I7: =Factures1!I22 -> 0 | J7: =Factures1!$A$11 -> Facture | K7: =Factures1!$B$13 -> 2025-11-26 | M7: =Factures1!$B$14 -> 1011 / cr | N7: =Factures1!$B$15 -> 3338
A8: =Factures1!A23 -> 0 | B8: =Factures1!B23 ->  | C8: =Factures1!C23 -> 0 | D8: =Factures1!D23 ->  | E8: =Factures1!E23 ->  | F8: =Factures1!F23 -> 0 | G8: =IF(Variables!$A$13="HT",Factures1!G23+I8,Factures1!G23) -> 0 | H8: =Factures1!H23 -> 0 | I8: =Factures1!I23 -> 0 | J8: =Factures1!$A$11 -> Facture | K8: =Factures1!$B$13 -> 2025-11-26 | M8: =Factures1!$B$14 -> 1011 / cr | N8: =Factures1!$B$15 -> 3338
A9: =Factures1!A24 -> 0 | B9: =Factures1!B24 ->  | C9: =Factures1!C24 -> 0 | D9: =Factures1!D24 ->  | E9: =Factures1!E24 ->  | F9: =Factures1!F24 -> 0 | G9: =IF(Variables!$A$13="HT",Factures1!G24+I9,Factures1!G24) -> 0 | H9: =Factures1!H24 -> 0 | I9: =Factures1!I24 -> 0 | J9: =Factures1!$A$11 -> Facture | K9: =Factures1!$B$13 -> 2025-11-26 | M9: =Factures1!$B$14 -> 1011 / cr | N9: =Factures1!$B$15 -> 3338
A10: =Factures1!A25 -> 0 | B10: =Factures1!B25 ->  | C10: =Factures1!C25 -> 0 | D10: =Factures1!D25 ->  | E10: =Factures1!E25 ->  | F10: =Factures1!F25 -> 0 | G10: =IF(Variables!$A$13="HT",Factures1!G25+I10,Factures1!G25) -> 0 | H10: =Factures1!H25 -> 0 | I10: =Factures1!I25 -> 0 | J10: =Factures1!$A$11 -> Facture | K10: =Factures1!$B$13 -> 2025-11-26 | M10: =Factures1!$B$14 -> 1011 / cr | N10: =Factures1!$B$15 -> 3338
A11: =Factures1!A26 -> 0 | B11: =Factures1!B26 ->  | C11: =Factures1!C26 -> 0 | D11: =Factures1!D26 ->  | E11: =Factures1!E26 ->  | F11: =Factures1!F26 -> 0 | G11: =IF(Variables!$A$13="HT",Factures1!G26+I11,Factures1!G26) -> 0 | H11: =Factures1!H26 -> 0 | I11: =Factures1!I26 -> 0 | J11: =Factures1!$A$11 -> Facture | K11: =Factures1!$B$13 -> 2025-11-26 | M11: =Factures1!$B$14 -> 1011 / cr | N11: =Factures1!$B$15 -> 3338
A12: =Factures1!A27 -> 0 | B12: =Factures1!B27 ->  | C12: =Factures1!C27 -> 0 | D12: =Factures1!D27 ->  | E12: =Factures1!E27 ->  | F12: =Factures1!F27 -> 0 | G12: =IF(Variables!$A$13="HT",Factures1!G27+I12,Factures1!G27) -> 0 | H12: =Factures1!H27 -> 0 | I12: =Factures1!I27 -> 0 | J12: =Factures1!$A$11 -> Facture | K12: =Factures1!$B$13 -> 2025-11-26 | M12: =Factures1!$B$14 -> 1011 / cr | N12: =Factures1!$B$15 -> 3338
A13: =Factures1!A28 -> 0 | B13: =Factures1!B28 ->  | C13: =Factures1!C28 -> 0 | D13: =Factures1!D28 ->  | E13: =Factures1!E28 ->  | F13: =Factures1!F28 -> 0 | G13: =IF(Variables!$A$13="HT",Factures1!G28+I13,Factures1!G28) -> 0 | H13: =Factures1!H28 -> 0 | I13: =Factures1!I28 -> 0 | J13: =Factures1!$A$11 -> Facture | K13: =Factures1!$B$13 -> 2025-11-26 | M13: =Factures1!$B$14 -> 1011 / cr | N13: =Factures1!$B$15 -> 3338
A14: =Factures1!A29 -> 0 | B14: =Factures1!B29 ->  | C14: =Factures1!C29 -> 0 | D14: =Factures1!D29 ->  | E14: =Factures1!E29 ->  | F14: =Factures1!F29 -> 0 | G14: =IF(Variables!$A$13="HT",Factures1!G29+I14,Factures1!G29) -> 0 | H14: =Factures1!H29 -> 0 | I14: =Factures1!I29 -> 0 | J14: =Factures1!$A$11 -> Facture | K14: =Factures1!$B$13 -> 2025-11-26 | M14: =Factures1!$B$14 -> 1011 / cr | N14: =Factures1!$B$15 -> 3338
A15: =Factures1!A30 -> 0 | B15: =Factures1!B30 ->  | C15: =Factures1!C30 -> 0 | D15: =Factures1!D30 ->  | E15: =Factures1!E30 ->  | F15: =Factures1!F30 -> 0 | G15: =IF(Variables!$A$13="HT",Factures1!G30+I15,Factures1!G30) -> 0 | H15: =Factures1!H30 -> 0 | I15: =Factures1!I30 -> 0 | J15: =Factures1!$A$11 -> Facture | K15: =Factures1!$B$13 -> 2025-11-26 | M15: =Factures1!$B$14 -> 1011 / cr | N15: =Factures1!$B$15 -> 3338
A16: =Factures1!A31 -> 0 | B16: =Factures1!B31 ->  | C16: =Factures1!C31 -> 0 | D16: =Factures1!D31 ->  | E16: =Factures1!E31 ->  | F16: =Factures1!F31 -> 0 | G16: =IF(Variables!$A$13="HT",Factures1!G31+I16,Factures1!G31) -> 0 | H16: =Factures1!H31 -> 0 | I16: =Factures1!I31 -> 0 | J16: =Factures1!$A$11 -> Facture | K16: =Factures1!$B$13 -> 2025-11-26 | M16: =Factures1!$B$14 -> 1011 / cr | N16: =Factures1!$B$15 -> 3338
A17: =Factures1!A32 -> 0 | B17: =Factures1!B32 ->  | C17: =Factures1!C32 -> 0 | D17: =Factures1!D32 ->  | E17: =Factures1!E32 ->  | F17: =Factures1!F32 -> 0 | G17: =IF(Variables!$A$13="HT",Factures1!G32+I17,Factures1!G32) -> 0 | H17: =Factures1!H32 -> 0 | I17: =Factures1!I32 -> 0 | J17: =Factures1!$A$11 -> Facture | K17: =Factures1!$B$13 -> 2025-11-26 | M17: =Factures1!$B$14 -> 1011 / cr | N17: =Factures1!$B$15 -> 3338
A18: =Factures1!A33 -> 0 | B18: =Factures1!B33 ->  | C18: =Factures1!C33 -> 0 | D18: =Factures1!D33 ->  | E18: =Factures1!E33 ->  | F18: =Factures1!F33 -> 0 | G18: =IF(Variables!$A$13="HT",Factures1!G33+I18,Factures1!G33) -> 0 | H18: =Factures1!H33 -> 0 | I18: =Factures1!I33 -> 0 | J18: =Factures1!$A$11 -> Facture | K18: =Factures1!$B$13 -> 2025-11-26 | M18: =Factures1!$B$14 -> 1011 / cr | N18: =Factures1!$B$15 -> 3338
A19: =Factures1!A34 -> 0 | B19: =Factures1!B34 ->  | C19: =Factures1!C34 -> 0 | D19: =Factures1!D34 ->  | E19: =Factures1!E34 ->  | F19: =Factures1!F34 -> 0 | G19: =IF(Variables!$A$13="HT",Factures1!G34+I19,Factures1!G34) -> 0 | H19: =Factures1!H34 -> 0 | I19: =Factures1!I34 -> 0 | J19: =Factures1!$A$11 -> Facture | K19: =Factures1!$B$13 -> 2025-11-26 | M19: =Factures1!$B$14 -> 1011 / cr | N19: =Factures1!$B$15 -> 3338
A20: =Factures1!A35 -> 0 | B20: =Factures1!B35 ->  | C20: =Factures1!C35 -> 0 | D20: =Factures1!D35 ->  | E20: =Factures1!E35 ->  | F20: =Factures1!F35 -> 0 | G20: =IF(Variables!$A$13="HT",Factures1!G35+I20,Factures1!G35) -> 0 | H20: =Factures1!H35 -> 0 | I20: =Factures1!I35 -> 0 | J20: =Factures1!$A$11 -> Facture | K20: =Factures1!$B$13 -> 2025-11-26 | M20: =Factures1!$B$14 -> 1011 / cr | N20: =Factures1!$B$15 -> 3338
A21: =Factures1!A36 -> 0 | B21: =Factures1!B36 ->  | C21: =Factures1!C36 -> 0 | D21: =Factures1!D36 ->  | E21: =Factures1!E36 ->  | F21: =Factures1!F36 -> 0 | G21: =IF(Variables!$A$13="HT",Factures1!G36+I21,Factures1!G36) -> 0 | H21: =Factures1!H36 -> 0 | I21: =Factures1!I36 -> 0 | J21: =Factures1!$A$11 -> Facture | K21: =Factures1!$B$13 -> 2025-11-26 | M21: =Factures1!$B$14 -> 1011 / cr | N21: =Factures1!$B$15 -> 3338
A22: =Factures1!A37 -> 0 | B22: =Factures1!B37 ->  | C22: =Factures1!C37 -> 0 | D22: =Factures1!D37 ->  | E22: =Factures1!E37 ->  | F22: =Factures1!F37 -> 0 | G22: =IF(Variables!$A$13="HT",Factures1!G37+I22,Factures1!G37) -> 0 | H22: =Factures1!H37 -> 0 | I22: =Factures1!I37 -> 0 | J22: =Factures1!$A$11 -> Facture | K22: =Factures1!$B$13 -> 2025-11-26 | M22: =Factures1!$B$14 -> 1011 / cr | N22: =Factures1!$B$15 -> 3338
A23: =Factures1!A38 -> 0 | B23: =Factures1!B38 ->  | C23: =Factures1!C38 -> 0 | D23: =Factures1!D38 ->  | E23: =Factures1!E38 ->  | F23: =Factures1!F38 -> 0 | G23: =IF(Variables!$A$13="HT",Factures1!G38+I23,Factures1!G38) -> 0 | H23: =Factures1!H38 -> 0 | I23: =Factures1!I38 -> 0 | J23: =Factures1!$A$11 -> Facture | K23: =Factures1!$B$13 -> 2025-11-26 | M23: =Factures1!$B$14 -> 1011 / cr | N23: =Factures1!$B$15 -> 3338
A24: =Factures1!A39 -> 0 | B24: =Factures1!B39 ->  | C24: =Factures1!C39 -> 0 | D24: =Factures1!D39 ->  | E24: =Factures1!E39 ->  | F24: =Factures1!F39 -> 0 | G24: =IF(Variables!$A$13="HT",Factures1!G39+I24,Factures1!G39) -> 0 | H24: =Factures1!H39 -> 0 | I24: =Factures1!I39 -> 0 | J24: =Factures1!$A$11 -> Facture | K24: =Factures1!$B$13 -> 2025-11-26 | M24: =Factures1!$B$14 -> 1011 / cr | N24: =Factures1!$B$15 -> 3338
A25: =Factures1!A40 -> 0 | B25: =Factures1!B40 ->  | C25: =Factures1!C40 -> 0 | D25: =Factures1!D40 ->  | E25: =Factures1!E40 ->  | F25: =Factures1!F40 -> 0 | G25: =IF(Variables!$A$13="HT",Factures1!G40+I25,Factures1!G40) -> 0 | H25: =Factures1!H40 -> 0 | I25: =Factures1!I40 -> 0 | J25: =Factures1!$A$11 -> Facture | K25: =Factures1!$B$13 -> 2025-11-26 | M25: =Factures1!$B$14 -> 1011 / cr | N25: =Factures1!$B$15 -> 3338
A26: =Factures1!A41 -> 0 | B26: =Factures1!B41 ->  | C26: =Factures1!C41 -> 0 | D26: =Factures1!D41 ->  | E26: =Factures1!E41 ->  | F26: =Factures1!F41 -> 0 | G26: =IF(Variables!$A$13="HT",Factures1!G41+I26,Factures1!G41) -> 0 | H26: =Factures1!H41 -> 0 | I26: =Factures1!I41 -> 0 | J26: =Factures1!$A$11 -> Facture | K26: =Factures1!$B$13 -> 2025-11-26 | M26: =Factures1!$B$14 -> 1011 / cr | N26: =Factures1!$B$15 -> 3338
A27: =Factures1!A42 -> 0 | B27: =Factures1!B42 ->  | C27: =Factures1!C42 -> 0 | D27: =Factures1!D42 ->  | E27: =Factures1!E42 ->  | F27: =Factures1!F42 -> 0 | G27: =IF(Variables!$A$13="HT",Factures1!G42+I27,Factures1!G42) -> 0 | H27: =Factures1!H42 -> 0 | I27: =Factures1!I42 -> 0 | J27: =Factures1!$A$11 -> Facture | K27: =Factures1!$B$13 -> 2025-11-26 | M27: =Factures1!$B$14 -> 1011 / cr | N27: =Factures1!$B$15 -> 3338
A28: =Factures1!A43 -> 0 | B28: =Factures1!B43 ->  | C28: =Factures1!C43 -> 0 | D28: =Factures1!D43 ->  | E28: =Factures1!E43 ->  | F28: =Factures1!F43 -> 0 | G28: =IF(Variables!$A$13="HT",Factures1!G43+I28,Factures1!G43) -> 0 | H28: =Factures1!H43 -> 0 | I28: =Factures1!I43 -> 0 | J28: =Factures1!$A$11 -> Facture | K28: =Factures1!$B$13 -> 2025-11-26 | M28: =Factures1!$B$14 -> 1011 / cr | N28: =Factures1!$B$15 -> 3338
A29: =Factures1!A44 -> 0 | B29: =Factures1!B44 ->  | C29: =Factures1!C44 -> 0 | D29: =Factures1!D44 ->  | E29: =Factures1!E44 ->  | F29: =Factures1!F44 -> 0 | G29: =IF(Variables!$A$13="HT",Factures1!G44+I29,Factures1!G44) -> 0 | H29: =Factures1!H44 -> 0 | I29: =Factures1!I44 -> 0 | J29: =Factures1!$A$11 -> Facture | K29: =Factures1!$B$13 -> 2025-11-26 | M29: =Factures1!$B$14 -> 1011 / cr | N29: =Factures1!$B$15 -> 3338
A30: =Factures1!A45 -> 0 | B30: =Factures1!B45 ->  | C30: =Factures1!C45 -> 0 | D30: =Factures1!D45 ->  | E30: =Factures1!E45 ->  | F30: =Factures1!F45 -> 0 | G30: =IF(Variables!$A$13="HT",Factures1!G45+I30,Factures1!G45) -> 0 | H30: =Factures1!H45 -> 0 | I30: =Factures1!I45 -> 0 | J30: =Factures1!$A$11 -> Facture | K30: =Factures1!$B$13 -> 2025-11-26 | M30: =Factures1!$B$14 -> 1011 / cr | N30: =Factures1!$B$15 -> 3338
A31: =Factures1!A46 -> 0 | B31: =Factures1!B46 ->  | C31: =Factures1!C46 -> 0 | D31: =Factures1!D46 ->  | E31: =Factures1!E46 ->  | F31: =Factures1!F46 -> 0 | G31: =IF(Variables!$A$13="HT",Factures1!G46+I31,Factures1!G46) -> 0 | H31: =Factures1!H46 -> 0 | I31: =Factures1!I46 -> 0 | J31: =Factures1!$A$11 -> Facture | K31: =Factures1!$B$13 -> 2025-11-26 | M31: =Factures1!$B$14 -> 1011 / cr | N31: =Factures1!$B$15 -> 3338
A32: =Factures1!A47 -> 0 | B32: =Factures1!B47 ->  | C32: =Factures1!C47 -> 0 | D32: =Factures1!D47 ->  | E32: =Factures1!E47 ->  | F32: =Factures1!F47 -> 0 | G32: =IF(Variables!$A$13="HT",Factures1!G47+I32,Factures1!G47) -> 0 | H32: =Factures1!H47 -> 0 | I32: =Factures1!I47 -> 0 | J32: =Factures1!$A$11 -> Facture | K32: =Factures1!$B$13 -> 2025-11-26 | M32: =Factures1!$B$14 -> 1011 / cr | N32: =Factures1!$B$15 -> 3338
A33: =Factures1!A48 -> 0 | B33: =Factures1!B48 ->  | C33: =Factures1!C48 -> 0 | D33: =Factures1!D48 ->  | E33: =Factures1!E48 ->  | F33: =Factures1!F48 -> 0 | G33: =IF(Variables!$A$13="HT",Factures1!G48+I33,Factures1!G48) -> 0 | H33: =Factures1!H48 -> 0 | I33: =Factures1!I48 -> 0 | J33: =Factures1!$A$11 -> Facture | K33: =Factures1!$B$13 -> 2025-11-26 | M33: =Factures1!$B$14 -> 1011 / cr | N33: =Factures1!$B$15 -> 3338
A34: =Factures1!A49 -> 0 | B34: =Factures1!B49 ->  | C34: =Factures1!C49 -> 0 | D34: =Factures1!D49 ->  | E34: =Factures1!E49 ->  | F34: =Factures1!F49 -> 0 | G34: =IF(Variables!$A$13="HT",Factures1!G49+I34,Factures1!G49) -> 0 | H34: =Factures1!H49 -> 0 | I34: =Factures1!I49 -> 0 | J34: =Factures1!$A$11 -> Facture | K34: =Factures1!$B$13 -> 2025-11-26 | M34: =Factures1!$B$14 -> 1011 / cr | N34: =Factures1!$B$15 -> 3338
A35: =Factures1!A50 -> 0 | B35: =Factures1!B50 ->  | C35: =Factures1!C50 -> 0 | D35: =Factures1!D50 ->  | E35: =Factures1!E50 ->  | F35: =Factures1!F50 -> 0 | G35: =IF(Variables!$A$13="HT",Factures1!G50+I35,Factures1!G50) -> 0 | H35: =Factures1!H50 -> 0 | I35: =Factures1!I50 -> 0 | J35: =Factures1!$A$11 -> Facture | K35: =Factures1!$B$13 -> 2025-11-26 | M35: =Factures1!$B$14 -> 1011 / cr | N35: =Factures1!$B$15 -> 3338
A36: =Factures1!A51 -> 0 | B36: =Factures1!B51 ->  | C36: =Factures1!C51 -> 0 | D36: =Factures1!D51 ->  | E36: =Factures1!E51 ->  | F36: =Factures1!F51 -> 0 | G36: =IF(Variables!$A$13="HT",Factures1!G51+I36,Factures1!G51) -> 0 | H36: =Factures1!H51 -> 0 | I36: =Factures1!I51 -> 0 | J36: =Factures1!$A$11 -> Facture | K36: =Factures1!$B$13 -> 2025-11-26 | M36: =Factures1!$B$14 -> 1011 / cr | N36: =Factures1!$B$15 -> 3338
A37: =Factures1!A52 -> 0 | B37: =Factures1!B52 ->  | C37: =Factures1!C52 -> 0 | D37: =Factures1!D52 ->  | E37: =Factures1!E52 ->  | F37: =Factures1!F52 -> 0 | G37: =IF(Variables!$A$13="HT",Factures1!G52+I37,Factures1!G52) -> 0 | H37: =Factures1!H52 -> 0 | I37: =Factures1!I52 -> 0 | J37: =Factures1!$A$11 -> Facture | K37: =Factures1!$B$13 -> 2025-11-26 | M37: =Factures1!$B$14 -> 1011 / cr | N37: =Factures1!$B$15 -> 3338
A38: =Factures1!A53 -> 0 | B38: =Factures1!B53 ->  | C38: =Factures1!C53 -> 0 | D38: =Factures1!D53 ->  | E38: =Factures1!E53 ->  | F38: =Factures1!F53 -> 0 | G38: =IF(Variables!$A$13="HT",Factures1!G53+I38,Factures1!G53) -> 0 | H38: =Factures1!H53 -> 0 | I38: =Factures1!I53 -> 0 | J38: =Factures1!$A$11 -> Facture | K38: =Factures1!$B$13 -> 2025-11-26 | M38: =Factures1!$B$14 -> 1011 / cr | N38: =Factures1!$B$15 -> 3338
A39: =Factures1!A54 -> 0 | B39: =Factures1!B54 ->  | C39: =Factures1!C54 -> 0 | D39: =Factures1!D54 ->  | E39: =Factures1!E54 ->  | F39: =Factures1!F54 -> 0 | G39: =IF(Variables!$A$13="HT",Factures1!G54+I39,Factures1!G54) -> 0 | H39: =Factures1!H54 -> 0 | I39: =Factures1!I54 -> 0 | J39: =Factures1!$A$11 -> Facture | K39: =Factures1!$B$13 -> 2025-11-26 | M39: =Factures1!$B$14 -> 1011 / cr | N39: =Factures1!$B$15 -> 3338
A40: =Factures1!A55 -> 0 | B40: =Factures1!B55 ->  | C40: =Factures1!C55 -> 0 | D40: =Factures1!D55 ->  | E40: =Factures1!E55 ->  | F40: =Factures1!F55 -> 0 | G40: =IF(Variables!$A$13="HT",Factures1!G55+I40,Factures1!G55) -> 0 | H40: =Factures1!H55 -> 0 | I40: =Factures1!I55 -> 0 | J40: =Factures1!$A$11 -> Facture | K40: =Factures1!$B$13 -> 2025-11-26 | M40: =Factures1!$B$14 -> 1011 / cr | N40: =Factures1!$B$15 -> 3338
A41: =Factures1!A56 -> 0 | B41: =Factures1!B56 ->  | C41: =Factures1!C56 -> 0 | D41: =Factures1!D56 ->  | E41: =Factures1!E56 ->  | F41: =Factures1!F56 -> 0 | G41: =IF(Variables!$A$13="HT",Factures1!G56+I41,Factures1!G56) -> 0 | H41: =Factures1!H56 -> 0 | I41: =Factures1!I56 -> 0 | J41: =Factures1!$A$11 -> Facture | K41: =Factures1!$B$13 -> 2025-11-26 | M41: =Factures1!$B$14 -> 1011 / cr | N41: =Factures1!$B$15 -> 3338
A42: =Factures1!A57 -> 0 | B42: =Factures1!B57 ->  | C42: =Factures1!C57 -> 0 | D42: =Factures1!D57 ->  | E42: =Factures1!E57 ->  | F42: =Factures1!F57 -> 0 | G42: =IF(Variables!$A$13="HT",Factures1!G57+I42,Factures1!G57) -> 0 | H42: =Factures1!H57 -> 0 | I42: =Factures1!I57 -> 0 | J42: =Factures1!$A$11 -> Facture | K42: =Factures1!$B$13 -> 2025-11-26 | M42: =Factures1!$B$14 -> 1011 / cr | N42: =Factures1!$B$15 -> 3338
A43: =Factures1!A58 -> 0 | B43: =Factures1!B58 ->  | C43: =Factures1!C58 -> 0 | D43: =Factures1!D58 ->  | E43: =Factures1!E58 ->  | F43: =Factures1!F58 -> 0 | G43: =IF(Variables!$A$13="HT",Factures1!G58+I43,Factures1!G58) -> 0 | H43: =Factures1!H58 -> 0 | I43: =Factures1!I58 -> 0 | J43: =Factures1!$A$11 -> Facture | K43: =Factures1!$B$13 -> 2025-11-26 | M43: =Factures1!$B$14 -> 1011 / cr | N43: =Factures1!$B$15 -> 3338
A44: =Factures1!A59 -> 0 | B44: =Factures1!B59 ->  | C44: =Factures1!C59 -> 0 | D44: =Factures1!D59 ->  | E44: =Factures1!E59 ->  | F44: =Factures1!F59 -> 0 | G44: =IF(Variables!$A$13="HT",Factures1!G59+I44,Factures1!G59) -> 0 | H44: =Factures1!H59 -> 0 | I44: =Factures1!I59 -> 0 | J44: =Factures1!$A$11 -> Facture | K44: =Factures1!$B$13 -> 2025-11-26 | M44: =Factures1!$B$14 -> 1011 / cr | N44: =Factures1!$B$15 -> 3338
A45: =Factures1!A60 -> 0 | B45: =Factures1!B60 ->  | C45: =Factures1!C60 -> 0 | D45: =Factures1!D60 ->  | E45: =Factures1!E60 ->  | F45: =Factures1!F60 -> 0 | G45: =IF(Variables!$A$13="HT",Factures1!G60+I45,Factures1!G60) -> 0 | H45: =Factures1!H60 -> 0 | I45: =Factures1!I60 -> 0 | J45: =Factures1!$A$11 -> Facture | K45: =Factures1!$B$13 -> 2025-11-26 | M45: =Factures1!$B$14 -> 1011 / cr | N45: =Factures1!$B$15 -> 3338
A46: =Factures1!A61 -> 0 | B46: =Factures1!B61 ->  | C46: =Factures1!C61 -> 0 | D46: =Factures1!D61 ->  | E46: =Factures1!E61 ->  | F46: =Factures1!F61 -> 0 | G46: =IF(Variables!$A$13="HT",Factures1!G61+I46,Factures1!G61) -> 0 | H46: =Factures1!H61 -> 0 | I46: =Factures1!I61 -> 0 | J46: =Factures1!$A$11 -> Facture | K46: =Factures1!$B$13 -> 2025-11-26 | M46: =Factures1!$B$14 -> 1011 / cr | N46: =Factures1!$B$15 -> 3338
A47: =Factures1!A62 -> 0 | B47: =Factures1!B62 ->  | C47: =Factures1!C62 -> 0 | D47: =Factures1!D62 ->  | E47: =Factures1!E62 ->  | F47: =Factures1!F62 -> 0 | G47: =IF(Variables!$A$13="HT",Factures1!G62+I47,Factures1!G62) -> 0 | H47: =Factures1!H62 -> 0 | I47: =Factures1!I62 -> 0 | J47: =Factures1!$A$11 -> Facture | K47: =Factures1!$B$13 -> 2025-11-26 | M47: =Factures1!$B$14 -> 1011 / cr | N47: =Factures1!$B$15 -> 3338
A48: =Factures1!A63 -> 0 | B48: =Factures1!B63 ->  | C48: =Factures1!C63 -> 0 | D48: =Factures1!D63 ->  | E48: =Factures1!E63 ->  | F48: =Factures1!F63 -> 0 | G48: =IF(Variables!$A$13="HT",Factures1!G63+I48,Factures1!G63) -> 0 | H48: =Factures1!H63 -> 0 | I48: =Factures1!I63 -> 0 | J48: =Factures1!$A$11 -> Facture | K48: =Factures1!$B$13 -> 2025-11-26 | M48: =Factures1!$B$14 -> 1011 / cr | N48: =Factures1!$B$15 -> 3338
A49: =Factures1!A64 -> 0 | B49: =Factures1!B64 ->  | C49: =Factures1!C64 -> 0 | D49: =Factures1!D64 ->  | E49: =Factures1!E64 ->  | F49: =Factures1!F64 -> 0 | G49: =IF(Variables!$A$13="HT",Factures1!G64+I49,Factures1!G64) -> 0 | H49: =Factures1!H64 -> 0 | I49: =Factures1!I64 -> 0 | J49: =Factures1!$A$11 -> Facture | K49: =Factures1!$B$13 -> 2025-11-26 | M49: =Factures1!$B$14 -> 1011 / cr | N49: =Factures1!$B$15 -> 3338
A50: =Factures1!A65 -> 0 | B50: =Factures1!B65 ->  | C50: =Factures1!C65 -> 0 | D50: =Factures1!D65 ->  | E50: =Factures1!E65 ->  | F50: =Factures1!F65 -> 0 | G50: =IF(Variables!$A$13="HT",Factures1!G65+I50,Factures1!G65) -> 0 | H50: =Factures1!H65 -> 0 | I50: =Factures1!I65 -> 0 | J50: =Factures1!$A$11 -> Facture | K50: =Factures1!$B$13 -> 2025-11-26 | M50: =Factures1!$B$14 -> 1011 / cr | N50: =Factures1!$B$15 -> 3338
A51: =Factures1!A66 -> 0 | B51: =Factures1!B66 ->  | C51: =Factures1!C66 -> 0 | D51: =Factures1!D66 ->  | E51: =Factures1!E66 ->  | F51: =Factures1!F66 -> 0 | G51: =IF(Variables!$A$13="HT",Factures1!G66+I51,Factures1!G66) -> 0 | H51: =Factures1!H66 -> 0 | I51: =Factures1!I66 -> 0 | J51: =Factures1!$A$11 -> Facture | K51: =Factures1!$B$13 -> 2025-11-26 | M51: =Factures1!$B$14 -> 1011 / cr | N51: =Factures1!$B$15 -> 3338
A52: =Factures1!A67 -> 0 | B52: =Factures1!B67 ->  | C52: =Factures1!C67 -> 0 | D52: =Factures1!D67 ->  | E52: =Factures1!E67 ->  | F52: =Factures1!F67 -> 0 | G52: =IF(Variables!$A$13="HT",Factures1!G67+I52,Factures1!G67) -> 0 | H52: =Factures1!H67 -> 0 | I52: =Factures1!I67 -> 0 | J52: =Factures1!$A$11 -> Facture | K52: =Factures1!$B$13 -> 2025-11-26 | M52: =Factures1!$B$14 -> 1011 / cr | N52: =Factures1!$B$15 -> 3338
A53: =Factures1!A68 -> 0 | B53: =Factures1!B68 ->  | C53: =Factures1!C68 -> 0 | D53: =Factures1!D68 ->  | E53: =Factures1!E68 ->  | F53: =Factures1!F68 -> 0 | G53: =IF(Variables!$A$13="HT",Factures1!G68+I53,Factures1!G68) -> 0 | H53: =Factures1!H68 -> 0 | I53: =Factures1!I68 -> 0 | J53: =Factures1!$A$11 -> Facture | K53: =Factures1!$B$13 -> 2025-11-26 | M53: =Factures1!$B$14 -> 1011 / cr | N53: =Factures1!$B$15 -> 3338
A54: =Factures1!A69 -> 0 | B54: =Factures1!B69 ->  | C54: =Factures1!C69 -> 0 | D54: =Factures1!D69 ->  | E54: =Factures1!E69 ->  | F54: =Factures1!F69 -> 0 | G54: =IF(Variables!$A$13="HT",Factures1!G69+I54,Factures1!G69) -> 0 | H54: =Factures1!H69 -> 0 | I54: =Factures1!I69 -> 0 | J54: =Factures1!$A$11 -> Facture | K54: =Factures1!$B$13 -> 2025-11-26 | M54: =Factures1!$B$14 -> 1011 / cr | N54: =Factures1!$B$15 -> 3338
A55: =Factures1!A70 -> 0 | B55: =Factures1!B70 ->  | C55: =Factures1!C70 -> 0 | D55: =Factures1!D70 ->  | E55: =Factures1!E70 ->  | F55: =Factures1!F70 -> 0 | G55: =IF(Variables!$A$13="HT",Factures1!G70+I55,Factures1!G70) -> 0 | H55: =Factures1!H70 -> 0 | I55: =Factures1!I70 -> 0 | J55: =Factures1!$A$11 -> Facture | K55: =Factures1!$B$13 -> 2025-11-26 | M55: =Factures1!$B$14 -> 1011 / cr | N55: =Factures1!$B$15 -> 3338
A56: =Factures1!A71 -> 0 | B56: =Factures1!B71 ->  | C56: =Factures1!C71 -> 0 | D56: =Factures1!D71 ->  | E56: =Factures1!E71 ->  | F56: =Factures1!F71 -> 0 | G56: =IF(Variables!$A$13="HT",Factures1!G71+I56,Factures1!G71) -> 0 | H56: =Factures1!H71 -> 0 | I56: =Factures1!I71 -> 0 | J56: =Factures1!$A$11 -> Facture | K56: =Factures1!$B$13 -> 2025-11-26 | M56: =Factures1!$B$14 -> 1011 / cr | N56: =Factures1!$B$15 -> 3338
A57: =Factures1!A72 -> 0 | B57: =Factures1!B72 ->  | C57: =Factures1!C72 -> 0 | D57: =Factures1!D72 ->  | E57: =Factures1!E72 ->  | F57: =Factures1!F72 -> 0 | G57: =IF(Variables!$A$13="HT",Factures1!G72+I57,Factures1!G72) -> 0 | H57: =Factures1!H72 -> 0 | I57: =Factures1!I72 -> 0 | J57: =Factures1!$A$11 -> Facture | K57: =Factures1!$B$13 -> 2025-11-26 | M57: =Factures1!$B$14 -> 1011 / cr | N57: =Factures1!$B$15 -> 3338
A58: =Factures1!A73 -> 0 | B58: =Factures1!B73 ->  | C58: =Factures1!C73 -> 0 | D58: =Factures1!D73 ->  | E58: =Factures1!E73 ->  | F58: =Factures1!F73 -> 0 | G58: =IF(Variables!$A$13="HT",Factures1!G73+I58,Factures1!G73) -> 0 | H58: =Factures1!H73 -> 0 | I58: =Factures1!I73 -> 0 | J58: =Factures1!$A$11 -> Facture | K58: =Factures1!$B$13 -> 2025-11-26 | M58: =Factures1!$B$14 -> 1011 / cr | N58: =Factures1!$B$15 -> 3338
A59: =Factures1!A74 -> 0 | B59: =Factures1!B74 ->  | C59: =Factures1!C74 -> 0 | D59: =Factures1!D74 ->  | E59: =Factures1!E74 ->  | F59: =Factures1!F74 -> 0 | G59: =IF(Variables!$A$13="HT",Factures1!G74+I59,Factures1!G74) -> 0 | H59: =Factures1!H74 -> 0 | I59: =Factures1!I74 -> 0 | J59: =Factures1!$A$11 -> Facture | K59: =Factures1!$B$13 -> 2025-11-26 | M59: =Factures1!$B$14 -> 1011 / cr | N59: =Factures1!$B$15 -> 3338
A60: =Factures1!A75 -> 0 | B60: =Factures1!B75 ->  | C60: =Factures1!C75 -> 0 | D60: =Factures1!D75 ->  | E60: =Factures1!E75 ->  | F60: =Factures1!F75 -> 0 | G60: =IF(Variables!$A$13="HT",Factures1!G75+I60,Factures1!G75) -> 0 | H60: =Factures1!H75 -> 0 | I60: =Factures1!I75 -> 0 | J60: =Factures1!$A$11 -> Facture | K60: =Factures1!$B$13 -> 2025-11-26 | M60: =Factures1!$B$14 -> 1011 / cr | N60: =Factures1!$B$15 -> 3338
A61: =Factures1!A76 -> 0 | B61: =Factures1!B76 ->  | C61: =Factures1!C76 -> 0 | D61: =Factures1!D76 ->  | E61: =Factures1!E76 ->  | F61: =Factures1!F76 -> 0 | G61: =IF(Variables!$A$13="HT",Factures1!G76+I61,Factures1!G76) -> 0 | H61: =Factures1!H76 -> 0 | I61: =Factures1!I76 -> 0 | J61: =Factures1!$A$11 -> Facture | K61: =Factures1!$B$13 -> 2025-11-26 | M61: =Factures1!$B$14 -> 1011 / cr | N61: =Factures1!$B$15 -> 3338
A62: =Factures1!A77 -> 0 | B62: =Factures1!B77 ->  | C62: =Factures1!C77 -> 0 | D62: =Factures1!D77 ->  | E62: =Factures1!E77 ->  | F62: =Factures1!F77 -> 0 | G62: =IF(Variables!$A$13="HT",Factures1!G77+I62,Factures1!G77) -> 0 | H62: =Factures1!H77 -> 0 | I62: =Factures1!I77 -> 0 | J62: =Factures1!$A$11 -> Facture | K62: =Factures1!$B$13 -> 2025-11-26 | M62: =Factures1!$B$14 -> 1011 / cr | N62: =Factures1!$B$15 -> 3338
A63: =Factures1!A78 -> 0 | B63: =Factures1!B78 ->  | C63: =Factures1!C78 -> 0 | D63: =Factures1!D78 ->  | E63: =Factures1!E78 ->  | F63: =Factures1!F78 -> 0 | G63: =IF(Variables!$A$13="HT",Factures1!G78+I63,Factures1!G78) -> 0 | H63: =Factures1!H78 -> 0 | I63: =Factures1!I78 -> 0 | J63: =Factures1!$A$11 -> Facture | K63: =Factures1!$B$13 -> 2025-11-26 | M63: =Factures1!$B$14 -> 1011 / cr | N63: =Factures1!$B$15 -> 3338
A64: =Factures1!A79 -> 0 | B64: =Factures1!B79 ->  | C64: =Factures1!C79 -> 0 | D64: =Factures1!D79 ->  | E64: =Factures1!E79 ->  | F64: =Factures1!F79 -> 0 | G64: =IF(Variables!$A$13="HT",Factures1!G79+I64,Factures1!G79) -> 0 | H64: =Factures1!H79 -> 0 | I64: =Factures1!I79 -> 0 | J64: =Factures1!$A$11 -> Facture | K64: =Factures1!$B$13 -> 2025-11-26 | M64: =Factures1!$B$14 -> 1011 / cr | N64: =Factures1!$B$15 -> 3338
A65: =Factures1!A80 -> 0 | B65: =Factures1!B80 ->  | C65: =Factures1!C80 -> 0 | D65: =Factures1!D80 ->  | E65: =Factures1!E80 ->  | F65: =Factures1!F80 -> 0 | G65: =IF(Variables!$A$13="HT",Factures1!G80+I65,Factures1!G80) -> 0 | H65: =Factures1!H80 -> 0 | I65: =Factures1!I80 -> 0 | J65: =Factures1!$A$11 -> Facture | K65: =Factures1!$B$13 -> 2025-11-26 | M65: =Factures1!$B$14 -> 1011 / cr | N65: =Factures1!$B$15 -> 3338
A66: =Factures1!A81 -> 0 | B66: =Factures1!B81 ->  | C66: =Factures1!C81 -> 0 | D66: =Factures1!D81 ->  | E66: =Factures1!E81 ->  | F66: =Factures1!F81 -> 0 | G66: =IF(Variables!$A$13="HT",Factures1!G81+I66,Factures1!G81) -> 0 | H66: =Factures1!H81 -> 0 | I66: =Factures1!I81 -> 0 | J66: =Factures1!$A$11 -> Facture | K66: =Factures1!$B$13 -> 2025-11-26 | M66: =Factures1!$B$14 -> 1011 / cr | N66: =Factures1!$B$15 -> 3338
A67: =Factures1!A82 -> 0 | B67: =Factures1!B82 ->  | C67: =Factures1!C82 -> 0 | D67: =Factures1!D82 ->  | E67: =Factures1!E82 ->  | F67: =Factures1!F82 -> 0 | G67: =IF(Variables!$A$13="HT",Factures1!G82+I67,Factures1!G82) -> 0 | H67: =Factures1!H82 -> 0 | I67: =Factures1!I82 -> 0 | J67: =Factures1!$A$11 -> Facture | K67: =Factures1!$B$13 -> 2025-11-26 | M67: =Factures1!$B$14 -> 1011 / cr | N67: =Factures1!$B$15 -> 3338
A68: =Factures1!A83 -> 0 | B68: =Factures1!B83 ->  | C68: =Factures1!C83 -> 0 | D68: =Factures1!D83 ->  | E68: =Factures1!E83 ->  | F68: =Factures1!F83 -> 0 | G68: =IF(Variables!$A$13="HT",Factures1!G83+I68,Factures1!G83) -> 0 | H68: =Factures1!H83 -> 0 | I68: =Factures1!I83 -> 0 | J68: =Factures1!$A$11 -> Facture | K68: =Factures1!$B$13 -> 2025-11-26 | M68: =Factures1!$B$14 -> 1011 / cr | N68: =Factures1!$B$15 -> 3338
A69: =Factures1!A84 -> 0 | B69: =Factures1!B84 ->  | C69: =Factures1!C84 -> 0 | D69: =Factures1!D84 ->  | E69: =Factures1!E84 ->  | F69: =Factures1!F84 -> 0 | G69: =IF(Variables!$A$13="HT",Factures1!G84+I69,Factures1!G84) -> 0 | H69: =Factures1!H84 -> 0 | I69: =Factures1!I84 -> 0 | J69: =Factures1!$A$11 -> Facture | K69: =Factures1!$B$13 -> 2025-11-26 | M69: =Factures1!$B$14 -> 1011 / cr | N69: =Factures1!$B$15 -> 3338
A70: =Factures1!A85 -> 0 | B70: =Factures1!B85 ->  | C70: =Factures1!C85 -> 0 | D70: =Factures1!D85 ->  | E70: =Factures1!E85 ->  | F70: =Factures1!F85 -> 0 | G70: =IF(Variables!$A$13="HT",Factures1!G85+I70,Factures1!G85) -> 0 | H70: =Factures1!H85 -> 0 | I70: =Factures1!I85 -> 0 | J70: =Factures1!$A$11 -> Facture | K70: =Factures1!$B$13 -> 2025-11-26 | M70: =Factures1!$B$14 -> 1011 / cr | N70: =Factures1!$B$15 -> 3338
A71: =Factures1!A86 -> 0 | B71: =Factures1!B86 ->  | C71: =Factures1!C86 -> 0 | D71: =Factures1!D86 ->  | E71: =Factures1!E86 ->  | F71: =Factures1!F86 -> 0 | G71: =IF(Variables!$A$13="HT",Factures1!G86+I71,Factures1!G86) -> 0 | H71: =Factures1!H86 -> 0 | I71: =Factures1!I86 -> 0 | J71: =Factures1!$A$11 -> Facture | K71: =Factures1!$B$13 -> 2025-11-26 | M71: =Factures1!$B$14 -> 1011 / cr | N71: =Factures1!$B$15 -> 3338
A72: =Factures1!A87 -> 0 | B72: =Factures1!B87 ->  | C72: =Factures1!C87 -> 0 | D72: =Factures1!D87 ->  | E72: =Factures1!E87 ->  | F72: =Factures1!F87 -> 0 | G72: =IF(Variables!$A$13="HT",Factures1!G87+I72,Factures1!G87) -> 0 | H72: =Factures1!H87 -> 0 | I72: =Factures1!I87 -> 0 | J72: =Factures1!$A$11 -> Facture | K72: =Factures1!$B$13 -> 2025-11-26 | M72: =Factures1!$B$14 -> 1011 / cr | N72: =Factures1!$B$15 -> 3338
A73: =Factures1!A88 -> 0 | B73: =Factures1!B88 ->  | C73: =Factures1!C88 -> 0 | D73: =Factures1!D88 ->  | E73: =Factures1!E88 ->  | F73: =Factures1!F88 -> 0 | G73: =IF(Variables!$A$13="HT",Factures1!G88+I73,Factures1!G88) -> 0 | H73: =Factures1!H88 -> 0 | I73: =Factures1!I88 -> 0 | J73: =Factures1!$A$11 -> Facture | K73: =Factures1!$B$13 -> 2025-11-26 | M73: =Factures1!$B$14 -> 1011 / cr | N73: =Factures1!$B$15 -> 3338
A74: =Factures1!A89 -> 0 | B74: =Factures1!B89 ->  | C74: =Factures1!C89 -> 0 | D74: =Factures1!D89 ->  | E74: =Factures1!E89 ->  | F74: =Factures1!F89 -> 0 | G74: =IF(Variables!$A$13="HT",Factures1!G89+I74,Factures1!G89) -> 0 | H74: =Factures1!H89 -> 0 | I74: =Factures1!I89 -> 0 | J74: =Factures1!$A$11 -> Facture | K74: =Factures1!$B$13 -> 2025-11-26 | M74: =Factures1!$B$14 -> 1011 / cr | N74: =Factures1!$B$15 -> 3338
A75: =Factures1!A90 -> 0 | B75: =Factures1!B90 ->  | C75: =Factures1!C90 -> 0 | D75: =Factures1!D90 ->  | E75: =Factures1!E90 ->  | F75: =Factures1!F90 -> 0 | G75: =IF(Variables!$A$13="HT",Factures1!G90+I75,Factures1!G90) -> 0 | H75: =Factures1!H90 -> 0 | I75: =Factures1!I90 -> 0 | J75: =Factures1!$A$11 -> Facture | K75: =Factures1!$B$13 -> 2025-11-26 | M75: =Factures1!$B$14 -> 1011 / cr | N75: =Factures1!$B$15 -> 3338
A76: =Factures1!A91 -> 0 | B76: =Factures1!B91 ->  | C76: =Factures1!C91 -> 0 | D76: =Factures1!D91 ->  | E76: =Factures1!E91 ->  | F76: =Factures1!F91 -> 0 | G76: =IF(Variables!$A$13="HT",Factures1!G91+I76,Factures1!G91) -> 0 | H76: =Factures1!H91 -> 0 | I76: =Factures1!I91 -> 0 | J76: =Factures1!$A$11 -> Facture | K76: =Factures1!$B$13 -> 2025-11-26 | M76: =Factures1!$B$14 -> 1011 / cr | N76: =Factures1!$B$15 -> 3338
A77: =Factures1!A92 -> 0 | B77: =Factures1!B92 ->  | C77: =Factures1!C92 -> 0 | D77: =Factures1!D92 ->  | E77: =Factures1!E92 ->  | F77: =Factures1!F92 -> 0 | G77: =IF(Variables!$A$13="HT",Factures1!G92+I77,Factures1!G92) -> 0 | H77: =Factures1!H92 -> 0 | I77: =Factures1!I92 -> 0 | J77: =Factures1!$A$11 -> Facture | K77: =Factures1!$B$13 -> 2025-11-26 | M77: =Factures1!$B$14 -> 1011 / cr | N77: =Factures1!$B$15 -> 3338
A78: =Factures1!A93 -> 0 | B78: =Factures1!B93 ->  | C78: =Factures1!C93 -> 0 | D78: =Factures1!D93 ->  | E78: =Factures1!E93 ->  | F78: =Factures1!F93 -> 0 | G78: =IF(Variables!$A$13="HT",Factures1!G93+I78,Factures1!G93) -> 0 | H78: =Factures1!H93 -> 0 | I78: =Factures1!I93 -> 0 | J78: =Factures1!$A$11 -> Facture | K78: =Factures1!$B$13 -> 2025-11-26 | M78: =Factures1!$B$14 -> 1011 / cr | N78: =Factures1!$B$15 -> 3338
A79: =Factures1!A94 -> 0 | B79: =Factures1!B94 ->  | C79: =Factures1!C94 -> 0 | D79: =Factures1!D94 ->  | E79: =Factures1!E94 ->  | F79: =Factures1!F94 -> 0 | G79: =IF(Variables!$A$13="HT",Factures1!G94+I79,Factures1!G94) -> 0 | H79: =Factures1!H94 -> 0 | I79: =Factures1!I94 -> 0 | J79: =Factures1!$A$11 -> Facture | K79: =Factures1!$B$13 -> 2025-11-26 | M79: =Factures1!$B$14 -> 1011 / cr | N79: =Factures1!$B$15 -> 3338
A80: =Factures1!A95 -> 0 | B80: =Factures1!B95 ->  | C80: =Factures1!C95 -> 0 | D80: =Factures1!D95 ->  | E80: =Factures1!E95 ->  | F80: =Factures1!F95 -> 0 | G80: =IF(Variables!$A$13="HT",Factures1!G95+I80,Factures1!G95) -> 0 | H80: =Factures1!H95 -> 0 | I80: =Factures1!I95 -> 0 | J80: =Factures1!$A$11 -> Facture | K80: =Factures1!$B$13 -> 2025-11-26 | M80: =Factures1!$B$14 -> 1011 / cr | N80: =Factures1!$B$15 -> 3338
A81: =Factures1!A96 -> 0 | B81: =Factures1!B96 ->  | C81: =Factures1!C96 -> 0 | D81: =Factures1!D96 ->  | E81: =Factures1!E96 ->  | F81: =Factures1!F96 -> 0 | G81: =IF(Variables!$A$13="HT",Factures1!G96+I81,Factures1!G96) -> 0 | H81: =Factures1!H96 -> 0 | I81: =Factures1!I96 -> 0 | J81: =Factures1!$A$11 -> Facture | K81: =Factures1!$B$13 -> 2025-11-26 | M81: =Factures1!$B$14 -> 1011 / cr | N81: =Factures1!$B$15 -> 3338
A82: =Factures1!A97 -> 0 | B82: =Factures1!B97 ->  | C82: =Factures1!C97 -> 0 | D82: =Factures1!D97 ->  | E82: =Factures1!E97 ->  | F82: =Factures1!F97 -> 0 | G82: =IF(Variables!$A$13="HT",Factures1!G97+I82,Factures1!G97) -> 0 | H82: =Factures1!H97 -> 0 | I82: =Factures1!I97 -> 0 | J82: =Factures1!$A$11 -> Facture | K82: =Factures1!$B$13 -> 2025-11-26 | M82: =Factures1!$B$14 -> 1011 / cr | N82: =Factures1!$B$15 -> 3338
A83: =Factures1!A98 -> 0 | B83: =Factures1!B98 ->  | C83: =Factures1!C98 -> 0 | D83: =Factures1!D98 ->  | E83: =Factures1!E98 ->  | F83: =Factures1!F98 -> 0 | G83: =IF(Variables!$A$13="HT",Factures1!G98+I83,Factures1!G98) -> 0 | H83: =Factures1!H98 -> 0 | I83: =Factures1!I98 -> 0 | J83: =Factures1!$A$11 -> Facture | K83: =Factures1!$B$13 -> 2025-11-26 | M83: =Factures1!$B$14 -> 1011 / cr | N83: =Factures1!$B$15 -> 3338
A84: =Factures1!A99 -> 0 | B84: =Factures1!B99 ->  | C84: =Factures1!C99 -> 0 | D84: =Factures1!D99 ->  | E84: =Factures1!E99 ->  | F84: =Factures1!F99 -> 0 | G84: =IF(Variables!$A$13="HT",Factures1!G99+I84,Factures1!G99) -> 0 | H84: =Factures1!H99 -> 0 | I84: =Factures1!I99 -> 0 | J84: =Factures1!$A$11 -> Facture | K84: =Factures1!$B$13 -> 2025-11-26 | M84: =Factures1!$B$14 -> 1011 / cr | N84: =Factures1!$B$15 -> 3338
A85: =Factures1!A100 -> 0 | B85: =Factures1!B100 ->  | C85: =Factures1!C100 -> 0 | D85: =Factures1!D100 ->  | E85: =Factures1!E100 ->  | F85: =Factures1!F100 -> 0 | G85: =IF(Variables!$A$13="HT",Factures1!G100+I85,Factures1!G100) -> 0 | H85: =Factures1!H100 -> 0 | I85: =Factures1!I100 -> 0 | J85: =Factures1!$A$11 -> Facture | K85: =Factures1!$B$13 -> 2025-11-26 | M85: =Factures1!$B$14 -> 1011 / cr | N85: =Factures1!$B$15 -> 3338
A86: =Factures1!A101 -> 0 | B86: =Factures1!B101 ->  | C86: =Factures1!C101 -> 0 | D86: =Factures1!D101 ->  | E86: =Factures1!E101 ->  | F86: =Factures1!F101 -> 0 | G86: =IF(Variables!$A$13="HT",Factures1!G101+I86,Factures1!G101) -> 0 | H86: =Factures1!H101 -> 0 | I86: =Factures1!I101 -> 0 | J86: =Factures1!$A$11 -> Facture | K86: =Factures1!$B$13 -> 2025-11-26 | M86: =Factures1!$B$14 -> 1011 / cr | N86: =Factures1!$B$15 -> 3338
A87: =Factures1!A102 -> 0 | B87: =Factures1!B102 ->  | C87: =Factures1!C102 -> 0 | D87: =Factures1!D102 ->  | E87: =Factures1!E102 ->  | F87: =Factures1!F102 -> 0 | G87: =IF(Variables!$A$13="HT",Factures1!G102+I87,Factures1!G102) -> 0 | H87: =Factures1!H102 -> 0 | I87: =Factures1!I102 -> 0 | J87: =Factures1!$A$11 -> Facture | K87: =Factures1!$B$13 -> 2025-11-26 | M87: =Factures1!$B$14 -> 1011 / cr | N87: =Factures1!$B$15 -> 3338
A88: =Factures1!A103 -> 0 | B88: =Factures1!B103 ->  | C88: =Factures1!C103 -> 0 | D88: =Factures1!D103 ->  | E88: =Factures1!E103 ->  | F88: =Factures1!F103 -> 0 | G88: =IF(Variables!$A$13="HT",Factures1!G103+I88,Factures1!G103) -> 0 | H88: =Factures1!H103 -> 0 | I88: =Factures1!I103 -> 0 | J88: =Factures1!$A$11 -> Facture | K88: =Factures1!$B$13 -> 2025-11-26 | M88: =Factures1!$B$14 -> 1011 / cr | N88: =Factures1!$B$15 -> 3338
A89: =Factures1!A104 -> 0 | B89: =Factures1!B104 ->  | C89: =Factures1!C104 -> 0 | D89: =Factures1!D104 ->  | E89: =Factures1!E104 ->  | F89: =Factures1!F104 -> 0 | G89: =IF(Variables!$A$13="HT",Factures1!G104+I89,Factures1!G104) -> 0 | H89: =Factures1!H104 -> 0 | I89: =Factures1!I104 -> 0 | J89: =Factures1!$A$11 -> Facture | K89: =Factures1!$B$13 -> 2025-11-26 | M89: =Factures1!$B$14 -> 1011 / cr | N89: =Factures1!$B$15 -> 3338
A90: =Factures1!A105 -> 0 | B90: =Factures1!B105 ->  | C90: =Factures1!C105 -> 0 | D90: =Factures1!D105 ->  | E90: =Factures1!E105 ->  | F90: =Factures1!F105 -> 0 | G90: =IF(Variables!$A$13="HT",Factures1!G105+I90,Factures1!G105) -> 0 | H90: =Factures1!H105 -> 0 | I90: =Factures1!I105 -> 0 | J90: =Factures1!$A$11 -> Facture | K90: =Factures1!$B$13 -> 2025-11-26 | M90: =Factures1!$B$14 -> 1011 / cr | N90: =Factures1!$B$15 -> 3338
A91: =Factures1!A106 -> 0 | B91: =Factures1!B106 ->  | C91: =Factures1!C106 -> 0 | D91: =Factures1!D106 ->  | E91: =Factures1!E106 ->  | F91: =Factures1!F106 -> 0 | G91: =IF(Variables!$A$13="HT",Factures1!G106+I91,Factures1!G106) -> 0 | H91: =Factures1!H106 -> 0 | I91: =Factures1!I106 -> 0 | J91: =Factures1!$A$11 -> Facture | K91: =Factures1!$B$13 -> 2025-11-26 | M91: =Factures1!$B$14 -> 1011 / cr | N91: =Factures1!$B$15 -> 3338
A92: =Factures1!A107 -> 0 | B92: =Factures1!B107 ->  | C92: =Factures1!C107 -> 0 | D92: =Factures1!D107 ->  | E92: =Factures1!E107 ->  | F92: =Factures1!F107 -> 0 | G92: =IF(Variables!$A$13="HT",Factures1!G107+I92,Factures1!G107) -> 0 | H92: =Factures1!H107 -> 0 | I92: =Factures1!I107 -> 0 | J92: =Factures1!$A$11 -> Facture | K92: =Factures1!$B$13 -> 2025-11-26 | M92: =Factures1!$B$14 -> 1011 / cr | N92: =Factures1!$B$15 -> 3338
A93: =Factures1!A108 -> 0 | B93: =Factures1!B108 ->  | C93: =Factures1!C108 -> 0 | D93: =Factures1!D108 ->  | E93: =Factures1!E108 ->  | F93: =Factures1!F108 -> 0 | G93: =IF(Variables!$A$13="HT",Factures1!G108+I93,Factures1!G108) -> 0 | H93: =Factures1!H108 -> 0 | I93: =Factures1!I108 -> 0 | J93: =Factures1!$A$11 -> Facture | K93: =Factures1!$B$13 -> 2025-11-26 | M93: =Factures1!$B$14 -> 1011 / cr | N93: =Factures1!$B$15 -> 3338
A94: =Factures1!A109 -> 0 | B94: =Factures1!B109 ->  | C94: =Factures1!C109 -> 0 | D94: =Factures1!D109 ->  | E94: =Factures1!E109 ->  | F94: =Factures1!F109 -> 0 | G94: =IF(Variables!$A$13="HT",Factures1!G109+I94,Factures1!G109) -> 0 | H94: =Factures1!H109 -> 0 | I94: =Factures1!I109 -> 0 | J94: =Factures1!$A$11 -> Facture | K94: =Factures1!$B$13 -> 2025-11-26 | M94: =Factures1!$B$14 -> 1011 / cr | N94: =Factures1!$B$15 -> 3338
A95: =Factures1!A110 -> 0 | B95: =Factures1!B110 ->  | C95: =Factures1!C110 -> 0 | D95: =Factures1!D110 ->  | E95: =Factures1!E110 ->  | F95: =Factures1!F110 -> 0 | G95: =IF(Variables!$A$13="HT",Factures1!G110+I95,Factures1!G110) -> 0 | H95: =Factures1!H110 -> 0 | I95: =Factures1!I110 -> 0 | J95: =Factures1!$A$11 -> Facture | K95: =Factures1!$B$13 -> 2025-11-26 | M95: =Factures1!$B$14 -> 1011 / cr | N95: =Factures1!$B$15 -> 3338
A96: =Factures1!A111 -> 0 | B96: =Factures1!B111 ->  | C96: =Factures1!C111 -> 0 | D96: =Factures1!D111 ->  | E96: =Factures1!E111 ->  | F96: =Factures1!F111 -> 0 | G96: =IF(Variables!$A$13="HT",Factures1!G111+I96,Factures1!G111) -> 0 | H96: =Factures1!H111 -> 0 | I96: =Factures1!I111 -> 0 | J96: =Factures1!$A$11 -> Facture | K96: =Factures1!$B$13 -> 2025-11-26 | M96: =Factures1!$B$14 -> 1011 / cr | N96: =Factures1!$B$15 -> 3338
A97: =Factures1!A112 -> 0 | B97: =Factures1!B112 ->  | C97: =Factures1!C112 -> 0 | D97: =Factures1!D112 ->  | E97: =Factures1!E112 ->  | F97: =Factures1!F112 -> 0 | G97: =IF(Variables!$A$13="HT",Factures1!G112+I97,Factures1!G112) -> 0 | H97: =Factures1!H112 -> 0 | I97: =Factures1!I112 -> 0 | J97: =Factures1!$A$11 -> Facture | K97: =Factures1!$B$13 -> 2025-11-26 | M97: =Factures1!$B$14 -> 1011 / cr | N97: =Factures1!$B$15 -> 3338
A98: =Factures1!A113 -> 0 | B98: =Factures1!B113 ->  | C98: =Factures1!C113 -> 0 | D98: =Factures1!D113 ->  | E98: =Factures1!E113 ->  | F98: =Factures1!F113 -> 0 | G98: =IF(Variables!$A$13="HT",Factures1!G113+I98,Factures1!G113) -> 0 | H98: =Factures1!H113 -> 0 | I98: =Factures1!I113 -> 0 | J98: =Factures1!$A$11 -> Facture | K98: =Factures1!$B$13 -> 2025-11-26 | M98: =Factures1!$B$14 -> 1011 / cr | N98: =Factures1!$B$15 -> 3338
A99: =Factures1!A114 -> 0 | B99: =Factures1!B114 ->  | C99: =Factures1!C114 -> 0 | D99: =Factures1!D114 ->  | E99: =Factures1!E114 ->  | F99: =Factures1!F114 -> 0 | G99: =IF(Variables!$A$13="HT",Factures1!G114+I99,Factures1!G114) -> 0 | H99: =Factures1!H114 -> 0 | I99: =Factures1!I114 -> 0 | J99: =Factures1!$A$11 -> Facture | K99: =Factures1!$B$13 -> 2025-11-26 | M99: =Factures1!$B$14 -> 1011 / cr | N99: =Factures1!$B$15 -> 3338
A100: =Factures1!A115 -> 0 | B100: =Factures1!B115 ->  | C100: =Factures1!C115 -> 0 | D100: =Factures1!D115 ->  | E100: =Factures1!E115 ->  | F100: =Factures1!F115 -> 0 | G100: =IF(Variables!$A$13="HT",Factures1!G115+I100,Factures1!G115) -> 0 | H100: =Factures1!H115 -> 0 | I100: =Factures1!I115 -> 0 | J100: =Factures1!$A$11 -> Facture | K100: =Factures1!$B$13 -> 2025-11-26 | M100: =Factures1!$B$14 -> 1011 / cr | N100: =Factures1!$B$15 -> 3338
A101: =Factures1!A116 -> 0 | B101: =Factures1!B116 ->  | C101: =Factures1!C116 -> 0 | D101: =Factures1!D116 ->  | E101: =Factures1!E116 ->  | F101: =Factures1!F116 -> 0 | G101: =IF(Variables!$A$13="HT",Factures1!G116+I101,Factures1!G116) -> 0 | H101: =Factures1!H116 -> 0 | I101: =Factures1!I116 -> 0 | J101: =Factures1!$A$11 -> Facture | K101: =Factures1!$B$13 -> 2025-11-26 | M101: =Factures1!$B$14 -> 1011 / cr | N101: =Factures1!$B$15 -> 3338
A102: =Factures1!A117 -> 0 | B102: =Factures1!B117 ->  | C102: =Factures1!C117 -> 0 | D102: =Factures1!D117 ->  | E102: =Factures1!E117 ->  | F102: =Factures1!F117 -> 0 | G102: =IF(Variables!$A$13="HT",Factures1!G117+I102,Factures1!G117) -> 0 | H102: =Factures1!H117 -> 0 | I102: =Factures1!I117 -> 0 | J102: =Factures1!$A$11 -> Facture | K102: =Factures1!$B$13 -> 2025-11-26 | M102: =Factures1!$B$14 -> 1011 / cr | N102: =Factures1!$B$15 -> 3338
A103: =Factures1!A118 -> 0 | B103: =Factures1!B118 ->  | C103: =Factures1!C118 -> 0 | D103: =Factures1!D118 ->  | E103: =Factures1!E118 ->  | F103: =Factures1!F118 -> 0 | G103: =IF(Variables!$A$13="HT",Factures1!G118+I103,Factures1!G118) -> 0 | H103: =Factures1!H118 -> 0 | I103: =Factures1!I118 -> 0 | J103: =Factures1!$A$11 -> Facture | K103: =Factures1!$B$13 -> 2025-11-26 | M103: =Factures1!$B$14 -> 1011 / cr | N103: =Factures1!$B$15 -> 3338
A104: =Factures1!A119 -> 0 | B104: =Factures1!B119 ->  | C104: =Factures1!C119 -> 0 | D104: =Factures1!D119 ->  | E104: =Factures1!E119 ->  | F104: =Factures1!F119 -> 0 | G104: =IF(Variables!$A$13="HT",Factures1!G119+I104,Factures1!G119) -> 0 | H104: =Factures1!H119 -> 0 | I104: =Factures1!I119 -> 0 | J104: =Factures1!$A$11 -> Facture | K104: =Factures1!$B$13 -> 2025-11-26 | M104: =Factures1!$B$14 -> 1011 / cr | N104: =Factures1!$B$15 -> 3338
A105: =Factures1!A120 -> 0 | B105: =Factures1!B120 ->  | C105: =Factures1!C120 -> 0 | D105: =Factures1!D120 ->  | E105: =Factures1!E120 ->  | F105: =Factures1!F120 -> 0 | G105: =IF(Variables!$A$13="HT",Factures1!G120+I105,Factures1!G120) -> 0 | H105: =Factures1!H120 -> 0 | I105: =Factures1!I120 -> 0 | J105: =Factures1!$A$11 -> Facture | K105: =Factures1!$B$13 -> 2025-11-26 | M105: =Factures1!$B$14 -> 1011 / cr | N105: =Factures1!$B$15 -> 3338
A106: =Factures1!A121 -> 0 | B106: =Factures1!B121 ->  | C106: =Factures1!C121 -> 0 | D106: =Factures1!D121 ->  | E106: =Factures1!E121 ->  | F106: =Factures1!F121 -> 0 | G106: =IF(Variables!$A$13="HT",Factures1!G121+I106,Factures1!G121) -> 0 | H106: =Factures1!H121 -> 0 | I106: =Factures1!I121 -> 0 | J106: =Factures1!$A$11 -> Facture | K106: =Factures1!$B$13 -> 2025-11-26 | M106: =Factures1!$B$14 -> 1011 / cr | N106: =Factures1!$B$15 -> 3338
A107: =Factures1!A122 -> 0 | B107: =Factures1!B122 ->  | C107: =Factures1!C122 -> 0 | D107: =Factures1!D122 ->  | E107: =Factures1!E122 ->  | F107: =Factures1!F122 -> 0 | G107: =IF(Variables!$A$13="HT",Factures1!G122+I107,Factures1!G122) -> 0 | H107: =Factures1!H122 -> 0 | I107: =Factures1!I122 -> 0 | J107: =Factures1!$A$11 -> Facture | K107: =Factures1!$B$13 -> 2025-11-26 | M107: =Factures1!$B$14 -> 1011 / cr | N107: =Factures1!$B$15 -> 3338
A108: =Factures1!A123 -> 0 | B108: =Factures1!B123 ->  | C108: =Factures1!C123 -> 0 | D108: =Factures1!D123 ->  | E108: =Factures1!E123 ->  | F108: =Factures1!F123 -> 0 | G108: =IF(Variables!$A$13="HT",Factures1!G123+I108,Factures1!G123) -> 0 | H108: =Factures1!H123 -> 0 | I108: =Factures1!I123 -> 0 | J108: =Factures1!$A$11 -> Facture | K108: =Factures1!$B$13 -> 2025-11-26 | M108: =Factures1!$B$14 -> 1011 / cr | N108: =Factures1!$B$15 -> 3338
A109: =Factures1!A124 -> 0 | B109: =Factures1!B124 ->  | C109: =Factures1!C124 -> 0 | D109: =Factures1!D124 ->  | E109: =Factures1!E124 ->  | F109: =Factures1!F124 -> 0 | G109: =IF(Variables!$A$13="HT",Factures1!G124+I109,Factures1!G124) -> 0 | H109: =Factures1!H124 -> 0 | I109: =Factures1!I124 -> 0 | J109: =Factures1!$A$11 -> Facture | K109: =Factures1!$B$13 -> 2025-11-26 | M109: =Factures1!$B$14 -> 1011 / cr | N109: =Factures1!$B$15 -> 3338
A110: =Factures1!A125 -> 0 | B110: =Factures1!B125 ->  | C110: =Factures1!C125 -> 0 | D110: =Factures1!D125 ->  | E110: =Factures1!E125 ->  | F110: =Factures1!F125 -> 0 | G110: =IF(Variables!$A$13="HT",Factures1!G125+I110,Factures1!G125) -> 0 | H110: =Factures1!H125 -> 0 | I110: =Factures1!I125 -> 0 | J110: =Factures1!$A$11 -> Facture | K110: =Factures1!$B$13 -> 2025-11-26 | M110: =Factures1!$B$14 -> 1011 / cr | N110: =Factures1!$B$15 -> 3338
A111: =Factures1!A126 -> 0 | B111: =Factures1!B126 ->  | C111: =Factures1!C126 -> 0 | D111: =Factures1!D126 ->  | E111: =Factures1!E126 ->  | F111: =Factures1!F126 -> 0 | G111: =IF(Variables!$A$13="HT",Factures1!G126+I111,Factures1!G126) -> 0 | H111: =Factures1!H126 -> 0 | I111: =Factures1!I126 -> 0 | J111: =Factures1!$A$11 -> Facture | K111: =Factures1!$B$13 -> 2025-11-26 | M111: =Factures1!$B$14 -> 1011 / cr | N111: =Factures1!$B$15 -> 3338
A112: =Factures1!A127 -> 0 | B112: =Factures1!B127 ->  | C112: =Factures1!C127 -> 0 | D112: =Factures1!D127 ->  | E112: =Factures1!E127 ->  | F112: =Factures1!F127 -> 0 | G112: =IF(Variables!$A$13="HT",Factures1!G127+I112,Factures1!G127) -> 0 | H112: =Factures1!H127 -> 0 | I112: =Factures1!I127 -> 0 | J112: =Factures1!$A$11 -> Facture | K112: =Factures1!$B$13 -> 2025-11-26 | M112: =Factures1!$B$14 -> 1011 / cr | N112: =Factures1!$B$15 -> 3338
A113: =Factures1!A128 -> 0 | B113: =Factures1!B128 ->  | C113: =Factures1!C128 -> 0 | D113: =Factures1!D128 ->  | E113: =Factures1!E128 ->  | F113: =Factures1!F128 -> 0 | G113: =IF(Variables!$A$13="HT",Factures1!G128+I113,Factures1!G128) -> 0 | H113: =Factures1!H128 -> 0 | I113: =Factures1!I128 -> 0 | J113: =Factures1!$A$11 -> Facture | K113: =Factures1!$B$13 -> 2025-11-26 | M113: =Factures1!$B$14 -> 1011 / cr | N113: =Factures1!$B$15 -> 3338
A114: =Factures1!A129 -> 0 | B114: =Factures1!B129 ->  | C114: =Factures1!C129 -> 0 | D114: =Factures1!D129 ->  | E114: =Factures1!E129 ->  | F114: =Factures1!F129 -> 0 | G114: =IF(Variables!$A$13="HT",Factures1!G129+I114,Factures1!G129) -> 0 | H114: =Factures1!H129 -> 0 | I114: =Factures1!I129 -> 0 | J114: =Factures1!$A$11 -> Facture | K114: =Factures1!$B$13 -> 2025-11-26 | M114: =Factures1!$B$14 -> 1011 / cr | N114: =Factures1!$B$15 -> 3338
A115: =Factures1!A130 -> 0 | B115: =Factures1!B130 ->  | C115: =Factures1!C130 -> 0 | D115: =Factures1!D130 ->  | E115: =Factures1!E130 ->  | F115: =Factures1!F130 -> 0 | G115: =IF(Variables!$A$13="HT",Factures1!G130+I115,Factures1!G130) -> 0 | H115: =Factures1!H130 -> 0 | I115: =Factures1!I130 -> 0 | J115: =Factures1!$A$11 -> Facture | K115: =Factures1!$B$13 -> 2025-11-26 | M115: =Factures1!$B$14 -> 1011 / cr | N115: =Factures1!$B$15 -> 3338
A116: =Factures1!A131 -> 0 | B116: =Factures1!B131 ->  | C116: =Factures1!C131 -> 0 | D116: =Factures1!D131 ->  | E116: =Factures1!E131 ->  | F116: =Factures1!F131 -> 0 | G116: =IF(Variables!$A$13="HT",Factures1!G131+I116,Factures1!G131) -> 0 | H116: =Factures1!H131 -> 0 | I116: =Factures1!I131 -> 0 | J116: =Factures1!$A$11 -> Facture | K116: =Factures1!$B$13 -> 2025-11-26 | M116: =Factures1!$B$14 -> 1011 / cr | N116: =Factures1!$B$15 -> 3338
A117: =Factures1!A132 -> 0 | B117: =Factures1!B132 ->  | C117: =Factures1!C132 -> 0 | D117: =Factures1!D132 ->  | E117: =Factures1!E132 ->  | F117: =Factures1!F132 -> 0 | G117: =IF(Variables!$A$13="HT",Factures1!G132+I117,Factures1!G132) -> 0 | H117: =Factures1!H132 -> 0 | I117: =Factures1!I132 -> 0 | J117: =Factures1!$A$11 -> Facture | K117: =Factures1!$B$13 -> 2025-11-26 | M117: =Factures1!$B$14 -> 1011 / cr | N117: =Factures1!$B$15 -> 3338
A118: =Factures1!A133 -> 0 | B118: =Factures1!B133 ->  | C118: =Factures1!C133 -> 0 | D118: =Factures1!D133 ->  | E118: =Factures1!E133 ->  | F118: =Factures1!F133 -> 0 | G118: =IF(Variables!$A$13="HT",Factures1!G133+I118,Factures1!G133) -> 0 | H118: =Factures1!H133 -> 0 | I118: =Factures1!I133 -> 0 | J118: =Factures1!$A$11 -> Facture | K118: =Factures1!$B$13 -> 2025-11-26 | M118: =Factures1!$B$14 -> 1011 / cr | N118: =Factures1!$B$15 -> 3338
A119: =Factures1!A134 -> 0 | B119: =Factures1!B134 ->  | C119: =Factures1!C134 -> 0 | D119: =Factures1!D134 ->  | E119: =Factures1!E134 ->  | F119: =Factures1!F134 -> 0 | G119: =IF(Variables!$A$13="HT",Factures1!G134+I119,Factures1!G134) -> 0 | H119: =Factures1!H134 -> 0 | I119: =Factures1!I134 -> 0 | J119: =Factures1!$A$11 -> Facture | K119: =Factures1!$B$13 -> 2025-11-26 | M119: =Factures1!$B$14 -> 1011 / cr | N119: =Factures1!$B$15 -> 3338
A120: =Factures1!A135 -> 0 | B120: =Factures1!B135 ->  | C120: =Factures1!C135 -> 0 | D120: =Factures1!D135 ->  | E120: =Factures1!E135 ->  | F120: =Factures1!F135 -> 0 | G120: =IF(Variables!$A$13="HT",Factures1!G135+I120,Factures1!G135) -> 0 | H120: =Factures1!H135 -> 0 | I120: =Factures1!I135 -> 0 | J120: =Factures1!$A$11 -> Facture | K120: =Factures1!$B$13 -> 2025-11-26 | M120: =Factures1!$B$14 -> 1011 / cr | N120: =Factures1!$B$15 -> 3338
A121: =Factures1!A136 -> 0 | B121: =Factures1!B136 ->  | C121: =Factures1!C136 -> 0 | D121: =Factures1!D136 ->  | E121: =Factures1!E136 ->  | F121: =Factures1!F136 -> 0 | G121: =IF(Variables!$A$13="HT",Factures1!G136+I121,Factures1!G136) -> 0 | H121: =Factures1!H136 -> 0 | I121: =Factures1!I136 -> 0 | J121: =Factures1!$A$11 -> Facture | K121: =Factures1!$B$13 -> 2025-11-26 | M121: =Factures1!$B$14 -> 1011 / cr | N121: =Factures1!$B$15 -> 3338
A122: =Factures1!A137 -> 0 | B122: =Factures1!B137 ->  | C122: =Factures1!C137 -> 0 | D122: =Factures1!D137 ->  | E122: =Factures1!E137 ->  | F122: =Factures1!F137 -> 0 | G122: =IF(Variables!$A$13="HT",Factures1!G137+I122,Factures1!G137) -> 0 | H122: =Factures1!H137 -> 0 | I122: =Factures1!I137 -> 0 | J122: =Factures1!$A$11 -> Facture | K122: =Factures1!$B$13 -> 2025-11-26 | M122: =Factures1!$B$14 -> 1011 / cr | N122: =Factures1!$B$15 -> 3338
A123: =Factures1!A138 -> 0 | B123: =Factures1!B138 ->  | C123: =Factures1!C138 -> 0 | D123: =Factures1!D138 ->  | E123: =Factures1!E138 ->  | F123: =Factures1!F138 -> 0 | G123: =IF(Variables!$A$13="HT",Factures1!G138+I123,Factures1!G138) -> 0 | H123: =Factures1!H138 -> 0 | I123: =Factures1!I138 -> 0 | J123: =Factures1!$A$11 -> Facture | K123: =Factures1!$B$13 -> 2025-11-26 | M123: =Factures1!$B$14 -> 1011 / cr | N123: =Factures1!$B$15 -> 3338
A124: =Factures1!A139 -> 0 | B124: =Factures1!B139 ->  | C124: =Factures1!C139 -> 0 | D124: =Factures1!D139 ->  | E124: =Factures1!E139 ->  | F124: =Factures1!F139 -> 0 | G124: =IF(Variables!$A$13="HT",Factures1!G139+I124,Factures1!G139) -> 0 | H124: =Factures1!H139 -> 0 | I124: =Factures1!I139 -> 0 | J124: =Factures1!$A$11 -> Facture | K124: =Factures1!$B$13 -> 2025-11-26 | M124: =Factures1!$B$14 -> 1011 / cr | N124: =Factures1!$B$15 -> 3338
A125: =Factures1!A140 -> 0 | B125: =Factures1!B140 ->  | C125: =Factures1!C140 -> 0 | D125: =Factures1!D140 ->  | E125: =Factures1!E140 ->  | F125: =Factures1!F140 -> 0 | G125: =IF(Variables!$A$13="HT",Factures1!G140+I125,Factures1!G140) -> 0 | H125: =Factures1!H140 -> 0 | I125: =Factures1!I140 -> 0 | J125: =Factures1!$A$11 -> Facture | K125: =Factures1!$B$13 -> 2025-11-26 | M125: =Factures1!$B$14 -> 1011 / cr | N125: =Factures1!$B$15 -> 3338
A126: =Factures1!A141 -> 0 | B126: =Factures1!B141 ->  | C126: =Factures1!C141 -> 0 | D126: =Factures1!D141 ->  | E126: =Factures1!E141 ->  | F126: =Factures1!F141 -> 0 | G126: =IF(Variables!$A$13="HT",Factures1!G141+I126,Factures1!G141) -> 0 | H126: =Factures1!H141 -> 0 | I126: =Factures1!I141 -> 0 | J126: =Factures1!$A$11 -> Facture | K126: =Factures1!$B$13 -> 2025-11-26 | M126: =Factures1!$B$14 -> 1011 / cr | N126: =Factures1!$B$15 -> 3338
A127: =Factures1!A142 -> 0 | B127: =Factures1!B142 ->  | C127: =Factures1!C142 -> 0 | D127: =Factures1!D142 ->  | E127: =Factures1!E142 ->  | F127: =Factures1!F142 -> 0 | G127: =IF(Variables!$A$13="HT",Factures1!G142+I127,Factures1!G142) -> 0 | H127: =Factures1!H142 -> 0 | I127: =Factures1!I142 -> 0 | J127: =Factures1!$A$11 -> Facture | K127: =Factures1!$B$13 -> 2025-11-26 | M127: =Factures1!$B$14 -> 1011 / cr | N127: =Factures1!$B$15 -> 3338
A128: =Factures1!A143 -> 0 | B128: =Factures1!B143 ->  | C128: =Factures1!C143 -> 0 | D128: =Factures1!D143 ->  | E128: =Factures1!E143 ->  | F128: =Factures1!F143 -> 0 | G128: =IF(Variables!$A$13="HT",Factures1!G143+I128,Factures1!G143) -> 0 | H128: =Factures1!H143 -> 0 | I128: =Factures1!I143 -> 0 | J128: =Factures1!$A$11 -> Facture | K128: =Factures1!$B$13 -> 2025-11-26 | M128: =Factures1!$B$14 -> 1011 / cr | N128: =Factures1!$B$15 -> 3338
A129: =Factures1!A144 -> 0 | B129: =Factures1!B144 ->  | C129: =Factures1!C144 -> 0 | D129: =Factures1!D144 ->  | E129: =Factures1!E144 ->  | F129: =Factures1!F144 -> 0 | G129: =IF(Variables!$A$13="HT",Factures1!G144+I129,Factures1!G144) -> 0 | H129: =Factures1!H144 -> 0 | I129: =Factures1!I144 -> 0 | J129: =Factures1!$A$11 -> Facture | K129: =Factures1!$B$13 -> 2025-11-26 | M129: =Factures1!$B$14 -> 1011 / cr | N129: =Factures1!$B$15 -> 3338
A130: =Factures1!A145 -> 0 | B130: =Factures1!B145 ->  | C130: =Factures1!C145 -> 0 | D130: =Factures1!D145 ->  | E130: =Factures1!E145 ->  | F130: =Factures1!F145 -> 0 | G130: =IF(Variables!$A$13="HT",Factures1!G145+I130,Factures1!G145) -> 0 | H130: =Factures1!H145 -> 0 | I130: =Factures1!I145 -> 0 | J130: =Factures1!$A$11 -> Facture | K130: =Factures1!$B$13 -> 2025-11-26 | M130: =Factures1!$B$14 -> 1011 / cr | N130: =Factures1!$B$15 -> 3338
A131: =Factures1!A146 -> 0 | B131: =Factures1!B146 ->  | C131: =Factures1!C146 -> 0 | D131: =Factures1!D146 ->  | E131: =Factures1!E146 ->  | F131: =Factures1!F146 -> 0 | G131: =IF(Variables!$A$13="HT",Factures1!G146+I131,Factures1!G146) -> 0 | H131: =Factures1!H146 -> 0 | I131: =Factures1!I146 -> 0 | J131: =Factures1!$A$11 -> Facture | K131: =Factures1!$B$13 -> 2025-11-26 | M131: =Factures1!$B$14 -> 1011 / cr | N131: =Factures1!$B$15 -> 3338
A132: =Factures1!A147 -> 0 | B132: =Factures1!B147 ->  | C132: =Factures1!C147 -> 0 | D132: =Factures1!D147 ->  | E132: =Factures1!E147 ->  | F132: =Factures1!F147 -> 0 | G132: =IF(Variables!$A$13="HT",Factures1!G147+I132,Factures1!G147) -> 0 | H132: =Factures1!H147 -> 0 | I132: =Factures1!I147 -> 0 | J132: =Factures1!$A$11 -> Facture | K132: =Factures1!$B$13 -> 2025-11-26 | M132: =Factures1!$B$14 -> 1011 / cr | N132: =Factures1!$B$15 -> 3338
A133: =Factures1!A148 -> 0 | B133: =Factures1!B148 ->  | C133: =Factures1!C148 -> 0 | D133: =Factures1!D148 ->  | E133: =Factures1!E148 ->  | F133: =Factures1!F148 -> 0 | G133: =IF(Variables!$A$13="HT",Factures1!G148+I133,Factures1!G148) -> 0 | H133: =Factures1!H148 -> 0 | I133: =Factures1!I148 -> 0 | J133: =Factures1!$A$11 -> Facture | K133: =Factures1!$B$13 -> 2025-11-26 | M133: =Factures1!$B$14 -> 1011 / cr | N133: =Factures1!$B$15 -> 3338
A134: =Factures1!A149 -> 0 | B134: =Factures1!B149 ->  | C134: =Factures1!C149 -> 0 | D134: =Factures1!D149 ->  | E134: =Factures1!E149 ->  | F134: =Factures1!F149 -> 0 | G134: =IF(Variables!$A$13="HT",Factures1!G149+I134,Factures1!G149) -> 0 | H134: =Factures1!H149 -> 0 | I134: =Factures1!I149 -> 0 | J134: =Factures1!$A$11 -> Facture | K134: =Factures1!$B$13 -> 2025-11-26 | M134: =Factures1!$B$14 -> 1011 / cr | N134: =Factures1!$B$15 -> 3338
A135: =Factures1!A150 -> 0 | B135: =Factures1!B150 ->  | C135: =Factures1!C150 -> 0 | D135: =Factures1!D150 ->  | E135: =Factures1!E150 ->  | F135: =Factures1!F150 -> 0 | G135: =IF(Variables!$A$13="HT",Factures1!G150+I135,Factures1!G150) -> 0 | H135: =Factures1!H150 -> 0 | I135: =Factures1!I150 -> 0 | J135: =Factures1!$A$11 -> Facture | K135: =Factures1!$B$13 -> 2025-11-26 | M135: =Factures1!$B$14 -> 1011 / cr | N135: =Factures1!$B$15 -> 3338
A136: =Factures1!A151 -> 0 | B136: =Factures1!B151 ->  | C136: =Factures1!C151 -> 0 | D136: =Factures1!D151 ->  | E136: =Factures1!E151 ->  | F136: =Factures1!F151 -> 0 | G136: =IF(Variables!$A$13="HT",Factures1!G151+I136,Factures1!G151) -> 0 | H136: =Factures1!H151 -> 0 | I136: =Factures1!I151 -> 0 | J136: =Factures1!$A$11 -> Facture | K136: =Factures1!$B$13 -> 2025-11-26 | M136: =Factures1!$B$14 -> 1011 / cr | N136: =Factures1!$B$15 -> 3338
A137: =Factures1!A152 -> 0 | B137: =Factures1!B152 ->  | C137: =Factures1!C152 -> 0 | D137: =Factures1!D152 ->  | E137: =Factures1!E152 ->  | F137: =Factures1!F152 -> 0 | G137: =IF(Variables!$A$13="HT",Factures1!G152+I137,Factures1!G152) -> 0 | H137: =Factures1!H152 -> 0 | I137: =Factures1!I152 -> 0 | J137: =Factures1!$A$11 -> Facture | K137: =Factures1!$B$13 -> 2025-11-26 | M137: =Factures1!$B$14 -> 1011 / cr | N137: =Factures1!$B$15 -> 3338
A138: =Factures1!A153 -> 0 | B138: =Factures1!B153 ->  | C138: =Factures1!C153 -> 0 | D138: =Factures1!D153 ->  | E138: =Factures1!E153 ->  | F138: =Factures1!F153 -> 0 | G138: =IF(Variables!$A$13="HT",Factures1!G153+I138,Factures1!G153) -> 0 | H138: =Factures1!H153 -> 0 | I138: =Factures1!I153 -> 0 | J138: =Factures1!$A$11 -> Facture | K138: =Factures1!$B$13 -> 2025-11-26 | M138: =Factures1!$B$14 -> 1011 / cr | N138: =Factures1!$B$15 -> 3338
A139: =Factures1!A154 -> 0 | B139: =Factures1!B154 ->  | C139: =Factures1!C154 -> 0 | D139: =Factures1!D154 ->  | E139: =Factures1!E154 ->  | F139: =Factures1!F154 -> 0 | G139: =IF(Variables!$A$13="HT",Factures1!G154+I139,Factures1!G154) -> 0 | H139: =Factures1!H154 -> 0 | I139: =Factures1!I154 -> 0 | J139: =Factures1!$A$11 -> Facture | K139: =Factures1!$B$13 -> 2025-11-26 | M139: =Factures1!$B$14 -> 1011 / cr | N139: =Factures1!$B$15 -> 3338
A140: =Factures1!A155 -> 0 | B140: =Factures1!B155 ->  | C140: =Factures1!C155 -> 0 | D140: =Factures1!D155 ->  | E140: =Factures1!E155 ->  | F140: =Factures1!F155 -> 0 | G140: =IF(Variables!$A$13="HT",Factures1!G155+I140,Factures1!G155) -> 0 | H140: =Factures1!H155 -> 0 | I140: =Factures1!I155 -> 0 | J140: =Factures1!$A$11 -> Facture | K140: =Factures1!$B$13 -> 2025-11-26 | M140: =Factures1!$B$14 -> 1011 / cr | N140: =Factures1!$B$15 -> 3338
A141: =Factures1!A156 -> 0 | B141: =Factures1!B156 ->  | C141: =Factures1!C156 -> 0 | D141: =Factures1!D156 ->  | E141: =Factures1!E156 ->  | F141: =Factures1!F156 -> 0 | G141: =IF(Variables!$A$13="HT",Factures1!G156+I141,Factures1!G156) -> 0 | H141: =Factures1!H156 -> 0 | I141: =Factures1!I156 -> 0 | J141: =Factures1!$A$11 -> Facture | K141: =Factures1!$B$13 -> 2025-11-26 | M141: =Factures1!$B$14 -> 1011 / cr | N141: =Factures1!$B$15 -> 3338
A142: =Factures1!A157 -> 0 | B142: =Factures1!B157 ->  | C142: =Factures1!C157 -> 0 | D142: =Factures1!D157 ->  | E142: =Factures1!E157 ->  | F142: =Factures1!F157 -> 0 | G142: =IF(Variables!$A$13="HT",Factures1!G157+I142,Factures1!G157) -> 0 | H142: =Factures1!H157 -> 0 | I142: =Factures1!I157 -> 0 | J142: =Factures1!$A$11 -> Facture | K142: =Factures1!$B$13 -> 2025-11-26 | M142: =Factures1!$B$14 -> 1011 / cr | N142: =Factures1!$B$15 -> 3338
A143: =Factures1!A158 -> 0 | B143: =Factures1!B158 ->  | C143: =Factures1!C158 -> 0 | D143: =Factures1!D158 ->  | E143: =Factures1!E158 ->  | F143: =Factures1!F158 -> 0 | G143: =IF(Variables!$A$13="HT",Factures1!G158+I143,Factures1!G158) -> 0 | H143: =Factures1!H158 -> 0 | I143: =Factures1!I158 -> 0 | J143: =Factures1!$A$11 -> Facture | K143: =Factures1!$B$13 -> 2025-11-26 | M143: =Factures1!$B$14 -> 1011 / cr | N143: =Factures1!$B$15 -> 3338
A144: =Factures1!A159 -> 0 | B144: =Factures1!B159 ->  | C144: =Factures1!C159 -> 0 | D144: =Factures1!D159 ->  | E144: =Factures1!E159 ->  | F144: =Factures1!F159 -> 0 | G144: =IF(Variables!$A$13="HT",Factures1!G159+I144,Factures1!G159) -> 0 | H144: =Factures1!H159 -> 0 | I144: =Factures1!I159 -> 0 | J144: =Factures1!$A$11 -> Facture | K144: =Factures1!$B$13 -> 2025-11-26 | M144: =Factures1!$B$14 -> 1011 / cr | N144: =Factures1!$B$15 -> 3338
A145: =Factures1!A160 -> 0 | B145: =Factures1!B160 ->  | C145: =Factures1!C160 -> 0 | D145: =Factures1!D160 ->  | E145: =Factures1!E160 ->  | F145: =Factures1!F160 -> 0 | G145: =IF(Variables!$A$13="HT",Factures1!G160+I145,Factures1!G160) -> 0 | H145: =Factures1!H160 -> 0 | I145: =Factures1!I160 -> 0 | J145: =Factures1!$A$11 -> Facture | K145: =Factures1!$B$13 -> 2025-11-26 | M145: =Factures1!$B$14 -> 1011 / cr | N145: =Factures1!$B$15 -> 3338
A146: =Factures1!A161 -> 0 | B146: =Factures1!B161 ->  | C146: =Factures1!C161 -> 0 | D146: =Factures1!D161 ->  | E146: =Factures1!E161 ->  | F146: =Factures1!F161 -> 0 | G146: =IF(Variables!$A$13="HT",Factures1!G161+I146,Factures1!G161) -> 0 | H146: =Factures1!H161 -> 0 | I146: =Factures1!I161 -> 0 | J146: =Factures1!$A$11 -> Facture | K146: =Factures1!$B$13 -> 2025-11-26 | M146: =Factures1!$B$14 -> 1011 / cr | N146: =Factures1!$B$15 -> 3338
A147: =Factures1!A162 -> 0 | B147: =Factures1!B162 ->  | C147: =Factures1!C162 -> 0 | D147: =Factures1!D162 ->  | E147: =Factures1!E162 ->  | F147: =Factures1!F162 -> 0 | G147: =IF(Variables!$A$13="HT",Factures1!G162+I147,Factures1!G162) -> 0 | H147: =Factures1!H162 -> 0 | I147: =Factures1!I162 -> 0 | J147: =Factures1!$A$11 -> Facture | K147: =Factures1!$B$13 -> 2025-11-26 | M147: =Factures1!$B$14 -> 1011 / cr | N147: =Factures1!$B$15 -> 3338
A148: =Factures1!A163 -> 0 | B148: =Factures1!B163 ->  | C148: =Factures1!C163 -> 0 | D148: =Factures1!D163 ->  | E148: =Factures1!E163 ->  | F148: =Factures1!F163 -> 0 | G148: =IF(Variables!$A$13="HT",Factures1!G163+I148,Factures1!G163) -> 0 | H148: =Factures1!H163 -> 0 | I148: =Factures1!I163 -> 0 | J148: =Factures1!$A$11 -> Facture | K148: =Factures1!$B$13 -> 2025-11-26 | M148: =Factures1!$B$14 -> 1011 / cr | N148: =Factures1!$B$15 -> 3338
A149: =Factures1!A164 -> 0 | B149: =Factures1!B164 ->  | C149: =Factures1!C164 -> 0 | D149: =Factures1!D164 ->  | E149: =Factures1!E164 ->  | F149: =Factures1!F164 -> 0 | G149: =IF(Variables!$A$13="HT",Factures1!G164+I149,Factures1!G164) -> 0 | H149: =Factures1!H164 -> 0 | I149: =Factures1!I164 -> 0 | J149: =Factures1!$A$11 -> Facture | K149: =Factures1!$B$13 -> 2025-11-26 | M149: =Factures1!$B$14 -> 1011 / cr | N149: =Factures1!$B$15 -> 3338
A150: =Factures1!A165 -> 0 | B150: =Factures1!B165 ->  | C150: =Factures1!C165 -> 0 | D150: =Factures1!D165 ->  | E150: =Factures1!E165 ->  | F150: =Factures1!F165 -> 0 | G150: =IF(Variables!$A$13="HT",Factures1!G165+I150,Factures1!G165) -> 0 | H150: =Factures1!H165 -> 0 | I150: =Factures1!I165 -> 0 | J150: =Factures1!$A$11 -> Facture | K150: =Factures1!$B$13 -> 2025-11-26 | M150: =Factures1!$B$14 -> 1011 / cr | N150: =Factures1!$B$15 -> 3338
A151: =Factures1!A166 -> 0 | B151: =Factures1!B166 ->  | C151: =Factures1!C166 -> 0 | D151: =Factures1!D166 ->  | E151: =Factures1!E166 ->  | F151: =Factures1!F166 -> 0 | G151: =IF(Variables!$A$13="HT",Factures1!G166+I151,Factures1!G166) -> 0 | H151: =Factures1!H166 -> 0 | I151: =Factures1!I166 -> 0 | J151: =Factures1!$A$11 -> Facture | K151: =Factures1!$B$13 -> 2025-11-26 | M151: =Factures1!$B$14 -> 1011 / cr | N151: =Factures1!$B$15 -> 3338
A152: =Factures1!A167 -> 0 | B152: =Factures1!B167 ->  | C152: =Factures1!C167 -> 0 | D152: =Factures1!D167 ->  | E152: =Factures1!E167 ->  | F152: =Factures1!F167 -> 0 | G152: =IF(Variables!$A$13="HT",Factures1!G167+I152,Factures1!G167) -> 0 | H152: =Factures1!H167 -> 0 | I152: =Factures1!I167 -> 0 | J152: =Factures1!$A$11 -> Facture | K152: =Factures1!$B$13 -> 2025-11-26 | M152: =Factures1!$B$14 -> 1011 / cr | N152: =Factures1!$B$15 -> 3338
A153: =Factures1!A168 -> 0 | B153: =Factures1!B168 ->  | C153: =Factures1!C168 -> 0 | D153: =Factures1!D168 ->  | E153: =Factures1!E168 ->  | F153: =Factures1!F168 -> 0 | G153: =IF(Variables!$A$13="HT",Factures1!G168+I153,Factures1!G168) -> 0 | H153: =Factures1!H168 -> 0 | I153: =Factures1!I168 -> 0 | J153: =Factures1!$A$11 -> Facture | K153: =Factures1!$B$13 -> 2025-11-26 | M153: =Factures1!$B$14 -> 1011 / cr | N153: =Factures1!$B$15 -> 3338
A154: =Factures1!A169 -> 0 | B154: =Factures1!B169 ->  | C154: =Factures1!C169 -> 0 | D154: =Factures1!D169 ->  | E154: =Factures1!E169 ->  | F154: =Factures1!F169 -> 0 | G154: =IF(Variables!$A$13="HT",Factures1!G169+I154,Factures1!G169) -> 0 | H154: =Factures1!H169 -> 0 | I154: =Factures1!I169 -> 0 | J154: =Factures1!$A$11 -> Facture | K154: =Factures1!$B$13 -> 2025-11-26 | M154: =Factures1!$B$14 -> 1011 / cr | N154: =Factures1!$B$15 -> 3338
A155: =Factures1!A170 -> 0 | B155: =Factures1!B170 ->  | C155: =Factures1!C170 -> 0 | D155: =Factures1!D170 ->  | E155: =Factures1!E170 ->  | F155: =Factures1!F170 -> 0 | G155: =IF(Variables!$A$13="HT",Factures1!G170+I155,Factures1!G170) -> 0 | H155: =Factures1!H170 -> 0 | I155: =Factures1!I170 -> 0 | J155: =Factures1!$A$11 -> Facture | K155: =Factures1!$B$13 -> 2025-11-26 | M155: =Factures1!$B$14 -> 1011 / cr | N155: =Factures1!$B$15 -> 3338
A156: =Factures1!A171 -> 0 | B156: =Factures1!B171 ->  | C156: =Factures1!C171 -> 0 | D156: =Factures1!D171 ->  | E156: =Factures1!E171 ->  | F156: =Factures1!F171 -> 0 | G156: =IF(Variables!$A$13="HT",Factures1!G171+I156,Factures1!G171) -> 0 | H156: =Factures1!H171 -> 0 | I156: =Factures1!I171 -> 0 | J156: =Factures1!$A$11 -> Facture | K156: =Factures1!$B$13 -> 2025-11-26 | M156: =Factures1!$B$14 -> 1011 / cr | N156: =Factures1!$B$15 -> 3338
A157: =Factures1!A172 -> 0 | B157: =Factures1!B172 ->  | C157: =Factures1!C172 -> 0 | D157: =Factures1!D172 ->  | E157: =Factures1!E172 ->  | F157: =Factures1!F172 -> 0 | G157: =IF(Variables!$A$13="HT",Factures1!G172+I157,Factures1!G172) -> 0 | H157: =Factures1!H172 -> 0 | I157: =Factures1!I172 -> 0 | J157: =Factures1!$A$11 -> Facture | K157: =Factures1!$B$13 -> 2025-11-26 | M157: =Factures1!$B$14 -> 1011 / cr | N157: =Factures1!$B$15 -> 3338
A158: =Factures1!A173 -> 0 | B158: =Factures1!B173 ->  | C158: =Factures1!C173 -> 0 | D158: =Factures1!D173 ->  | E158: =Factures1!E173 ->  | F158: =Factures1!F173 -> 0 | G158: =IF(Variables!$A$13="HT",Factures1!G173+I158,Factures1!G173) -> 0 | H158: =Factures1!H173 -> 0 | I158: =Factures1!I173 -> 0 | J158: =Factures1!$A$11 -> Facture | K158: =Factures1!$B$13 -> 2025-11-26 | M158: =Factures1!$B$14 -> 1011 / cr | N158: =Factures1!$B$15 -> 3338
A159: =Factures1!A174 -> 0 | B159: =Factures1!B174 ->  | C159: =Factures1!C174 -> 0 | D159: =Factures1!D174 ->  | E159: =Factures1!E174 ->  | F159: =Factures1!F174 -> 0 | G159: =IF(Variables!$A$13="HT",Factures1!G174+I159,Factures1!G174) -> 0 | H159: =Factures1!H174 -> 0 | I159: =Factures1!I174 -> 0 | J159: =Factures1!$A$11 -> Facture | K159: =Factures1!$B$13 -> 2025-11-26 | M159: =Factures1!$B$14 -> 1011 / cr | N159: =Factures1!$B$15 -> 3338
A160: =Factures1!A175 -> 0 | B160: =Factures1!B175 ->  | C160: =Factures1!C175 -> 0 | D160: =Factures1!D175 ->  | E160: =Factures1!E175 ->  | F160: =Factures1!F175 -> 0 | G160: =IF(Variables!$A$13="HT",Factures1!G175+I160,Factures1!G175) -> 0 | H160: =Factures1!H175 -> 0 | I160: =Factures1!I175 -> 0 | J160: =Factures1!$A$11 -> Facture | K160: =Factures1!$B$13 -> 2025-11-26 | M160: =Factures1!$B$14 -> 1011 / cr | N160: =Factures1!$B$15 -> 3338
A161: =Factures1!A176 -> 0 | B161: =Factures1!B176 ->  | C161: =Factures1!C176 -> 0 | D161: =Factures1!D176 ->  | E161: =Factures1!E176 ->  | F161: =Factures1!F176 -> 0 | G161: =IF(Variables!$A$13="HT",Factures1!G176+I161,Factures1!G176) -> 0 | H161: =Factures1!H176 -> 0 | I161: =Factures1!I176 -> 0 | J161: =Factures1!$A$11 -> Facture | K161: =Factures1!$B$13 -> 2025-11-26 | M161: =Factures1!$B$14 -> 1011 / cr | N161: =Factures1!$B$15 -> 3338
A162: =Factures1!A177 -> 0 | B162: =Factures1!B177 ->  | C162: =Factures1!C177 -> 0 | D162: =Factures1!D177 ->  | E162: =Factures1!E177 ->  | F162: =Factures1!F177 -> 0 | G162: =IF(Variables!$A$13="HT",Factures1!G177+I162,Factures1!G177) -> 0 | H162: =Factures1!H177 -> 0 | I162: =Factures1!I177 -> 0 | J162: =Factures1!$A$11 -> Facture | K162: =Factures1!$B$13 -> 2025-11-26 | M162: =Factures1!$B$14 -> 1011 / cr | N162: =Factures1!$B$15 -> 3338
A163: =Factures1!A178 -> 0 | B163: =Factures1!B178 ->  | C163: =Factures1!C178 -> 0 | D163: =Factures1!D178 ->  | E163: =Factures1!E178 ->  | F163: =Factures1!F178 -> 0 | G163: =IF(Variables!$A$13="HT",Factures1!G178+I163,Factures1!G178) -> 0 | H163: =Factures1!H178 -> 0 | I163: =Factures1!I178 -> 0 | J163: =Factures1!$A$11 -> Facture | K163: =Factures1!$B$13 -> 2025-11-26 | M163: =Factures1!$B$14 -> 1011 / cr | N163: =Factures1!$B$15 -> 3338
A164: =Factures1!A179 -> 0 | B164: =Factures1!B179 ->  | C164: =Factures1!C179 -> 0 | D164: =Factures1!D179 ->  | E164: =Factures1!E179 ->  | F164: =Factures1!F179 -> 0 | G164: =IF(Variables!$A$13="HT",Factures1!G179+I164,Factures1!G179) -> 0 | H164: =Factures1!H179 -> 0 | I164: =Factures1!I179 -> 0 | J164: =Factures1!$A$11 -> Facture | K164: =Factures1!$B$13 -> 2025-11-26 | M164: =Factures1!$B$14 -> 1011 / cr | N164: =Factures1!$B$15 -> 3338
A165: =Factures1!A180 -> 0 | B165: =Factures1!B180 ->  | C165: =Factures1!C180 -> 0 | D165: =Factures1!D180 ->  | E165: =Factures1!E180 ->  | F165: =Factures1!F180 -> 0 | G165: =IF(Variables!$A$13="HT",Factures1!G180+I165,Factures1!G180) -> 0 | H165: =Factures1!H180 -> 0 | I165: =Factures1!I180 -> 0 | J165: =Factures1!$A$11 -> Facture | K165: =Factures1!$B$13 -> 2025-11-26 | M165: =Factures1!$B$14 -> 1011 / cr | N165: =Factures1!$B$15 -> 3338
A166: =Factures1!A181 -> 0 | B166: =Factures1!B181 ->  | C166: =Factures1!C181 -> 0 | D166: =Factures1!D181 ->  | E166: =Factures1!E181 ->  | F166: =Factures1!F181 -> 0 | G166: =IF(Variables!$A$13="HT",Factures1!G181+I166,Factures1!G181) -> 0 | H166: =Factures1!H181 -> 0 | I166: =Factures1!I181 -> 0 | J166: =Factures1!$A$11 -> Facture | K166: =Factures1!$B$13 -> 2025-11-26 | M166: =Factures1!$B$14 -> 1011 / cr | N166: =Factures1!$B$15 -> 3338
A167: =Factures1!A182 -> 0 | B167: =Factures1!B182 ->  | C167: =Factures1!C182 -> 0 | D167: =Factures1!D182 ->  | E167: =Factures1!E182 ->  | F167: =Factures1!F182 -> 0 | G167: =IF(Variables!$A$13="HT",Factures1!G182+I167,Factures1!G182) -> 0 | H167: =Factures1!H182 -> 0 | I167: =Factures1!I182 -> 0 | J167: =Factures1!$A$11 -> Facture | K167: =Factures1!$B$13 -> 2025-11-26 | M167: =Factures1!$B$14 -> 1011 / cr | N167: =Factures1!$B$15 -> 3338
A168: =Factures1!A183 -> 0 | B168: =Factures1!B183 ->  | C168: =Factures1!C183 -> 0 | D168: =Factures1!D183 ->  | E168: =Factures1!E183 ->  | F168: =Factures1!F183 -> 0 | G168: =IF(Variables!$A$13="HT",Factures1!G183+I168,Factures1!G183) -> 0 | H168: =Factures1!H183 -> 0 | I168: =Factures1!I183 -> 0 | J168: =Factures1!$A$11 -> Facture | K168: =Factures1!$B$13 -> 2025-11-26 | M168: =Factures1!$B$14 -> 1011 / cr | N168: =Factures1!$B$15 -> 3338
A169: =Factures1!A184 -> 0 | B169: =Factures1!B184 ->  | C169: =Factures1!C184 -> 0 | D169: =Factures1!D184 ->  | E169: =Factures1!E184 ->  | F169: =Factures1!F184 -> 0 | G169: =IF(Variables!$A$13="HT",Factures1!G184+I169,Factures1!G184) -> 0 | H169: =Factures1!H184 -> 0 | I169: =Factures1!I184 -> 0 | J169: =Factures1!$A$11 -> Facture | K169: =Factures1!$B$13 -> 2025-11-26 | M169: =Factures1!$B$14 -> 1011 / cr | N169: =Factures1!$B$15 -> 3338
A170: =Factures1!A185 -> 0 | B170: =Factures1!B185 ->  | C170: =Factures1!C185 -> 0 | D170: =Factures1!D185 ->  | E170: =Factures1!E185 ->  | F170: =Factures1!F185 -> 0 | G170: =IF(Variables!$A$13="HT",Factures1!G185+I170,Factures1!G185) -> 0 | H170: =Factures1!H185 -> 0 | I170: =Factures1!I185 -> 0 | J170: =Factures1!$A$11 -> Facture | K170: =Factures1!$B$13 -> 2025-11-26 | M170: =Factures1!$B$14 -> 1011 / cr | N170: =Factures1!$B$15 -> 3338
A171: =Factures1!A186 -> 0 | B171: =Factures1!B186 ->  | C171: =Factures1!C186 -> 0 | D171: =Factures1!D186 ->  | E171: =Factures1!E186 ->  | F171: =Factures1!F186 -> 0 | G171: =IF(Variables!$A$13="HT",Factures1!G186+I171,Factures1!G186) -> 0 | H171: =Factures1!H186 -> 0 | I171: =Factures1!I186 -> 0 | J171: =Factures1!$A$11 -> Facture | K171: =Factures1!$B$13 -> 2025-11-26 | M171: =Factures1!$B$14 -> 1011 / cr | N171: =Factures1!$B$15 -> 3338
A172: =Factures1!A187 -> 0 | B172: =Factures1!B187 ->  | C172: =Factures1!C187 -> 0 | D172: =Factures1!D187 ->  | E172: =Factures1!E187 ->  | F172: =Factures1!F187 -> 0 | G172: =IF(Variables!$A$13="HT",Factures1!G187+I172,Factures1!G187) -> 0 | H172: =Factures1!H187 -> 0 | I172: =Factures1!I187 -> 0 | J172: =Factures1!$A$11 -> Facture | K172: =Factures1!$B$13 -> 2025-11-26 | M172: =Factures1!$B$14 -> 1011 / cr | N172: =Factures1!$B$15 -> 3338
A173: =Factures1!A188 -> 0 | B173: =Factures1!B188 ->  | C173: =Factures1!C188 -> 0 | D173: =Factures1!D188 ->  | E173: =Factures1!E188 ->  | F173: =Factures1!F188 -> 0 | G173: =IF(Variables!$A$13="HT",Factures1!G188+I173,Factures1!G188) -> 0 | H173: =Factures1!H188 -> 0 | I173: =Factures1!I188 -> 0 | J173: =Factures1!$A$11 -> Facture | K173: =Factures1!$B$13 -> 2025-11-26 | M173: =Factures1!$B$14 -> 1011 / cr | N173: =Factures1!$B$15 -> 3338
A174: =Factures1!A189 -> 0 | B174: =Factures1!B189 ->  | C174: =Factures1!C189 -> 0 | D174: =Factures1!D189 ->  | E174: =Factures1!E189 ->  | F174: =Factures1!F189 -> 0 | G174: =IF(Variables!$A$13="HT",Factures1!G189+I174,Factures1!G189) -> 0 | H174: =Factures1!H189 -> 0 | I174: =Factures1!I189 -> 0 | J174: =Factures1!$A$11 -> Facture | K174: =Factures1!$B$13 -> 2025-11-26 | M174: =Factures1!$B$14 -> 1011 / cr | N174: =Factures1!$B$15 -> 3338
A175: =Factures1!A190 -> 0 | B175: =Factures1!B190 ->  | C175: =Factures1!C190 -> 0 | D175: =Factures1!D190 ->  | E175: =Factures1!E190 ->  | F175: =Factures1!F190 -> 0 | G175: =IF(Variables!$A$13="HT",Factures1!G190+I175,Factures1!G190) -> 0 | H175: =Factures1!H190 -> 0 | I175: =Factures1!I190 -> 0 | J175: =Factures1!$A$11 -> Facture | K175: =Factures1!$B$13 -> 2025-11-26 | M175: =Factures1!$B$14 -> 1011 / cr | N175: =Factures1!$B$15 -> 3338
A176: =Factures1!A191 -> 0 | B176: =Factures1!B191 ->  | C176: =Factures1!C191 -> 0 | D176: =Factures1!D191 ->  | E176: =Factures1!E191 ->  | F176: =Factures1!F191 -> 0 | G176: =IF(Variables!$A$13="HT",Factures1!G191+I176,Factures1!G191) -> 0 | H176: =Factures1!H191 -> 0 | I176: =Factures1!I191 -> 0 | J176: =Factures1!$A$11 -> Facture | K176: =Factures1!$B$13 -> 2025-11-26 | M176: =Factures1!$B$14 -> 1011 / cr | N176: =Factures1!$B$15 -> 3338
A177: =Factures1!A192 -> 0 | B177: =Factures1!B192 ->  | C177: =Factures1!C192 -> 0 | D177: =Factures1!D192 ->  | E177: =Factures1!E192 ->  | F177: =Factures1!F192 -> 0 | G177: =IF(Variables!$A$13="HT",Factures1!G192+I177,Factures1!G192) -> 0 | H177: =Factures1!H192 -> 0 | I177: =Factures1!I192 -> 0 | J177: =Factures1!$A$11 -> Facture | K177: =Factures1!$B$13 -> 2025-11-26 | M177: =Factures1!$B$14 -> 1011 / cr | N177: =Factures1!$B$15 -> 3338
A178: =Factures1!A193 -> 0 | B178: =Factures1!B193 ->  | C178: =Factures1!C193 -> 0 | D178: =Factures1!D193 ->  | E178: =Factures1!E193 ->  | F178: =Factures1!F193 -> 0 | G178: =IF(Variables!$A$13="HT",Factures1!G193+I178,Factures1!G193) -> 0 | H178: =Factures1!H193 -> 0 | I178: =Factures1!I193 -> 0 | J178: =Factures1!$A$11 -> Facture | K178: =Factures1!$B$13 -> 2025-11-26 | M178: =Factures1!$B$14 -> 1011 / cr | N178: =Factures1!$B$15 -> 3338
A179: =Factures1!A194 -> 0 | B179: =Factures1!B194 ->  | C179: =Factures1!C194 -> 0 | D179: =Factures1!D194 ->  | E179: =Factures1!E194 ->  | F179: =Factures1!F194 -> 0 | G179: =IF(Variables!$A$13="HT",Factures1!G194+I179,Factures1!G194) -> 0 | H179: =Factures1!H194 -> 0 | I179: =Factures1!I194 -> 0 | J179: =Factures1!$A$11 -> Facture | K179: =Factures1!$B$13 -> 2025-11-26 | M179: =Factures1!$B$14 -> 1011 / cr | N179: =Factures1!$B$15 -> 3338
A180: =Factures1!A195 -> 0 | B180: =Factures1!B195 ->  | C180: =Factures1!C195 -> 0 | D180: =Factures1!D195 ->  | E180: =Factures1!E195 ->  | F180: =Factures1!F195 -> 0 | G180: =IF(Variables!$A$13="HT",Factures1!G195+I180,Factures1!G195) -> 0 | H180: =Factures1!H195 -> 0 | I180: =Factures1!I195 -> 0 | J180: =Factures1!$A$11 -> Facture | K180: =Factures1!$B$13 -> 2025-11-26 | M180: =Factures1!$B$14 -> 1011 / cr | N180: =Factures1!$B$15 -> 3338
A181: =Factures1!A196 -> 0 | B181: =Factures1!B196 ->  | C181: =Factures1!C196 -> 0 | D181: =Factures1!D196 ->  | E181: =Factures1!E196 ->  | F181: =Factures1!F196 -> 0 | G181: =IF(Variables!$A$13="HT",Factures1!G196+I181,Factures1!G196) -> 0 | H181: =Factures1!H196 -> 0 | I181: =Factures1!I196 -> 0 | J181: =Factures1!$A$11 -> Facture | K181: =Factures1!$B$13 -> 2025-11-26 | M181: =Factures1!$B$14 -> 1011 / cr | N181: =Factures1!$B$15 -> 3338
A182: =Factures1!A197 -> 0 | B182: =Factures1!B197 ->  | C182: =Factures1!C197 -> 0 | D182: =Factures1!D197 ->  | E182: =Factures1!E197 ->  | F182: =Factures1!F197 -> 0 | G182: =IF(Variables!$A$13="HT",Factures1!G197+I182,Factures1!G197) -> 0 | H182: =Factures1!H197 -> 0 | I182: =Factures1!I197 -> 0 | J182: =Factures1!$A$11 -> Facture | K182: =Factures1!$B$13 -> 2025-11-26 | M182: =Factures1!$B$14 -> 1011 / cr | N182: =Factures1!$B$15 -> 3338
A183: =Factures1!A198 -> 0 | B183: =Factures1!B198 ->  | C183: =Factures1!C198 -> 0 | D183: =Factures1!D198 ->  | E183: =Factures1!E198 ->  | F183: =Factures1!F198 -> 0 | G183: =IF(Variables!$A$13="HT",Factures1!G198+I183,Factures1!G198) -> 0 | H183: =Factures1!H198 -> 0 | I183: =Factures1!I198 -> 0 | J183: =Factures1!$A$11 -> Facture | K183: =Factures1!$B$13 -> 2025-11-26 | M183: =Factures1!$B$14 -> 1011 / cr | N183: =Factures1!$B$15 -> 3338
A184: =Factures1!A199 -> 0 | B184: =Factures1!B199 ->  | C184: =Factures1!C199 -> 0 | D184: =Factures1!D199 ->  | E184: =Factures1!E199 ->  | F184: =Factures1!F199 -> 0 | G184: =IF(Variables!$A$13="HT",Factures1!G199+I184,Factures1!G199) -> 0 | H184: =Factures1!H199 -> 0 | I184: =Factures1!I199 -> 0 | J184: =Factures1!$A$11 -> Facture | K184: =Factures1!$B$13 -> 2025-11-26 | M184: =Factures1!$B$14 -> 1011 / cr | N184: =Factures1!$B$15 -> 3338
A185: =Factures1!A200 -> 0 | B185: =Factures1!B200 ->  | C185: =Factures1!C200 -> 0 | D185: =Factures1!D200 ->  | E185: =Factures1!E200 ->  | F185: =Factures1!F200 -> 0 | G185: =IF(Variables!$A$13="HT",Factures1!G200+I185,Factures1!G200) -> 0 | H185: =Factures1!H200 -> 0 | I185: =Factures1!I200 -> 0 | J185: =Factures1!$A$11 -> Facture | K185: =Factures1!$B$13 -> 2025-11-26 | M185: =Factures1!$B$14 -> 1011 / cr | N185: =Factures1!$B$15 -> 3338
A186: =Factures1!A201 -> 0 | B186: =Factures1!B201 ->  | C186: =Factures1!C201 -> 0 | D186: =Factures1!D201 ->  | E186: =Factures1!E201 ->  | F186: =Factures1!F201 -> 0 | G186: =IF(Variables!$A$13="HT",Factures1!G201+I186,Factures1!G201) -> 0 | H186: =Factures1!H201 -> 0 | I186: =Factures1!I201 -> 0 | J186: =Factures1!$A$11 -> Facture | K186: =Factures1!$B$13 -> 2025-11-26 | M186: =Factures1!$B$14 -> 1011 / cr | N186: =Factures1!$B$15 -> 3338
A187: =Factures1!A202 -> 0 | B187: =Factures1!B202 ->  | C187: =Factures1!C202 -> 0 | D187: =Factures1!D202 ->  | E187: =Factures1!E202 ->  | F187: =Factures1!F202 -> 0 | G187: =IF(Variables!$A$13="HT",Factures1!G202+I187,Factures1!G202) -> 0 | H187: =Factures1!H202 -> 0 | I187: =Factures1!I202 -> 0 | J187: =Factures1!$A$11 -> Facture | K187: =Factures1!$B$13 -> 2025-11-26 | M187: =Factures1!$B$14 -> 1011 / cr | N187: =Factures1!$B$15 -> 3338
A188: =Factures1!A203 -> 0 | B188: =Factures1!B203 ->  | C188: =Factures1!C203 -> 0 | D188: =Factures1!D203 ->  | E188: =Factures1!E203 ->  | F188: =Factures1!F203 -> 0 | G188: =IF(Variables!$A$13="HT",Factures1!G203+I188,Factures1!G203) -> 0 | H188: =Factures1!H203 -> 0 | I188: =Factures1!I203 -> 0 | J188: =Factures1!$A$11 -> Facture | K188: =Factures1!$B$13 -> 2025-11-26 | M188: =Factures1!$B$14 -> 1011 / cr | N188: =Factures1!$B$15 -> 3338
A189: =Factures1!A204 -> 0 | B189: =Factures1!B204 ->  | C189: =Factures1!C204 -> 0 | D189: =Factures1!D204 ->  | E189: =Factures1!E204 ->  | F189: =Factures1!F204 -> 0 | G189: =IF(Variables!$A$13="HT",Factures1!G204+I189,Factures1!G204) -> 0 | H189: =Factures1!H204 -> 0 | I189: =Factures1!I204 -> 0 | J189: =Factures1!$A$11 -> Facture | K189: =Factures1!$B$13 -> 2025-11-26 | M189: =Factures1!$B$14 -> 1011 / cr | N189: =Factures1!$B$15 -> 3338
A190: =Factures1!A205 -> 0 | B190: =Factures1!B205 ->  | C190: =Factures1!C205 -> 0 | D190: =Factures1!D205 ->  | E190: =Factures1!E205 ->  | F190: =Factures1!F205 -> 0 | G190: =IF(Variables!$A$13="HT",Factures1!G205+I190,Factures1!G205) -> 0 | H190: =Factures1!H205 -> 0 | I190: =Factures1!I205 -> 0 | J190: =Factures1!$A$11 -> Facture | K190: =Factures1!$B$13 -> 2025-11-26 | M190: =Factures1!$B$14 -> 1011 / cr | N190: =Factures1!$B$15 -> 3338
A191: =Factures1!A206 -> 0 | B191: =Factures1!B206 ->  | C191: =Factures1!C206 -> 0 | D191: =Factures1!D206 ->  | E191: =Factures1!E206 ->  | F191: =Factures1!F206 -> 0 | G191: =IF(Variables!$A$13="HT",Factures1!G206+I191,Factures1!G206) -> 0 | H191: =Factures1!H206 -> 0 | I191: =Factures1!I206 -> 0 | J191: =Factures1!$A$11 -> Facture | K191: =Factures1!$B$13 -> 2025-11-26 | M191: =Factures1!$B$14 -> 1011 / cr | N191: =Factures1!$B$15 -> 3338
A192: =Factures1!A207 -> 0 | B192: =Factures1!B207 ->  | C192: =Factures1!C207 -> 0 | D192: =Factures1!D207 ->  | E192: =Factures1!E207 ->  | F192: =Factures1!F207 -> 0 | G192: =IF(Variables!$A$13="HT",Factures1!G207+I192,Factures1!G207) -> 0 | H192: =Factures1!H207 -> 0 | I192: =Factures1!I207 -> 0 | J192: =Factures1!$A$11 -> Facture | K192: =Factures1!$B$13 -> 2025-11-26 | M192: =Factures1!$B$14 -> 1011 / cr | N192: =Factures1!$B$15 -> 3338
A193: =Factures1!A208 -> 0 | B193: =Factures1!B208 ->  | C193: =Factures1!C208 -> 0 | D193: =Factures1!D208 ->  | E193: =Factures1!E208 ->  | F193: =Factures1!F208 -> 0 | G193: =IF(Variables!$A$13="HT",Factures1!G208+I193,Factures1!G208) -> 0 | H193: =Factures1!H208 -> 0 | I193: =Factures1!I208 -> 0 | J193: =Factures1!$A$11 -> Facture | K193: =Factures1!$B$13 -> 2025-11-26 | M193: =Factures1!$B$14 -> 1011 / cr | N193: =Factures1!$B$15 -> 3338
A194: =Factures1!A209 -> 0 | B194: =Factures1!B209 ->  | C194: =Factures1!C209 -> 0 | D194: =Factures1!D209 ->  | E194: =Factures1!E209 ->  | F194: =Factures1!F209 -> 0 | G194: =IF(Variables!$A$13="HT",Factures1!G209+I194,Factures1!G209) -> 0 | H194: =Factures1!H209 -> 0 | I194: =Factures1!I209 -> 0 | J194: =Factures1!$A$11 -> Facture | K194: =Factures1!$B$13 -> 2025-11-26 | M194: =Factures1!$B$14 -> 1011 / cr | N194: =Factures1!$B$15 -> 3338
A195: =Factures1!A210 -> 0 | B195: =Factures1!B210 ->  | C195: =Factures1!C210 -> 0 | D195: =Factures1!D210 ->  | E195: =Factures1!E210 ->  | F195: =Factures1!F210 -> 0 | G195: =IF(Variables!$A$13="HT",Factures1!G210+I195,Factures1!G210) -> 0 | H195: =Factures1!H210 -> 0 | I195: =Factures1!I210 -> 0 | J195: =Factures1!$A$11 -> Facture | K195: =Factures1!$B$13 -> 2025-11-26 | M195: =Factures1!$B$14 -> 1011 / cr | N195: =Factures1!$B$15 -> 3338
A196: =Factures1!A211 -> 0 | B196: =Factures1!B211 ->  | C196: =Factures1!C211 -> 0 | D196: =Factures1!D211 ->  | E196: =Factures1!E211 ->  | F196: =Factures1!F211 -> 0 | G196: =IF(Variables!$A$13="HT",Factures1!G211+I196,Factures1!G211) -> 0 | H196: =Factures1!H211 -> 0 | I196: =Factures1!I211 -> 0 | J196: =Factures1!$A$11 -> Facture | K196: =Factures1!$B$13 -> 2025-11-26 | M196: =Factures1!$B$14 -> 1011 / cr | N196: =Factures1!$B$15 -> 3338
A197: =Factures1!A212 -> 0 | B197: =Factures1!B212 ->  | C197: =Factures1!C212 -> 0 | D197: =Factures1!D212 ->  | E197: =Factures1!E212 ->  | F197: =Factures1!F212 -> 0 | G197: =IF(Variables!$A$13="HT",Factures1!G212+I197,Factures1!G212) -> 0 | H197: =Factures1!H212 -> 0 | I197: =Factures1!I212 -> 0 | J197: =Factures1!$A$11 -> Facture | K197: =Factures1!$B$13 -> 2025-11-26 | M197: =Factures1!$B$14 -> 1011 / cr | N197: =Factures1!$B$15 -> 3338
A198: =Factures1!A213 -> 0 | B198: =Factures1!B213 ->  | C198: =Factures1!C213 -> 0 | D198: =Factures1!D213 ->  | E198: =Factures1!E213 ->  | F198: =Factures1!F213 -> 0 | G198: =IF(Variables!$A$13="HT",Factures1!G213+I198,Factures1!G213) -> 0 | H198: =Factures1!H213 -> 0 | I198: =Factures1!I213 -> 0 | J198: =Factures1!$A$11 -> Facture | K198: =Factures1!$B$13 -> 2025-11-26 | M198: =Factures1!$B$14 -> 1011 / cr | N198: =Factures1!$B$15 -> 3338
A199: =Factures1!A214 -> 0 | B199: =Factures1!B214 ->  | C199: =Factures1!C214 -> 0 | D199: =Factures1!D214 ->  | E199: =Factures1!E214 ->  | F199: =Factures1!F214 -> 0 | G199: =IF(Variables!$A$13="HT",Factures1!G214+I199,Factures1!G214) -> 0 | H199: =Factures1!H214 -> 0 | I199: =Factures1!I214 -> 0 | J199: =Factures1!$A$11 -> Facture | K199: =Factures1!$B$13 -> 2025-11-26 | M199: =Factures1!$B$14 -> 1011 / cr | N199: =Factures1!$B$15 -> 3338
A200: =Factures1!A215 -> 0 | B200: =Factures1!B215 ->  | C200: =Factures1!C215 -> 0 | D200: =Factures1!D215 ->  | E200: =Factures1!E215 ->  | F200: =Factures1!F215 -> 0 | G200: =IF(Variables!$A$13="HT",Factures1!G215+I200,Factures1!G215) -> 0 | H200: =Factures1!H215 -> 0 | I200: =Factures1!I215 -> 0 | J200: =Factures1!$A$11 -> Facture | K200: =Factures1!$B$13 -> 2025-11-26 | M200: =Factures1!$B$14 -> 1011 / cr | N200: =Factures1!$B$15 -> 3338
... 30 more rows

Sheet nrA (hidden)
A1: $A$2 | B1: 2
A2: $A$3 | B2: 3
A3: $A$4 | B3: 4
A4: $A$5 | B4: 5
A5: $A$6 | B5: 6
A6: $A$7 | B6: 7
A7: $A$8 | B7: 8
A8: $A$9 | B8: 9
A9: $A$10 | B9: 10
A10: $A$11 | B10: 11
A11: $A$12 | B11: 12
A12: $A$13 | B12: 13
A13: $A$14 | B13: 14
A14: $A$15 | B14: 15
A15: $A$16 | B15: 16
A16: $A$17 | B16: 17
A17: $A$18 | B17: 18
A18: $A$19 | B18: 19
A19: $A$20 | B19: 20
A20: $A$21 | B20: 21
A21: $A$22 | B21: 22
A22: $A$23 | B22: 23
A23: $A$24 | B23: 24
A24: $A$25 | B24: 25
A25: $A$26 | B25: 26
A26: $A$27 | B26: 27
A27: $A$28 | B27: 28
A28: $A$29 | B28: 29
A29: $A$30 | B29: 30
A30: $A$31 | B30: 31
A31: $A$32 | B31: 32
A32: $A$33 | B32: 33
A33: $A$34 | B33: 34
A34: $A$35 | B34: 35
A35: $A$36 | B35: 36
A36: $A$37 | B36: 37
A37: $A$38 | B37: 38
A38: $A$39 | B38: 39
A39: $A$40 | B39: 40
A40: $A$41 | B40: 41
A41: $A$42 | B41: 42
A42: $A$43 | B42: 43
A43: $A$44 | B43: 44
A44: $A$45 | B44: 45
A45: $A$46 | B45: 46
A46: $A$47 | B46: 47
A47: $A$48 | B47: 48
A48: $A$49 | B48: 49
A49: $A$50 | B49: 50
A50: $A$51 | B50: 51
A51: $A$52 | B51: 52
A52: $A$53 | B52: 53
A53: $A$54 | B53: 54
A54: $A$55 | B54: 55
A55: $A$56 | B55: 56
A56: $A$57 | B56: 57
A57: $A$58 | B57: 58
A58: $A$59 | B58: 59
A59: $A$60 | B59: 60
A60: $A$61 | B60: 61
A61: $A$62 | B61: 62
A62: $A$63 | B62: 63
A63: $A$64 | B63: 64
A64: $A$65 | B64: 65
A65: $A$66 | B65: 66
A66: $A$67 | B66: 67
A67: $A$68 | B67: 68
A68: $A$69 | B68: 69
A69: $A$70 | B69: 70
A70: $A$71 | B70: 71
A71: $A$72 | B71: 72
A72: $A$73 | B72: 73
A73: $A$74 | B73: 74
A74: $A$75 | B74: 75
A75: $A$76 | B75: 76
A76: $A$77 | B76: 77
A77: $A$78 | B77: 78
A78: $A$79 | B78: 79
A79: $A$80 | B79: 80
A80: $A$81 | B80: 81
A81: $A$82 | B81: 82
A82: $A$83 | B82: 83
A83: $A$84 | B83: 84
A84: $A$85 | B84: 85
A85: $A$86 | B85: 86
A86: $A$87 | B86: 87
A87: $A$88 | B87: 88
A88: $A$89 | B88: 89
A89: $A$90 | B89: 90
A90: $A$91 | B90: 91
A91: $A$92 | B91: 92
A92: $A$93 | B92: 93
A93: $A$94 | B93: 94
A94: $A$95 | B94: 95
A95: $A$96 | B95: 96
A96: $A$97 | B96: 97
A97: $A$98 | B97: 98
A98: $A$99 | B98: 99
A99: $A$100 | B99: 100
A100: $A$101 | B100: 101
A101: $A$102 | B101: 102
A102: $A$103 | B102: 103
A103: $A$104 | B103: 104
A104: $A$105 | B104: 105
A105: $A$106 | B105: 106
A106: $A$107 | B106: 107
A107: $A$108 | B107: 108
A108: $A$109 | B108: 109
A109: $A$110 | B109: 110
A110: $A$111 | B110: 111
A111: $A$112 | B111: 112
A112: $A$113 | B112: 113
A113: $A$114 | B113: 114
A114: $A$115 | B114: 115
A115: $A$116 | B115: 116
A116: $A$117 | B116: 117
A117: $A$118 | B117: 118
A118: $A$119 | B118: 119
A119: $A$120 | B119: 120
A120: $A$121 | B120: 121
A121: $A$122 | B121: 122
A122: $A$123 | B122: 123
A123: $A$124 | B123: 124
A124: $A$125 | B124: 125
A125: $A$126 | B125: 126
A126: $A$127 | B126: 127
A127: $A$128 | B127: 128
A128: $A$129 | B128: 129
A129: $A$130 | B129: 130
A130: $A$131 | B130: 131
A131: $A$132 | B131: 132
A132: $A$133 | B132: 133
A133: $A$134 | B133: 134
A134: $A$135 | B134: 135
A135: $A$136 | B135: 136
A136: $A$137 | B136: 137
A137: $A$138 | B137: 138
A138: $A$139 | B138: 139
A139: $A$140 | B139: 140
A140: $A$141 | B140: 141
A141: $A$142 | B141: 142
A142: $A$143 | B142: 143
A143: $A$144 | B143: 144
A144: $A$145 | B144: 145
A145: $A$146 | B145: 146
A146: $A$147 | B146: 147
A147: $A$148 | B147: 148
A148: $A$149 | B148: 149
A149: $A$150 | B149: 150
A150: $A$151 | B150: 151
A151: $A$152 | B151: 152
A152: $A$153 | B152: 153
A153: $A$154 | B153: 154
A154: $A$155 | B154: 155
A155: $A$156 | B155: 156
A156: $A$157 | B156: 157
A157: $A$158 | B157: 158
A158: $A$159 | B158: 159
A159: $A$160 | B159: 160
A160: $A$161 | B160: 161
A161: $A$162 | B161: 162
A162: $A$163 | B162: 163
A163: $A$164 | B163: 164
A164: $A$165 | B164: 165
A165: $A$166 | B165: 166
A166: $A$167 | B166: 167
A167: $A$168 | B167: 168
A168: $A$169 | B168: 169
A169: $A$170 | B169: 170
A170: $A$171 | B170: 171
A171: $A$172 | B171: 172
A172: $A$173 | B172: 173
A173: $A$174 | B173: 174
A174: $A$175 | B174: 175
A175: $A$176 | B175: 176
A176: $A$177 | B176: 177
A177: $A$178 | B177: 178
A178: $A$179 | B178: 179
A179: $A$180 | B179: 180
A180: $A$181 | B180: 181
A181: $A$182 | B181: 182
A182: $A$183 | B182: 183
A183: $A$184 | B183: 184
A184: $A$185 | B184: 185
A185: $A$186 | B185: 186
A186: $A$187 | B186: 187
A187: $A$188 | B187: 188
A188: $A$189 | B188: 189
A189: $A$190 | B189: 190
A190: $A$191 | B190: 191
A191: $A$192 | B191: 192
A192: $A$193 | B192: 193
A193: $A$194 | B193: 194
A194: $A$195 | B194: 195
A195: $A$196 | B195: 196
A196: $A$197 | B196: 197
A197: $A$198 | B197: 198
A198: $A$199 | B198: 199
A199: $A$200 | B199: 200
A200: $A$201 | B200: 201

Sheet Ticket
A2: Christian Roux - Ecole 1 - 1753 Matran (Suisse) Tél. 026 / 401 05 08 - excelgestion@bluewin.ch
A3: =LEFT(Factures1!A11,7)&" N° "&Factures1!B14&" Édité le" -> Facture N° 1011 / cr Édité le | B3: =NOW() -> 2025-11-26T22:40:30.460 | E3: ="Cl. " &Factures1!B15 -> Cl. 3338
A16: Réf. • Désignation | B16: =Factures1!C16 -> Qté | C16: P.U. | D16: =Factures1!F16 -> % | E16: =Factures1!G16 -> Total net
A17: =IF(Factures1!A17=0,"",Factures1!A17 & " • "&Factures1!B17) -> 1019 • Tintin et les Picaros | B17: =Factures1!C17 -> 1 | C17: =Factures1!E17 -> 17.8 | D17: =Factures1!F17 -> 0 | E17: =Factures1!G17 -> 17.8
A18: =IF(Factures1!A18=0,"",Factures1!A18 & " • "&Factures1!B18) -> 7613312141120 • Micro voix avec interrupteur Shure SM58 | B18: =Factures1!C18 -> 1 | C18: =Factures1!E18 -> 340 | D18: =Factures1!F18 -> 0 | E18: =Factures1!G18 -> 340
A19: =IF(Factures1!A19=0,"",Factures1!A19 & " • "&Factures1!B19) -> 9999 • Frais d'envoi | B19: =Factures1!C19 -> 1 | C19: =Factures1!E19 -> 34 | D19: =Factures1!F19 -> 0 | E19: =Factures1!G19 -> 34
A20: =IF(Factures1!A20=0,"",Factures1!A20 & " • "&Factures1!B20) ->  | B20: =Factures1!C20 -> 0 | C20: =Factures1!E20 ->  | D20: =Factures1!F20 -> 0 | E20: =Factures1!G20 -> 0
A21: =IF(Factures1!A21=0,"",Factures1!A21 & " • "&Factures1!B21) ->  | B21: =Factures1!C21 -> 0 | C21: =Factures1!E21 ->  | D21: =Factures1!F21 -> 0 | E21: =Factures1!G21 -> 0
A22: =IF(Factures1!A22=0,"",Factures1!A22 & " • "&Factures1!B22) ->  | B22: =Factures1!C22 -> 0 | C22: =Factures1!E22 ->  | D22: =Factures1!F22 -> 0 | E22: =Factures1!G22 -> 0
A23: =IF(Factures1!A23=0,"",Factures1!A23 & " • "&Factures1!B23) ->  | B23: =Factures1!C23 -> 0 | C23: =Factures1!E23 ->  | D23: =Factures1!F23 -> 0 | E23: =Factures1!G23 -> 0
A24: =IF(Factures1!A24=0,"",Factures1!A24 & " • "&Factures1!B24) ->  | B24: =Factures1!C24 -> 0 | C24: =Factures1!E24 ->  | D24: =Factures1!F24 -> 0 | E24: =Factures1!G24 -> 0
A25: =IF(Factures1!A25=0,"",Factures1!A25 & " • "&Factures1!B25) ->  | B25: =Factures1!C25 -> 0 | C25: =Factures1!E25 ->  | D25: =Factures1!F25 -> 0 | E25: =Factures1!G25 -> 0
A26: =IF(Factures1!A26=0,"",Factures1!A26 & " • "&Factures1!B26) ->  | B26: =Factures1!C26 -> 0 | C26: =Factures1!E26 ->  | D26: =Factures1!F26 -> 0 | E26: =Factures1!G26 -> 0
A27: =IF(Factures1!A27=0,"",Factures1!A27 & " • "&Factures1!B27) ->  | B27: =Factures1!C27 -> 0 | C27: =Factures1!E27 ->  | D27: =Factures1!F27 -> 0 | E27: =Factures1!G27 -> 0
A28: =IF(Factures1!A28=0,"",Factures1!A28 & " • "&Factures1!B28) ->  | B28: =Factures1!C28 -> 0 | C28: =Factures1!E28 ->  | D28: =Factures1!F28 -> 0 | E28: =Factures1!G28 -> 0
A29: =IF(Factures1!A29=0,"",Factures1!A29 & " • "&Factures1!B29) ->  | B29: =Factures1!C29 -> 0 | C29: =Factures1!E29 ->  | D29: =Factures1!F29 -> 0 | E29: =Factures1!G29 -> 0
A30: =IF(Factures1!A30=0,"",Factures1!A30 & " • "&Factures1!B30) ->  | B30: =Factures1!C30 -> 0 | C30: =Factures1!E30 ->  | D30: =Factures1!F30 -> 0 | E30: =Factures1!G30 -> 0
A31: =IF(Factures1!A31=0,"",Factures1!A31 & " • "&Factures1!B31) ->  | B31: =Factures1!C31 -> 0 | C31: =Factures1!E31 ->  | D31: =Factures1!F31 -> 0 | E31: =Factures1!G31 -> 0
A32: =IF(Factures1!A32=0,"",Factures1!A32 & " • "&Factures1!B32) ->  | B32: =Factures1!C32 -> 0 | C32: =Factures1!E32 ->  | D32: =Factures1!F32 -> 0 | E32: =Factures1!G32 -> 0
A33: =IF(Factures1!A33=0,"",Factures1!A33 & " • "&Factures1!B33) ->  | B33: =Factures1!C33 -> 0 | C33: =Factures1!E33 ->  | D33: =Factures1!F33 -> 0 | E33: =Factures1!G33 -> 0
A34: =IF(Factures1!A34=0,"",Factures1!A34 & " • "&Factures1!B34) ->  | B34: =Factures1!C34 -> 0 | C34: =Factures1!E34 ->  | D34: =Factures1!F34 -> 0 | E34: =Factures1!G34 -> 0
A35: =IF(Factures1!A35=0,"",Factures1!A35 & " • "&Factures1!B35) ->  | B35: =Factures1!C35 -> 0 | C35: =Factures1!E35 ->  | D35: =Factures1!F35 -> 0 | E35: =Factures1!G35 -> 0
A36: =IF(Factures1!A36=0,"",Factures1!A36 & " • "&Factures1!B36) ->  | B36: =Factures1!C36 -> 0 | C36: =Factures1!E36 ->  | D36: =Factures1!F36 -> 0 | E36: =Factures1!G36 -> 0
A37: =IF(Factures1!A37=0,"",Factures1!A37 & " • "&Factures1!B37) ->  | B37: =Factures1!C37 -> 0 | C37: =Factures1!E37 ->  | D37: =Factures1!F37 -> 0 | E37: =Factures1!G37 -> 0
A38: =IF(Factures1!A38=0,"",Factures1!A38 & " • "&Factures1!B38) ->  | B38: =Factures1!C38 -> 0 | C38: =Factures1!E38 ->  | D38: =Factures1!F38 -> 0 | E38: =Factures1!G38 -> 0
A39: =IF(Factures1!A39=0,"",Factures1!A39 & " • "&Factures1!B39) ->  | B39: =Factures1!C39 -> 0 | C39: =Factures1!E39 ->  | D39: =Factures1!F39 -> 0 | E39: =Factures1!G39 -> 0
A40: =IF(Factures1!A40=0,"",Factures1!A40 & " • "&Factures1!B40) ->  | B40: =Factures1!C40 -> 0 | C40: =Factures1!E40 ->  | D40: =Factures1!F40 -> 0 | E40: =Factures1!G40 -> 0
A41: =IF(Factures1!A41=0,"",Factures1!A41 & " • "&Factures1!B41) ->  | B41: =Factures1!C41 -> 0 | C41: =Factures1!E41 ->  | D41: =Factures1!F41 -> 0 | E41: =Factures1!G41 -> 0
A42: =IF(Factures1!A42=0,"",Factures1!A42 & " • "&Factures1!B42) ->  | B42: =Factures1!C42 -> 0 | C42: =Factures1!E42 ->  | D42: =Factures1!F42 -> 0 | E42: =Factures1!G42 -> 0
A43: =IF(Factures1!A43=0,"",Factures1!A43 & " • "&Factures1!B43) ->  | B43: =Factures1!C43 -> 0 | C43: =Factures1!E43 ->  | D43: =Factures1!F43 -> 0 | E43: =Factures1!G43 -> 0
A44: =IF(Factures1!A44=0,"",Factures1!A44 & " • "&Factures1!B44) ->  | B44: =Factures1!C44 -> 0 | C44: =Factures1!E44 ->  | D44: =Factures1!F44 -> 0 | E44: =Factures1!G44 -> 0
A45: =IF(Factures1!A45=0,"",Factures1!A45 & " • "&Factures1!B45) ->  | B45: =Factures1!C45 -> 0 | C45: =Factures1!E45 ->  | D45: =Factures1!F45 -> 0 | E45: =Factures1!G45 -> 0
A46: =IF(Factures1!A46=0,"",Factures1!A46 & " • "&Factures1!B46) ->  | B46: =Factures1!C46 -> 0 | C46: =Factures1!E46 ->  | D46: =Factures1!F46 -> 0 | E46: =Factures1!G46 -> 0
A47: =IF(Factures1!A47=0,"",Factures1!A47 & " • "&Factures1!B47) ->  | B47: =Factures1!C47 -> 0 | C47: =Factures1!E47 ->  | D47: =Factures1!F47 -> 0 | E47: =Factures1!G47 -> 0
A48: =IF(Factures1!A48=0,"",Factures1!A48 & " • "&Factures1!B48) ->  | B48: =Factures1!C48 -> 0 | C48: =Factures1!E48 ->  | D48: =Factures1!F48 -> 0 | E48: =Factures1!G48 -> 0
A49: =IF(Factures1!A49=0,"",Factures1!A49 & " • "&Factures1!B49) ->  | B49: =Factures1!C49 -> 0 | C49: =Factures1!E49 ->  | D49: =Factures1!F49 -> 0 | E49: =Factures1!G49 -> 0
A50: =IF(Factures1!A50=0,"",Factures1!A50 & " • "&Factures1!B50) ->  | B50: =Factures1!C50 -> 0 | C50: =Factures1!E50 ->  | D50: =Factures1!F50 -> 0 | E50: =Factures1!G50 -> 0
A51: =IF(Factures1!A51=0,"",Factures1!A51 & " • "&Factures1!B51) ->  | B51: =Factures1!C51 -> 0 | C51: =Factures1!E51 ->  | D51: =Factures1!F51 -> 0 | E51: =Factures1!G51 -> 0
A52: =IF(Factures1!A52=0,"",Factures1!A52 & " • "&Factures1!B52) ->  | B52: =Factures1!C52 -> 0 | C52: =Factures1!E52 ->  | D52: =Factures1!F52 -> 0 | E52: =Factures1!G52 -> 0
A53: =IF(Factures1!A53=0,"",Factures1!A53 & " • "&Factures1!B53) ->  | B53: =Factures1!C53 -> 0 | C53: =Factures1!E53 ->  | D53: =Factures1!F53 -> 0 | E53: =Factures1!G53 -> 0
A54: =IF(Factures1!A54=0,"",Factures1!A54 & " • "&Factures1!B54) ->  | B54: =Factures1!C54 -> 0 | C54: =Factures1!E54 ->  | D54: =Factures1!F54 -> 0 | E54: =Factures1!G54 -> 0
A55: =IF(Factures1!A55=0,"",Factures1!A55 & " • "&Factures1!B55) ->  | B55: =Factures1!C55 -> 0 | C55: =Factures1!E55 ->  | D55: =Factures1!F55 -> 0 | E55: =Factures1!G55 -> 0
A56: =IF(Factures1!A56=0,"",Factures1!A56 & " • "&Factures1!B56) ->  | B56: =Factures1!C56 -> 0 | C56: =Factures1!E56 ->  | D56: =Factures1!F56 -> 0 | E56: =Factures1!G56 -> 0
A57: =IF(Factures1!A57=0,"",Factures1!A57 & " • "&Factures1!B57) ->  | B57: =Factures1!C57 -> 0 | C57: =Factures1!E57 ->  | D57: =Factures1!F57 -> 0 | E57: =Factures1!G57 -> 0
A58: =IF(Factures1!A58=0,"",Factures1!A58 & " • "&Factures1!B58) ->  | B58: =Factures1!C58 -> 0 | C58: =Factures1!E58 ->  | D58: =Factures1!F58 -> 0 | E58: =Factures1!G58 -> 0
A59: =IF(Factures1!A59=0,"",Factures1!A59 & " • "&Factures1!B59) ->  | B59: =Factures1!C59 -> 0 | C59: =Factures1!E59 ->  | D59: =Factures1!F59 -> 0 | E59: =Factures1!G59 -> 0
A60: =IF(Factures1!A60=0,"",Factures1!A60 & " • "&Factures1!B60) ->  | B60: =Factures1!C60 -> 0 | C60: =Factures1!E60 ->  | D60: =Factures1!F60 -> 0 | E60: =Factures1!G60 -> 0
A61: =IF(Factures1!A61=0,"",Factures1!A61 & " • "&Factures1!B61) ->  | B61: =Factures1!C61 -> 0 | C61: =Factures1!E61 ->  | D61: =Factures1!F61 -> 0 | E61: =Factures1!G61 -> 0
A62: =IF(Factures1!A62=0,"",Factures1!A62 & " • "&Factures1!B62) ->  | B62: =Factures1!C62 -> 0 | C62: =Factures1!E62 ->  | D62: =Factures1!F62 -> 0 | E62: =Factures1!G62 -> 0
A63: =IF(Factures1!A63=0,"",Factures1!A63 & " • "&Factures1!B63) ->  | B63: =Factures1!C63 -> 0 | C63: =Factures1!E63 ->  | D63: =Factures1!F63 -> 0 | E63: =Factures1!G63 -> 0
A64: =IF(Factures1!A64=0,"",Factures1!A64 & " • "&Factures1!B64) ->  | B64: =Factures1!C64 -> 0 | C64: =Factures1!E64 ->  | D64: =Factures1!F64 -> 0 | E64: =Factures1!G64 -> 0
A65: =IF(Factures1!A65=0,"",Factures1!A65 & " • "&Factures1!B65) ->  | B65: =Factures1!C65 -> 0 | C65: =Factures1!E65 ->  | D65: =Factures1!F65 -> 0 | E65: =Factures1!G65 -> 0
A66: =IF(Factures1!A66=0,"",Factures1!A66 & " • "&Factures1!B66) ->  | B66: =Factures1!C66 -> 0 | C66: =Factures1!E66 ->  | D66: =Factures1!F66 -> 0 | E66: =Factures1!G66 -> 0
A67: =IF(Factures1!A67=0,"",Factures1!A67 & " • "&Factures1!B67) ->  | B67: =Factures1!C67 -> 0 | C67: =Factures1!E67 ->  | D67: =Factures1!F67 -> 0 | E67: =Factures1!G67 -> 0
A68: =IF(Factures1!A68=0,"",Factures1!A68 & " • "&Factures1!B68) ->  | B68: =Factures1!C68 -> 0 | C68: =Factures1!E68 ->  | D68: =Factures1!F68 -> 0 | E68: =Factures1!G68 -> 0
A69: =IF(Factures1!A69=0,"",Factures1!A69 & " • "&Factures1!B69) ->  | B69: =Factures1!C69 -> 0 | C69: =Factures1!E69 ->  | D69: =Factures1!F69 -> 0 | E69: =Factures1!G69 -> 0
A70: =IF(Factures1!A70=0,"",Factures1!A70 & " • "&Factures1!B70) ->  | B70: =Factures1!C70 -> 0 | C70: =Factures1!E70 ->  | D70: =Factures1!F70 -> 0 | E70: =Factures1!G70 -> 0
A71: =IF(Factures1!A71=0,"",Factures1!A71 & " • "&Factures1!B71) ->  | B71: =Factures1!C71 -> 0 | C71: =Factures1!E71 ->  | D71: =Factures1!F71 -> 0 | E71: =Factures1!G71 -> 0
A72: =IF(Factures1!A72=0,"",Factures1!A72 & " • "&Factures1!B72) ->  | B72: =Factures1!C72 -> 0 | C72: =Factures1!E72 ->  | D72: =Factures1!F72 -> 0 | E72: =Factures1!G72 -> 0
A73: =IF(Factures1!A73=0,"",Factures1!A73 & " • "&Factures1!B73) ->  | B73: =Factures1!C73 -> 0 | C73: =Factures1!E73 ->  | D73: =Factures1!F73 -> 0 | E73: =Factures1!G73 -> 0
A74: =IF(Factures1!A74=0,"",Factures1!A74 & " • "&Factures1!B74) ->  | B74: =Factures1!C74 -> 0 | C74: =Factures1!E74 ->  | D74: =Factures1!F74 -> 0 | E74: =Factures1!G74 -> 0
A75: =IF(Factures1!A75=0,"",Factures1!A75 & " • "&Factures1!B75) ->  | B75: =Factures1!C75 -> 0 | C75: =Factures1!E75 ->  | D75: =Factures1!F75 -> 0 | E75: =Factures1!G75 -> 0
A76: =IF(Factures1!A76=0,"",Factures1!A76 & " • "&Factures1!B76) ->  | B76: =Factures1!C76 -> 0 | C76: =Factures1!E76 ->  | D76: =Factures1!F76 -> 0 | E76: =Factures1!G76 -> 0
A77: =IF(Factures1!A77=0,"",Factures1!A77 & " • "&Factures1!B77) ->  | B77: =Factures1!C77 -> 0 | C77: =Factures1!E77 ->  | D77: =Factures1!F77 -> 0 | E77: =Factures1!G77 -> 0
A78: =IF(Factures1!A78=0,"",Factures1!A78 & " • "&Factures1!B78) ->  | B78: =Factures1!C78 -> 0 | C78: =Factures1!E78 ->  | D78: =Factures1!F78 -> 0 | E78: =Factures1!G78 -> 0
A79: =IF(Factures1!A79=0,"",Factures1!A79 & " • "&Factures1!B79) ->  | B79: =Factures1!C79 -> 0 | C79: =Factures1!E79 ->  | D79: =Factures1!F79 -> 0 | E79: =Factures1!G79 -> 0
A80: =IF(Factures1!A80=0,"",Factures1!A80 & " • "&Factures1!B80) ->  | B80: =Factures1!C80 -> 0 | C80: =Factures1!E80 ->  | D80: =Factures1!F80 -> 0 | E80: =Factures1!G80 -> 0
A81: =IF(Factures1!A81=0,"",Factures1!A81 & " • "&Factures1!B81) ->  | B81: =Factures1!C81 -> 0 | C81: =Factures1!E81 ->  | D81: =Factures1!F81 -> 0 | E81: =Factures1!G81 -> 0
A82: =IF(Factures1!A82=0,"",Factures1!A82 & " • "&Factures1!B82) ->  | B82: =Factures1!C82 -> 0 | C82: =Factures1!E82 ->  | D82: =Factures1!F82 -> 0 | E82: =Factures1!G82 -> 0
A83: =IF(Factures1!A83=0,"",Factures1!A83 & " • "&Factures1!B83) ->  | B83: =Factures1!C83 -> 0 | C83: =Factures1!E83 ->  | D83: =Factures1!F83 -> 0 | E83: =Factures1!G83 -> 0
A84: =IF(Factures1!A84=0,"",Factures1!A84 & " • "&Factures1!B84) ->  | B84: =Factures1!C84 -> 0 | C84: =Factures1!E84 ->  | D84: =Factures1!F84 -> 0 | E84: =Factures1!G84 -> 0
A85: =IF(Factures1!A85=0,"",Factures1!A85 & " • "&Factures1!B85) ->  | B85: =Factures1!C85 -> 0 | C85: =Factures1!E85 ->  | D85: =Factures1!F85 -> 0 | E85: =Factures1!G85 -> 0
A86: =IF(Factures1!A86=0,"",Factures1!A86 & " • "&Factures1!B86) ->  | B86: =Factures1!C86 -> 0 | C86: =Factures1!E86 ->  | D86: =Factures1!F86 -> 0 | E86: =Factures1!G86 -> 0
A87: =IF(Factures1!A87=0,"",Factures1!A87 & " • "&Factures1!B87) ->  | B87: =Factures1!C87 -> 0 | C87: =Factures1!E87 ->  | D87: =Factures1!F87 -> 0 | E87: =Factures1!G87 -> 0
A88: =IF(Factures1!A88=0,"",Factures1!A88 & " • "&Factures1!B88) ->  | B88: =Factures1!C88 -> 0 | C88: =Factures1!E88 ->  | D88: =Factures1!F88 -> 0 | E88: =Factures1!G88 -> 0
A89: =IF(Factures1!A89=0,"",Factures1!A89 & " • "&Factures1!B89) ->  | B89: =Factures1!C89 -> 0 | C89: =Factures1!E89 ->  | D89: =Factures1!F89 -> 0 | E89: =Factures1!G89 -> 0
A90: =IF(Factures1!A90=0,"",Factures1!A90 & " • "&Factures1!B90) ->  | B90: =Factures1!C90 -> 0 | C90: =Factures1!E90 ->  | D90: =Factures1!F90 -> 0 | E90: =Factures1!G90 -> 0
A91: =IF(Factures1!A91=0,"",Factures1!A91 & " • "&Factures1!B91) ->  | B91: =Factures1!C91 -> 0 | C91: =Factures1!E91 ->  | D91: =Factures1!F91 -> 0 | E91: =Factures1!G91 -> 0
A92: =IF(Factures1!A92=0,"",Factures1!A92 & " • "&Factures1!B92) ->  | B92: =Factures1!C92 -> 0 | C92: =Factures1!E92 ->  | D92: =Factures1!F92 -> 0 | E92: =Factures1!G92 -> 0
A93: =IF(Factures1!A93=0,"",Factures1!A93 & " • "&Factures1!B93) ->  | B93: =Factures1!C93 -> 0 | C93: =Factures1!E93 ->  | D93: =Factures1!F93 -> 0 | E93: =Factures1!G93 -> 0
A94: =IF(Factures1!A94=0,"",Factures1!A94 & " • "&Factures1!B94) ->  | B94: =Factures1!C94 -> 0 | C94: =Factures1!E94 ->  | D94: =Factures1!F94 -> 0 | E94: =Factures1!G94 -> 0
A95: =IF(Factures1!A95=0,"",Factures1!A95 & " • "&Factures1!B95) ->  | B95: =Factures1!C95 -> 0 | C95: =Factures1!E95 ->  | D95: =Factures1!F95 -> 0 | E95: =Factures1!G95 -> 0
A96: =IF(Factures1!A96=0,"",Factures1!A96 & " • "&Factures1!B96) ->  | B96: =Factures1!C96 -> 0 | C96: =Factures1!E96 ->  | D96: =Factures1!F96 -> 0 | E96: =Factures1!G96 -> 0
A97: =IF(Factures1!A97=0,"",Factures1!A97 & " • "&Factures1!B97) ->  | B97: =Factures1!C97 -> 0 | C97: =Factures1!E97 ->  | D97: =Factures1!F97 -> 0 | E97: =Factures1!G97 -> 0
A98: =IF(Factures1!A98=0,"",Factures1!A98 & " • "&Factures1!B98) ->  | B98: =Factures1!C98 -> 0 | C98: =Factures1!E98 ->  | D98: =Factures1!F98 -> 0 | E98: =Factures1!G98 -> 0
A99: =IF(Factures1!A99=0,"",Factures1!A99 & " • "&Factures1!B99) ->  | B99: =Factures1!C99 -> 0 | C99: =Factures1!E99 ->  | D99: =Factures1!F99 -> 0 | E99: =Factures1!G99 -> 0
A100: =IF(Factures1!A100=0,"",Factures1!A100 & " • "&Factures1!B100) ->  | B100: =Factures1!C100 -> 0 | C100: =Factures1!E100 ->  | D100: =Factures1!F100 -> 0 | E100: =Factures1!G100 -> 0
A101: =IF(Factures1!A101=0,"",Factures1!A101 & " • "&Factures1!B101) ->  | B101: =Factures1!C101 -> 0 | C101: =Factures1!E101 ->  | D101: =Factures1!F101 -> 0 | E101: =Factures1!G101 -> 0
A102: =IF(Factures1!A102=0,"",Factures1!A102 & " • "&Factures1!B102) ->  | B102: =Factures1!C102 -> 0 | C102: =Factures1!E102 ->  | D102: =Factures1!F102 -> 0 | E102: =Factures1!G102 -> 0
A103: =IF(Factures1!A103=0,"",Factures1!A103 & " • "&Factures1!B103) ->  | B103: =Factures1!C103 -> 0 | C103: =Factures1!E103 ->  | D103: =Factures1!F103 -> 0 | E103: =Factures1!G103 -> 0
A104: =IF(Factures1!A104=0,"",Factures1!A104 & " • "&Factures1!B104) ->  | B104: =Factures1!C104 -> 0 | C104: =Factures1!E104 ->  | D104: =Factures1!F104 -> 0 | E104: =Factures1!G104 -> 0
A105: =IF(Factures1!A105=0,"",Factures1!A105 & " • "&Factures1!B105) ->  | B105: =Factures1!C105 -> 0 | C105: =Factures1!E105 ->  | D105: =Factures1!F105 -> 0 | E105: =Factures1!G105 -> 0
A106: =IF(Factures1!A106=0,"",Factures1!A106 & " • "&Factures1!B106) ->  | B106: =Factures1!C106 -> 0 | C106: =Factures1!E106 ->  | D106: =Factures1!F106 -> 0 | E106: =Factures1!G106 -> 0
A107: =IF(Factures1!A107=0,"",Factures1!A107 & " • "&Factures1!B107) ->  | B107: =Factures1!C107 -> 0 | C107: =Factures1!E107 ->  | D107: =Factures1!F107 -> 0 | E107: =Factures1!G107 -> 0
A108: =IF(Factures1!A108=0,"",Factures1!A108 & " • "&Factures1!B108) ->  | B108: =Factures1!C108 -> 0 | C108: =Factures1!E108 ->  | D108: =Factures1!F108 -> 0 | E108: =Factures1!G108 -> 0
A109: =IF(Factures1!A109=0,"",Factures1!A109 & " • "&Factures1!B109) ->  | B109: =Factures1!C109 -> 0 | C109: =Factures1!E109 ->  | D109: =Factures1!F109 -> 0 | E109: =Factures1!G109 -> 0
A110: =IF(Factures1!A110=0,"",Factures1!A110 & " • "&Factures1!B110) ->  | B110: =Factures1!C110 -> 0 | C110: =Factures1!E110 ->  | D110: =Factures1!F110 -> 0 | E110: =Factures1!G110 -> 0
A111: =IF(Factures1!A111=0,"",Factures1!A111 & " • "&Factures1!B111) ->  | B111: =Factures1!C111 -> 0 | C111: =Factures1!E111 ->  | D111: =Factures1!F111 -> 0 | E111: =Factures1!G111 -> 0
A112: =IF(Factures1!A112=0,"",Factures1!A112 & " • "&Factures1!B112) ->  | B112: =Factures1!C112 -> 0 | C112: =Factures1!E112 ->  | D112: =Factures1!F112 -> 0 | E112: =Factures1!G112 -> 0
A113: =IF(Factures1!A113=0,"",Factures1!A113 & " • "&Factures1!B113) ->  | B113: =Factures1!C113 -> 0 | C113: =Factures1!E113 ->  | D113: =Factures1!F113 -> 0 | E113: =Factures1!G113 -> 0
A114: =IF(Factures1!A114=0,"",Factures1!A114 & " • "&Factures1!B114) ->  | B114: =Factures1!C114 -> 0 | C114: =Factures1!E114 ->  | D114: =Factures1!F114 -> 0 | E114: =Factures1!G114 -> 0
A115: =IF(Factures1!A115=0,"",Factures1!A115 & " • "&Factures1!B115) ->  | B115: =Factures1!C115 -> 0 | C115: =Factures1!E115 ->  | D115: =Factures1!F115 -> 0 | E115: =Factures1!G115 -> 0
A116: =IF(Factures1!A116=0,"",Factures1!A116 & " • "&Factures1!B116) ->  | B116: =Factures1!C116 -> 0 | C116: =Factures1!E116 ->  | D116: =Factures1!F116 -> 0 | E116: =Factures1!G116 -> 0
A117: =IF(Factures1!A117=0,"",Factures1!A117 & " • "&Factures1!B117) ->  | B117: =Factures1!C117 -> 0 | C117: =Factures1!E117 ->  | D117: =Factures1!F117 -> 0 | E117: =Factures1!G117 -> 0
A118: =IF(Factures1!A118=0,"",Factures1!A118 & " • "&Factures1!B118) ->  | B118: =Factures1!C118 -> 0 | C118: =Factures1!E118 ->  | D118: =Factures1!F118 -> 0 | E118: =Factures1!G118 -> 0
A119: =IF(Factures1!A119=0,"",Factures1!A119 & " • "&Factures1!B119) ->  | B119: =Factures1!C119 -> 0 | C119: =Factures1!E119 ->  | D119: =Factures1!F119 -> 0 | E119: =Factures1!G119 -> 0
A120: =IF(Factures1!A120=0,"",Factures1!A120 & " • "&Factures1!B120) ->  | B120: =Factures1!C120 -> 0 | C120: =Factures1!E120 ->  | D120: =Factures1!F120 -> 0 | E120: =Factures1!G120 -> 0
A121: =IF(Factures1!A121=0,"",Factures1!A121 & " • "&Factures1!B121) ->  | B121: =Factures1!C121 -> 0 | C121: =Factures1!E121 ->  | D121: =Factures1!F121 -> 0 | E121: =Factures1!G121 -> 0
A122: =IF(Factures1!A122=0,"",Factures1!A122 & " • "&Factures1!B122) ->  | B122: =Factures1!C122 -> 0 | C122: =Factures1!E122 ->  | D122: =Factures1!F122 -> 0 | E122: =Factures1!G122 -> 0
A123: =IF(Factures1!A123=0,"",Factures1!A123 & " • "&Factures1!B123) ->  | B123: =Factures1!C123 -> 0 | C123: =Factures1!E123 ->  | D123: =Factures1!F123 -> 0 | E123: =Factures1!G123 -> 0
A124: =IF(Factures1!A124=0,"",Factures1!A124 & " • "&Factures1!B124) ->  | B124: =Factures1!C124 -> 0 | C124: =Factures1!E124 ->  | D124: =Factures1!F124 -> 0 | E124: =Factures1!G124 -> 0
A125: =IF(Factures1!A125=0,"",Factures1!A125 & " • "&Factures1!B125) ->  | B125: =Factures1!C125 -> 0 | C125: =Factures1!E125 ->  | D125: =Factures1!F125 -> 0 | E125: =Factures1!G125 -> 0
A126: =IF(Factures1!A126=0,"",Factures1!A126 & " • "&Factures1!B126) ->  | B126: =Factures1!C126 -> 0 | C126: =Factures1!E126 ->  | D126: =Factures1!F126 -> 0 | E126: =Factures1!G126 -> 0
A127: =IF(Factures1!A127=0,"",Factures1!A127 & " • "&Factures1!B127) ->  | B127: =Factures1!C127 -> 0 | C127: =Factures1!E127 ->  | D127: =Factures1!F127 -> 0 | E127: =Factures1!G127 -> 0
A128: =IF(Factures1!A128=0,"",Factures1!A128 & " • "&Factures1!B128) ->  | B128: =Factures1!C128 -> 0 | C128: =Factures1!E128 ->  | D128: =Factures1!F128 -> 0 | E128: =Factures1!G128 -> 0
A129: =IF(Factures1!A129=0,"",Factures1!A129 & " • "&Factures1!B129) ->  | B129: =Factures1!C129 -> 0 | C129: =Factures1!E129 ->  | D129: =Factures1!F129 -> 0 | E129: =Factures1!G129 -> 0
A130: =IF(Factures1!A130=0,"",Factures1!A130 & " • "&Factures1!B130) ->  | B130: =Factures1!C130 -> 0 | C130: =Factures1!E130 ->  | D130: =Factures1!F130 -> 0 | E130: =Factures1!G130 -> 0
A131: =IF(Factures1!A131=0,"",Factures1!A131 & " • "&Factures1!B131) ->  | B131: =Factures1!C131 -> 0 | C131: =Factures1!E131 ->  | D131: =Factures1!F131 -> 0 | E131: =Factures1!G131 -> 0
A132: =IF(Factures1!A132=0,"",Factures1!A132 & " • "&Factures1!B132) ->  | B132: =Factures1!C132 -> 0 | C132: =Factures1!E132 ->  | D132: =Factures1!F132 -> 0 | E132: =Factures1!G132 -> 0
A133: =IF(Factures1!A133=0,"",Factures1!A133 & " • "&Factures1!B133) ->  | B133: =Factures1!C133 -> 0 | C133: =Factures1!E133 ->  | D133: =Factures1!F133 -> 0 | E133: =Factures1!G133 -> 0
A134: =IF(Factures1!A134=0,"",Factures1!A134 & " • "&Factures1!B134) ->  | B134: =Factures1!C134 -> 0 | C134: =Factures1!E134 ->  | D134: =Factures1!F134 -> 0 | E134: =Factures1!G134 -> 0
A135: =IF(Factures1!A135=0,"",Factures1!A135 & " • "&Factures1!B135) ->  | B135: =Factures1!C135 -> 0 | C135: =Factures1!E135 ->  | D135: =Factures1!F135 -> 0 | E135: =Factures1!G135 -> 0
A136: =IF(Factures1!A136=0,"",Factures1!A136 & " • "&Factures1!B136) ->  | B136: =Factures1!C136 -> 0 | C136: =Factures1!E136 ->  | D136: =Factures1!F136 -> 0 | E136: =Factures1!G136 -> 0
A137: =IF(Factures1!A137=0,"",Factures1!A137 & " • "&Factures1!B137) ->  | B137: =Factures1!C137 -> 0 | C137: =Factures1!E137 ->  | D137: =Factures1!F137 -> 0 | E137: =Factures1!G137 -> 0
A138: =IF(Factures1!A138=0,"",Factures1!A138 & " • "&Factures1!B138) ->  | B138: =Factures1!C138 -> 0 | C138: =Factures1!E138 ->  | D138: =Factures1!F138 -> 0 | E138: =Factures1!G138 -> 0
A139: =IF(Factures1!A139=0,"",Factures1!A139 & " • "&Factures1!B139) ->  | B139: =Factures1!C139 -> 0 | C139: =Factures1!E139 ->  | D139: =Factures1!F139 -> 0 | E139: =Factures1!G139 -> 0
A140: =IF(Factures1!A140=0,"",Factures1!A140 & " • "&Factures1!B140) ->  | B140: =Factures1!C140 -> 0 | C140: =Factures1!E140 ->  | D140: =Factures1!F140 -> 0 | E140: =Factures1!G140 -> 0
A141: =IF(Factures1!A141=0,"",Factures1!A141 & " • "&Factures1!B141) ->  | B141: =Factures1!C141 -> 0 | C141: =Factures1!E141 ->  | D141: =Factures1!F141 -> 0 | E141: =Factures1!G141 -> 0
A142: =IF(Factures1!A142=0,"",Factures1!A142 & " • "&Factures1!B142) ->  | B142: =Factures1!C142 -> 0 | C142: =Factures1!E142 ->  | D142: =Factures1!F142 -> 0 | E142: =Factures1!G142 -> 0
A143: =IF(Factures1!A143=0,"",Factures1!A143 & " • "&Factures1!B143) ->  | B143: =Factures1!C143 -> 0 | C143: =Factures1!E143 ->  | D143: =Factures1!F143 -> 0 | E143: =Factures1!G143 -> 0
A144: =IF(Factures1!A144=0,"",Factures1!A144 & " • "&Factures1!B144) ->  | B144: =Factures1!C144 -> 0 | C144: =Factures1!E144 ->  | D144: =Factures1!F144 -> 0 | E144: =Factures1!G144 -> 0
A145: =IF(Factures1!A145=0,"",Factures1!A145 & " • "&Factures1!B145) ->  | B145: =Factures1!C145 -> 0 | C145: =Factures1!E145 ->  | D145: =Factures1!F145 -> 0 | E145: =Factures1!G145 -> 0
A146: =IF(Factures1!A146=0,"",Factures1!A146 & " • "&Factures1!B146) ->  | B146: =Factures1!C146 -> 0 | C146: =Factures1!E146 ->  | D146: =Factures1!F146 -> 0 | E146: =Factures1!G146 -> 0
A147: =IF(Factures1!A147=0,"",Factures1!A147 & " • "&Factures1!B147) ->  | B147: =Factures1!C147 -> 0 | C147: =Factures1!E147 ->  | D147: =Factures1!F147 -> 0 | E147: =Factures1!G147 -> 0
A148: =IF(Factures1!A148=0,"",Factures1!A148 & " • "&Factures1!B148) ->  | B148: =Factures1!C148 -> 0 | C148: =Factures1!E148 ->  | D148: =Factures1!F148 -> 0 | E148: =Factures1!G148 -> 0
A149: =IF(Factures1!A149=0,"",Factures1!A149 & " • "&Factures1!B149) ->  | B149: =Factures1!C149 -> 0 | C149: =Factures1!E149 ->  | D149: =Factures1!F149 -> 0 | E149: =Factures1!G149 -> 0
A150: =IF(Factures1!A150=0,"",Factures1!A150 & " • "&Factures1!B150) ->  | B150: =Factures1!C150 -> 0 | C150: =Factures1!E150 ->  | D150: =Factures1!F150 -> 0 | E150: =Factures1!G150 -> 0
A151: =IF(Factures1!A151=0,"",Factures1!A151 & " • "&Factures1!B151) ->  | B151: =Factures1!C151 -> 0 | C151: =Factures1!E151 ->  | D151: =Factures1!F151 -> 0 | E151: =Factures1!G151 -> 0
A152: =IF(Factures1!A152=0,"",Factures1!A152 & " • "&Factures1!B152) ->  | B152: =Factures1!C152 -> 0 | C152: =Factures1!E152 ->  | D152: =Factures1!F152 -> 0 | E152: =Factures1!G152 -> 0
A153: =IF(Factures1!A153=0,"",Factures1!A153 & " • "&Factures1!B153) ->  | B153: =Factures1!C153 -> 0 | C153: =Factures1!E153 ->  | D153: =Factures1!F153 -> 0 | E153: =Factures1!G153 -> 0
A154: =IF(Factures1!A154=0,"",Factures1!A154 & " • "&Factures1!B154) ->  | B154: =Factures1!C154 -> 0 | C154: =Factures1!E154 ->  | D154: =Factures1!F154 -> 0 | E154: =Factures1!G154 -> 0
A155: =IF(Factures1!A155=0,"",Factures1!A155 & " • "&Factures1!B155) ->  | B155: =Factures1!C155 -> 0 | C155: =Factures1!E155 ->  | D155: =Factures1!F155 -> 0 | E155: =Factures1!G155 -> 0
A156: =IF(Factures1!A156=0,"",Factures1!A156 & " • "&Factures1!B156) ->  | B156: =Factures1!C156 -> 0 | C156: =Factures1!E156 ->  | D156: =Factures1!F156 -> 0 | E156: =Factures1!G156 -> 0
A157: =IF(Factures1!A157=0,"",Factures1!A157 & " • "&Factures1!B157) ->  | B157: =Factures1!C157 -> 0 | C157: =Factures1!E157 ->  | D157: =Factures1!F157 -> 0 | E157: =Factures1!G157 -> 0
A158: =IF(Factures1!A158=0,"",Factures1!A158 & " • "&Factures1!B158) ->  | B158: =Factures1!C158 -> 0 | C158: =Factures1!E158 ->  | D158: =Factures1!F158 -> 0 | E158: =Factures1!G158 -> 0
A159: =IF(Factures1!A159=0,"",Factures1!A159 & " • "&Factures1!B159) ->  | B159: =Factures1!C159 -> 0 | C159: =Factures1!E159 ->  | D159: =Factures1!F159 -> 0 | E159: =Factures1!G159 -> 0
A160: =IF(Factures1!A160=0,"",Factures1!A160 & " • "&Factures1!B160) ->  | B160: =Factures1!C160 -> 0 | C160: =Factures1!E160 ->  | D160: =Factures1!F160 -> 0 | E160: =Factures1!G160 -> 0
A161: =IF(Factures1!A161=0,"",Factures1!A161 & " • "&Factures1!B161) ->  | B161: =Factures1!C161 -> 0 | C161: =Factures1!E161 ->  | D161: =Factures1!F161 -> 0 | E161: =Factures1!G161 -> 0
A162: =IF(Factures1!A162=0,"",Factures1!A162 & " • "&Factures1!B162) ->  | B162: =Factures1!C162 -> 0 | C162: =Factures1!E162 ->  | D162: =Factures1!F162 -> 0 | E162: =Factures1!G162 -> 0
A163: =IF(Factures1!A163=0,"",Factures1!A163 & " • "&Factures1!B163) ->  | B163: =Factures1!C163 -> 0 | C163: =Factures1!E163 ->  | D163: =Factures1!F163 -> 0 | E163: =Factures1!G163 -> 0
A164: =IF(Factures1!A164=0,"",Factures1!A164 & " • "&Factures1!B164) ->  | B164: =Factures1!C164 -> 0 | C164: =Factures1!E164 ->  | D164: =Factures1!F164 -> 0 | E164: =Factures1!G164 -> 0
A165: =IF(Factures1!A165=0,"",Factures1!A165 & " • "&Factures1!B165) ->  | B165: =Factures1!C165 -> 0 | C165: =Factures1!E165 ->  | D165: =Factures1!F165 -> 0 | E165: =Factures1!G165 -> 0
A166: =IF(Factures1!A166=0,"",Factures1!A166 & " • "&Factures1!B166) ->  | B166: =Factures1!C166 -> 0 | C166: =Factures1!E166 ->  | D166: =Factures1!F166 -> 0 | E166: =Factures1!G166 -> 0
A167: =IF(Factures1!A167=0,"",Factures1!A167 & " • "&Factures1!B167) ->  | B167: =Factures1!C167 -> 0 | C167: =Factures1!E167 ->  | D167: =Factures1!F167 -> 0 | E167: =Factures1!G167 -> 0
A168: =IF(Factures1!A168=0,"",Factures1!A168 & " • "&Factures1!B168) ->  | B168: =Factures1!C168 -> 0 | C168: =Factures1!E168 ->  | D168: =Factures1!F168 -> 0 | E168: =Factures1!G168 -> 0
A169: =IF(Factures1!A169=0,"",Factures1!A169 & " • "&Factures1!B169) ->  | B169: =Factures1!C169 -> 0 | C169: =Factures1!E169 ->  | D169: =Factures1!F169 -> 0 | E169: =Factures1!G169 -> 0
A170: =IF(Factures1!A170=0,"",Factures1!A170 & " • "&Factures1!B170) ->  | B170: =Factures1!C170 -> 0 | C170: =Factures1!E170 ->  | D170: =Factures1!F170 -> 0 | E170: =Factures1!G170 -> 0
A171: =IF(Factures1!A171=0,"",Factures1!A171 & " • "&Factures1!B171) ->  | B171: =Factures1!C171 -> 0 | C171: =Factures1!E171 ->  | D171: =Factures1!F171 -> 0 | E171: =Factures1!G171 -> 0
A172: =IF(Factures1!A172=0,"",Factures1!A172 & " • "&Factures1!B172) ->  | B172: =Factures1!C172 -> 0 | C172: =Factures1!E172 ->  | D172: =Factures1!F172 -> 0 | E172: =Factures1!G172 -> 0
A173: =IF(Factures1!A173=0,"",Factures1!A173 & " • "&Factures1!B173) ->  | B173: =Factures1!C173 -> 0 | C173: =Factures1!E173 ->  | D173: =Factures1!F173 -> 0 | E173: =Factures1!G173 -> 0
A174: =IF(Factures1!A174=0,"",Factures1!A174 & " • "&Factures1!B174) ->  | B174: =Factures1!C174 -> 0 | C174: =Factures1!E174 ->  | D174: =Factures1!F174 -> 0 | E174: =Factures1!G174 -> 0
A175: =IF(Factures1!A175=0,"",Factures1!A175 & " • "&Factures1!B175) ->  | B175: =Factures1!C175 -> 0 | C175: =Factures1!E175 ->  | D175: =Factures1!F175 -> 0 | E175: =Factures1!G175 -> 0
A176: =IF(Factures1!A176=0,"",Factures1!A176 & " • "&Factures1!B176) ->  | B176: =Factures1!C176 -> 0 | C176: =Factures1!E176 ->  | D176: =Factures1!F176 -> 0 | E176: =Factures1!G176 -> 0
A177: =IF(Factures1!A177=0,"",Factures1!A177 & " • "&Factures1!B177) ->  | B177: =Factures1!C177 -> 0 | C177: =Factures1!E177 ->  | D177: =Factures1!F177 -> 0 | E177: =Factures1!G177 -> 0
A178: =IF(Factures1!A178=0,"",Factures1!A178 & " • "&Factures1!B178) ->  | B178: =Factures1!C178 -> 0 | C178: =Factures1!E178 ->  | D178: =Factures1!F178 -> 0 | E178: =Factures1!G178 -> 0
A179: =IF(Factures1!A179=0,"",Factures1!A179 & " • "&Factures1!B179) ->  | B179: =Factures1!C179 -> 0 | C179: =Factures1!E179 ->  | D179: =Factures1!F179 -> 0 | E179: =Factures1!G179 -> 0
A180: =IF(Factures1!A180=0,"",Factures1!A180 & " • "&Factures1!B180) ->  | B180: =Factures1!C180 -> 0 | C180: =Factures1!E180 ->  | D180: =Factures1!F180 -> 0 | E180: =Factures1!G180 -> 0
A181: =IF(Factures1!A181=0,"",Factures1!A181 & " • "&Factures1!B181) ->  | B181: =Factures1!C181 -> 0 | C181: =Factures1!E181 ->  | D181: =Factures1!F181 -> 0 | E181: =Factures1!G181 -> 0
A182: =IF(Factures1!A182=0,"",Factures1!A182 & " • "&Factures1!B182) ->  | B182: =Factures1!C182 -> 0 | C182: =Factures1!E182 ->  | D182: =Factures1!F182 -> 0 | E182: =Factures1!G182 -> 0
A183: =IF(Factures1!A183=0,"",Factures1!A183 & " • "&Factures1!B183) ->  | B183: =Factures1!C183 -> 0 | C183: =Factures1!E183 ->  | D183: =Factures1!F183 -> 0 | E183: =Factures1!G183 -> 0
A184: =IF(Factures1!A184=0,"",Factures1!A184 & " • "&Factures1!B184) ->  | B184: =Factures1!C184 -> 0 | C184: =Factures1!E184 ->  | D184: =Factures1!F184 -> 0 | E184: =Factures1!G184 -> 0
A185: =IF(Factures1!A185=0,"",Factures1!A185 & " • "&Factures1!B185) ->  | B185: =Factures1!C185 -> 0 | C185: =Factures1!E185 ->  | D185: =Factures1!F185 -> 0 | E185: =Factures1!G185 -> 0
A186: =IF(Factures1!A186=0,"",Factures1!A186 & " • "&Factures1!B186) ->  | B186: =Factures1!C186 -> 0 | C186: =Factures1!E186 ->  | D186: =Factures1!F186 -> 0 | E186: =Factures1!G186 -> 0
A187: =IF(Factures1!A187=0,"",Factures1!A187 & " • "&Factures1!B187) ->  | B187: =Factures1!C187 -> 0 | C187: =Factures1!E187 ->  | D187: =Factures1!F187 -> 0 | E187: =Factures1!G187 -> 0
A188: =IF(Factures1!A188=0,"",Factures1!A188 & " • "&Factures1!B188) ->  | B188: =Factures1!C188 -> 0 | C188: =Factures1!E188 ->  | D188: =Factures1!F188 -> 0 | E188: =Factures1!G188 -> 0
A189: =IF(Factures1!A189=0,"",Factures1!A189 & " • "&Factures1!B189) ->  | B189: =Factures1!C189 -> 0 | C189: =Factures1!E189 ->  | D189: =Factures1!F189 -> 0 | E189: =Factures1!G189 -> 0
A190: =IF(Factures1!A190=0,"",Factures1!A190 & " • "&Factures1!B190) ->  | B190: =Factures1!C190 -> 0 | C190: =Factures1!E190 ->  | D190: =Factures1!F190 -> 0 | E190: =Factures1!G190 -> 0
A191: =IF(Factures1!A191=0,"",Factures1!A191 & " • "&Factures1!B191) ->  | B191: =Factures1!C191 -> 0 | C191: =Factures1!E191 ->  | D191: =Factures1!F191 -> 0 | E191: =Factures1!G191 -> 0
A192: =IF(Factures1!A192=0,"",Factures1!A192 & " • "&Factures1!B192) ->  | B192: =Factures1!C192 -> 0 | C192: =Factures1!E192 ->  | D192: =Factures1!F192 -> 0 | E192: =Factures1!G192 -> 0
A193: =IF(Factures1!A193=0,"",Factures1!A193 & " • "&Factures1!B193) ->  | B193: =Factures1!C193 -> 0 | C193: =Factures1!E193 ->  | D193: =Factures1!F193 -> 0 | E193: =Factures1!G193 -> 0
A194: =IF(Factures1!A194=0,"",Factures1!A194 & " • "&Factures1!B194) ->  | B194: =Factures1!C194 -> 0 | C194: =Factures1!E194 ->  | D194: =Factures1!F194 -> 0 | E194: =Factures1!G194 -> 0
A195: =IF(Factures1!A195=0,"",Factures1!A195 & " • "&Factures1!B195) ->  | B195: =Factures1!C195 -> 0 | C195: =Factures1!E195 ->  | D195: =Factures1!F195 -> 0 | E195: =Factures1!G195 -> 0
A196: =IF(Factures1!A196=0,"",Factures1!A196 & " • "&Factures1!B196) ->  | B196: =Factures1!C196 -> 0 | C196: =Factures1!E196 ->  | D196: =Factures1!F196 -> 0 | E196: =Factures1!G196 -> 0
A197: =IF(Factures1!A197=0,"",Factures1!A197 & " • "&Factures1!B197) ->  | B197: =Factures1!C197 -> 0 | C197: =Factures1!E197 ->  | D197: =Factures1!F197 -> 0 | E197: =Factures1!G197 -> 0
A198: =IF(Factures1!A198=0,"",Factures1!A198 & " • "&Factures1!B198) ->  | B198: =Factures1!C198 -> 0 | C198: =Factures1!E198 ->  | D198: =Factures1!F198 -> 0 | E198: =Factures1!G198 -> 0
A199: =IF(Factures1!A199=0,"",Factures1!A199 & " • "&Factures1!B199) ->  | B199: =Factures1!C199 -> 0 | C199: =Factures1!E199 ->  | D199: =Factures1!F199 -> 0 | E199: =Factures1!G199 -> 0
A200: =IF(Factures1!A200=0,"",Factures1!A200 & " • "&Factures1!B200) ->  | B200: =Factures1!C200 -> 0 | C200: =Factures1!E200 ->  | D200: =Factures1!F200 -> 0 | E200: =Factures1!G200 -> 0
A201: =IF(Factures1!A201=0,"",Factures1!A201 & " • "&Factures1!B201) ->  | B201: =Factures1!C201 -> 0 | C201: =Factures1!E201 ->  | D201: =Factures1!F201 -> 0 | E201: =Factures1!G201 -> 0
A202: =IF(Factures1!A202=0,"",Factures1!A202 & " • "&Factures1!B202) ->  | B202: =Factures1!C202 -> 0 | C202: =Factures1!E202 ->  | D202: =Factures1!F202 -> 0 | E202: =Factures1!G202 -> 0
A203: =IF(Factures1!A203=0,"",Factures1!A203 & " • "&Factures1!B203) ->  | B203: =Factures1!C203 -> 0 | C203: =Factures1!E203 ->  | D203: =Factures1!F203 -> 0 | E203: =Factures1!G203 -> 0
A204: =IF(Factures1!A204=0,"",Factures1!A204 & " • "&Factures1!B204) ->  | B204: =Factures1!C204 -> 0 | C204: =Factures1!E204 ->  | D204: =Factures1!F204 -> 0 | E204: =Factures1!G204 -> 0
A205: =IF(Factures1!A205=0,"",Factures1!A205 & " • "&Factures1!B205) ->  | B205: =Factures1!C205 -> 0 | C205: =Factures1!E205 ->  | D205: =Factures1!F205 -> 0 | E205: =Factures1!G205 -> 0
A206: =IF(Factures1!A206=0,"",Factures1!A206 & " • "&Factures1!B206) ->  | B206: =Factures1!C206 -> 0 | C206: =Factures1!E206 ->  | D206: =Factures1!F206 -> 0 | E206: =Factures1!G206 -> 0
A207: =IF(Factures1!A207=0,"",Factures1!A207 & " • "&Factures1!B207) ->  | B207: =Factures1!C207 -> 0 | C207: =Factures1!E207 ->  | D207: =Factures1!F207 -> 0 | E207: =Factures1!G207 -> 0
A208: =IF(Factures1!A208=0,"",Factures1!A208 & " • "&Factures1!B208) ->  | B208: =Factures1!C208 -> 0 | C208: =Factures1!E208 ->  | D208: =Factures1!F208 -> 0 | E208: =Factures1!G208 -> 0
A209: =IF(Factures1!A209=0,"",Factures1!A209 & " • "&Factures1!B209) ->  | B209: =Factures1!C209 -> 0 | C209: =Factures1!E209 ->  | D209: =Factures1!F209 -> 0 | E209: =Factures1!G209 -> 0
A210: =IF(Factures1!A210=0,"",Factures1!A210 & " • "&Factures1!B210) ->  | B210: =Factures1!C210 -> 0 | C210: =Factures1!E210 ->  | D210: =Factures1!F210 -> 0 | E210: =Factures1!G210 -> 0
A211: =IF(Factures1!A211=0,"",Factures1!A211 & " • "&Factures1!B211) ->  | B211: =Factures1!C211 -> 0 | C211: =Factures1!E211 ->  | D211: =Factures1!F211 -> 0 | E211: =Factures1!G211 -> 0
A212: =IF(Factures1!A212=0,"",Factures1!A212 & " • "&Factures1!B212) ->  | B212: =Factures1!C212 -> 0 | C212: =Factures1!E212 ->  | D212: =Factures1!F212 -> 0 | E212: =Factures1!G212 -> 0
A213: =IF(Factures1!A213=0,"",Factures1!A213 & " • "&Factures1!B213) ->  | B213: =Factures1!C213 -> 0 | C213: =Factures1!E213 ->  | D213: =Factures1!F213 -> 0 | E213: =Factures1!G213 -> 0
... 11 more rows

Sheet Factures1
A1: Christian Roux Rte de l'Ecole 1
A2: 1753 Matran (Switzerland)
A3: Tél. +41 (0)26 401 05 08
A4: excelgestion@bluewin.ch
A5: www.excelgestion.com
D7: =IF(ISBLANK(VLOOKUP($B$15,Partners!$A$2:$R$3000,2)),"",VLOOKUP($B$15,Partners!$A$2:$R$3000,2)) -> Entreprise Mon Client
D8: =IF(ISBLANK(VLOOKUP($B$15,Partners!$A$2:$R$3000,3)),"",VLOOKUP($B$15,Partners!$A$2:$R$3000,3)) & IF(VLOOKUP($B$15,Partners!$A$2:$R$3000,3)="",""," ")&IF(ISBLANK(VLOOKUP($B$15,Partners!$A$2:$R$3000,4)),"",VLOOKUP($B$15,Partners!$A$2:$R$3000,4)) -> Mme Pascale Dufour
D9: =IF(ISBLANK(VLOOKUP($B$15,Partners!$A$2:$R$3000,5)),"",VLOOKUP($B$15,Partners!$A$2:$R$3000,5)) -> Avenue du Succès 1
D10: =IF(ISBLANK(VLOOKUP($B$15,Partners!$A$2:$R$3000,6)),VLOOKUP($B$15,Partners!$A$2:$R$3000,7),VLOOKUP($B$15,Partners!$A$2:$R$3000,6)&" "&VLOOKUP($B$15,Partners!$A$2:$R$3000,7)) -> 1000 Lausanne
A11: Facture | D11: =IF(ISBLANK(VLOOKUP($B$15,Partners!$A$2:$R$3000,8)),"",VLOOKUP($B$15,Partners!$A$2:$R$3000,8)) -> 
A13: =Variables!E2 -> Date | B13: =TODAY() -> 2025-11-26
A14: =Variables!E3 -> Doc. n°/réf. | B14: 1011 / cr | F14: Kg | G14: =IF(F14="","",SUM(K17:K216)) -> 0.219
A15: =Variables!E4 -> V/n° client | B15: 3338 | C15: 1 | E15: =IF(G15<>"",Variables!L19,"") -> Échéance | G15: =B13+Variables!A17 -> 2026-01-25 | H15: =Variables!A17 -> 60
A16: =Variables!E5 -> Référence | B16: =Variables!E6 -> Désignation | C16: =Variables!E7 -> Qté | D16: =Variables!E8 -> Unité | E16: =Variables!E9 -> Prix unitaire | F16: =Variables!E10 -> % | G16: =Variables!E11 -> Total net | H16: =Variables!E12 -> T | I16: =Variables!E13 -> TVA | J16: =Variables!E20 -> Stock | K16: KgTot
A17: 1019 | B17: =IF(ISBLANK(A17),"",VLOOKUP(A17,Articles!$A$6:$AF$3002,2)) -> Tintin et les Picaros | C17: 1 | D17: =IF(ISBLANK(A17),"",VLOOKUP(A17,Articles!$A$6:$AF$3002,6)) -> BD | E17: =IF(ISBLANK(A17),"",IF($C$15=1,VLOOKUP(A17,Articles!$A$6:$AF$3038,3),IF($C$15=2,VLOOKUP(A17,Articles!$A$6:$AF$3038,20),IF($C$15=3,VLOOKUP(A17,Articles!$A$6:$AF$3038,21),IF($C$15=4,VLOOKUP(A17,Articles!$A$6:$AF$3038,22),"Erreur"))))) -> 17.8 | G17: =IF(ISBLANK(A17),0,SUM(C17*E17)*(100-F17)/100) -> 17.8 | H17: =IF(ISBLANK(A17),0,VLOOKUP(A17,Articles!$A$6:$Q$3002,8)) -> 2 | I17: =IF(ISBLANK(A17),0,IF(Variables!$A$13="TTC",IF(H17=1,G17-(G17*100)/(100+Variables!$A$2),(IF(H17=2,G17-(G17*100)/(100+Variables!$A$3),0))),IF(H17=1,G17*Variables!$A$2/(100),(IF(H17=2,G17*Variables!$A$3/(100),0))))) -> 0.4341463415 | J17: =IF(ISBLANK(A17),"",VLOOKUP(A17,Articles!$A$5:$AF$3000,11)) -> 2 | K17: =IF(ISBLANK(A17),"",(VLOOKUP(A17,Articles!$A$5:$AH$3002,34))*C17) -> 0.219
A18: 7613312141120 | B18: =IF(ISBLANK(A18),"",VLOOKUP(A18,Articles!$A$6:$AF$3002,2)) -> Micro voix avec interrupteur Shure SM58 | C18: 1 | D18: =IF(ISBLANK(A18),"",VLOOKUP(A18,Articles!$A$6:$AF$3002,6)) -> Sono | E18: =IF(ISBLANK(A18),"",IF($C$15=1,VLOOKUP(A18,Articles!$A$6:$AF$3038,3),IF($C$15=2,VLOOKUP(A18,Articles!$A$6:$AF$3038,20),IF($C$15=3,VLOOKUP(A18,Articles!$A$6:$AF$3038,21),IF($C$15=4,VLOOKUP(A18,Articles!$A$6:$AF$3038,22),"Erreur"))))) -> 340 | G18: =IF(ISBLANK(A18),0,SUM(C18*E18)*(100-F18)/100) -> 340 | H18: =IF(ISBLANK(A18),0,VLOOKUP(A18,Articles!$A$6:$Q$3002,8)) -> 1 | I18: =IF(ISBLANK(A18),0,IF(Variables!$A$13="TTC",IF(H18=1,G18-(G18*100)/(100+Variables!$A$2),(IF(H18=2,G18-(G18*100)/(100+Variables!$A$3),0))),IF(H18=1,G18*Variables!$A$2/(100),(IF(H18=2,G18*Variables!$A$3/(100),0))))) -> 24.3082637 | J18: =IF(ISBLANK(A18),"",VLOOKUP(A18,Articles!$A$5:$AF$3000,11)) -> 0 | K18: =IF(ISBLANK(A18),"",(VLOOKUP(A18,Articles!$A$5:$AH$3002,34))*C18) -> 0
A19: 9999 | B19: Frais d'envoi | C19: 1 | D19: Selon poids | E19: 34 | G19: 34 | H19: 1 | I19: =IF(ISBLANK(A19),0,IF(Variables!$A$13="TTC",IF(H19=1,G19-(G19*100)/(100+Variables!$A$2),(IF(H19=2,G19-(G19*100)/(100+Variables!$A$3),0))),IF(H19=1,G19*Variables!$A$2/(100),(IF(H19=2,G19*Variables!$A$3/(100),0))))) -> 2.43082637 | J19: =IF(ISBLANK(A19),"",VLOOKUP(A19,Articles!$A$5:$AF$3000,11)) -> -32 | K19: =IF(ISBLANK(A19),"",(VLOOKUP(A19,Articles!$A$5:$AH$3002,34))*C19) -> 0
B20: =IF(ISBLANK(A20),"",VLOOKUP(A20,Articles!$A$6:$AF$3002,2)) ->  | D20: =IF(ISBLANK(A20),"",VLOOKUP(A20,Articles!$A$6:$AF$3002,6)) ->  | E20: =IF(ISBLANK(A20),"",IF($C$15=1,VLOOKUP(A20,Articles!$A$6:$AF$3038,3),IF($C$15=2,VLOOKUP(A20,Articles!$A$6:$AF$3038,20),IF($C$15=3,VLOOKUP(A20,Articles!$A$6:$AF$3038,21),IF($C$15=4,VLOOKUP(A20,Articles!$A$6:$AF$3038,22),"Erreur"))))) ->  | G20: 0 | H20: =IF(ISBLANK(A20),0,VLOOKUP(A20,Articles!$A$6:$Q$3002,8)) -> 0 | I20: =IF(ISBLANK(A20),0,IF(Variables!$A$13="TTC",IF(H20=1,G20-(G20*100)/(100+Variables!$A$2),(IF(H20=2,G20-(G20*100)/(100+Variables!$A$3),0))),IF(H20=1,G20*Variables!$A$2/(100),(IF(H20=2,G20*Variables!$A$3/(100),0))))) -> 0 | J20: =IF(ISBLANK(A20),"",VLOOKUP(A20,Articles!$A$5:$AF$3000,11)) ->  | K20: =IF(ISBLANK(A20),"",(VLOOKUP(A20,Articles!$A$5:$AH$3002,34))*C20) -> 
B21: =IF(ISBLANK(A21),"",VLOOKUP(A21,Articles!$A$6:$AF$3002,2)) ->  | D21: =IF(ISBLANK(A21),"",VLOOKUP(A21,Articles!$A$6:$AF$3002,6)) ->  | E21: =IF(ISBLANK(A21),"",IF($C$15=1,VLOOKUP(A21,Articles!$A$6:$AF$3038,3),IF($C$15=2,VLOOKUP(A21,Articles!$A$6:$AF$3038,20),IF($C$15=3,VLOOKUP(A21,Articles!$A$6:$AF$3038,21),IF($C$15=4,VLOOKUP(A21,Articles!$A$6:$AF$3038,22),"Erreur"))))) ->  | G21: 0 | H21: =IF(ISBLANK(A21),0,VLOOKUP(A21,Articles!$A$6:$Q$3002,8)) -> 0 | I21: =IF(ISBLANK(A21),0,IF(Variables!$A$13="TTC",IF(H21=1,G21-(G21*100)/(100+Variables!$A$2),(IF(H21=2,G21-(G21*100)/(100+Variables!$A$3),0))),IF(H21=1,G21*Variables!$A$2/(100),(IF(H21=2,G21*Variables!$A$3/(100),0))))) -> 0 | J21: =IF(ISBLANK(A21),"",VLOOKUP(A21,Articles!$A$5:$AF$3000,11)) ->  | K21: =IF(ISBLANK(A21),"",(VLOOKUP(A21,Articles!$A$5:$AH$3002,34))*C21) -> 
B22: =IF(ISBLANK(A22),"",VLOOKUP(A22,Articles!$A$6:$AF$3002,2)) ->  | D22: =IF(ISBLANK(A22),"",VLOOKUP(A22,Articles!$A$6:$AF$3002,6)) ->  | E22: =IF(ISBLANK(A22),"",IF($C$15=1,VLOOKUP(A22,Articles!$A$6:$AF$3038,3),IF($C$15=2,VLOOKUP(A22,Articles!$A$6:$AF$3038,20),IF($C$15=3,VLOOKUP(A22,Articles!$A$6:$AF$3038,21),IF($C$15=4,VLOOKUP(A22,Articles!$A$6:$AF$3038,22),"Erreur"))))) ->  | G22: 0 | H22: =IF(ISBLANK(A22),0,VLOOKUP(A22,Articles!$A$6:$Q$3002,8)) -> 0 | I22: =IF(ISBLANK(A22),0,IF(Variables!$A$13="TTC",IF(H22=1,G22-(G22*100)/(100+Variables!$A$2),(IF(H22=2,G22-(G22*100)/(100+Variables!$A$3),0))),IF(H22=1,G22*Variables!$A$2/(100),(IF(H22=2,G22*Variables!$A$3/(100),0))))) -> 0 | J22: =IF(ISBLANK(A22),"",VLOOKUP(A22,Articles!$A$5:$AF$3000,11)) ->  | K22: =IF(ISBLANK(A22),"",(VLOOKUP(A22,Articles!$A$5:$AH$3002,34))*C22) -> 
B23: =IF(ISBLANK(A23),"",VLOOKUP(A23,Articles!$A$6:$AF$3002,2)) ->  | D23: =IF(ISBLANK(A23),"",VLOOKUP(A23,Articles!$A$6:$AF$3002,6)) ->  | E23: =IF(ISBLANK(A23),"",IF($C$15=1,VLOOKUP(A23,Articles!$A$6:$AF$3038,3),IF($C$15=2,VLOOKUP(A23,Articles!$A$6:$AF$3038,20),IF($C$15=3,VLOOKUP(A23,Articles!$A$6:$AF$3038,21),IF($C$15=4,VLOOKUP(A23,Articles!$A$6:$AF$3038,22),"Erreur"))))) ->  | G23: 0 | H23: =IF(ISBLANK(A23),0,VLOOKUP(A23,Articles!$A$6:$Q$3002,8)) -> 0 | I23: =IF(ISBLANK(A23),0,IF(Variables!$A$13="TTC",IF(H23=1,G23-(G23*100)/(100+Variables!$A$2),(IF(H23=2,G23-(G23*100)/(100+Variables!$A$3),0))),IF(H23=1,G23*Variables!$A$2/(100),(IF(H23=2,G23*Variables!$A$3/(100),0))))) -> 0 | J23: =IF(ISBLANK(A23),"",VLOOKUP(A23,Articles!$A$5:$AF$3000,11)) ->  | K23: =IF(ISBLANK(A23),"",(VLOOKUP(A23,Articles!$A$5:$AH$3002,34))*C23) -> 
B24: =IF(ISBLANK(A24),"",VLOOKUP(A24,Articles!$A$6:$AF$3002,2)) ->  | D24: =IF(ISBLANK(A24),"",VLOOKUP(A24,Articles!$A$6:$AF$3002,6)) ->  | E24: =IF(ISBLANK(A24),"",IF($C$15=1,VLOOKUP(A24,Articles!$A$6:$AF$3038,3),IF($C$15=2,VLOOKUP(A24,Articles!$A$6:$AF$3038,20),IF($C$15=3,VLOOKUP(A24,Articles!$A$6:$AF$3038,21),IF($C$15=4,VLOOKUP(A24,Articles!$A$6:$AF$3038,22),"Erreur"))))) ->  | G24: 0 | H24: =IF(ISBLANK(A24),0,VLOOKUP(A24,Articles!$A$6:$Q$3002,8)) -> 0 | I24: =IF(ISBLANK(A24),0,IF(Variables!$A$13="TTC",IF(H24=1,G24-(G24*100)/(100+Variables!$A$2),(IF(H24=2,G24-(G24*100)/(100+Variables!$A$3),0))),IF(H24=1,G24*Variables!$A$2/(100),(IF(H24=2,G24*Variables!$A$3/(100),0))))) -> 0 | J24: =IF(ISBLANK(A24),"",VLOOKUP(A24,Articles!$A$5:$AF$3000,11)) ->  | K24: =IF(ISBLANK(A24),"",(VLOOKUP(A24,Articles!$A$5:$AH$3002,34))*C24) -> 
B25: =IF(ISBLANK(A25),"",VLOOKUP(A25,Articles!$A$6:$AF$3002,2)) ->  | D25: =IF(ISBLANK(A25),"",VLOOKUP(A25,Articles!$A$6:$AF$3002,6)) ->  | E25: =IF(ISBLANK(A25),"",IF($C$15=1,VLOOKUP(A25,Articles!$A$6:$AF$3038,3),IF($C$15=2,VLOOKUP(A25,Articles!$A$6:$AF$3038,20),IF($C$15=3,VLOOKUP(A25,Articles!$A$6:$AF$3038,21),IF($C$15=4,VLOOKUP(A25,Articles!$A$6:$AF$3038,22),"Erreur"))))) ->  | G25: 0 | H25: =IF(ISBLANK(A25),0,VLOOKUP(A25,Articles!$A$6:$Q$3002,8)) -> 0 | I25: =IF(ISBLANK(A25),0,IF(Variables!$A$13="TTC",IF(H25=1,G25-(G25*100)/(100+Variables!$A$2),(IF(H25=2,G25-(G25*100)/(100+Variables!$A$3),0))),IF(H25=1,G25*Variables!$A$2/(100),(IF(H25=2,G25*Variables!$A$3/(100),0))))) -> 0 | J25: =IF(ISBLANK(A25),"",VLOOKUP(A25,Articles!$A$5:$AF$3000,11)) ->  | K25: =IF(ISBLANK(A25),"",(VLOOKUP(A25,Articles!$A$5:$AH$3002,34))*C25) -> 
B26: =IF(ISBLANK(A26),"",VLOOKUP(A26,Articles!$A$6:$AF$3002,2)) ->  | D26: =IF(ISBLANK(A26),"",VLOOKUP(A26,Articles!$A$6:$AF$3002,6)) ->  | E26: =IF(ISBLANK(A26),"",IF($C$15=1,VLOOKUP(A26,Articles!$A$6:$AF$3038,3),IF($C$15=2,VLOOKUP(A26,Articles!$A$6:$AF$3038,20),IF($C$15=3,VLOOKUP(A26,Articles!$A$6:$AF$3038,21),IF($C$15=4,VLOOKUP(A26,Articles!$A$6:$AF$3038,22),"Erreur"))))) ->  | G26: 0 | H26: =IF(ISBLANK(A26),0,VLOOKUP(A26,Articles!$A$6:$Q$3002,8)) -> 0 | I26: =IF(ISBLANK(A26),0,IF(Variables!$A$13="TTC",IF(H26=1,G26-(G26*100)/(100+Variables!$A$2),(IF(H26=2,G26-(G26*100)/(100+Variables!$A$3),0))),IF(H26=1,G26*Variables!$A$2/(100),(IF(H26=2,G26*Variables!$A$3/(100),0))))) -> 0 | J26: =IF(ISBLANK(A26),"",VLOOKUP(A26,Articles!$A$5:$AF$3000,11)) ->  | K26: =IF(ISBLANK(A26),"",(VLOOKUP(A26,Articles!$A$5:$AH$3002,34))*C26) -> 
B27: =IF(ISBLANK(A27),"",VLOOKUP(A27,Articles!$A$6:$AF$3002,2)) ->  | D27: =IF(ISBLANK(A27),"",VLOOKUP(A27,Articles!$A$6:$AF$3002,6)) ->  | E27: =IF(ISBLANK(A27),"",IF($C$15=1,VLOOKUP(A27,Articles!$A$6:$AF$3038,3),IF($C$15=2,VLOOKUP(A27,Articles!$A$6:$AF$3038,20),IF($C$15=3,VLOOKUP(A27,Articles!$A$6:$AF$3038,21),IF($C$15=4,VLOOKUP(A27,Articles!$A$6:$AF$3038,22),"Erreur"))))) ->  | G27: 0 | H27: =IF(ISBLANK(A27),0,VLOOKUP(A27,Articles!$A$6:$Q$3002,8)) -> 0 | I27: =IF(ISBLANK(A27),0,IF(Variables!$A$13="TTC",IF(H27=1,G27-(G27*100)/(100+Variables!$A$2),(IF(H27=2,G27-(G27*100)/(100+Variables!$A$3),0))),IF(H27=1,G27*Variables!$A$2/(100),(IF(H27=2,G27*Variables!$A$3/(100),0))))) -> 0 | J27: =IF(ISBLANK(A27),"",VLOOKUP(A27,Articles!$A$5:$AF$3000,11)) ->  | K27: =IF(ISBLANK(A27),"",(VLOOKUP(A27,Articles!$A$5:$AH$3002,34))*C27) -> 
B28: =IF(ISBLANK(A28),"",VLOOKUP(A28,Articles!$A$6:$AF$3002,2)) ->  | D28: =IF(ISBLANK(A28),"",VLOOKUP(A28,Articles!$A$6:$AF$3002,6)) ->  | E28: =IF(ISBLANK(A28),"",IF($C$15=1,VLOOKUP(A28,Articles!$A$6:$AF$3038,3),IF($C$15=2,VLOOKUP(A28,Articles!$A$6:$AF$3038,20),IF($C$15=3,VLOOKUP(A28,Articles!$A$6:$AF$3038,21),IF($C$15=4,VLOOKUP(A28,Articles!$A$6:$AF$3038,22),"Erreur"))))) ->  | G28: 0 | H28: =IF(ISBLANK(A28),0,VLOOKUP(A28,Articles!$A$6:$Q$3002,8)) -> 0 | I28: =IF(ISBLANK(A28),0,IF(Variables!$A$13="TTC",IF(H28=1,G28-(G28*100)/(100+Variables!$A$2),(IF(H28=2,G28-(G28*100)/(100+Variables!$A$3),0))),IF(H28=1,G28*Variables!$A$2/(100),(IF(H28=2,G28*Variables!$A$3/(100),0))))) -> 0 | J28: =IF(ISBLANK(A28),"",VLOOKUP(A28,Articles!$A$5:$AF$3000,11)) ->  | K28: =IF(ISBLANK(A28),"",(VLOOKUP(A28,Articles!$A$5:$AH$3002,34))*C28) -> 
B29: =IF(ISBLANK(A29),"",VLOOKUP(A29,Articles!$A$6:$AF$3002,2)) ->  | D29: =IF(ISBLANK(A29),"",VLOOKUP(A29,Articles!$A$6:$AF$3002,6)) ->  | E29: =IF(ISBLANK(A29),"",IF($C$15=1,VLOOKUP(A29,Articles!$A$6:$AF$3038,3),IF($C$15=2,VLOOKUP(A29,Articles!$A$6:$AF$3038,20),IF($C$15=3,VLOOKUP(A29,Articles!$A$6:$AF$3038,21),IF($C$15=4,VLOOKUP(A29,Articles!$A$6:$AF$3038,22),"Erreur"))))) ->  | G29: 0 | H29: =IF(ISBLANK(A29),0,VLOOKUP(A29,Articles!$A$6:$Q$3002,8)) -> 0 | I29: =IF(ISBLANK(A29),0,IF(Variables!$A$13="TTC",IF(H29=1,G29-(G29*100)/(100+Variables!$A$2),(IF(H29=2,G29-(G29*100)/(100+Variables!$A$3),0))),IF(H29=1,G29*Variables!$A$2/(100),(IF(H29=2,G29*Variables!$A$3/(100),0))))) -> 0 | J29: =IF(ISBLANK(A29),"",VLOOKUP(A29,Articles!$A$5:$AF$3000,11)) ->  | K29: =IF(ISBLANK(A29),"",(VLOOKUP(A29,Articles!$A$5:$AH$3002,34))*C29) -> 
B30: =IF(ISBLANK(A30),"",VLOOKUP(A30,Articles!$A$6:$AF$3002,2)) ->  | D30: =IF(ISBLANK(A30),"",VLOOKUP(A30,Articles!$A$6:$AF$3002,6)) ->  | E30: =IF(ISBLANK(A30),"",IF($C$15=1,VLOOKUP(A30,Articles!$A$6:$AF$3038,3),IF($C$15=2,VLOOKUP(A30,Articles!$A$6:$AF$3038,20),IF($C$15=3,VLOOKUP(A30,Articles!$A$6:$AF$3038,21),IF($C$15=4,VLOOKUP(A30,Articles!$A$6:$AF$3038,22),"Erreur"))))) ->  | G30: 0 | H30: =IF(ISBLANK(A30),0,VLOOKUP(A30,Articles!$A$6:$Q$3002,8)) -> 0 | I30: =IF(ISBLANK(A30),0,IF(Variables!$A$13="TTC",IF(H30=1,G30-(G30*100)/(100+Variables!$A$2),(IF(H30=2,G30-(G30*100)/(100+Variables!$A$3),0))),IF(H30=1,G30*Variables!$A$2/(100),(IF(H30=2,G30*Variables!$A$3/(100),0))))) -> 0 | J30: =IF(ISBLANK(A30),"",VLOOKUP(A30,Articles!$A$5:$AF$3000,11)) ->  | K30: =IF(ISBLANK(A30),"",(VLOOKUP(A30,Articles!$A$5:$AH$3002,34))*C30) -> 
B31: =IF(ISBLANK(A31),"",VLOOKUP(A31,Articles!$A$6:$AF$3002,2)) ->  | D31: =IF(ISBLANK(A31),"",VLOOKUP(A31,Articles!$A$6:$AF$3002,6)) ->  | E31: =IF(ISBLANK(A31),"",IF($C$15=1,VLOOKUP(A31,Articles!$A$6:$AF$3038,3),IF($C$15=2,VLOOKUP(A31,Articles!$A$6:$AF$3038,20),IF($C$15=3,VLOOKUP(A31,Articles!$A$6:$AF$3038,21),IF($C$15=4,VLOOKUP(A31,Articles!$A$6:$AF$3038,22),"Erreur"))))) ->  | G31: 0 | H31: =IF(ISBLANK(A31),0,VLOOKUP(A31,Articles!$A$6:$Q$3002,8)) -> 0 | I31: =IF(ISBLANK(A31),0,IF(Variables!$A$13="TTC",IF(H31=1,G31-(G31*100)/(100+Variables!$A$2),(IF(H31=2,G31-(G31*100)/(100+Variables!$A$3),0))),IF(H31=1,G31*Variables!$A$2/(100),(IF(H31=2,G31*Variables!$A$3/(100),0))))) -> 0 | J31: =IF(ISBLANK(A31),"",VLOOKUP(A31,Articles!$A$5:$AF$3000,11)) ->  | K31: =IF(ISBLANK(A31),"",(VLOOKUP(A31,Articles!$A$5:$AH$3002,34))*C31) -> 
B32: =IF(ISBLANK(A32),"",VLOOKUP(A32,Articles!$A$6:$AF$3002,2)) ->  | D32: =IF(ISBLANK(A32),"",VLOOKUP(A32,Articles!$A$6:$AF$3002,6)) ->  | E32: =IF(ISBLANK(A32),"",IF($C$15=1,VLOOKUP(A32,Articles!$A$6:$AF$3038,3),IF($C$15=2,VLOOKUP(A32,Articles!$A$6:$AF$3038,20),IF($C$15=3,VLOOKUP(A32,Articles!$A$6:$AF$3038,21),IF($C$15=4,VLOOKUP(A32,Articles!$A$6:$AF$3038,22),"Erreur"))))) ->  | G32: 0 | H32: =IF(ISBLANK(A32),0,VLOOKUP(A32,Articles!$A$6:$Q$3002,8)) -> 0 | I32: =IF(ISBLANK(A32),0,IF(Variables!$A$13="TTC",IF(H32=1,G32-(G32*100)/(100+Variables!$A$2),(IF(H32=2,G32-(G32*100)/(100+Variables!$A$3),0))),IF(H32=1,G32*Variables!$A$2/(100),(IF(H32=2,G32*Variables!$A$3/(100),0))))) -> 0 | J32: =IF(ISBLANK(A32),"",VLOOKUP(A32,Articles!$A$5:$AF$3000,11)) ->  | K32: =IF(ISBLANK(A32),"",(VLOOKUP(A32,Articles!$A$5:$AH$3002,34))*C32) -> 
B33: =IF(ISBLANK(A33),"",VLOOKUP(A33,Articles!$A$6:$AF$3002,2)) ->  | D33: =IF(ISBLANK(A33),"",VLOOKUP(A33,Articles!$A$6:$AF$3002,6)) ->  | E33: =IF(ISBLANK(A33),"",IF($C$15=1,VLOOKUP(A33,Articles!$A$6:$AF$3038,3),IF($C$15=2,VLOOKUP(A33,Articles!$A$6:$AF$3038,20),IF($C$15=3,VLOOKUP(A33,Articles!$A$6:$AF$3038,21),IF($C$15=4,VLOOKUP(A33,Articles!$A$6:$AF$3038,22),"Erreur"))))) ->  | G33: 0 | H33: =IF(ISBLANK(A33),0,VLOOKUP(A33,Articles!$A$6:$Q$3002,8)) -> 0 | I33: =IF(ISBLANK(A33),0,IF(Variables!$A$13="TTC",IF(H33=1,G33-(G33*100)/(100+Variables!$A$2),(IF(H33=2,G33-(G33*100)/(100+Variables!$A$3),0))),IF(H33=1,G33*Variables!$A$2/(100),(IF(H33=2,G33*Variables!$A$3/(100),0))))) -> 0 | J33: =IF(ISBLANK(A33),"",VLOOKUP(A33,Articles!$A$5:$AF$3000,11)) ->  | K33: =IF(ISBLANK(A33),"",(VLOOKUP(A33,Articles!$A$5:$AH$3002,34))*C33) -> 
B34: =IF(ISBLANK(A34),"",VLOOKUP(A34,Articles!$A$6:$AF$3002,2)) ->  | D34: =IF(ISBLANK(A34),"",VLOOKUP(A34,Articles!$A$6:$AF$3002,6)) ->  | E34: =IF(ISBLANK(A34),"",IF($C$15=1,VLOOKUP(A34,Articles!$A$6:$AF$3038,3),IF($C$15=2,VLOOKUP(A34,Articles!$A$6:$AF$3038,20),IF($C$15=3,VLOOKUP(A34,Articles!$A$6:$AF$3038,21),IF($C$15=4,VLOOKUP(A34,Articles!$A$6:$AF$3038,22),"Erreur"))))) ->  | G34: 0 | H34: =IF(ISBLANK(A34),0,VLOOKUP(A34,Articles!$A$6:$Q$3002,8)) -> 0 | I34: =IF(ISBLANK(A34),0,IF(Variables!$A$13="TTC",IF(H34=1,G34-(G34*100)/(100+Variables!$A$2),(IF(H34=2,G34-(G34*100)/(100+Variables!$A$3),0))),IF(H34=1,G34*Variables!$A$2/(100),(IF(H34=2,G34*Variables!$A$3/(100),0))))) -> 0 | J34: =IF(ISBLANK(A34),"",VLOOKUP(A34,Articles!$A$5:$AF$3000,11)) ->  | K34: =IF(ISBLANK(A34),"",(VLOOKUP(A34,Articles!$A$5:$AH$3002,34))*C34) -> 
B35: =IF(ISBLANK(A35),"",VLOOKUP(A35,Articles!$A$6:$AF$3002,2)) ->  | D35: =IF(ISBLANK(A35),"",VLOOKUP(A35,Articles!$A$6:$AF$3002,6)) ->  | E35: =IF(ISBLANK(A35),"",IF($C$15=1,VLOOKUP(A35,Articles!$A$6:$AF$3038,3),IF($C$15=2,VLOOKUP(A35,Articles!$A$6:$AF$3038,20),IF($C$15=3,VLOOKUP(A35,Articles!$A$6:$AF$3038,21),IF($C$15=4,VLOOKUP(A35,Articles!$A$6:$AF$3038,22),"Erreur"))))) ->  | G35: 0 | H35: =IF(ISBLANK(A35),0,VLOOKUP(A35,Articles!$A$6:$Q$3002,8)) -> 0 | I35: =IF(ISBLANK(A35),0,IF(Variables!$A$13="TTC",IF(H35=1,G35-(G35*100)/(100+Variables!$A$2),(IF(H35=2,G35-(G35*100)/(100+Variables!$A$3),0))),IF(H35=1,G35*Variables!$A$2/(100),(IF(H35=2,G35*Variables!$A$3/(100),0))))) -> 0 | J35: =IF(ISBLANK(A35),"",VLOOKUP(A35,Articles!$A$5:$AF$3000,11)) ->  | K35: =IF(ISBLANK(A35),"",(VLOOKUP(A35,Articles!$A$5:$AH$3002,34))*C35) -> 
B36: =IF(ISBLANK(A36),"",VLOOKUP(A36,Articles!$A$6:$AF$3002,2)) ->  | D36: =IF(ISBLANK(A36),"",VLOOKUP(A36,Articles!$A$6:$AF$3002,6)) ->  | E36: =IF(ISBLANK(A36),"",IF($C$15=1,VLOOKUP(A36,Articles!$A$6:$AF$3038,3),IF($C$15=2,VLOOKUP(A36,Articles!$A$6:$AF$3038,20),IF($C$15=3,VLOOKUP(A36,Articles!$A$6:$AF$3038,21),IF($C$15=4,VLOOKUP(A36,Articles!$A$6:$AF$3038,22),"Erreur"))))) ->  | G36: 0 | H36: =IF(ISBLANK(A36),0,VLOOKUP(A36,Articles!$A$6:$Q$3002,8)) -> 0 | I36: =IF(ISBLANK(A36),0,IF(Variables!$A$13="TTC",IF(H36=1,G36-(G36*100)/(100+Variables!$A$2),(IF(H36=2,G36-(G36*100)/(100+Variables!$A$3),0))),IF(H36=1,G36*Variables!$A$2/(100),(IF(H36=2,G36*Variables!$A$3/(100),0))))) -> 0 | J36: =IF(ISBLANK(A36),"",VLOOKUP(A36,Articles!$A$5:$AF$3000,11)) ->  | K36: =IF(ISBLANK(A36),"",(VLOOKUP(A36,Articles!$A$5:$AH$3002,34))*C36) -> 
B37: =IF(ISBLANK(A37),"",VLOOKUP(A37,Articles!$A$6:$AF$3002,2)) ->  | D37: =IF(ISBLANK(A37),"",VLOOKUP(A37,Articles!$A$6:$AF$3002,6)) ->  | E37: =IF(ISBLANK(A37),"",IF($C$15=1,VLOOKUP(A37,Articles!$A$6:$AF$3038,3),IF($C$15=2,VLOOKUP(A37,Articles!$A$6:$AF$3038,20),IF($C$15=3,VLOOKUP(A37,Articles!$A$6:$AF$3038,21),IF($C$15=4,VLOOKUP(A37,Articles!$A$6:$AF$3038,22),"Erreur"))))) ->  | G37: 0 | H37: =IF(ISBLANK(A37),0,VLOOKUP(A37,Articles!$A$6:$Q$3002,8)) -> 0 | I37: =IF(ISBLANK(A37),0,IF(Variables!$A$13="TTC",IF(H37=1,G37-(G37*100)/(100+Variables!$A$2),(IF(H37=2,G37-(G37*100)/(100+Variables!$A$3),0))),IF(H37=1,G37*Variables!$A$2/(100),(IF(H37=2,G37*Variables!$A$3/(100),0))))) -> 0 | J37: =IF(ISBLANK(A37),"",VLOOKUP(A37,Articles!$A$5:$AF$3000,11)) ->  | K37: =IF(ISBLANK(A37),"",(VLOOKUP(A37,Articles!$A$5:$AH$3002,34))*C37) -> 
B38: =IF(ISBLANK(A38),"",VLOOKUP(A38,Articles!$A$6:$AF$3002,2)) ->  | D38: =IF(ISBLANK(A38),"",VLOOKUP(A38,Articles!$A$6:$AF$3002,6)) ->  | E38: =IF(ISBLANK(A38),"",IF($C$15=1,VLOOKUP(A38,Articles!$A$6:$AF$3038,3),IF($C$15=2,VLOOKUP(A38,Articles!$A$6:$AF$3038,20),IF($C$15=3,VLOOKUP(A38,Articles!$A$6:$AF$3038,21),IF($C$15=4,VLOOKUP(A38,Articles!$A$6:$AF$3038,22),"Erreur"))))) ->  | G38: 0 | H38: =IF(ISBLANK(A38),0,VLOOKUP(A38,Articles!$A$6:$Q$3002,8)) -> 0 | I38: =IF(ISBLANK(A38),0,IF(Variables!$A$13="TTC",IF(H38=1,G38-(G38*100)/(100+Variables!$A$2),(IF(H38=2,G38-(G38*100)/(100+Variables!$A$3),0))),IF(H38=1,G38*Variables!$A$2/(100),(IF(H38=2,G38*Variables!$A$3/(100),0))))) -> 0 | J38: =IF(ISBLANK(A38),"",VLOOKUP(A38,Articles!$A$5:$AF$3000,11)) ->  | K38: =IF(ISBLANK(A38),"",(VLOOKUP(A38,Articles!$A$5:$AH$3002,34))*C38) -> 
B39: =IF(ISBLANK(A39),"",VLOOKUP(A39,Articles!$A$6:$AF$3002,2)) ->  | D39: =IF(ISBLANK(A39),"",VLOOKUP(A39,Articles!$A$6:$AF$3002,6)) ->  | E39: =IF(ISBLANK(A39),"",IF($C$15=1,VLOOKUP(A39,Articles!$A$6:$AF$3038,3),IF($C$15=2,VLOOKUP(A39,Articles!$A$6:$AF$3038,20),IF($C$15=3,VLOOKUP(A39,Articles!$A$6:$AF$3038,21),IF($C$15=4,VLOOKUP(A39,Articles!$A$6:$AF$3038,22),"Erreur"))))) ->  | G39: 0 | H39: =IF(ISBLANK(A39),0,VLOOKUP(A39,Articles!$A$6:$Q$3002,8)) -> 0 | I39: =IF(ISBLANK(A39),0,IF(Variables!$A$13="TTC",IF(H39=1,G39-(G39*100)/(100+Variables!$A$2),(IF(H39=2,G39-(G39*100)/(100+Variables!$A$3),0))),IF(H39=1,G39*Variables!$A$2/(100),(IF(H39=2,G39*Variables!$A$3/(100),0))))) -> 0 | J39: =IF(ISBLANK(A39),"",VLOOKUP(A39,Articles!$A$5:$AF$3000,11)) ->  | K39: =IF(ISBLANK(A39),"",(VLOOKUP(A39,Articles!$A$5:$AH$3002,34))*C39) -> 
B40: =IF(ISBLANK(A40),"",VLOOKUP(A40,Articles!$A$6:$AF$3002,2)) ->  | D40: =IF(ISBLANK(A40),"",VLOOKUP(A40,Articles!$A$6:$AF$3002,6)) ->  | E40: =IF(ISBLANK(A40),"",IF($C$15=1,VLOOKUP(A40,Articles!$A$6:$AF$3038,3),IF($C$15=2,VLOOKUP(A40,Articles!$A$6:$AF$3038,20),IF($C$15=3,VLOOKUP(A40,Articles!$A$6:$AF$3038,21),IF($C$15=4,VLOOKUP(A40,Articles!$A$6:$AF$3038,22),"Erreur"))))) ->  | G40: 0 | H40: =IF(ISBLANK(A40),0,VLOOKUP(A40,Articles!$A$6:$Q$3002,8)) -> 0 | I40: =IF(ISBLANK(A40),0,IF(Variables!$A$13="TTC",IF(H40=1,G40-(G40*100)/(100+Variables!$A$2),(IF(H40=2,G40-(G40*100)/(100+Variables!$A$3),0))),IF(H40=1,G40*Variables!$A$2/(100),(IF(H40=2,G40*Variables!$A$3/(100),0))))) -> 0 | J40: =IF(ISBLANK(A40),"",VLOOKUP(A40,Articles!$A$5:$AF$3000,11)) ->  | K40: =IF(ISBLANK(A40),"",(VLOOKUP(A40,Articles!$A$5:$AH$3002,34))*C40) -> 
B41: =IF(ISBLANK(A41),"",VLOOKUP(A41,Articles!$A$6:$AF$3002,2)) ->  | D41: =IF(ISBLANK(A41),"",VLOOKUP(A41,Articles!$A$6:$AF$3002,6)) ->  | E41: =IF(ISBLANK(A41),"",IF($C$15=1,VLOOKUP(A41,Articles!$A$6:$AF$3038,3),IF($C$15=2,VLOOKUP(A41,Articles!$A$6:$AF$3038,20),IF($C$15=3,VLOOKUP(A41,Articles!$A$6:$AF$3038,21),IF($C$15=4,VLOOKUP(A41,Articles!$A$6:$AF$3038,22),"Erreur"))))) ->  | G41: 0 | H41: =IF(ISBLANK(A41),0,VLOOKUP(A41,Articles!$A$6:$Q$3002,8)) -> 0 | I41: =IF(ISBLANK(A41),0,IF(Variables!$A$13="TTC",IF(H41=1,G41-(G41*100)/(100+Variables!$A$2),(IF(H41=2,G41-(G41*100)/(100+Variables!$A$3),0))),IF(H41=1,G41*Variables!$A$2/(100),(IF(H41=2,G41*Variables!$A$3/(100),0))))) -> 0 | J41: =IF(ISBLANK(A41),"",VLOOKUP(A41,Articles!$A$5:$AF$3000,11)) ->  | K41: =IF(ISBLANK(A41),"",(VLOOKUP(A41,Articles!$A$5:$AH$3002,34))*C41) -> 
B42: =IF(ISBLANK(A42),"",VLOOKUP(A42,Articles!$A$6:$AF$3002,2)) ->  | D42: =IF(ISBLANK(A42),"",VLOOKUP(A42,Articles!$A$6:$AF$3002,6)) ->  | E42: =IF(ISBLANK(A42),"",IF($C$15=1,VLOOKUP(A42,Articles!$A$6:$AF$3038,3),IF($C$15=2,VLOOKUP(A42,Articles!$A$6:$AF$3038,20),IF($C$15=3,VLOOKUP(A42,Articles!$A$6:$AF$3038,21),IF($C$15=4,VLOOKUP(A42,Articles!$A$6:$AF$3038,22),"Erreur"))))) ->  | G42: 0 | H42: =IF(ISBLANK(A42),0,VLOOKUP(A42,Articles!$A$6:$Q$3002,8)) -> 0 | I42: =IF(ISBLANK(A42),0,IF(Variables!$A$13="TTC",IF(H42=1,G42-(G42*100)/(100+Variables!$A$2),(IF(H42=2,G42-(G42*100)/(100+Variables!$A$3),0))),IF(H42=1,G42*Variables!$A$2/(100),(IF(H42=2,G42*Variables!$A$3/(100),0))))) -> 0 | J42: =IF(ISBLANK(A42),"",VLOOKUP(A42,Articles!$A$5:$AF$3000,11)) ->  | K42: =IF(ISBLANK(A42),"",(VLOOKUP(A42,Articles!$A$5:$AH$3002,34))*C42) -> 
B43: =IF(ISBLANK(A43),"",VLOOKUP(A43,Articles!$A$6:$AF$3002,2)) ->  | D43: =IF(ISBLANK(A43),"",VLOOKUP(A43,Articles!$A$6:$AF$3002,6)) ->  | E43: =IF(ISBLANK(A43),"",IF($C$15=1,VLOOKUP(A43,Articles!$A$6:$AF$3038,3),IF($C$15=2,VLOOKUP(A43,Articles!$A$6:$AF$3038,20),IF($C$15=3,VLOOKUP(A43,Articles!$A$6:$AF$3038,21),IF($C$15=4,VLOOKUP(A43,Articles!$A$6:$AF$3038,22),"Erreur"))))) ->  | G43: 0 | H43: =IF(ISBLANK(A43),0,VLOOKUP(A43,Articles!$A$6:$Q$3002,8)) -> 0 | I43: =IF(ISBLANK(A43),0,IF(Variables!$A$13="TTC",IF(H43=1,G43-(G43*100)/(100+Variables!$A$2),(IF(H43=2,G43-(G43*100)/(100+Variables!$A$3),0))),IF(H43=1,G43*Variables!$A$2/(100),(IF(H43=2,G43*Variables!$A$3/(100),0))))) -> 0 | J43: =IF(ISBLANK(A43),"",VLOOKUP(A43,Articles!$A$5:$AF$3000,11)) ->  | K43: =IF(ISBLANK(A43),"",(VLOOKUP(A43,Articles!$A$5:$AH$3002,34))*C43) -> 
B44: =IF(ISBLANK(A44),"",VLOOKUP(A44,Articles!$A$6:$AF$3002,2)) ->  | D44: =IF(ISBLANK(A44),"",VLOOKUP(A44,Articles!$A$6:$AF$3002,6)) ->  | E44: =IF(ISBLANK(A44),"",IF($C$15=1,VLOOKUP(A44,Articles!$A$6:$AF$3038,3),IF($C$15=2,VLOOKUP(A44,Articles!$A$6:$AF$3038,20),IF($C$15=3,VLOOKUP(A44,Articles!$A$6:$AF$3038,21),IF($C$15=4,VLOOKUP(A44,Articles!$A$6:$AF$3038,22),"Erreur"))))) ->  | G44: 0 | H44: =IF(ISBLANK(A44),0,VLOOKUP(A44,Articles!$A$6:$Q$3002,8)) -> 0 | I44: =IF(ISBLANK(A44),0,IF(Variables!$A$13="TTC",IF(H44=1,G44-(G44*100)/(100+Variables!$A$2),(IF(H44=2,G44-(G44*100)/(100+Variables!$A$3),0))),IF(H44=1,G44*Variables!$A$2/(100),(IF(H44=2,G44*Variables!$A$3/(100),0))))) -> 0 | J44: =IF(ISBLANK(A44),"",VLOOKUP(A44,Articles!$A$5:$AF$3000,11)) ->  | K44: =IF(ISBLANK(A44),"",(VLOOKUP(A44,Articles!$A$5:$AH$3002,34))*C44) -> 
B45: =IF(ISBLANK(A45),"",VLOOKUP(A45,Articles!$A$6:$AF$3002,2)) ->  | D45: =IF(ISBLANK(A45),"",VLOOKUP(A45,Articles!$A$6:$AF$3002,6)) ->  | E45: =IF(ISBLANK(A45),"",IF($C$15=1,VLOOKUP(A45,Articles!$A$6:$AF$3038,3),IF($C$15=2,VLOOKUP(A45,Articles!$A$6:$AF$3038,20),IF($C$15=3,VLOOKUP(A45,Articles!$A$6:$AF$3038,21),IF($C$15=4,VLOOKUP(A45,Articles!$A$6:$AF$3038,22),"Erreur"))))) ->  | G45: 0 | H45: =IF(ISBLANK(A45),0,VLOOKUP(A45,Articles!$A$6:$Q$3002,8)) -> 0 | I45: =IF(ISBLANK(A45),0,IF(Variables!$A$13="TTC",IF(H45=1,G45-(G45*100)/(100+Variables!$A$2),(IF(H45=2,G45-(G45*100)/(100+Variables!$A$3),0))),IF(H45=1,G45*Variables!$A$2/(100),(IF(H45=2,G45*Variables!$A$3/(100),0))))) -> 0 | J45: =IF(ISBLANK(A45),"",VLOOKUP(A45,Articles!$A$5:$AF$3000,11)) ->  | K45: =IF(ISBLANK(A45),"",(VLOOKUP(A45,Articles!$A$5:$AH$3002,34))*C45) -> 
B46: =IF(ISBLANK(A46),"",VLOOKUP(A46,Articles!$A$6:$AF$3002,2)) ->  | D46: =IF(ISBLANK(A46),"",VLOOKUP(A46,Articles!$A$6:$AF$3002,6)) ->  | E46: =IF(ISBLANK(A46),"",IF($C$15=1,VLOOKUP(A46,Articles!$A$6:$AF$3038,3),IF($C$15=2,VLOOKUP(A46,Articles!$A$6:$AF$3038,20),IF($C$15=3,VLOOKUP(A46,Articles!$A$6:$AF$3038,21),IF($C$15=4,VLOOKUP(A46,Articles!$A$6:$AF$3038,22),"Erreur"))))) ->  | G46: 0 | H46: =IF(ISBLANK(A46),0,VLOOKUP(A46,Articles!$A$6:$Q$3002,8)) -> 0 | I46: =IF(ISBLANK(A46),0,IF(Variables!$A$13="TTC",IF(H46=1,G46-(G46*100)/(100+Variables!$A$2),(IF(H46=2,G46-(G46*100)/(100+Variables!$A$3),0))),IF(H46=1,G46*Variables!$A$2/(100),(IF(H46=2,G46*Variables!$A$3/(100),0))))) -> 0 | J46: =IF(ISBLANK(A46),"",VLOOKUP(A46,Articles!$A$5:$AF$3000,11)) ->  | K46: =IF(ISBLANK(A46),"",(VLOOKUP(A46,Articles!$A$5:$AH$3002,34))*C46) -> 
B47: =IF(ISBLANK(A47),"",VLOOKUP(A47,Articles!$A$6:$AF$3002,2)) ->  | D47: =IF(ISBLANK(A47),"",VLOOKUP(A47,Articles!$A$6:$AF$3002,6)) ->  | E47: =IF(ISBLANK(A47),"",IF($C$15=1,VLOOKUP(A47,Articles!$A$6:$AF$3038,3),IF($C$15=2,VLOOKUP(A47,Articles!$A$6:$AF$3038,20),IF($C$15=3,VLOOKUP(A47,Articles!$A$6:$AF$3038,21),IF($C$15=4,VLOOKUP(A47,Articles!$A$6:$AF$3038,22),"Erreur"))))) ->  | G47: 0 | H47: =IF(ISBLANK(A47),0,VLOOKUP(A47,Articles!$A$6:$Q$3002,8)) -> 0 | I47: =IF(ISBLANK(A47),0,IF(Variables!$A$13="TTC",IF(H47=1,G47-(G47*100)/(100+Variables!$A$2),(IF(H47=2,G47-(G47*100)/(100+Variables!$A$3),0))),IF(H47=1,G47*Variables!$A$2/(100),(IF(H47=2,G47*Variables!$A$3/(100),0))))) -> 0 | J47: =IF(ISBLANK(A47),"",VLOOKUP(A47,Articles!$A$5:$AF$3000,11)) ->  | K47: =IF(ISBLANK(A47),"",(VLOOKUP(A47,Articles!$A$5:$AH$3002,34))*C47) -> 
B48: =IF(ISBLANK(A48),"",VLOOKUP(A48,Articles!$A$6:$AF$3002,2)) ->  | D48: =IF(ISBLANK(A48),"",VLOOKUP(A48,Articles!$A$6:$AF$3002,6)) ->  | E48: =IF(ISBLANK(A48),"",IF($C$15=1,VLOOKUP(A48,Articles!$A$6:$AF$3038,3),IF($C$15=2,VLOOKUP(A48,Articles!$A$6:$AF$3038,20),IF($C$15=3,VLOOKUP(A48,Articles!$A$6:$AF$3038,21),IF($C$15=4,VLOOKUP(A48,Articles!$A$6:$AF$3038,22),"Erreur"))))) ->  | G48: 0 | H48: =IF(ISBLANK(A48),0,VLOOKUP(A48,Articles!$A$6:$Q$3002,8)) -> 0 | I48: =IF(ISBLANK(A48),0,IF(Variables!$A$13="TTC",IF(H48=1,G48-(G48*100)/(100+Variables!$A$2),(IF(H48=2,G48-(G48*100)/(100+Variables!$A$3),0))),IF(H48=1,G48*Variables!$A$2/(100),(IF(H48=2,G48*Variables!$A$3/(100),0))))) -> 0 | J48: =IF(ISBLANK(A48),"",VLOOKUP(A48,Articles!$A$5:$AF$3000,11)) ->  | K48: =IF(ISBLANK(A48),"",(VLOOKUP(A48,Articles!$A$5:$AH$3002,34))*C48) -> 
B49: =IF(ISBLANK(A49),"",VLOOKUP(A49,Articles!$A$6:$AF$3002,2)) ->  | D49: =IF(ISBLANK(A49),"",VLOOKUP(A49,Articles!$A$6:$AF$3002,6)) ->  | E49: =IF(ISBLANK(A49),"",IF($C$15=1,VLOOKUP(A49,Articles!$A$6:$AF$3038,3),IF($C$15=2,VLOOKUP(A49,Articles!$A$6:$AF$3038,20),IF($C$15=3,VLOOKUP(A49,Articles!$A$6:$AF$3038,21),IF($C$15=4,VLOOKUP(A49,Articles!$A$6:$AF$3038,22),"Erreur"))))) ->  | G49: 0 | H49: =IF(ISBLANK(A49),0,VLOOKUP(A49,Articles!$A$6:$Q$3002,8)) -> 0 | I49: =IF(ISBLANK(A49),0,IF(Variables!$A$13="TTC",IF(H49=1,G49-(G49*100)/(100+Variables!$A$2),(IF(H49=2,G49-(G49*100)/(100+Variables!$A$3),0))),IF(H49=1,G49*Variables!$A$2/(100),(IF(H49=2,G49*Variables!$A$3/(100),0))))) -> 0 | J49: =IF(ISBLANK(A49),"",VLOOKUP(A49,Articles!$A$5:$AF$3000,11)) ->  | K49: =IF(ISBLANK(A49),"",(VLOOKUP(A49,Articles!$A$5:$AH$3002,34))*C49) -> 
B50: =IF(ISBLANK(A50),"",VLOOKUP(A50,Articles!$A$6:$AF$3002,2)) ->  | D50: =IF(ISBLANK(A50),"",VLOOKUP(A50,Articles!$A$6:$AF$3002,6)) ->  | E50: =IF(ISBLANK(A50),"",IF($C$15=1,VLOOKUP(A50,Articles!$A$6:$AF$3038,3),IF($C$15=2,VLOOKUP(A50,Articles!$A$6:$AF$3038,20),IF($C$15=3,VLOOKUP(A50,Articles!$A$6:$AF$3038,21),IF($C$15=4,VLOOKUP(A50,Articles!$A$6:$AF$3038,22),"Erreur"))))) ->  | G50: 0 | H50: =IF(ISBLANK(A50),0,VLOOKUP(A50,Articles!$A$6:$Q$3002,8)) -> 0 | I50: =IF(ISBLANK(A50),0,IF(Variables!$A$13="TTC",IF(H50=1,G50-(G50*100)/(100+Variables!$A$2),(IF(H50=2,G50-(G50*100)/(100+Variables!$A$3),0))),IF(H50=1,G50*Variables!$A$2/(100),(IF(H50=2,G50*Variables!$A$3/(100),0))))) -> 0 | J50: =IF(ISBLANK(A50),"",VLOOKUP(A50,Articles!$A$5:$AF$3000,11)) ->  | K50: =IF(ISBLANK(A50),"",(VLOOKUP(A50,Articles!$A$5:$AH$3002,34))*C50) -> 
B51: =IF(ISBLANK(A51),"",VLOOKUP(A51,Articles!$A$6:$AF$3002,2)) ->  | D51: =IF(ISBLANK(A51),"",VLOOKUP(A51,Articles!$A$6:$AF$3002,6)) ->  | E51: =IF(ISBLANK(A51),"",IF($C$15=1,VLOOKUP(A51,Articles!$A$6:$AF$3038,3),IF($C$15=2,VLOOKUP(A51,Articles!$A$6:$AF$3038,20),IF($C$15=3,VLOOKUP(A51,Articles!$A$6:$AF$3038,21),IF($C$15=4,VLOOKUP(A51,Articles!$A$6:$AF$3038,22),"Erreur"))))) ->  | G51: 0 | H51: =IF(ISBLANK(A51),0,VLOOKUP(A51,Articles!$A$6:$Q$3002,8)) -> 0 | I51: =IF(ISBLANK(A51),0,IF(Variables!$A$13="TTC",IF(H51=1,G51-(G51*100)/(100+Variables!$A$2),(IF(H51=2,G51-(G51*100)/(100+Variables!$A$3),0))),IF(H51=1,G51*Variables!$A$2/(100),(IF(H51=2,G51*Variables!$A$3/(100),0))))) -> 0 | J51: =IF(ISBLANK(A51),"",VLOOKUP(A51,Articles!$A$5:$AF$3000,11)) ->  | K51: =IF(ISBLANK(A51),"",(VLOOKUP(A51,Articles!$A$5:$AH$3002,34))*C51) -> 
B52: =IF(ISBLANK(A52),"",VLOOKUP(A52,Articles!$A$6:$AF$3002,2)) ->  | D52: =IF(ISBLANK(A52),"",VLOOKUP(A52,Articles!$A$6:$AF$3002,6)) ->  | E52: =IF(ISBLANK(A52),"",IF($C$15=1,VLOOKUP(A52,Articles!$A$6:$AF$3038,3),IF($C$15=2,VLOOKUP(A52,Articles!$A$6:$AF$3038,20),IF($C$15=3,VLOOKUP(A52,Articles!$A$6:$AF$3038,21),IF($C$15=4,VLOOKUP(A52,Articles!$A$6:$AF$3038,22),"Erreur"))))) ->  | G52: 0 | H52: =IF(ISBLANK(A52),0,VLOOKUP(A52,Articles!$A$6:$Q$3002,8)) -> 0 | I52: =IF(ISBLANK(A52),0,IF(Variables!$A$13="TTC",IF(H52=1,G52-(G52*100)/(100+Variables!$A$2),(IF(H52=2,G52-(G52*100)/(100+Variables!$A$3),0))),IF(H52=1,G52*Variables!$A$2/(100),(IF(H52=2,G52*Variables!$A$3/(100),0))))) -> 0 | J52: =IF(ISBLANK(A52),"",VLOOKUP(A52,Articles!$A$5:$AF$3000,11)) ->  | K52: =IF(ISBLANK(A52),"",(VLOOKUP(A52,Articles!$A$5:$AH$3002,34))*C52) -> 
B53: =IF(ISBLANK(A53),"",VLOOKUP(A53,Articles!$A$6:$AF$3002,2)) ->  | D53: =IF(ISBLANK(A53),"",VLOOKUP(A53,Articles!$A$6:$AF$3002,6)) ->  | E53: =IF(ISBLANK(A53),"",IF($C$15=1,VLOOKUP(A53,Articles!$A$6:$AF$3038,3),IF($C$15=2,VLOOKUP(A53,Articles!$A$6:$AF$3038,20),IF($C$15=3,VLOOKUP(A53,Articles!$A$6:$AF$3038,21),IF($C$15=4,VLOOKUP(A53,Articles!$A$6:$AF$3038,22),"Erreur"))))) ->  | G53: 0 | H53: =IF(ISBLANK(A53),0,VLOOKUP(A53,Articles!$A$6:$Q$3002,8)) -> 0 | I53: =IF(ISBLANK(A53),0,IF(Variables!$A$13="TTC",IF(H53=1,G53-(G53*100)/(100+Variables!$A$2),(IF(H53=2,G53-(G53*100)/(100+Variables!$A$3),0))),IF(H53=1,G53*Variables!$A$2/(100),(IF(H53=2,G53*Variables!$A$3/(100),0))))) -> 0 | J53: =IF(ISBLANK(A53),"",VLOOKUP(A53,Articles!$A$5:$AF$3000,11)) ->  | K53: =IF(ISBLANK(A53),"",(VLOOKUP(A53,Articles!$A$5:$AH$3002,34))*C53) -> 
B54: =IF(ISBLANK(A54),"",VLOOKUP(A54,Articles!$A$6:$AF$3002,2)) ->  | D54: =IF(ISBLANK(A54),"",VLOOKUP(A54,Articles!$A$6:$AF$3002,6)) ->  | E54: =IF(ISBLANK(A54),"",IF($C$15=1,VLOOKUP(A54,Articles!$A$6:$AF$3038,3),IF($C$15=2,VLOOKUP(A54,Articles!$A$6:$AF$3038,20),IF($C$15=3,VLOOKUP(A54,Articles!$A$6:$AF$3038,21),IF($C$15=4,VLOOKUP(A54,Articles!$A$6:$AF$3038,22),"Erreur"))))) ->  | G54: 0 | H54: =IF(ISBLANK(A54),0,VLOOKUP(A54,Articles!$A$6:$Q$3002,8)) -> 0 | I54: =IF(ISBLANK(A54),0,IF(Variables!$A$13="TTC",IF(H54=1,G54-(G54*100)/(100+Variables!$A$2),(IF(H54=2,G54-(G54*100)/(100+Variables!$A$3),0))),IF(H54=1,G54*Variables!$A$2/(100),(IF(H54=2,G54*Variables!$A$3/(100),0))))) -> 0 | J54: =IF(ISBLANK(A54),"",VLOOKUP(A54,Articles!$A$5:$AF$3000,11)) ->  | K54: =IF(ISBLANK(A54),"",(VLOOKUP(A54,Articles!$A$5:$AH$3002,34))*C54) -> 
B55: =IF(ISBLANK(A55),"",VLOOKUP(A55,Articles!$A$6:$AF$3002,2)) ->  | D55: =IF(ISBLANK(A55),"",VLOOKUP(A55,Articles!$A$6:$AF$3002,6)) ->  | E55: =IF(ISBLANK(A55),"",IF($C$15=1,VLOOKUP(A55,Articles!$A$6:$AF$3038,3),IF($C$15=2,VLOOKUP(A55,Articles!$A$6:$AF$3038,20),IF($C$15=3,VLOOKUP(A55,Articles!$A$6:$AF$3038,21),IF($C$15=4,VLOOKUP(A55,Articles!$A$6:$AF$3038,22),"Erreur"))))) ->  | G55: 0 | H55: =IF(ISBLANK(A55),0,VLOOKUP(A55,Articles!$A$6:$Q$3002,8)) -> 0 | I55: =IF(ISBLANK(A55),0,IF(Variables!$A$13="TTC",IF(H55=1,G55-(G55*100)/(100+Variables!$A$2),(IF(H55=2,G55-(G55*100)/(100+Variables!$A$3),0))),IF(H55=1,G55*Variables!$A$2/(100),(IF(H55=2,G55*Variables!$A$3/(100),0))))) -> 0 | J55: =IF(ISBLANK(A55),"",VLOOKUP(A55,Articles!$A$5:$AF$3000,11)) ->  | K55: =IF(ISBLANK(A55),"",(VLOOKUP(A55,Articles!$A$5:$AH$3002,34))*C55) -> 
B56: =IF(ISBLANK(A56),"",VLOOKUP(A56,Articles!$A$6:$AF$3002,2)) ->  | D56: =IF(ISBLANK(A56),"",VLOOKUP(A56,Articles!$A$6:$AF$3002,6)) ->  | E56: =IF(ISBLANK(A56),"",IF($C$15=1,VLOOKUP(A56,Articles!$A$6:$AF$3038,3),IF($C$15=2,VLOOKUP(A56,Articles!$A$6:$AF$3038,20),IF($C$15=3,VLOOKUP(A56,Articles!$A$6:$AF$3038,21),IF($C$15=4,VLOOKUP(A56,Articles!$A$6:$AF$3038,22),"Erreur"))))) ->  | G56: 0 | H56: =IF(ISBLANK(A56),0,VLOOKUP(A56,Articles!$A$6:$Q$3002,8)) -> 0 | I56: =IF(ISBLANK(A56),0,IF(Variables!$A$13="TTC",IF(H56=1,G56-(G56*100)/(100+Variables!$A$2),(IF(H56=2,G56-(G56*100)/(100+Variables!$A$3),0))),IF(H56=1,G56*Variables!$A$2/(100),(IF(H56=2,G56*Variables!$A$3/(100),0))))) -> 0 | J56: =IF(ISBLANK(A56),"",VLOOKUP(A56,Articles!$A$5:$AF$3000,11)) ->  | K56: =IF(ISBLANK(A56),"",(VLOOKUP(A56,Articles!$A$5:$AH$3002,34))*C56) -> 
B57: =IF(ISBLANK(A57),"",VLOOKUP(A57,Articles!$A$6:$AF$3002,2)) ->  | D57: =IF(ISBLANK(A57),"",VLOOKUP(A57,Articles!$A$6:$AF$3002,6)) ->  | E57: =IF(ISBLANK(A57),"",IF($C$15=1,VLOOKUP(A57,Articles!$A$6:$AF$3038,3),IF($C$15=2,VLOOKUP(A57,Articles!$A$6:$AF$3038,20),IF($C$15=3,VLOOKUP(A57,Articles!$A$6:$AF$3038,21),IF($C$15=4,VLOOKUP(A57,Articles!$A$6:$AF$3038,22),"Erreur"))))) ->  | G57: 0 | H57: =IF(ISBLANK(A57),0,VLOOKUP(A57,Articles!$A$6:$Q$3002,8)) -> 0 | I57: =IF(ISBLANK(A57),0,IF(Variables!$A$13="TTC",IF(H57=1,G57-(G57*100)/(100+Variables!$A$2),(IF(H57=2,G57-(G57*100)/(100+Variables!$A$3),0))),IF(H57=1,G57*Variables!$A$2/(100),(IF(H57=2,G57*Variables!$A$3/(100),0))))) -> 0 | J57: =IF(ISBLANK(A57),"",VLOOKUP(A57,Articles!$A$5:$AF$3000,11)) ->  | K57: =IF(ISBLANK(A57),"",(VLOOKUP(A57,Articles!$A$5:$AH$3002,34))*C57) -> 
B58: =IF(ISBLANK(A58),"",VLOOKUP(A58,Articles!$A$6:$AF$3002,2)) ->  | D58: =IF(ISBLANK(A58),"",VLOOKUP(A58,Articles!$A$6:$AF$3002,6)) ->  | E58: =IF(ISBLANK(A58),"",IF($C$15=1,VLOOKUP(A58,Articles!$A$6:$AF$3038,3),IF($C$15=2,VLOOKUP(A58,Articles!$A$6:$AF$3038,20),IF($C$15=3,VLOOKUP(A58,Articles!$A$6:$AF$3038,21),IF($C$15=4,VLOOKUP(A58,Articles!$A$6:$AF$3038,22),"Erreur"))))) ->  | G58: 0 | H58: =IF(ISBLANK(A58),0,VLOOKUP(A58,Articles!$A$6:$Q$3002,8)) -> 0 | I58: =IF(ISBLANK(A58),0,IF(Variables!$A$13="TTC",IF(H58=1,G58-(G58*100)/(100+Variables!$A$2),(IF(H58=2,G58-(G58*100)/(100+Variables!$A$3),0))),IF(H58=1,G58*Variables!$A$2/(100),(IF(H58=2,G58*Variables!$A$3/(100),0))))) -> 0 | J58: =IF(ISBLANK(A58),"",VLOOKUP(A58,Articles!$A$5:$AF$3000,11)) ->  | K58: =IF(ISBLANK(A58),"",(VLOOKUP(A58,Articles!$A$5:$AH$3002,34))*C58) -> 
B59: =IF(ISBLANK(A59),"",VLOOKUP(A59,Articles!$A$6:$AF$3002,2)) ->  | D59: =IF(ISBLANK(A59),"",VLOOKUP(A59,Articles!$A$6:$AF$3002,6)) ->  | E59: =IF(ISBLANK(A59),"",IF($C$15=1,VLOOKUP(A59,Articles!$A$6:$AF$3038,3),IF($C$15=2,VLOOKUP(A59,Articles!$A$6:$AF$3038,20),IF($C$15=3,VLOOKUP(A59,Articles!$A$6:$AF$3038,21),IF($C$15=4,VLOOKUP(A59,Articles!$A$6:$AF$3038,22),"Erreur"))))) ->  | G59: 0 | H59: =IF(ISBLANK(A59),0,VLOOKUP(A59,Articles!$A$6:$Q$3002,8)) -> 0 | I59: =IF(ISBLANK(A59),0,IF(Variables!$A$13="TTC",IF(H59=1,G59-(G59*100)/(100+Variables!$A$2),(IF(H59=2,G59-(G59*100)/(100+Variables!$A$3),0))),IF(H59=1,G59*Variables!$A$2/(100),(IF(H59=2,G59*Variables!$A$3/(100),0))))) -> 0 | J59: =IF(ISBLANK(A59),"",VLOOKUP(A59,Articles!$A$5:$AF$3000,11)) ->  | K59: =IF(ISBLANK(A59),"",(VLOOKUP(A59,Articles!$A$5:$AH$3002,34))*C59) -> 
B60: =IF(ISBLANK(A60),"",VLOOKUP(A60,Articles!$A$6:$AF$3002,2)) ->  | D60: =IF(ISBLANK(A60),"",VLOOKUP(A60,Articles!$A$6:$AF$3002,6)) ->  | E60: =IF(ISBLANK(A60),"",IF($C$15=1,VLOOKUP(A60,Articles!$A$6:$AF$3038,3),IF($C$15=2,VLOOKUP(A60,Articles!$A$6:$AF$3038,20),IF($C$15=3,VLOOKUP(A60,Articles!$A$6:$AF$3038,21),IF($C$15=4,VLOOKUP(A60,Articles!$A$6:$AF$3038,22),"Erreur"))))) ->  | G60: 0 | H60: =IF(ISBLANK(A60),0,VLOOKUP(A60,Articles!$A$6:$Q$3002,8)) -> 0 | I60: =IF(ISBLANK(A60),0,IF(Variables!$A$13="TTC",IF(H60=1,G60-(G60*100)/(100+Variables!$A$2),(IF(H60=2,G60-(G60*100)/(100+Variables!$A$3),0))),IF(H60=1,G60*Variables!$A$2/(100),(IF(H60=2,G60*Variables!$A$3/(100),0))))) -> 0 | J60: =IF(ISBLANK(A60),"",VLOOKUP(A60,Articles!$A$5:$AF$3000,11)) ->  | K60: =IF(ISBLANK(A60),"",(VLOOKUP(A60,Articles!$A$5:$AH$3002,34))*C60) -> 
B61: =IF(ISBLANK(A61),"",VLOOKUP(A61,Articles!$A$6:$AF$3002,2)) ->  | D61: =IF(ISBLANK(A61),"",VLOOKUP(A61,Articles!$A$6:$AF$3002,6)) ->  | E61: =IF(ISBLANK(A61),"",IF($C$15=1,VLOOKUP(A61,Articles!$A$6:$AF$3038,3),IF($C$15=2,VLOOKUP(A61,Articles!$A$6:$AF$3038,20),IF($C$15=3,VLOOKUP(A61,Articles!$A$6:$AF$3038,21),IF($C$15=4,VLOOKUP(A61,Articles!$A$6:$AF$3038,22),"Erreur"))))) ->  | G61: 0 | H61: =IF(ISBLANK(A61),0,VLOOKUP(A61,Articles!$A$6:$Q$3002,8)) -> 0 | I61: =IF(ISBLANK(A61),0,IF(Variables!$A$13="TTC",IF(H61=1,G61-(G61*100)/(100+Variables!$A$2),(IF(H61=2,G61-(G61*100)/(100+Variables!$A$3),0))),IF(H61=1,G61*Variables!$A$2/(100),(IF(H61=2,G61*Variables!$A$3/(100),0))))) -> 0 | J61: =IF(ISBLANK(A61),"",VLOOKUP(A61,Articles!$A$5:$AF$3000,11)) ->  | K61: =IF(ISBLANK(A61),"",(VLOOKUP(A61,Articles!$A$5:$AH$3002,34))*C61) -> 
B62: =IF(ISBLANK(A62),"",VLOOKUP(A62,Articles!$A$6:$AF$3002,2)) ->  | D62: =IF(ISBLANK(A62),"",VLOOKUP(A62,Articles!$A$6:$AF$3002,6)) ->  | E62: =IF(ISBLANK(A62),"",IF($C$15=1,VLOOKUP(A62,Articles!$A$6:$AF$3038,3),IF($C$15=2,VLOOKUP(A62,Articles!$A$6:$AF$3038,20),IF($C$15=3,VLOOKUP(A62,Articles!$A$6:$AF$3038,21),IF($C$15=4,VLOOKUP(A62,Articles!$A$6:$AF$3038,22),"Erreur"))))) ->  | G62: 0 | H62: =IF(ISBLANK(A62),0,VLOOKUP(A62,Articles!$A$6:$Q$3002,8)) -> 0 | I62: =IF(ISBLANK(A62),0,IF(Variables!$A$13="TTC",IF(H62=1,G62-(G62*100)/(100+Variables!$A$2),(IF(H62=2,G62-(G62*100)/(100+Variables!$A$3),0))),IF(H62=1,G62*Variables!$A$2/(100),(IF(H62=2,G62*Variables!$A$3/(100),0))))) -> 0 | J62: =IF(ISBLANK(A62),"",VLOOKUP(A62,Articles!$A$5:$AF$3000,11)) ->  | K62: =IF(ISBLANK(A62),"",(VLOOKUP(A62,Articles!$A$5:$AH$3002,34))*C62) -> 
B63: =IF(ISBLANK(A63),"",VLOOKUP(A63,Articles!$A$6:$AF$3002,2)) ->  | D63: =IF(ISBLANK(A63),"",VLOOKUP(A63,Articles!$A$6:$AF$3002,6)) ->  | E63: =IF(ISBLANK(A63),"",IF($C$15=1,VLOOKUP(A63,Articles!$A$6:$AF$3038,3),IF($C$15=2,VLOOKUP(A63,Articles!$A$6:$AF$3038,20),IF($C$15=3,VLOOKUP(A63,Articles!$A$6:$AF$3038,21),IF($C$15=4,VLOOKUP(A63,Articles!$A$6:$AF$3038,22),"Erreur"))))) ->  | G63: 0 | H63: =IF(ISBLANK(A63),0,VLOOKUP(A63,Articles!$A$6:$Q$3002,8)) -> 0 | I63: =IF(ISBLANK(A63),0,IF(Variables!$A$13="TTC",IF(H63=1,G63-(G63*100)/(100+Variables!$A$2),(IF(H63=2,G63-(G63*100)/(100+Variables!$A$3),0))),IF(H63=1,G63*Variables!$A$2/(100),(IF(H63=2,G63*Variables!$A$3/(100),0))))) -> 0 | J63: =IF(ISBLANK(A63),"",VLOOKUP(A63,Articles!$A$5:$AF$3000,11)) ->  | K63: =IF(ISBLANK(A63),"",(VLOOKUP(A63,Articles!$A$5:$AH$3002,34))*C63) -> 
B64: =IF(ISBLANK(A64),"",VLOOKUP(A64,Articles!$A$6:$AF$3002,2)) ->  | D64: =IF(ISBLANK(A64),"",VLOOKUP(A64,Articles!$A$6:$AF$3002,6)) ->  | E64: =IF(ISBLANK(A64),"",IF($C$15=1,VLOOKUP(A64,Articles!$A$6:$AF$3038,3),IF($C$15=2,VLOOKUP(A64,Articles!$A$6:$AF$3038,20),IF($C$15=3,VLOOKUP(A64,Articles!$A$6:$AF$3038,21),IF($C$15=4,VLOOKUP(A64,Articles!$A$6:$AF$3038,22),"Erreur"))))) ->  | G64: 0 | H64: =IF(ISBLANK(A64),0,VLOOKUP(A64,Articles!$A$6:$Q$3002,8)) -> 0 | I64: =IF(ISBLANK(A64),0,IF(Variables!$A$13="TTC",IF(H64=1,G64-(G64*100)/(100+Variables!$A$2),(IF(H64=2,G64-(G64*100)/(100+Variables!$A$3),0))),IF(H64=1,G64*Variables!$A$2/(100),(IF(H64=2,G64*Variables!$A$3/(100),0))))) -> 0 | J64: =IF(ISBLANK(A64),"",VLOOKUP(A64,Articles!$A$5:$AF$3000,11)) ->  | K64: =IF(ISBLANK(A64),"",(VLOOKUP(A64,Articles!$A$5:$AH$3002,34))*C64) -> 
B65: =IF(ISBLANK(A65),"",VLOOKUP(A65,Articles!$A$6:$AF$3002,2)) ->  | D65: =IF(ISBLANK(A65),"",VLOOKUP(A65,Articles!$A$6:$AF$3002,6)) ->  | E65: =IF(ISBLANK(A65),"",IF($C$15=1,VLOOKUP(A65,Articles!$A$6:$AF$3038,3),IF($C$15=2,VLOOKUP(A65,Articles!$A$6:$AF$3038,20),IF($C$15=3,VLOOKUP(A65,Articles!$A$6:$AF$3038,21),IF($C$15=4,VLOOKUP(A65,Articles!$A$6:$AF$3038,22),"Erreur"))))) ->  | G65: 0 | H65: =IF(ISBLANK(A65),0,VLOOKUP(A65,Articles!$A$6:$Q$3002,8)) -> 0 | I65: =IF(ISBLANK(A65),0,IF(Variables!$A$13="TTC",IF(H65=1,G65-(G65*100)/(100+Variables!$A$2),(IF(H65=2,G65-(G65*100)/(100+Variables!$A$3),0))),IF(H65=1,G65*Variables!$A$2/(100),(IF(H65=2,G65*Variables!$A$3/(100),0))))) -> 0 | J65: =IF(ISBLANK(A65),"",VLOOKUP(A65,Articles!$A$5:$AF$3000,11)) ->  | K65: =IF(ISBLANK(A65),"",(VLOOKUP(A65,Articles!$A$5:$AH$3002,34))*C65) -> 
B66: =IF(ISBLANK(A66),"",VLOOKUP(A66,Articles!$A$6:$AF$3002,2)) ->  | D66: =IF(ISBLANK(A66),"",VLOOKUP(A66,Articles!$A$6:$AF$3002,6)) ->  | E66: =IF(ISBLANK(A66),"",IF($C$15=1,VLOOKUP(A66,Articles!$A$6:$AF$3038,3),IF($C$15=2,VLOOKUP(A66,Articles!$A$6:$AF$3038,20),IF($C$15=3,VLOOKUP(A66,Articles!$A$6:$AF$3038,21),IF($C$15=4,VLOOKUP(A66,Articles!$A$6:$AF$3038,22),"Erreur"))))) ->  | G66: 0 | H66: =IF(ISBLANK(A66),0,VLOOKUP(A66,Articles!$A$6:$Q$3002,8)) -> 0 | I66: =IF(ISBLANK(A66),0,IF(Variables!$A$13="TTC",IF(H66=1,G66-(G66*100)/(100+Variables!$A$2),(IF(H66=2,G66-(G66*100)/(100+Variables!$A$3),0))),IF(H66=1,G66*Variables!$A$2/(100),(IF(H66=2,G66*Variables!$A$3/(100),0))))) -> 0 | J66: =IF(ISBLANK(A66),"",VLOOKUP(A66,Articles!$A$5:$AF$3000,11)) ->  | K66: =IF(ISBLANK(A66),"",(VLOOKUP(A66,Articles!$A$5:$AH$3002,34))*C66) -> 
B67: =IF(ISBLANK(A67),"",VLOOKUP(A67,Articles!$A$6:$AF$3002,2)) ->  | D67: =IF(ISBLANK(A67),"",VLOOKUP(A67,Articles!$A$6:$AF$3002,6)) ->  | E67: =IF(ISBLANK(A67),"",IF($C$15=1,VLOOKUP(A67,Articles!$A$6:$AF$3038,3),IF($C$15=2,VLOOKUP(A67,Articles!$A$6:$AF$3038,20),IF($C$15=3,VLOOKUP(A67,Articles!$A$6:$AF$3038,21),IF($C$15=4,VLOOKUP(A67,Articles!$A$6:$AF$3038,22),"Erreur"))))) ->  | G67: 0 | H67: =IF(ISBLANK(A67),0,VLOOKUP(A67,Articles!$A$6:$Q$3002,8)) -> 0 | I67: =IF(ISBLANK(A67),0,IF(Variables!$A$13="TTC",IF(H67=1,G67-(G67*100)/(100+Variables!$A$2),(IF(H67=2,G67-(G67*100)/(100+Variables!$A$3),0))),IF(H67=1,G67*Variables!$A$2/(100),(IF(H67=2,G67*Variables!$A$3/(100),0))))) -> 0 | J67: =IF(ISBLANK(A67),"",VLOOKUP(A67,Articles!$A$5:$AF$3000,11)) ->  | K67: =IF(ISBLANK(A67),"",(VLOOKUP(A67,Articles!$A$5:$AH$3002,34))*C67) -> 
B68: =IF(ISBLANK(A68),"",VLOOKUP(A68,Articles!$A$6:$AF$3002,2)) ->  | D68: =IF(ISBLANK(A68),"",VLOOKUP(A68,Articles!$A$6:$AF$3002,6)) ->  | E68: =IF(ISBLANK(A68),"",IF($C$15=1,VLOOKUP(A68,Articles!$A$6:$AF$3038,3),IF($C$15=2,VLOOKUP(A68,Articles!$A$6:$AF$3038,20),IF($C$15=3,VLOOKUP(A68,Articles!$A$6:$AF$3038,21),IF($C$15=4,VLOOKUP(A68,Articles!$A$6:$AF$3038,22),"Erreur"))))) ->  | G68: 0 | H68: =IF(ISBLANK(A68),0,VLOOKUP(A68,Articles!$A$6:$Q$3002,8)) -> 0 | I68: =IF(ISBLANK(A68),0,IF(Variables!$A$13="TTC",IF(H68=1,G68-(G68*100)/(100+Variables!$A$2),(IF(H68=2,G68-(G68*100)/(100+Variables!$A$3),0))),IF(H68=1,G68*Variables!$A$2/(100),(IF(H68=2,G68*Variables!$A$3/(100),0))))) -> 0 | J68: =IF(ISBLANK(A68),"",VLOOKUP(A68,Articles!$A$5:$AF$3000,11)) ->  | K68: =IF(ISBLANK(A68),"",(VLOOKUP(A68,Articles!$A$5:$AH$3002,34))*C68) -> 
B69: =IF(ISBLANK(A69),"",VLOOKUP(A69,Articles!$A$6:$AF$3002,2)) ->  | D69: =IF(ISBLANK(A69),"",VLOOKUP(A69,Articles!$A$6:$AF$3002,6)) ->  | E69: =IF(ISBLANK(A69),"",IF($C$15=1,VLOOKUP(A69,Articles!$A$6:$AF$3038,3),IF($C$15=2,VLOOKUP(A69,Articles!$A$6:$AF$3038,20),IF($C$15=3,VLOOKUP(A69,Articles!$A$6:$AF$3038,21),IF($C$15=4,VLOOKUP(A69,Articles!$A$6:$AF$3038,22),"Erreur"))))) ->  | G69: 0 | H69: =IF(ISBLANK(A69),0,VLOOKUP(A69,Articles!$A$6:$Q$3002,8)) -> 0 | I69: =IF(ISBLANK(A69),0,IF(Variables!$A$13="TTC",IF(H69=1,G69-(G69*100)/(100+Variables!$A$2),(IF(H69=2,G69-(G69*100)/(100+Variables!$A$3),0))),IF(H69=1,G69*Variables!$A$2/(100),(IF(H69=2,G69*Variables!$A$3/(100),0))))) -> 0 | J69: =IF(ISBLANK(A69),"",VLOOKUP(A69,Articles!$A$5:$AF$3000,11)) ->  | K69: =IF(ISBLANK(A69),"",(VLOOKUP(A69,Articles!$A$5:$AH$3002,34))*C69) -> 
B70: =IF(ISBLANK(A70),"",VLOOKUP(A70,Articles!$A$6:$AF$3002,2)) ->  | D70: =IF(ISBLANK(A70),"",VLOOKUP(A70,Articles!$A$6:$AF$3002,6)) ->  | E70: =IF(ISBLANK(A70),"",IF($C$15=1,VLOOKUP(A70,Articles!$A$6:$AF$3038,3),IF($C$15=2,VLOOKUP(A70,Articles!$A$6:$AF$3038,20),IF($C$15=3,VLOOKUP(A70,Articles!$A$6:$AF$3038,21),IF($C$15=4,VLOOKUP(A70,Articles!$A$6:$AF$3038,22),"Erreur"))))) ->  | G70: 0 | H70: =IF(ISBLANK(A70),0,VLOOKUP(A70,Articles!$A$6:$Q$3002,8)) -> 0 | I70: =IF(ISBLANK(A70),0,IF(Variables!$A$13="TTC",IF(H70=1,G70-(G70*100)/(100+Variables!$A$2),(IF(H70=2,G70-(G70*100)/(100+Variables!$A$3),0))),IF(H70=1,G70*Variables!$A$2/(100),(IF(H70=2,G70*Variables!$A$3/(100),0))))) -> 0 | J70: =IF(ISBLANK(A70),"",VLOOKUP(A70,Articles!$A$5:$AF$3000,11)) ->  | K70: =IF(ISBLANK(A70),"",(VLOOKUP(A70,Articles!$A$5:$AH$3002,34))*C70) -> 
B71: =IF(ISBLANK(A71),"",VLOOKUP(A71,Articles!$A$6:$AF$3002,2)) ->  | D71: =IF(ISBLANK(A71),"",VLOOKUP(A71,Articles!$A$6:$AF$3002,6)) ->  | E71: =IF(ISBLANK(A71),"",IF($C$15=1,VLOOKUP(A71,Articles!$A$6:$AF$3038,3),IF($C$15=2,VLOOKUP(A71,Articles!$A$6:$AF$3038,20),IF($C$15=3,VLOOKUP(A71,Articles!$A$6:$AF$3038,21),IF($C$15=4,VLOOKUP(A71,Articles!$A$6:$AF$3038,22),"Erreur"))))) ->  | G71: 0 | H71: =IF(ISBLANK(A71),0,VLOOKUP(A71,Articles!$A$6:$Q$3002,8)) -> 0 | I71: =IF(ISBLANK(A71),0,IF(Variables!$A$13="TTC",IF(H71=1,G71-(G71*100)/(100+Variables!$A$2),(IF(H71=2,G71-(G71*100)/(100+Variables!$A$3),0))),IF(H71=1,G71*Variables!$A$2/(100),(IF(H71=2,G71*Variables!$A$3/(100),0))))) -> 0 | J71: =IF(ISBLANK(A71),"",VLOOKUP(A71,Articles!$A$5:$AF$3000,11)) ->  | K71: =IF(ISBLANK(A71),"",(VLOOKUP(A71,Articles!$A$5:$AH$3002,34))*C71) -> 
B72: =IF(ISBLANK(A72),"",VLOOKUP(A72,Articles!$A$6:$AF$3002,2)) ->  | D72: =IF(ISBLANK(A72),"",VLOOKUP(A72,Articles!$A$6:$AF$3002,6)) ->  | E72: =IF(ISBLANK(A72),"",IF($C$15=1,VLOOKUP(A72,Articles!$A$6:$AF$3038,3),IF($C$15=2,VLOOKUP(A72,Articles!$A$6:$AF$3038,20),IF($C$15=3,VLOOKUP(A72,Articles!$A$6:$AF$3038,21),IF($C$15=4,VLOOKUP(A72,Articles!$A$6:$AF$3038,22),"Erreur"))))) ->  | G72: 0 | H72: =IF(ISBLANK(A72),0,VLOOKUP(A72,Articles!$A$6:$Q$3002,8)) -> 0 | I72: =IF(ISBLANK(A72),0,IF(Variables!$A$13="TTC",IF(H72=1,G72-(G72*100)/(100+Variables!$A$2),(IF(H72=2,G72-(G72*100)/(100+Variables!$A$3),0))),IF(H72=1,G72*Variables!$A$2/(100),(IF(H72=2,G72*Variables!$A$3/(100),0))))) -> 0 | J72: =IF(ISBLANK(A72),"",VLOOKUP(A72,Articles!$A$5:$AF$3000,11)) ->  | K72: =IF(ISBLANK(A72),"",(VLOOKUP(A72,Articles!$A$5:$AH$3002,34))*C72) -> 
B73: =IF(ISBLANK(A73),"",VLOOKUP(A73,Articles!$A$6:$AF$3002,2)) ->  | D73: =IF(ISBLANK(A73),"",VLOOKUP(A73,Articles!$A$6:$AF$3002,6)) ->  | E73: =IF(ISBLANK(A73),"",IF($C$15=1,VLOOKUP(A73,Articles!$A$6:$AF$3038,3),IF($C$15=2,VLOOKUP(A73,Articles!$A$6:$AF$3038,20),IF($C$15=3,VLOOKUP(A73,Articles!$A$6:$AF$3038,21),IF($C$15=4,VLOOKUP(A73,Articles!$A$6:$AF$3038,22),"Erreur"))))) ->  | G73: 0 | H73: =IF(ISBLANK(A73),0,VLOOKUP(A73,Articles!$A$6:$Q$3002,8)) -> 0 | I73: =IF(ISBLANK(A73),0,IF(Variables!$A$13="TTC",IF(H73=1,G73-(G73*100)/(100+Variables!$A$2),(IF(H73=2,G73-(G73*100)/(100+Variables!$A$3),0))),IF(H73=1,G73*Variables!$A$2/(100),(IF(H73=2,G73*Variables!$A$3/(100),0))))) -> 0 | J73: =IF(ISBLANK(A73),"",VLOOKUP(A73,Articles!$A$5:$AF$3000,11)) ->  | K73: =IF(ISBLANK(A73),"",(VLOOKUP(A73,Articles!$A$5:$AH$3002,34))*C73) -> 
B74: =IF(ISBLANK(A74),"",VLOOKUP(A74,Articles!$A$6:$AF$3002,2)) ->  | D74: =IF(ISBLANK(A74),"",VLOOKUP(A74,Articles!$A$6:$AF$3002,6)) ->  | E74: =IF(ISBLANK(A74),"",IF($C$15=1,VLOOKUP(A74,Articles!$A$6:$AF$3038,3),IF($C$15=2,VLOOKUP(A74,Articles!$A$6:$AF$3038,20),IF($C$15=3,VLOOKUP(A74,Articles!$A$6:$AF$3038,21),IF($C$15=4,VLOOKUP(A74,Articles!$A$6:$AF$3038,22),"Erreur"))))) ->  | G74: 0 | H74: =IF(ISBLANK(A74),0,VLOOKUP(A74,Articles!$A$6:$Q$3002,8)) -> 0 | I74: =IF(ISBLANK(A74),0,IF(Variables!$A$13="TTC",IF(H74=1,G74-(G74*100)/(100+Variables!$A$2),(IF(H74=2,G74-(G74*100)/(100+Variables!$A$3),0))),IF(H74=1,G74*Variables!$A$2/(100),(IF(H74=2,G74*Variables!$A$3/(100),0))))) -> 0 | J74: =IF(ISBLANK(A74),"",VLOOKUP(A74,Articles!$A$5:$AF$3000,11)) ->  | K74: =IF(ISBLANK(A74),"",(VLOOKUP(A74,Articles!$A$5:$AH$3002,34))*C74) -> 
B75: =IF(ISBLANK(A75),"",VLOOKUP(A75,Articles!$A$6:$AF$3002,2)) ->  | D75: =IF(ISBLANK(A75),"",VLOOKUP(A75,Articles!$A$6:$AF$3002,6)) ->  | E75: =IF(ISBLANK(A75),"",IF($C$15=1,VLOOKUP(A75,Articles!$A$6:$AF$3038,3),IF($C$15=2,VLOOKUP(A75,Articles!$A$6:$AF$3038,20),IF($C$15=3,VLOOKUP(A75,Articles!$A$6:$AF$3038,21),IF($C$15=4,VLOOKUP(A75,Articles!$A$6:$AF$3038,22),"Erreur"))))) ->  | G75: 0 | H75: =IF(ISBLANK(A75),0,VLOOKUP(A75,Articles!$A$6:$Q$3002,8)) -> 0 | I75: =IF(ISBLANK(A75),0,IF(Variables!$A$13="TTC",IF(H75=1,G75-(G75*100)/(100+Variables!$A$2),(IF(H75=2,G75-(G75*100)/(100+Variables!$A$3),0))),IF(H75=1,G75*Variables!$A$2/(100),(IF(H75=2,G75*Variables!$A$3/(100),0))))) -> 0 | J75: =IF(ISBLANK(A75),"",VLOOKUP(A75,Articles!$A$5:$AF$3000,11)) ->  | K75: =IF(ISBLANK(A75),"",(VLOOKUP(A75,Articles!$A$5:$AH$3002,34))*C75) -> 
B76: =IF(ISBLANK(A76),"",VLOOKUP(A76,Articles!$A$6:$AF$3002,2)) ->  | D76: =IF(ISBLANK(A76),"",VLOOKUP(A76,Articles!$A$6:$AF$3002,6)) ->  | E76: =IF(ISBLANK(A76),"",IF($C$15=1,VLOOKUP(A76,Articles!$A$6:$AF$3038,3),IF($C$15=2,VLOOKUP(A76,Articles!$A$6:$AF$3038,20),IF($C$15=3,VLOOKUP(A76,Articles!$A$6:$AF$3038,21),IF($C$15=4,VLOOKUP(A76,Articles!$A$6:$AF$3038,22),"Erreur"))))) ->  | G76: 0 | H76: =IF(ISBLANK(A76),0,VLOOKUP(A76,Articles!$A$6:$Q$3002,8)) -> 0 | I76: =IF(ISBLANK(A76),0,IF(Variables!$A$13="TTC",IF(H76=1,G76-(G76*100)/(100+Variables!$A$2),(IF(H76=2,G76-(G76*100)/(100+Variables!$A$3),0))),IF(H76=1,G76*Variables!$A$2/(100),(IF(H76=2,G76*Variables!$A$3/(100),0))))) -> 0 | J76: =IF(ISBLANK(A76),"",VLOOKUP(A76,Articles!$A$5:$AF$3000,11)) ->  | K76: =IF(ISBLANK(A76),"",(VLOOKUP(A76,Articles!$A$5:$AH$3002,34))*C76) -> 
B77: =IF(ISBLANK(A77),"",VLOOKUP(A77,Articles!$A$6:$AF$3002,2)) ->  | D77: =IF(ISBLANK(A77),"",VLOOKUP(A77,Articles!$A$6:$AF$3002,6)) ->  | E77: =IF(ISBLANK(A77),"",IF($C$15=1,VLOOKUP(A77,Articles!$A$6:$AF$3038,3),IF($C$15=2,VLOOKUP(A77,Articles!$A$6:$AF$3038,20),IF($C$15=3,VLOOKUP(A77,Articles!$A$6:$AF$3038,21),IF($C$15=4,VLOOKUP(A77,Articles!$A$6:$AF$3038,22),"Erreur"))))) ->  | G77: 0 | H77: =IF(ISBLANK(A77),0,VLOOKUP(A77,Articles!$A$6:$Q$3002,8)) -> 0 | I77: =IF(ISBLANK(A77),0,IF(Variables!$A$13="TTC",IF(H77=1,G77-(G77*100)/(100+Variables!$A$2),(IF(H77=2,G77-(G77*100)/(100+Variables!$A$3),0))),IF(H77=1,G77*Variables!$A$2/(100),(IF(H77=2,G77*Variables!$A$3/(100),0))))) -> 0 | J77: =IF(ISBLANK(A77),"",VLOOKUP(A77,Articles!$A$5:$AF$3000,11)) ->  | K77: =IF(ISBLANK(A77),"",(VLOOKUP(A77,Articles!$A$5:$AH$3002,34))*C77) -> 
B78: =IF(ISBLANK(A78),"",VLOOKUP(A78,Articles!$A$6:$AF$3002,2)) ->  | D78: =IF(ISBLANK(A78),"",VLOOKUP(A78,Articles!$A$6:$AF$3002,6)) ->  | E78: =IF(ISBLANK(A78),"",IF($C$15=1,VLOOKUP(A78,Articles!$A$6:$AF$3038,3),IF($C$15=2,VLOOKUP(A78,Articles!$A$6:$AF$3038,20),IF($C$15=3,VLOOKUP(A78,Articles!$A$6:$AF$3038,21),IF($C$15=4,VLOOKUP(A78,Articles!$A$6:$AF$3038,22),"Erreur"))))) ->  | G78: 0 | H78: =IF(ISBLANK(A78),0,VLOOKUP(A78,Articles!$A$6:$Q$3002,8)) -> 0 | I78: =IF(ISBLANK(A78),0,IF(Variables!$A$13="TTC",IF(H78=1,G78-(G78*100)/(100+Variables!$A$2),(IF(H78=2,G78-(G78*100)/(100+Variables!$A$3),0))),IF(H78=1,G78*Variables!$A$2/(100),(IF(H78=2,G78*Variables!$A$3/(100),0))))) -> 0 | J78: =IF(ISBLANK(A78),"",VLOOKUP(A78,Articles!$A$5:$AF$3000,11)) ->  | K78: =IF(ISBLANK(A78),"",(VLOOKUP(A78,Articles!$A$5:$AH$3002,34))*C78) -> 
B79: =IF(ISBLANK(A79),"",VLOOKUP(A79,Articles!$A$6:$AF$3002,2)) ->  | D79: =IF(ISBLANK(A79),"",VLOOKUP(A79,Articles!$A$6:$AF$3002,6)) ->  | E79: =IF(ISBLANK(A79),"",IF($C$15=1,VLOOKUP(A79,Articles!$A$6:$AF$3038,3),IF($C$15=2,VLOOKUP(A79,Articles!$A$6:$AF$3038,20),IF($C$15=3,VLOOKUP(A79,Articles!$A$6:$AF$3038,21),IF($C$15=4,VLOOKUP(A79,Articles!$A$6:$AF$3038,22),"Erreur"))))) ->  | G79: 0 | H79: =IF(ISBLANK(A79),0,VLOOKUP(A79,Articles!$A$6:$Q$3002,8)) -> 0 | I79: =IF(ISBLANK(A79),0,IF(Variables!$A$13="TTC",IF(H79=1,G79-(G79*100)/(100+Variables!$A$2),(IF(H79=2,G79-(G79*100)/(100+Variables!$A$3),0))),IF(H79=1,G79*Variables!$A$2/(100),(IF(H79=2,G79*Variables!$A$3/(100),0))))) -> 0 | J79: =IF(ISBLANK(A79),"",VLOOKUP(A79,Articles!$A$5:$AF$3000,11)) ->  | K79: =IF(ISBLANK(A79),"",(VLOOKUP(A79,Articles!$A$5:$AH$3002,34))*C79) -> 
B80: =IF(ISBLANK(A80),"",VLOOKUP(A80,Articles!$A$6:$AF$3002,2)) ->  | D80: =IF(ISBLANK(A80),"",VLOOKUP(A80,Articles!$A$6:$AF$3002,6)) ->  | E80: =IF(ISBLANK(A80),"",IF($C$15=1,VLOOKUP(A80,Articles!$A$6:$AF$3038,3),IF($C$15=2,VLOOKUP(A80,Articles!$A$6:$AF$3038,20),IF($C$15=3,VLOOKUP(A80,Articles!$A$6:$AF$3038,21),IF($C$15=4,VLOOKUP(A80,Articles!$A$6:$AF$3038,22),"Erreur"))))) ->  | G80: 0 | H80: =IF(ISBLANK(A80),0,VLOOKUP(A80,Articles!$A$6:$Q$3002,8)) -> 0 | I80: =IF(ISBLANK(A80),0,IF(Variables!$A$13="TTC",IF(H80=1,G80-(G80*100)/(100+Variables!$A$2),(IF(H80=2,G80-(G80*100)/(100+Variables!$A$3),0))),IF(H80=1,G80*Variables!$A$2/(100),(IF(H80=2,G80*Variables!$A$3/(100),0))))) -> 0 | J80: =IF(ISBLANK(A80),"",VLOOKUP(A80,Articles!$A$5:$AF$3000,11)) ->  | K80: =IF(ISBLANK(A80),"",(VLOOKUP(A80,Articles!$A$5:$AH$3002,34))*C80) -> 
B81: =IF(ISBLANK(A81),"",VLOOKUP(A81,Articles!$A$6:$AF$3002,2)) ->  | D81: =IF(ISBLANK(A81),"",VLOOKUP(A81,Articles!$A$6:$AF$3002,6)) ->  | E81: =IF(ISBLANK(A81),"",IF($C$15=1,VLOOKUP(A81,Articles!$A$6:$AF$3038,3),IF($C$15=2,VLOOKUP(A81,Articles!$A$6:$AF$3038,20),IF($C$15=3,VLOOKUP(A81,Articles!$A$6:$AF$3038,21),IF($C$15=4,VLOOKUP(A81,Articles!$A$6:$AF$3038,22),"Erreur"))))) ->  | G81: 0 | H81: =IF(ISBLANK(A81),0,VLOOKUP(A81,Articles!$A$6:$Q$3002,8)) -> 0 | I81: =IF(ISBLANK(A81),0,IF(Variables!$A$13="TTC",IF(H81=1,G81-(G81*100)/(100+Variables!$A$2),(IF(H81=2,G81-(G81*100)/(100+Variables!$A$3),0))),IF(H81=1,G81*Variables!$A$2/(100),(IF(H81=2,G81*Variables!$A$3/(100),0))))) -> 0 | J81: =IF(ISBLANK(A81),"",VLOOKUP(A81,Articles!$A$5:$AF$3000,11)) ->  | K81: =IF(ISBLANK(A81),"",(VLOOKUP(A81,Articles!$A$5:$AH$3002,34))*C81) -> 
B82: =IF(ISBLANK(A82),"",VLOOKUP(A82,Articles!$A$6:$AF$3002,2)) ->  | D82: =IF(ISBLANK(A82),"",VLOOKUP(A82,Articles!$A$6:$AF$3002,6)) ->  | E82: =IF(ISBLANK(A82),"",IF($C$15=1,VLOOKUP(A82,Articles!$A$6:$AF$3038,3),IF($C$15=2,VLOOKUP(A82,Articles!$A$6:$AF$3038,20),IF($C$15=3,VLOOKUP(A82,Articles!$A$6:$AF$3038,21),IF($C$15=4,VLOOKUP(A82,Articles!$A$6:$AF$3038,22),"Erreur"))))) ->  | G82: =IF(ISBLANK(A82),0,SUM(C82*E82)*(100-F82)/100) -> 0 | H82: =IF(ISBLANK(A82),0,VLOOKUP(A82,Articles!$A$6:$Q$3002,8)) -> 0 | I82: =IF(ISBLANK(A82),0,IF(Variables!$A$13="TTC",IF(H82=1,G82-(G82*100)/(100+Variables!$A$2),(IF(H82=2,G82-(G82*100)/(100+Variables!$A$3),0))),IF(H82=1,G82*Variables!$A$2/(100),(IF(H82=2,G82*Variables!$A$3/(100),0))))) -> 0 | J82: =IF(ISBLANK(A82),"",VLOOKUP(A82,Articles!$A$5:$AF$3000,11)) ->  | K82: =IF(ISBLANK(A82),"",(VLOOKUP(A82,Articles!$A$5:$AH$3002,34))*C82) -> 
B83: =IF(ISBLANK(A83),"",VLOOKUP(A83,Articles!$A$6:$AF$3002,2)) ->  | D83: =IF(ISBLANK(A83),"",VLOOKUP(A83,Articles!$A$6:$AF$3002,6)) ->  | E83: =IF(ISBLANK(A83),"",IF($C$15=1,VLOOKUP(A83,Articles!$A$6:$AF$3038,3),IF($C$15=2,VLOOKUP(A83,Articles!$A$6:$AF$3038,20),IF($C$15=3,VLOOKUP(A83,Articles!$A$6:$AF$3038,21),IF($C$15=4,VLOOKUP(A83,Articles!$A$6:$AF$3038,22),"Erreur"))))) ->  | G83: 0 | H83: =IF(ISBLANK(A83),0,VLOOKUP(A83,Articles!$A$6:$Q$3002,8)) -> 0 | I83: =IF(ISBLANK(A83),0,IF(Variables!$A$13="TTC",IF(H83=1,G83-(G83*100)/(100+Variables!$A$2),(IF(H83=2,G83-(G83*100)/(100+Variables!$A$3),0))),IF(H83=1,G83*Variables!$A$2/(100),(IF(H83=2,G83*Variables!$A$3/(100),0))))) -> 0 | J83: =IF(ISBLANK(A83),"",VLOOKUP(A83,Articles!$A$5:$AF$3000,11)) ->  | K83: =IF(ISBLANK(A83),"",(VLOOKUP(A83,Articles!$A$5:$AH$3002,34))*C83) -> 
B84: =IF(ISBLANK(A84),"",VLOOKUP(A84,Articles!$A$6:$AF$3002,2)) ->  | D84: =IF(ISBLANK(A84),"",VLOOKUP(A84,Articles!$A$6:$AF$3002,6)) ->  | E84: =IF(ISBLANK(A84),"",IF($C$15=1,VLOOKUP(A84,Articles!$A$6:$AF$3038,3),IF($C$15=2,VLOOKUP(A84,Articles!$A$6:$AF$3038,20),IF($C$15=3,VLOOKUP(A84,Articles!$A$6:$AF$3038,21),IF($C$15=4,VLOOKUP(A84,Articles!$A$6:$AF$3038,22),"Erreur"))))) ->  | G84: 0 | H84: =IF(ISBLANK(A84),0,VLOOKUP(A84,Articles!$A$6:$Q$3002,8)) -> 0 | I84: =IF(ISBLANK(A84),0,IF(Variables!$A$13="TTC",IF(H84=1,G84-(G84*100)/(100+Variables!$A$2),(IF(H84=2,G84-(G84*100)/(100+Variables!$A$3),0))),IF(H84=1,G84*Variables!$A$2/(100),(IF(H84=2,G84*Variables!$A$3/(100),0))))) -> 0 | J84: =IF(ISBLANK(A84),"",VLOOKUP(A84,Articles!$A$5:$AF$3000,11)) ->  | K84: =IF(ISBLANK(A84),"",(VLOOKUP(A84,Articles!$A$5:$AH$3002,34))*C84) -> 
B85: =IF(ISBLANK(A85),"",VLOOKUP(A85,Articles!$A$6:$AF$3002,2)) ->  | D85: =IF(ISBLANK(A85),"",VLOOKUP(A85,Articles!$A$6:$AF$3002,6)) ->  | E85: =IF(ISBLANK(A85),"",IF($C$15=1,VLOOKUP(A85,Articles!$A$6:$AF$3038,3),IF($C$15=2,VLOOKUP(A85,Articles!$A$6:$AF$3038,20),IF($C$15=3,VLOOKUP(A85,Articles!$A$6:$AF$3038,21),IF($C$15=4,VLOOKUP(A85,Articles!$A$6:$AF$3038,22),"Erreur"))))) ->  | G85: 0 | H85: =IF(ISBLANK(A85),0,VLOOKUP(A85,Articles!$A$6:$Q$3002,8)) -> 0 | I85: =IF(ISBLANK(A85),0,IF(Variables!$A$13="TTC",IF(H85=1,G85-(G85*100)/(100+Variables!$A$2),(IF(H85=2,G85-(G85*100)/(100+Variables!$A$3),0))),IF(H85=1,G85*Variables!$A$2/(100),(IF(H85=2,G85*Variables!$A$3/(100),0))))) -> 0 | J85: =IF(ISBLANK(A85),"",VLOOKUP(A85,Articles!$A$5:$AF$3000,11)) ->  | K85: =IF(ISBLANK(A85),"",(VLOOKUP(A85,Articles!$A$5:$AH$3002,34))*C85) -> 
B86: =IF(ISBLANK(A86),"",VLOOKUP(A86,Articles!$A$6:$AF$3002,2)) ->  | D86: =IF(ISBLANK(A86),"",VLOOKUP(A86,Articles!$A$6:$AF$3002,6)) ->  | E86: =IF(ISBLANK(A86),"",IF($C$15=1,VLOOKUP(A86,Articles!$A$6:$AF$3038,3),IF($C$15=2,VLOOKUP(A86,Articles!$A$6:$AF$3038,20),IF($C$15=3,VLOOKUP(A86,Articles!$A$6:$AF$3038,21),IF($C$15=4,VLOOKUP(A86,Articles!$A$6:$AF$3038,22),"Erreur"))))) ->  | G86: 0 | H86: =IF(ISBLANK(A86),0,VLOOKUP(A86,Articles!$A$6:$Q$3002,8)) -> 0 | I86: =IF(ISBLANK(A86),0,IF(Variables!$A$13="TTC",IF(H86=1,G86-(G86*100)/(100+Variables!$A$2),(IF(H86=2,G86-(G86*100)/(100+Variables!$A$3),0))),IF(H86=1,G86*Variables!$A$2/(100),(IF(H86=2,G86*Variables!$A$3/(100),0))))) -> 0 | J86: =IF(ISBLANK(A86),"",VLOOKUP(A86,Articles!$A$5:$AF$3000,11)) ->  | K86: =IF(ISBLANK(A86),"",(VLOOKUP(A86,Articles!$A$5:$AH$3002,34))*C86) -> 
B87: =IF(ISBLANK(A87),"",VLOOKUP(A87,Articles!$A$6:$AF$3002,2)) ->  | D87: =IF(ISBLANK(A87),"",VLOOKUP(A87,Articles!$A$6:$AF$3002,6)) ->  | E87: =IF(ISBLANK(A87),"",IF($C$15=1,VLOOKUP(A87,Articles!$A$6:$AF$3038,3),IF($C$15=2,VLOOKUP(A87,Articles!$A$6:$AF$3038,20),IF($C$15=3,VLOOKUP(A87,Articles!$A$6:$AF$3038,21),IF($C$15=4,VLOOKUP(A87,Articles!$A$6:$AF$3038,22),"Erreur"))))) ->  | G87: 0 | H87: =IF(ISBLANK(A87),0,VLOOKUP(A87,Articles!$A$6:$Q$3002,8)) -> 0 | I87: =IF(ISBLANK(A87),0,IF(Variables!$A$13="TTC",IF(H87=1,G87-(G87*100)/(100+Variables!$A$2),(IF(H87=2,G87-(G87*100)/(100+Variables!$A$3),0))),IF(H87=1,G87*Variables!$A$2/(100),(IF(H87=2,G87*Variables!$A$3/(100),0))))) -> 0 | J87: =IF(ISBLANK(A87),"",VLOOKUP(A87,Articles!$A$5:$AF$3000,11)) ->  | K87: =IF(ISBLANK(A87),"",(VLOOKUP(A87,Articles!$A$5:$AH$3002,34))*C87) -> 
B88: =IF(ISBLANK(A88),"",VLOOKUP(A88,Articles!$A$6:$AF$3002,2)) ->  | D88: =IF(ISBLANK(A88),"",VLOOKUP(A88,Articles!$A$6:$AF$3002,6)) ->  | E88: =IF(ISBLANK(A88),"",IF($C$15=1,VLOOKUP(A88,Articles!$A$6:$AF$3038,3),IF($C$15=2,VLOOKUP(A88,Articles!$A$6:$AF$3038,20),IF($C$15=3,VLOOKUP(A88,Articles!$A$6:$AF$3038,21),IF($C$15=4,VLOOKUP(A88,Articles!$A$6:$AF$3038,22),"Erreur"))))) ->  | G88: 0 | H88: =IF(ISBLANK(A88),0,VLOOKUP(A88,Articles!$A$6:$Q$3002,8)) -> 0 | I88: =IF(ISBLANK(A88),0,IF(Variables!$A$13="TTC",IF(H88=1,G88-(G88*100)/(100+Variables!$A$2),(IF(H88=2,G88-(G88*100)/(100+Variables!$A$3),0))),IF(H88=1,G88*Variables!$A$2/(100),(IF(H88=2,G88*Variables!$A$3/(100),0))))) -> 0 | J88: =IF(ISBLANK(A88),"",VLOOKUP(A88,Articles!$A$5:$AF$3000,11)) ->  | K88: =IF(ISBLANK(A88),"",(VLOOKUP(A88,Articles!$A$5:$AH$3002,34))*C88) -> 
B89: =IF(ISBLANK(A89),"",VLOOKUP(A89,Articles!$A$6:$AF$3002,2)) ->  | D89: =IF(ISBLANK(A89),"",VLOOKUP(A89,Articles!$A$6:$AF$3002,6)) ->  | E89: =IF(ISBLANK(A89),"",IF($C$15=1,VLOOKUP(A89,Articles!$A$6:$AF$3038,3),IF($C$15=2,VLOOKUP(A89,Articles!$A$6:$AF$3038,20),IF($C$15=3,VLOOKUP(A89,Articles!$A$6:$AF$3038,21),IF($C$15=4,VLOOKUP(A89,Articles!$A$6:$AF$3038,22),"Erreur"))))) ->  | G89: 0 | H89: =IF(ISBLANK(A89),0,VLOOKUP(A89,Articles!$A$6:$Q$3002,8)) -> 0 | I89: =IF(ISBLANK(A89),0,IF(Variables!$A$13="TTC",IF(H89=1,G89-(G89*100)/(100+Variables!$A$2),(IF(H89=2,G89-(G89*100)/(100+Variables!$A$3),0))),IF(H89=1,G89*Variables!$A$2/(100),(IF(H89=2,G89*Variables!$A$3/(100),0))))) -> 0 | J89: =IF(ISBLANK(A89),"",VLOOKUP(A89,Articles!$A$5:$AF$3000,11)) ->  | K89: =IF(ISBLANK(A89),"",(VLOOKUP(A89,Articles!$A$5:$AH$3002,34))*C89) -> 
B90: =IF(ISBLANK(A90),"",VLOOKUP(A90,Articles!$A$6:$AF$3002,2)) ->  | D90: =IF(ISBLANK(A90),"",VLOOKUP(A90,Articles!$A$6:$AF$3002,6)) ->  | E90: =IF(ISBLANK(A90),"",IF($C$15=1,VLOOKUP(A90,Articles!$A$6:$AF$3038,3),IF($C$15=2,VLOOKUP(A90,Articles!$A$6:$AF$3038,20),IF($C$15=3,VLOOKUP(A90,Articles!$A$6:$AF$3038,21),IF($C$15=4,VLOOKUP(A90,Articles!$A$6:$AF$3038,22),"Erreur"))))) ->  | G90: 0 | H90: =IF(ISBLANK(A90),0,VLOOKUP(A90,Articles!$A$6:$Q$3002,8)) -> 0 | I90: =IF(ISBLANK(A90),0,IF(Variables!$A$13="TTC",IF(H90=1,G90-(G90*100)/(100+Variables!$A$2),(IF(H90=2,G90-(G90*100)/(100+Variables!$A$3),0))),IF(H90=1,G90*Variables!$A$2/(100),(IF(H90=2,G90*Variables!$A$3/(100),0))))) -> 0 | J90: =IF(ISBLANK(A90),"",VLOOKUP(A90,Articles!$A$5:$AF$3000,11)) ->  | K90: =IF(ISBLANK(A90),"",(VLOOKUP(A90,Articles!$A$5:$AH$3002,34))*C90) -> 
B91: =IF(ISBLANK(A91),"",VLOOKUP(A91,Articles!$A$6:$AF$3002,2)) ->  | D91: =IF(ISBLANK(A91),"",VLOOKUP(A91,Articles!$A$6:$AF$3002,6)) ->  | E91: =IF(ISBLANK(A91),"",IF($C$15=1,VLOOKUP(A91,Articles!$A$6:$AF$3038,3),IF($C$15=2,VLOOKUP(A91,Articles!$A$6:$AF$3038,20),IF($C$15=3,VLOOKUP(A91,Articles!$A$6:$AF$3038,21),IF($C$15=4,VLOOKUP(A91,Articles!$A$6:$AF$3038,22),"Erreur"))))) ->  | G91: 0 | H91: =IF(ISBLANK(A91),0,VLOOKUP(A91,Articles!$A$6:$Q$3002,8)) -> 0 | I91: =IF(ISBLANK(A91),0,IF(Variables!$A$13="TTC",IF(H91=1,G91-(G91*100)/(100+Variables!$A$2),(IF(H91=2,G91-(G91*100)/(100+Variables!$A$3),0))),IF(H91=1,G91*Variables!$A$2/(100),(IF(H91=2,G91*Variables!$A$3/(100),0))))) -> 0 | J91: =IF(ISBLANK(A91),"",VLOOKUP(A91,Articles!$A$5:$AF$3000,11)) ->  | K91: =IF(ISBLANK(A91),"",(VLOOKUP(A91,Articles!$A$5:$AH$3002,34))*C91) -> 
B92: =IF(ISBLANK(A92),"",VLOOKUP(A92,Articles!$A$6:$AF$3002,2)) ->  | D92: =IF(ISBLANK(A92),"",VLOOKUP(A92,Articles!$A$6:$AF$3002,6)) ->  | E92: =IF(ISBLANK(A92),"",IF($C$15=1,VLOOKUP(A92,Articles!$A$6:$AF$3038,3),IF($C$15=2,VLOOKUP(A92,Articles!$A$6:$AF$3038,20),IF($C$15=3,VLOOKUP(A92,Articles!$A$6:$AF$3038,21),IF($C$15=4,VLOOKUP(A92,Articles!$A$6:$AF$3038,22),"Erreur"))))) ->  | G92: 0 | H92: =IF(ISBLANK(A92),0,VLOOKUP(A92,Articles!$A$6:$Q$3002,8)) -> 0 | I92: =IF(ISBLANK(A92),0,IF(Variables!$A$13="TTC",IF(H92=1,G92-(G92*100)/(100+Variables!$A$2),(IF(H92=2,G92-(G92*100)/(100+Variables!$A$3),0))),IF(H92=1,G92*Variables!$A$2/(100),(IF(H92=2,G92*Variables!$A$3/(100),0))))) -> 0 | J92: =IF(ISBLANK(A92),"",VLOOKUP(A92,Articles!$A$5:$AF$3000,11)) ->  | K92: =IF(ISBLANK(A92),"",(VLOOKUP(A92,Articles!$A$5:$AH$3002,34))*C92) -> 
B93: =IF(ISBLANK(A93),"",VLOOKUP(A93,Articles!$A$6:$AF$3002,2)) ->  | D93: =IF(ISBLANK(A93),"",VLOOKUP(A93,Articles!$A$6:$AF$3002,6)) ->  | E93: =IF(ISBLANK(A93),"",IF($C$15=1,VLOOKUP(A93,Articles!$A$6:$AF$3038,3),IF($C$15=2,VLOOKUP(A93,Articles!$A$6:$AF$3038,20),IF($C$15=3,VLOOKUP(A93,Articles!$A$6:$AF$3038,21),IF($C$15=4,VLOOKUP(A93,Articles!$A$6:$AF$3038,22),"Erreur"))))) ->  | G93: 0 | H93: =IF(ISBLANK(A93),0,VLOOKUP(A93,Articles!$A$6:$Q$3002,8)) -> 0 | I93: =IF(ISBLANK(A93),0,IF(Variables!$A$13="TTC",IF(H93=1,G93-(G93*100)/(100+Variables!$A$2),(IF(H93=2,G93-(G93*100)/(100+Variables!$A$3),0))),IF(H93=1,G93*Variables!$A$2/(100),(IF(H93=2,G93*Variables!$A$3/(100),0))))) -> 0 | J93: =IF(ISBLANK(A93),"",VLOOKUP(A93,Articles!$A$5:$AF$3000,11)) ->  | K93: =IF(ISBLANK(A93),"",(VLOOKUP(A93,Articles!$A$5:$AH$3002,34))*C93) -> 
B94: =IF(ISBLANK(A94),"",VLOOKUP(A94,Articles!$A$6:$AF$3002,2)) ->  | D94: =IF(ISBLANK(A94),"",VLOOKUP(A94,Articles!$A$6:$AF$3002,6)) ->  | E94: =IF(ISBLANK(A94),"",IF($C$15=1,VLOOKUP(A94,Articles!$A$6:$AF$3038,3),IF($C$15=2,VLOOKUP(A94,Articles!$A$6:$AF$3038,20),IF($C$15=3,VLOOKUP(A94,Articles!$A$6:$AF$3038,21),IF($C$15=4,VLOOKUP(A94,Articles!$A$6:$AF$3038,22),"Erreur"))))) ->  | G94: 0 | H94: =IF(ISBLANK(A94),0,VLOOKUP(A94,Articles!$A$6:$Q$3002,8)) -> 0 | I94: =IF(ISBLANK(A94),0,IF(Variables!$A$13="TTC",IF(H94=1,G94-(G94*100)/(100+Variables!$A$2),(IF(H94=2,G94-(G94*100)/(100+Variables!$A$3),0))),IF(H94=1,G94*Variables!$A$2/(100),(IF(H94=2,G94*Variables!$A$3/(100),0))))) -> 0 | J94: =IF(ISBLANK(A94),"",VLOOKUP(A94,Articles!$A$5:$AF$3000,11)) ->  | K94: =IF(ISBLANK(A94),"",(VLOOKUP(A94,Articles!$A$5:$AH$3002,34))*C94) -> 
B95: =IF(ISBLANK(A95),"",VLOOKUP(A95,Articles!$A$6:$AF$3002,2)) ->  | D95: =IF(ISBLANK(A95),"",VLOOKUP(A95,Articles!$A$6:$AF$3002,6)) ->  | E95: =IF(ISBLANK(A95),"",IF($C$15=1,VLOOKUP(A95,Articles!$A$6:$AF$3038,3),IF($C$15=2,VLOOKUP(A95,Articles!$A$6:$AF$3038,20),IF($C$15=3,VLOOKUP(A95,Articles!$A$6:$AF$3038,21),IF($C$15=4,VLOOKUP(A95,Articles!$A$6:$AF$3038,22),"Erreur"))))) ->  | G95: 0 | H95: =IF(ISBLANK(A95),0,VLOOKUP(A95,Articles!$A$6:$Q$3002,8)) -> 0 | I95: =IF(ISBLANK(A95),0,IF(Variables!$A$13="TTC",IF(H95=1,G95-(G95*100)/(100+Variables!$A$2),(IF(H95=2,G95-(G95*100)/(100+Variables!$A$3),0))),IF(H95=1,G95*Variables!$A$2/(100),(IF(H95=2,G95*Variables!$A$3/(100),0))))) -> 0 | J95: =IF(ISBLANK(A95),"",VLOOKUP(A95,Articles!$A$5:$AF$3000,11)) ->  | K95: =IF(ISBLANK(A95),"",(VLOOKUP(A95,Articles!$A$5:$AH$3002,34))*C95) -> 
B96: =IF(ISBLANK(A96),"",VLOOKUP(A96,Articles!$A$6:$AF$3002,2)) ->  | D96: =IF(ISBLANK(A96),"",VLOOKUP(A96,Articles!$A$6:$AF$3002,6)) ->  | E96: =IF(ISBLANK(A96),"",IF($C$15=1,VLOOKUP(A96,Articles!$A$6:$AF$3038,3),IF($C$15=2,VLOOKUP(A96,Articles!$A$6:$AF$3038,20),IF($C$15=3,VLOOKUP(A96,Articles!$A$6:$AF$3038,21),IF($C$15=4,VLOOKUP(A96,Articles!$A$6:$AF$3038,22),"Erreur"))))) ->  | G96: 0 | H96: =IF(ISBLANK(A96),0,VLOOKUP(A96,Articles!$A$6:$Q$3002,8)) -> 0 | I96: =IF(ISBLANK(A96),0,IF(Variables!$A$13="TTC",IF(H96=1,G96-(G96*100)/(100+Variables!$A$2),(IF(H96=2,G96-(G96*100)/(100+Variables!$A$3),0))),IF(H96=1,G96*Variables!$A$2/(100),(IF(H96=2,G96*Variables!$A$3/(100),0))))) -> 0 | J96: =IF(ISBLANK(A96),"",VLOOKUP(A96,Articles!$A$5:$AF$3000,11)) ->  | K96: =IF(ISBLANK(A96),"",(VLOOKUP(A96,Articles!$A$5:$AH$3002,34))*C96) -> 
B97: =IF(ISBLANK(A97),"",VLOOKUP(A97,Articles!$A$6:$AF$3002,2)) ->  | D97: =IF(ISBLANK(A97),"",VLOOKUP(A97,Articles!$A$6:$AF$3002,6)) ->  | E97: =IF(ISBLANK(A97),"",IF($C$15=1,VLOOKUP(A97,Articles!$A$6:$AF$3038,3),IF($C$15=2,VLOOKUP(A97,Articles!$A$6:$AF$3038,20),IF($C$15=3,VLOOKUP(A97,Articles!$A$6:$AF$3038,21),IF($C$15=4,VLOOKUP(A97,Articles!$A$6:$AF$3038,22),"Erreur"))))) ->  | G97: 0 | H97: =IF(ISBLANK(A97),0,VLOOKUP(A97,Articles!$A$6:$Q$3002,8)) -> 0 | I97: =IF(ISBLANK(A97),0,IF(Variables!$A$13="TTC",IF(H97=1,G97-(G97*100)/(100+Variables!$A$2),(IF(H97=2,G97-(G97*100)/(100+Variables!$A$3),0))),IF(H97=1,G97*Variables!$A$2/(100),(IF(H97=2,G97*Variables!$A$3/(100),0))))) -> 0 | J97: =IF(ISBLANK(A97),"",VLOOKUP(A97,Articles!$A$5:$AF$3000,11)) ->  | K97: =IF(ISBLANK(A97),"",(VLOOKUP(A97,Articles!$A$5:$AH$3002,34))*C97) -> 
B98: =IF(ISBLANK(A98),"",VLOOKUP(A98,Articles!$A$6:$AF$3002,2)) ->  | D98: =IF(ISBLANK(A98),"",VLOOKUP(A98,Articles!$A$6:$AF$3002,6)) ->  | E98: =IF(ISBLANK(A98),"",IF($C$15=1,VLOOKUP(A98,Articles!$A$6:$AF$3038,3),IF($C$15=2,VLOOKUP(A98,Articles!$A$6:$AF$3038,20),IF($C$15=3,VLOOKUP(A98,Articles!$A$6:$AF$3038,21),IF($C$15=4,VLOOKUP(A98,Articles!$A$6:$AF$3038,22),"Erreur"))))) ->  | G98: 0 | H98: =IF(ISBLANK(A98),0,VLOOKUP(A98,Articles!$A$6:$Q$3002,8)) -> 0 | I98: =IF(ISBLANK(A98),0,IF(Variables!$A$13="TTC",IF(H98=1,G98-(G98*100)/(100+Variables!$A$2),(IF(H98=2,G98-(G98*100)/(100+Variables!$A$3),0))),IF(H98=1,G98*Variables!$A$2/(100),(IF(H98=2,G98*Variables!$A$3/(100),0))))) -> 0 | J98: =IF(ISBLANK(A98),"",VLOOKUP(A98,Articles!$A$5:$AF$3000,11)) ->  | K98: =IF(ISBLANK(A98),"",(VLOOKUP(A98,Articles!$A$5:$AH$3002,34))*C98) -> 
B99: =IF(ISBLANK(A99),"",VLOOKUP(A99,Articles!$A$6:$AF$3002,2)) ->  | D99: =IF(ISBLANK(A99),"",VLOOKUP(A99,Articles!$A$6:$AF$3002,6)) ->  | E99: =IF(ISBLANK(A99),"",IF($C$15=1,VLOOKUP(A99,Articles!$A$6:$AF$3038,3),IF($C$15=2,VLOOKUP(A99,Articles!$A$6:$AF$3038,20),IF($C$15=3,VLOOKUP(A99,Articles!$A$6:$AF$3038,21),IF($C$15=4,VLOOKUP(A99,Articles!$A$6:$AF$3038,22),"Erreur"))))) ->  | G99: 0 | H99: =IF(ISBLANK(A99),0,VLOOKUP(A99,Articles!$A$6:$Q$3002,8)) -> 0 | I99: =IF(ISBLANK(A99),0,IF(Variables!$A$13="TTC",IF(H99=1,G99-(G99*100)/(100+Variables!$A$2),(IF(H99=2,G99-(G99*100)/(100+Variables!$A$3),0))),IF(H99=1,G99*Variables!$A$2/(100),(IF(H99=2,G99*Variables!$A$3/(100),0))))) -> 0 | J99: =IF(ISBLANK(A99),"",VLOOKUP(A99,Articles!$A$5:$AF$3000,11)) ->  | K99: =IF(ISBLANK(A99),"",(VLOOKUP(A99,Articles!$A$5:$AH$3002,34))*C99) -> 
B100: =IF(ISBLANK(A100),"",VLOOKUP(A100,Articles!$A$6:$AF$3002,2)) ->  | D100: =IF(ISBLANK(A100),"",VLOOKUP(A100,Articles!$A$6:$AF$3002,6)) ->  | E100: =IF(ISBLANK(A100),"",IF($C$15=1,VLOOKUP(A100,Articles!$A$6:$AF$3038,3),IF($C$15=2,VLOOKUP(A100,Articles!$A$6:$AF$3038,20),IF($C$15=3,VLOOKUP(A100,Articles!$A$6:$AF$3038,21),IF($C$15=4,VLOOKUP(A100,Articles!$A$6:$AF$3038,22),"Erreur"))))) ->  | G100: 0 | H100: =IF(ISBLANK(A100),0,VLOOKUP(A100,Articles!$A$6:$Q$3002,8)) -> 0 | I100: =IF(ISBLANK(A100),0,IF(Variables!$A$13="TTC",IF(H100=1,G100-(G100*100)/(100+Variables!$A$2),(IF(H100=2,G100-(G100*100)/(100+Variables!$A$3),0))),IF(H100=1,G100*Variables!$A$2/(100),(IF(H100=2,G100*Variables!$A$3/(100),0))))) -> 0 | J100: =IF(ISBLANK(A100),"",VLOOKUP(A100,Articles!$A$5:$AF$3000,11)) ->  | K100: =IF(ISBLANK(A100),"",(VLOOKUP(A100,Articles!$A$5:$AH$3002,34))*C100) -> 
B101: =IF(ISBLANK(A101),"",VLOOKUP(A101,Articles!$A$6:$AF$3002,2)) ->  | D101: =IF(ISBLANK(A101),"",VLOOKUP(A101,Articles!$A$6:$AF$3002,6)) ->  | E101: =IF(ISBLANK(A101),"",IF($C$15=1,VLOOKUP(A101,Articles!$A$6:$AF$3038,3),IF($C$15=2,VLOOKUP(A101,Articles!$A$6:$AF$3038,20),IF($C$15=3,VLOOKUP(A101,Articles!$A$6:$AF$3038,21),IF($C$15=4,VLOOKUP(A101,Articles!$A$6:$AF$3038,22),"Erreur"))))) ->  | G101: 0 | H101: =IF(ISBLANK(A101),0,VLOOKUP(A101,Articles!$A$6:$Q$3002,8)) -> 0 | I101: =IF(ISBLANK(A101),0,IF(Variables!$A$13="TTC",IF(H101=1,G101-(G101*100)/(100+Variables!$A$2),(IF(H101=2,G101-(G101*100)/(100+Variables!$A$3),0))),IF(H101=1,G101*Variables!$A$2/(100),(IF(H101=2,G101*Variables!$A$3/(100),0))))) -> 0 | J101: =IF(ISBLANK(A101),"",VLOOKUP(A101,Articles!$A$5:$AF$3000,11)) ->  | K101: =IF(ISBLANK(A101),"",(VLOOKUP(A101,Articles!$A$5:$AH$3002,34))*C101) -> 
B102: =IF(ISBLANK(A102),"",VLOOKUP(A102,Articles!$A$6:$AF$3002,2)) ->  | D102: =IF(ISBLANK(A102),"",VLOOKUP(A102,Articles!$A$6:$AF$3002,6)) ->  | E102: =IF(ISBLANK(A102),"",IF($C$15=1,VLOOKUP(A102,Articles!$A$6:$AF$3038,3),IF($C$15=2,VLOOKUP(A102,Articles!$A$6:$AF$3038,20),IF($C$15=3,VLOOKUP(A102,Articles!$A$6:$AF$3038,21),IF($C$15=4,VLOOKUP(A102,Articles!$A$6:$AF$3038,22),"Erreur"))))) ->  | G102: 0 | H102: =IF(ISBLANK(A102),0,VLOOKUP(A102,Articles!$A$6:$Q$3002,8)) -> 0 | I102: =IF(ISBLANK(A102),0,IF(Variables!$A$13="TTC",IF(H102=1,G102-(G102*100)/(100+Variables!$A$2),(IF(H102=2,G102-(G102*100)/(100+Variables!$A$3),0))),IF(H102=1,G102*Variables!$A$2/(100),(IF(H102=2,G102*Variables!$A$3/(100),0))))) -> 0 | J102: =IF(ISBLANK(A102),"",VLOOKUP(A102,Articles!$A$5:$AF$3000,11)) ->  | K102: =IF(ISBLANK(A102),"",(VLOOKUP(A102,Articles!$A$5:$AH$3002,34))*C102) -> 
B103: =IF(ISBLANK(A103),"",VLOOKUP(A103,Articles!$A$6:$AF$3002,2)) ->  | D103: =IF(ISBLANK(A103),"",VLOOKUP(A103,Articles!$A$6:$AF$3002,6)) ->  | E103: =IF(ISBLANK(A103),"",IF($C$15=1,VLOOKUP(A103,Articles!$A$6:$AF$3038,3),IF($C$15=2,VLOOKUP(A103,Articles!$A$6:$AF$3038,20),IF($C$15=3,VLOOKUP(A103,Articles!$A$6:$AF$3038,21),IF($C$15=4,VLOOKUP(A103,Articles!$A$6:$AF$3038,22),"Erreur"))))) ->  | G103: 0 | H103: =IF(ISBLANK(A103),0,VLOOKUP(A103,Articles!$A$6:$Q$3002,8)) -> 0 | I103: =IF(ISBLANK(A103),0,IF(Variables!$A$13="TTC",IF(H103=1,G103-(G103*100)/(100+Variables!$A$2),(IF(H103=2,G103-(G103*100)/(100+Variables!$A$3),0))),IF(H103=1,G103*Variables!$A$2/(100),(IF(H103=2,G103*Variables!$A$3/(100),0))))) -> 0 | J103: =IF(ISBLANK(A103),"",VLOOKUP(A103,Articles!$A$5:$AF$3000,11)) ->  | K103: =IF(ISBLANK(A103),"",(VLOOKUP(A103,Articles!$A$5:$AH$3002,34))*C103) -> 
B104: =IF(ISBLANK(A104),"",VLOOKUP(A104,Articles!$A$6:$AF$3002,2)) ->  | D104: =IF(ISBLANK(A104),"",VLOOKUP(A104,Articles!$A$6:$AF$3002,6)) ->  | E104: =IF(ISBLANK(A104),"",IF($C$15=1,VLOOKUP(A104,Articles!$A$6:$AF$3038,3),IF($C$15=2,VLOOKUP(A104,Articles!$A$6:$AF$3038,20),IF($C$15=3,VLOOKUP(A104,Articles!$A$6:$AF$3038,21),IF($C$15=4,VLOOKUP(A104,Articles!$A$6:$AF$3038,22),"Erreur"))))) ->  | G104: 0 | H104: =IF(ISBLANK(A104),0,VLOOKUP(A104,Articles!$A$6:$Q$3002,8)) -> 0 | I104: =IF(ISBLANK(A104),0,IF(Variables!$A$13="TTC",IF(H104=1,G104-(G104*100)/(100+Variables!$A$2),(IF(H104=2,G104-(G104*100)/(100+Variables!$A$3),0))),IF(H104=1,G104*Variables!$A$2/(100),(IF(H104=2,G104*Variables!$A$3/(100),0))))) -> 0 | J104: =IF(ISBLANK(A104),"",VLOOKUP(A104,Articles!$A$5:$AF$3000,11)) ->  | K104: =IF(ISBLANK(A104),"",(VLOOKUP(A104,Articles!$A$5:$AH$3002,34))*C104) -> 
B105: =IF(ISBLANK(A105),"",VLOOKUP(A105,Articles!$A$6:$AF$3002,2)) ->  | D105: =IF(ISBLANK(A105),"",VLOOKUP(A105,Articles!$A$6:$AF$3002,6)) ->  | E105: =IF(ISBLANK(A105),"",IF($C$15=1,VLOOKUP(A105,Articles!$A$6:$AF$3038,3),IF($C$15=2,VLOOKUP(A105,Articles!$A$6:$AF$3038,20),IF($C$15=3,VLOOKUP(A105,Articles!$A$6:$AF$3038,21),IF($C$15=4,VLOOKUP(A105,Articles!$A$6:$AF$3038,22),"Erreur"))))) ->  | G105: 0 | H105: =IF(ISBLANK(A105),0,VLOOKUP(A105,Articles!$A$6:$Q$3002,8)) -> 0 | I105: =IF(ISBLANK(A105),0,IF(Variables!$A$13="TTC",IF(H105=1,G105-(G105*100)/(100+Variables!$A$2),(IF(H105=2,G105-(G105*100)/(100+Variables!$A$3),0))),IF(H105=1,G105*Variables!$A$2/(100),(IF(H105=2,G105*Variables!$A$3/(100),0))))) -> 0 | J105: =IF(ISBLANK(A105),"",VLOOKUP(A105,Articles!$A$5:$AF$3000,11)) ->  | K105: =IF(ISBLANK(A105),"",(VLOOKUP(A105,Articles!$A$5:$AH$3002,34))*C105) -> 
B106: =IF(ISBLANK(A106),"",VLOOKUP(A106,Articles!$A$6:$AF$3002,2)) ->  | D106: =IF(ISBLANK(A106),"",VLOOKUP(A106,Articles!$A$6:$AF$3002,6)) ->  | E106: =IF(ISBLANK(A106),"",IF($C$15=1,VLOOKUP(A106,Articles!$A$6:$AF$3038,3),IF($C$15=2,VLOOKUP(A106,Articles!$A$6:$AF$3038,20),IF($C$15=3,VLOOKUP(A106,Articles!$A$6:$AF$3038,21),IF($C$15=4,VLOOKUP(A106,Articles!$A$6:$AF$3038,22),"Erreur"))))) ->  | G106: 0 | H106: =IF(ISBLANK(A106),0,VLOOKUP(A106,Articles!$A$6:$Q$3002,8)) -> 0 | I106: =IF(ISBLANK(A106),0,IF(Variables!$A$13="TTC",IF(H106=1,G106-(G106*100)/(100+Variables!$A$2),(IF(H106=2,G106-(G106*100)/(100+Variables!$A$3),0))),IF(H106=1,G106*Variables!$A$2/(100),(IF(H106=2,G106*Variables!$A$3/(100),0))))) -> 0 | J106: =IF(ISBLANK(A106),"",VLOOKUP(A106,Articles!$A$5:$AF$3000,11)) ->  | K106: =IF(ISBLANK(A106),"",(VLOOKUP(A106,Articles!$A$5:$AH$3002,34))*C106) -> 
B107: =IF(ISBLANK(A107),"",VLOOKUP(A107,Articles!$A$6:$AF$3002,2)) ->  | D107: =IF(ISBLANK(A107),"",VLOOKUP(A107,Articles!$A$6:$AF$3002,6)) ->  | E107: =IF(ISBLANK(A107),"",IF($C$15=1,VLOOKUP(A107,Articles!$A$6:$AF$3038,3),IF($C$15=2,VLOOKUP(A107,Articles!$A$6:$AF$3038,20),IF($C$15=3,VLOOKUP(A107,Articles!$A$6:$AF$3038,21),IF($C$15=4,VLOOKUP(A107,Articles!$A$6:$AF$3038,22),"Erreur"))))) ->  | G107: 0 | H107: =IF(ISBLANK(A107),0,VLOOKUP(A107,Articles!$A$6:$Q$3002,8)) -> 0 | I107: =IF(ISBLANK(A107),0,IF(Variables!$A$13="TTC",IF(H107=1,G107-(G107*100)/(100+Variables!$A$2),(IF(H107=2,G107-(G107*100)/(100+Variables!$A$3),0))),IF(H107=1,G107*Variables!$A$2/(100),(IF(H107=2,G107*Variables!$A$3/(100),0))))) -> 0 | J107: =IF(ISBLANK(A107),"",VLOOKUP(A107,Articles!$A$5:$AF$3000,11)) ->  | K107: =IF(ISBLANK(A107),"",(VLOOKUP(A107,Articles!$A$5:$AH$3002,34))*C107) -> 
B108: =IF(ISBLANK(A108),"",VLOOKUP(A108,Articles!$A$6:$AF$3002,2)) ->  | D108: =IF(ISBLANK(A108),"",VLOOKUP(A108,Articles!$A$6:$AF$3002,6)) ->  | E108: =IF(ISBLANK(A108),"",IF($C$15=1,VLOOKUP(A108,Articles!$A$6:$AF$3038,3),IF($C$15=2,VLOOKUP(A108,Articles!$A$6:$AF$3038,20),IF($C$15=3,VLOOKUP(A108,Articles!$A$6:$AF$3038,21),IF($C$15=4,VLOOKUP(A108,Articles!$A$6:$AF$3038,22),"Erreur"))))) ->  | G108: 0 | H108: =IF(ISBLANK(A108),0,VLOOKUP(A108,Articles!$A$6:$Q$3002,8)) -> 0 | I108: =IF(ISBLANK(A108),0,IF(Variables!$A$13="TTC",IF(H108=1,G108-(G108*100)/(100+Variables!$A$2),(IF(H108=2,G108-(G108*100)/(100+Variables!$A$3),0))),IF(H108=1,G108*Variables!$A$2/(100),(IF(H108=2,G108*Variables!$A$3/(100),0))))) -> 0 | J108: =IF(ISBLANK(A108),"",VLOOKUP(A108,Articles!$A$5:$AF$3000,11)) ->  | K108: =IF(ISBLANK(A108),"",(VLOOKUP(A108,Articles!$A$5:$AH$3002,34))*C108) -> 
B109: =IF(ISBLANK(A109),"",VLOOKUP(A109,Articles!$A$6:$AF$3002,2)) ->  | D109: =IF(ISBLANK(A109),"",VLOOKUP(A109,Articles!$A$6:$AF$3002,6)) ->  | E109: =IF(ISBLANK(A109),"",IF($C$15=1,VLOOKUP(A109,Articles!$A$6:$AF$3038,3),IF($C$15=2,VLOOKUP(A109,Articles!$A$6:$AF$3038,20),IF($C$15=3,VLOOKUP(A109,Articles!$A$6:$AF$3038,21),IF($C$15=4,VLOOKUP(A109,Articles!$A$6:$AF$3038,22),"Erreur"))))) ->  | G109: 0 | H109: =IF(ISBLANK(A109),0,VLOOKUP(A109,Articles!$A$6:$Q$3002,8)) -> 0 | I109: =IF(ISBLANK(A109),0,IF(Variables!$A$13="TTC",IF(H109=1,G109-(G109*100)/(100+Variables!$A$2),(IF(H109=2,G109-(G109*100)/(100+Variables!$A$3),0))),IF(H109=1,G109*Variables!$A$2/(100),(IF(H109=2,G109*Variables!$A$3/(100),0))))) -> 0 | J109: =IF(ISBLANK(A109),"",VLOOKUP(A109,Articles!$A$5:$AF$3000,11)) ->  | K109: =IF(ISBLANK(A109),"",(VLOOKUP(A109,Articles!$A$5:$AH$3002,34))*C109) -> 
B110: =IF(ISBLANK(A110),"",VLOOKUP(A110,Articles!$A$6:$AF$3002,2)) ->  | D110: =IF(ISBLANK(A110),"",VLOOKUP(A110,Articles!$A$6:$AF$3002,6)) ->  | E110: =IF(ISBLANK(A110),"",IF($C$15=1,VLOOKUP(A110,Articles!$A$6:$AF$3038,3),IF($C$15=2,VLOOKUP(A110,Articles!$A$6:$AF$3038,20),IF($C$15=3,VLOOKUP(A110,Articles!$A$6:$AF$3038,21),IF($C$15=4,VLOOKUP(A110,Articles!$A$6:$AF$3038,22),"Erreur"))))) ->  | G110: 0 | H110: =IF(ISBLANK(A110),0,VLOOKUP(A110,Articles!$A$6:$Q$3002,8)) -> 0 | I110: =IF(ISBLANK(A110),0,IF(Variables!$A$13="TTC",IF(H110=1,G110-(G110*100)/(100+Variables!$A$2),(IF(H110=2,G110-(G110*100)/(100+Variables!$A$3),0))),IF(H110=1,G110*Variables!$A$2/(100),(IF(H110=2,G110*Variables!$A$3/(100),0))))) -> 0 | J110: =IF(ISBLANK(A110),"",VLOOKUP(A110,Articles!$A$5:$AF$3000,11)) ->  | K110: =IF(ISBLANK(A110),"",(VLOOKUP(A110,Articles!$A$5:$AH$3002,34))*C110) -> 
B111: =IF(ISBLANK(A111),"",VLOOKUP(A111,Articles!$A$6:$AF$3002,2)) ->  | D111: =IF(ISBLANK(A111),"",VLOOKUP(A111,Articles!$A$6:$AF$3002,6)) ->  | E111: =IF(ISBLANK(A111),"",IF($C$15=1,VLOOKUP(A111,Articles!$A$6:$AF$3038,3),IF($C$15=2,VLOOKUP(A111,Articles!$A$6:$AF$3038,20),IF($C$15=3,VLOOKUP(A111,Articles!$A$6:$AF$3038,21),IF($C$15=4,VLOOKUP(A111,Articles!$A$6:$AF$3038,22),"Erreur"))))) ->  | G111: 0 | H111: =IF(ISBLANK(A111),0,VLOOKUP(A111,Articles!$A$6:$Q$3002,8)) -> 0 | I111: =IF(ISBLANK(A111),0,IF(Variables!$A$13="TTC",IF(H111=1,G111-(G111*100)/(100+Variables!$A$2),(IF(H111=2,G111-(G111*100)/(100+Variables!$A$3),0))),IF(H111=1,G111*Variables!$A$2/(100),(IF(H111=2,G111*Variables!$A$3/(100),0))))) -> 0 | J111: =IF(ISBLANK(A111),"",VLOOKUP(A111,Articles!$A$5:$AF$3000,11)) ->  | K111: =IF(ISBLANK(A111),"",(VLOOKUP(A111,Articles!$A$5:$AH$3002,34))*C111) -> 
B112: =IF(ISBLANK(A112),"",VLOOKUP(A112,Articles!$A$6:$AF$3002,2)) ->  | D112: =IF(ISBLANK(A112),"",VLOOKUP(A112,Articles!$A$6:$AF$3002,6)) ->  | E112: =IF(ISBLANK(A112),"",IF($C$15=1,VLOOKUP(A112,Articles!$A$6:$AF$3038,3),IF($C$15=2,VLOOKUP(A112,Articles!$A$6:$AF$3038,20),IF($C$15=3,VLOOKUP(A112,Articles!$A$6:$AF$3038,21),IF($C$15=4,VLOOKUP(A112,Articles!$A$6:$AF$3038,22),"Erreur"))))) ->  | G112: 0 | H112: =IF(ISBLANK(A112),0,VLOOKUP(A112,Articles!$A$6:$Q$3002,8)) -> 0 | I112: =IF(ISBLANK(A112),0,IF(Variables!$A$13="TTC",IF(H112=1,G112-(G112*100)/(100+Variables!$A$2),(IF(H112=2,G112-(G112*100)/(100+Variables!$A$3),0))),IF(H112=1,G112*Variables!$A$2/(100),(IF(H112=2,G112*Variables!$A$3/(100),0))))) -> 0 | J112: =IF(ISBLANK(A112),"",VLOOKUP(A112,Articles!$A$5:$AF$3000,11)) ->  | K112: =IF(ISBLANK(A112),"",(VLOOKUP(A112,Articles!$A$5:$AH$3002,34))*C112) -> 
B113: =IF(ISBLANK(A113),"",VLOOKUP(A113,Articles!$A$6:$AF$3002,2)) ->  | D113: =IF(ISBLANK(A113),"",VLOOKUP(A113,Articles!$A$6:$AF$3002,6)) ->  | E113: =IF(ISBLANK(A113),"",IF($C$15=1,VLOOKUP(A113,Articles!$A$6:$AF$3038,3),IF($C$15=2,VLOOKUP(A113,Articles!$A$6:$AF$3038,20),IF($C$15=3,VLOOKUP(A113,Articles!$A$6:$AF$3038,21),IF($C$15=4,VLOOKUP(A113,Articles!$A$6:$AF$3038,22),"Erreur"))))) ->  | G113: 0 | H113: =IF(ISBLANK(A113),0,VLOOKUP(A113,Articles!$A$6:$Q$3002,8)) -> 0 | I113: =IF(ISBLANK(A113),0,IF(Variables!$A$13="TTC",IF(H113=1,G113-(G113*100)/(100+Variables!$A$2),(IF(H113=2,G113-(G113*100)/(100+Variables!$A$3),0))),IF(H113=1,G113*Variables!$A$2/(100),(IF(H113=2,G113*Variables!$A$3/(100),0))))) -> 0 | J113: =IF(ISBLANK(A113),"",VLOOKUP(A113,Articles!$A$5:$AF$3000,11)) ->  | K113: =IF(ISBLANK(A113),"",(VLOOKUP(A113,Articles!$A$5:$AH$3002,34))*C113) -> 
B114: =IF(ISBLANK(A114),"",VLOOKUP(A114,Articles!$A$6:$AF$3002,2)) ->  | D114: =IF(ISBLANK(A114),"",VLOOKUP(A114,Articles!$A$6:$AF$3002,6)) ->  | E114: =IF(ISBLANK(A114),"",IF($C$15=1,VLOOKUP(A114,Articles!$A$6:$AF$3038,3),IF($C$15=2,VLOOKUP(A114,Articles!$A$6:$AF$3038,20),IF($C$15=3,VLOOKUP(A114,Articles!$A$6:$AF$3038,21),IF($C$15=4,VLOOKUP(A114,Articles!$A$6:$AF$3038,22),"Erreur"))))) ->  | G114: 0 | H114: =IF(ISBLANK(A114),0,VLOOKUP(A114,Articles!$A$6:$Q$3002,8)) -> 0 | I114: =IF(ISBLANK(A114),0,IF(Variables!$A$13="TTC",IF(H114=1,G114-(G114*100)/(100+Variables!$A$2),(IF(H114=2,G114-(G114*100)/(100+Variables!$A$3),0))),IF(H114=1,G114*Variables!$A$2/(100),(IF(H114=2,G114*Variables!$A$3/(100),0))))) -> 0 | J114: =IF(ISBLANK(A114),"",VLOOKUP(A114,Articles!$A$5:$AF$3000,11)) ->  | K114: =IF(ISBLANK(A114),"",(VLOOKUP(A114,Articles!$A$5:$AH$3002,34))*C114) -> 
B115: =IF(ISBLANK(A115),"",VLOOKUP(A115,Articles!$A$6:$AF$3002,2)) ->  | D115: =IF(ISBLANK(A115),"",VLOOKUP(A115,Articles!$A$6:$AF$3002,6)) ->  | E115: =IF(ISBLANK(A115),"",IF($C$15=1,VLOOKUP(A115,Articles!$A$6:$AF$3038,3),IF($C$15=2,VLOOKUP(A115,Articles!$A$6:$AF$3038,20),IF($C$15=3,VLOOKUP(A115,Articles!$A$6:$AF$3038,21),IF($C$15=4,VLOOKUP(A115,Articles!$A$6:$AF$3038,22),"Erreur"))))) ->  | G115: 0 | H115: =IF(ISBLANK(A115),0,VLOOKUP(A115,Articles!$A$6:$Q$3002,8)) -> 0 | I115: =IF(ISBLANK(A115),0,IF(Variables!$A$13="TTC",IF(H115=1,G115-(G115*100)/(100+Variables!$A$2),(IF(H115=2,G115-(G115*100)/(100+Variables!$A$3),0))),IF(H115=1,G115*Variables!$A$2/(100),(IF(H115=2,G115*Variables!$A$3/(100),0))))) -> 0 | J115: =IF(ISBLANK(A115),"",VLOOKUP(A115,Articles!$A$5:$AF$3000,11)) ->  | K115: =IF(ISBLANK(A115),"",(VLOOKUP(A115,Articles!$A$5:$AH$3002,34))*C115) -> 
B116: =IF(ISBLANK(A116),"",VLOOKUP(A116,Articles!$A$6:$AF$3002,2)) ->  | D116: =IF(ISBLANK(A116),"",VLOOKUP(A116,Articles!$A$6:$AF$3002,6)) ->  | E116: =IF(ISBLANK(A116),"",IF($C$15=1,VLOOKUP(A116,Articles!$A$6:$AF$3038,3),IF($C$15=2,VLOOKUP(A116,Articles!$A$6:$AF$3038,20),IF($C$15=3,VLOOKUP(A116,Articles!$A$6:$AF$3038,21),IF($C$15=4,VLOOKUP(A116,Articles!$A$6:$AF$3038,22),"Erreur"))))) ->  | G116: 0 | H116: =IF(ISBLANK(A116),0,VLOOKUP(A116,Articles!$A$6:$Q$3002,8)) -> 0 | I116: =IF(ISBLANK(A116),0,IF(Variables!$A$13="TTC",IF(H116=1,G116-(G116*100)/(100+Variables!$A$2),(IF(H116=2,G116-(G116*100)/(100+Variables!$A$3),0))),IF(H116=1,G116*Variables!$A$2/(100),(IF(H116=2,G116*Variables!$A$3/(100),0))))) -> 0 | J116: =IF(ISBLANK(A116),"",VLOOKUP(A116,Articles!$A$5:$AF$3000,11)) ->  | K116: =IF(ISBLANK(A116),"",(VLOOKUP(A116,Articles!$A$5:$AH$3002,34))*C116) -> 
B117: =IF(ISBLANK(A117),"",VLOOKUP(A117,Articles!$A$6:$AF$3002,2)) ->  | D117: =IF(ISBLANK(A117),"",VLOOKUP(A117,Articles!$A$6:$AF$3002,6)) ->  | E117: =IF(ISBLANK(A117),"",IF($C$15=1,VLOOKUP(A117,Articles!$A$6:$AF$3038,3),IF($C$15=2,VLOOKUP(A117,Articles!$A$6:$AF$3038,20),IF($C$15=3,VLOOKUP(A117,Articles!$A$6:$AF$3038,21),IF($C$15=4,VLOOKUP(A117,Articles!$A$6:$AF$3038,22),"Erreur"))))) ->  | G117: 0 | H117: =IF(ISBLANK(A117),0,VLOOKUP(A117,Articles!$A$6:$Q$3002,8)) -> 0 | I117: =IF(ISBLANK(A117),0,IF(Variables!$A$13="TTC",IF(H117=1,G117-(G117*100)/(100+Variables!$A$2),(IF(H117=2,G117-(G117*100)/(100+Variables!$A$3),0))),IF(H117=1,G117*Variables!$A$2/(100),(IF(H117=2,G117*Variables!$A$3/(100),0))))) -> 0 | J117: =IF(ISBLANK(A117),"",VLOOKUP(A117,Articles!$A$5:$AF$3000,11)) ->  | K117: =IF(ISBLANK(A117),"",(VLOOKUP(A117,Articles!$A$5:$AH$3002,34))*C117) -> 
B118: =IF(ISBLANK(A118),"",VLOOKUP(A118,Articles!$A$6:$AF$3002,2)) ->  | D118: =IF(ISBLANK(A118),"",VLOOKUP(A118,Articles!$A$6:$AF$3002,6)) ->  | E118: =IF(ISBLANK(A118),"",IF($C$15=1,VLOOKUP(A118,Articles!$A$6:$AF$3038,3),IF($C$15=2,VLOOKUP(A118,Articles!$A$6:$AF$3038,20),IF($C$15=3,VLOOKUP(A118,Articles!$A$6:$AF$3038,21),IF($C$15=4,VLOOKUP(A118,Articles!$A$6:$AF$3038,22),"Erreur"))))) ->  | G118: 0 | H118: =IF(ISBLANK(A118),0,VLOOKUP(A118,Articles!$A$6:$Q$3002,8)) -> 0 | I118: =IF(ISBLANK(A118),0,IF(Variables!$A$13="TTC",IF(H118=1,G118-(G118*100)/(100+Variables!$A$2),(IF(H118=2,G118-(G118*100)/(100+Variables!$A$3),0))),IF(H118=1,G118*Variables!$A$2/(100),(IF(H118=2,G118*Variables!$A$3/(100),0))))) -> 0 | J118: =IF(ISBLANK(A118),"",VLOOKUP(A118,Articles!$A$5:$AF$3000,11)) ->  | K118: =IF(ISBLANK(A118),"",(VLOOKUP(A118,Articles!$A$5:$AH$3002,34))*C118) -> 
B119: =IF(ISBLANK(A119),"",VLOOKUP(A119,Articles!$A$6:$AF$3002,2)) ->  | D119: =IF(ISBLANK(A119),"",VLOOKUP(A119,Articles!$A$6:$AF$3002,6)) ->  | E119: =IF(ISBLANK(A119),"",IF($C$15=1,VLOOKUP(A119,Articles!$A$6:$AF$3038,3),IF($C$15=2,VLOOKUP(A119,Articles!$A$6:$AF$3038,20),IF($C$15=3,VLOOKUP(A119,Articles!$A$6:$AF$3038,21),IF($C$15=4,VLOOKUP(A119,Articles!$A$6:$AF$3038,22),"Erreur"))))) ->  | G119: 0 | H119: =IF(ISBLANK(A119),0,VLOOKUP(A119,Articles!$A$6:$Q$3002,8)) -> 0 | I119: =IF(ISBLANK(A119),0,IF(Variables!$A$13="TTC",IF(H119=1,G119-(G119*100)/(100+Variables!$A$2),(IF(H119=2,G119-(G119*100)/(100+Variables!$A$3),0))),IF(H119=1,G119*Variables!$A$2/(100),(IF(H119=2,G119*Variables!$A$3/(100),0))))) -> 0 | J119: =IF(ISBLANK(A119),"",VLOOKUP(A119,Articles!$A$5:$AF$3000,11)) ->  | K119: =IF(ISBLANK(A119),"",(VLOOKUP(A119,Articles!$A$5:$AH$3002,34))*C119) -> 
B120: =IF(ISBLANK(A120),"",VLOOKUP(A120,Articles!$A$6:$AF$3002,2)) ->  | D120: =IF(ISBLANK(A120),"",VLOOKUP(A120,Articles!$A$6:$AF$3002,6)) ->  | E120: =IF(ISBLANK(A120),"",IF($C$15=1,VLOOKUP(A120,Articles!$A$6:$AF$3038,3),IF($C$15=2,VLOOKUP(A120,Articles!$A$6:$AF$3038,20),IF($C$15=3,VLOOKUP(A120,Articles!$A$6:$AF$3038,21),IF($C$15=4,VLOOKUP(A120,Articles!$A$6:$AF$3038,22),"Erreur"))))) ->  | G120: 0 | H120: =IF(ISBLANK(A120),0,VLOOKUP(A120,Articles!$A$6:$Q$3002,8)) -> 0 | I120: =IF(ISBLANK(A120),0,IF(Variables!$A$13="TTC",IF(H120=1,G120-(G120*100)/(100+Variables!$A$2),(IF(H120=2,G120-(G120*100)/(100+Variables!$A$3),0))),IF(H120=1,G120*Variables!$A$2/(100),(IF(H120=2,G120*Variables!$A$3/(100),0))))) -> 0 | J120: =IF(ISBLANK(A120),"",VLOOKUP(A120,Articles!$A$5:$AF$3000,11)) ->  | K120: =IF(ISBLANK(A120),"",(VLOOKUP(A120,Articles!$A$5:$AH$3002,34))*C120) -> 
B121: =IF(ISBLANK(A121),"",VLOOKUP(A121,Articles!$A$6:$AF$3002,2)) ->  | D121: =IF(ISBLANK(A121),"",VLOOKUP(A121,Articles!$A$6:$AF$3002,6)) ->  | E121: =IF(ISBLANK(A121),"",IF($C$15=1,VLOOKUP(A121,Articles!$A$6:$AF$3038,3),IF($C$15=2,VLOOKUP(A121,Articles!$A$6:$AF$3038,20),IF($C$15=3,VLOOKUP(A121,Articles!$A$6:$AF$3038,21),IF($C$15=4,VLOOKUP(A121,Articles!$A$6:$AF$3038,22),"Erreur"))))) ->  | G121: 0 | H121: =IF(ISBLANK(A121),0,VLOOKUP(A121,Articles!$A$6:$Q$3002,8)) -> 0 | I121: =IF(ISBLANK(A121),0,IF(Variables!$A$13="TTC",IF(H121=1,G121-(G121*100)/(100+Variables!$A$2),(IF(H121=2,G121-(G121*100)/(100+Variables!$A$3),0))),IF(H121=1,G121*Variables!$A$2/(100),(IF(H121=2,G121*Variables!$A$3/(100),0))))) -> 0 | J121: =IF(ISBLANK(A121),"",VLOOKUP(A121,Articles!$A$5:$AF$3000,11)) ->  | K121: =IF(ISBLANK(A121),"",(VLOOKUP(A121,Articles!$A$5:$AH$3002,34))*C121) -> 
B122: =IF(ISBLANK(A122),"",VLOOKUP(A122,Articles!$A$6:$AF$3002,2)) ->  | D122: =IF(ISBLANK(A122),"",VLOOKUP(A122,Articles!$A$6:$AF$3002,6)) ->  | E122: =IF(ISBLANK(A122),"",IF($C$15=1,VLOOKUP(A122,Articles!$A$6:$AF$3038,3),IF($C$15=2,VLOOKUP(A122,Articles!$A$6:$AF$3038,20),IF($C$15=3,VLOOKUP(A122,Articles!$A$6:$AF$3038,21),IF($C$15=4,VLOOKUP(A122,Articles!$A$6:$AF$3038,22),"Erreur"))))) ->  | G122: 0 | H122: =IF(ISBLANK(A122),0,VLOOKUP(A122,Articles!$A$6:$Q$3002,8)) -> 0 | I122: =IF(ISBLANK(A122),0,IF(Variables!$A$13="TTC",IF(H122=1,G122-(G122*100)/(100+Variables!$A$2),(IF(H122=2,G122-(G122*100)/(100+Variables!$A$3),0))),IF(H122=1,G122*Variables!$A$2/(100),(IF(H122=2,G122*Variables!$A$3/(100),0))))) -> 0 | J122: =IF(ISBLANK(A122),"",VLOOKUP(A122,Articles!$A$5:$AF$3000,11)) ->  | K122: =IF(ISBLANK(A122),"",(VLOOKUP(A122,Articles!$A$5:$AH$3002,34))*C122) -> 
B123: =IF(ISBLANK(A123),"",VLOOKUP(A123,Articles!$A$6:$AF$3002,2)) ->  | D123: =IF(ISBLANK(A123),"",VLOOKUP(A123,Articles!$A$6:$AF$3002,6)) ->  | E123: =IF(ISBLANK(A123),"",IF($C$15=1,VLOOKUP(A123,Articles!$A$6:$AF$3038,3),IF($C$15=2,VLOOKUP(A123,Articles!$A$6:$AF$3038,20),IF($C$15=3,VLOOKUP(A123,Articles!$A$6:$AF$3038,21),IF($C$15=4,VLOOKUP(A123,Articles!$A$6:$AF$3038,22),"Erreur"))))) ->  | G123: 0 | H123: =IF(ISBLANK(A123),0,VLOOKUP(A123,Articles!$A$6:$Q$3002,8)) -> 0 | I123: =IF(ISBLANK(A123),0,IF(Variables!$A$13="TTC",IF(H123=1,G123-(G123*100)/(100+Variables!$A$2),(IF(H123=2,G123-(G123*100)/(100+Variables!$A$3),0))),IF(H123=1,G123*Variables!$A$2/(100),(IF(H123=2,G123*Variables!$A$3/(100),0))))) -> 0 | J123: =IF(ISBLANK(A123),"",VLOOKUP(A123,Articles!$A$5:$AF$3000,11)) ->  | K123: =IF(ISBLANK(A123),"",(VLOOKUP(A123,Articles!$A$5:$AH$3002,34))*C123) -> 
B124: =IF(ISBLANK(A124),"",VLOOKUP(A124,Articles!$A$6:$AF$3002,2)) ->  | D124: =IF(ISBLANK(A124),"",VLOOKUP(A124,Articles!$A$6:$AF$3002,6)) ->  | E124: =IF(ISBLANK(A124),"",IF($C$15=1,VLOOKUP(A124,Articles!$A$6:$AF$3038,3),IF($C$15=2,VLOOKUP(A124,Articles!$A$6:$AF$3038,20),IF($C$15=3,VLOOKUP(A124,Articles!$A$6:$AF$3038,21),IF($C$15=4,VLOOKUP(A124,Articles!$A$6:$AF$3038,22),"Erreur"))))) ->  | G124: 0 | H124: =IF(ISBLANK(A124),0,VLOOKUP(A124,Articles!$A$6:$Q$3002,8)) -> 0 | I124: =IF(ISBLANK(A124),0,IF(Variables!$A$13="TTC",IF(H124=1,G124-(G124*100)/(100+Variables!$A$2),(IF(H124=2,G124-(G124*100)/(100+Variables!$A$3),0))),IF(H124=1,G124*Variables!$A$2/(100),(IF(H124=2,G124*Variables!$A$3/(100),0))))) -> 0 | J124: =IF(ISBLANK(A124),"",VLOOKUP(A124,Articles!$A$5:$AF$3000,11)) ->  | K124: =IF(ISBLANK(A124),"",(VLOOKUP(A124,Articles!$A$5:$AH$3002,34))*C124) -> 
B125: =IF(ISBLANK(A125),"",VLOOKUP(A125,Articles!$A$6:$AF$3002,2)) ->  | D125: =IF(ISBLANK(A125),"",VLOOKUP(A125,Articles!$A$6:$AF$3002,6)) ->  | E125: =IF(ISBLANK(A125),"",IF($C$15=1,VLOOKUP(A125,Articles!$A$6:$AF$3038,3),IF($C$15=2,VLOOKUP(A125,Articles!$A$6:$AF$3038,20),IF($C$15=3,VLOOKUP(A125,Articles!$A$6:$AF$3038,21),IF($C$15=4,VLOOKUP(A125,Articles!$A$6:$AF$3038,22),"Erreur"))))) ->  | G125: 0 | H125: =IF(ISBLANK(A125),0,VLOOKUP(A125,Articles!$A$6:$Q$3002,8)) -> 0 | I125: =IF(ISBLANK(A125),0,IF(Variables!$A$13="TTC",IF(H125=1,G125-(G125*100)/(100+Variables!$A$2),(IF(H125=2,G125-(G125*100)/(100+Variables!$A$3),0))),IF(H125=1,G125*Variables!$A$2/(100),(IF(H125=2,G125*Variables!$A$3/(100),0))))) -> 0 | J125: =IF(ISBLANK(A125),"",VLOOKUP(A125,Articles!$A$5:$AF$3000,11)) ->  | K125: =IF(ISBLANK(A125),"",(VLOOKUP(A125,Articles!$A$5:$AH$3002,34))*C125) -> 
B126: =IF(ISBLANK(A126),"",VLOOKUP(A126,Articles!$A$6:$AF$3002,2)) ->  | D126: =IF(ISBLANK(A126),"",VLOOKUP(A126,Articles!$A$6:$AF$3002,6)) ->  | E126: =IF(ISBLANK(A126),"",IF($C$15=1,VLOOKUP(A126,Articles!$A$6:$AF$3038,3),IF($C$15=2,VLOOKUP(A126,Articles!$A$6:$AF$3038,20),IF($C$15=3,VLOOKUP(A126,Articles!$A$6:$AF$3038,21),IF($C$15=4,VLOOKUP(A126,Articles!$A$6:$AF$3038,22),"Erreur"))))) ->  | G126: 0 | H126: =IF(ISBLANK(A126),0,VLOOKUP(A126,Articles!$A$6:$Q$3002,8)) -> 0 | I126: =IF(ISBLANK(A126),0,IF(Variables!$A$13="TTC",IF(H126=1,G126-(G126*100)/(100+Variables!$A$2),(IF(H126=2,G126-(G126*100)/(100+Variables!$A$3),0))),IF(H126=1,G126*Variables!$A$2/(100),(IF(H126=2,G126*Variables!$A$3/(100),0))))) -> 0 | J126: =IF(ISBLANK(A126),"",VLOOKUP(A126,Articles!$A$5:$AF$3000,11)) ->  | K126: =IF(ISBLANK(A126),"",(VLOOKUP(A126,Articles!$A$5:$AH$3002,34))*C126) -> 
B127: =IF(ISBLANK(A127),"",VLOOKUP(A127,Articles!$A$6:$AF$3002,2)) ->  | D127: =IF(ISBLANK(A127),"",VLOOKUP(A127,Articles!$A$6:$AF$3002,6)) ->  | E127: =IF(ISBLANK(A127),"",IF($C$15=1,VLOOKUP(A127,Articles!$A$6:$AF$3038,3),IF($C$15=2,VLOOKUP(A127,Articles!$A$6:$AF$3038,20),IF($C$15=3,VLOOKUP(A127,Articles!$A$6:$AF$3038,21),IF($C$15=4,VLOOKUP(A127,Articles!$A$6:$AF$3038,22),"Erreur"))))) ->  | G127: 0 | H127: =IF(ISBLANK(A127),0,VLOOKUP(A127,Articles!$A$6:$Q$3002,8)) -> 0 | I127: =IF(ISBLANK(A127),0,IF(Variables!$A$13="TTC",IF(H127=1,G127-(G127*100)/(100+Variables!$A$2),(IF(H127=2,G127-(G127*100)/(100+Variables!$A$3),0))),IF(H127=1,G127*Variables!$A$2/(100),(IF(H127=2,G127*Variables!$A$3/(100),0))))) -> 0 | J127: =IF(ISBLANK(A127),"",VLOOKUP(A127,Articles!$A$5:$AF$3000,11)) ->  | K127: =IF(ISBLANK(A127),"",(VLOOKUP(A127,Articles!$A$5:$AH$3002,34))*C127) -> 
B128: =IF(ISBLANK(A128),"",VLOOKUP(A128,Articles!$A$6:$AF$3002,2)) ->  | D128: =IF(ISBLANK(A128),"",VLOOKUP(A128,Articles!$A$6:$AF$3002,6)) ->  | E128: =IF(ISBLANK(A128),"",IF($C$15=1,VLOOKUP(A128,Articles!$A$6:$AF$3038,3),IF($C$15=2,VLOOKUP(A128,Articles!$A$6:$AF$3038,20),IF($C$15=3,VLOOKUP(A128,Articles!$A$6:$AF$3038,21),IF($C$15=4,VLOOKUP(A128,Articles!$A$6:$AF$3038,22),"Erreur"))))) ->  | G128: 0 | H128: =IF(ISBLANK(A128),0,VLOOKUP(A128,Articles!$A$6:$Q$3002,8)) -> 0 | I128: =IF(ISBLANK(A128),0,IF(Variables!$A$13="TTC",IF(H128=1,G128-(G128*100)/(100+Variables!$A$2),(IF(H128=2,G128-(G128*100)/(100+Variables!$A$3),0))),IF(H128=1,G128*Variables!$A$2/(100),(IF(H128=2,G128*Variables!$A$3/(100),0))))) -> 0 | J128: =IF(ISBLANK(A128),"",VLOOKUP(A128,Articles!$A$5:$AF$3000,11)) ->  | K128: =IF(ISBLANK(A128),"",(VLOOKUP(A128,Articles!$A$5:$AH$3002,34))*C128) -> 
B129: =IF(ISBLANK(A129),"",VLOOKUP(A129,Articles!$A$6:$AF$3002,2)) ->  | D129: =IF(ISBLANK(A129),"",VLOOKUP(A129,Articles!$A$6:$AF$3002,6)) ->  | E129: =IF(ISBLANK(A129),"",IF($C$15=1,VLOOKUP(A129,Articles!$A$6:$AF$3038,3),IF($C$15=2,VLOOKUP(A129,Articles!$A$6:$AF$3038,20),IF($C$15=3,VLOOKUP(A129,Articles!$A$6:$AF$3038,21),IF($C$15=4,VLOOKUP(A129,Articles!$A$6:$AF$3038,22),"Erreur"))))) ->  | G129: 0 | H129: =IF(ISBLANK(A129),0,VLOOKUP(A129,Articles!$A$6:$Q$3002,8)) -> 0 | I129: =IF(ISBLANK(A129),0,IF(Variables!$A$13="TTC",IF(H129=1,G129-(G129*100)/(100+Variables!$A$2),(IF(H129=2,G129-(G129*100)/(100+Variables!$A$3),0))),IF(H129=1,G129*Variables!$A$2/(100),(IF(H129=2,G129*Variables!$A$3/(100),0))))) -> 0 | J129: =IF(ISBLANK(A129),"",VLOOKUP(A129,Articles!$A$5:$AF$3000,11)) ->  | K129: =IF(ISBLANK(A129),"",(VLOOKUP(A129,Articles!$A$5:$AH$3002,34))*C129) -> 
B130: =IF(ISBLANK(A130),"",VLOOKUP(A130,Articles!$A$6:$AF$3002,2)) ->  | D130: =IF(ISBLANK(A130),"",VLOOKUP(A130,Articles!$A$6:$AF$3002,6)) ->  | E130: =IF(ISBLANK(A130),"",IF($C$15=1,VLOOKUP(A130,Articles!$A$6:$AF$3038,3),IF($C$15=2,VLOOKUP(A130,Articles!$A$6:$AF$3038,20),IF($C$15=3,VLOOKUP(A130,Articles!$A$6:$AF$3038,21),IF($C$15=4,VLOOKUP(A130,Articles!$A$6:$AF$3038,22),"Erreur"))))) ->  | G130: 0 | H130: =IF(ISBLANK(A130),0,VLOOKUP(A130,Articles!$A$6:$Q$3002,8)) -> 0 | I130: =IF(ISBLANK(A130),0,IF(Variables!$A$13="TTC",IF(H130=1,G130-(G130*100)/(100+Variables!$A$2),(IF(H130=2,G130-(G130*100)/(100+Variables!$A$3),0))),IF(H130=1,G130*Variables!$A$2/(100),(IF(H130=2,G130*Variables!$A$3/(100),0))))) -> 0 | J130: =IF(ISBLANK(A130),"",VLOOKUP(A130,Articles!$A$5:$AF$3000,11)) ->  | K130: =IF(ISBLANK(A130),"",(VLOOKUP(A130,Articles!$A$5:$AH$3002,34))*C130) -> 
B131: =IF(ISBLANK(A131),"",VLOOKUP(A131,Articles!$A$6:$AF$3002,2)) ->  | D131: =IF(ISBLANK(A131),"",VLOOKUP(A131,Articles!$A$6:$AF$3002,6)) ->  | E131: =IF(ISBLANK(A131),"",IF($C$15=1,VLOOKUP(A131,Articles!$A$6:$AF$3038,3),IF($C$15=2,VLOOKUP(A131,Articles!$A$6:$AF$3038,20),IF($C$15=3,VLOOKUP(A131,Articles!$A$6:$AF$3038,21),IF($C$15=4,VLOOKUP(A131,Articles!$A$6:$AF$3038,22),"Erreur"))))) ->  | G131: 0 | H131: =IF(ISBLANK(A131),0,VLOOKUP(A131,Articles!$A$6:$Q$3002,8)) -> 0 | I131: =IF(ISBLANK(A131),0,IF(Variables!$A$13="TTC",IF(H131=1,G131-(G131*100)/(100+Variables!$A$2),(IF(H131=2,G131-(G131*100)/(100+Variables!$A$3),0))),IF(H131=1,G131*Variables!$A$2/(100),(IF(H131=2,G131*Variables!$A$3/(100),0))))) -> 0 | J131: =IF(ISBLANK(A131),"",VLOOKUP(A131,Articles!$A$5:$AF$3000,11)) ->  | K131: =IF(ISBLANK(A131),"",(VLOOKUP(A131,Articles!$A$5:$AH$3002,34))*C131) -> 
B132: =IF(ISBLANK(A132),"",VLOOKUP(A132,Articles!$A$6:$AF$3002,2)) ->  | D132: =IF(ISBLANK(A132),"",VLOOKUP(A132,Articles!$A$6:$AF$3002,6)) ->  | E132: =IF(ISBLANK(A132),"",IF($C$15=1,VLOOKUP(A132,Articles!$A$6:$AF$3038,3),IF($C$15=2,VLOOKUP(A132,Articles!$A$6:$AF$3038,20),IF($C$15=3,VLOOKUP(A132,Articles!$A$6:$AF$3038,21),IF($C$15=4,VLOOKUP(A132,Articles!$A$6:$AF$3038,22),"Erreur"))))) ->  | G132: 0 | H132: =IF(ISBLANK(A132),0,VLOOKUP(A132,Articles!$A$6:$Q$3002,8)) -> 0 | I132: =IF(ISBLANK(A132),0,IF(Variables!$A$13="TTC",IF(H132=1,G132-(G132*100)/(100+Variables!$A$2),(IF(H132=2,G132-(G132*100)/(100+Variables!$A$3),0))),IF(H132=1,G132*Variables!$A$2/(100),(IF(H132=2,G132*Variables!$A$3/(100),0))))) -> 0 | J132: =IF(ISBLANK(A132),"",VLOOKUP(A132,Articles!$A$5:$AF$3000,11)) ->  | K132: =IF(ISBLANK(A132),"",(VLOOKUP(A132,Articles!$A$5:$AH$3002,34))*C132) -> 
B133: =IF(ISBLANK(A133),"",VLOOKUP(A133,Articles!$A$6:$AF$3002,2)) ->  | D133: =IF(ISBLANK(A133),"",VLOOKUP(A133,Articles!$A$6:$AF$3002,6)) ->  | E133: =IF(ISBLANK(A133),"",IF($C$15=1,VLOOKUP(A133,Articles!$A$6:$AF$3038,3),IF($C$15=2,VLOOKUP(A133,Articles!$A$6:$AF$3038,20),IF($C$15=3,VLOOKUP(A133,Articles!$A$6:$AF$3038,21),IF($C$15=4,VLOOKUP(A133,Articles!$A$6:$AF$3038,22),"Erreur"))))) ->  | G133: 0 | H133: =IF(ISBLANK(A133),0,VLOOKUP(A133,Articles!$A$6:$Q$3002,8)) -> 0 | I133: =IF(ISBLANK(A133),0,IF(Variables!$A$13="TTC",IF(H133=1,G133-(G133*100)/(100+Variables!$A$2),(IF(H133=2,G133-(G133*100)/(100+Variables!$A$3),0))),IF(H133=1,G133*Variables!$A$2/(100),(IF(H133=2,G133*Variables!$A$3/(100),0))))) -> 0 | J133: =IF(ISBLANK(A133),"",VLOOKUP(A133,Articles!$A$5:$AF$3000,11)) ->  | K133: =IF(ISBLANK(A133),"",(VLOOKUP(A133,Articles!$A$5:$AH$3002,34))*C133) -> 
B134: =IF(ISBLANK(A134),"",VLOOKUP(A134,Articles!$A$6:$AF$3002,2)) ->  | D134: =IF(ISBLANK(A134),"",VLOOKUP(A134,Articles!$A$6:$AF$3002,6)) ->  | E134: =IF(ISBLANK(A134),"",IF($C$15=1,VLOOKUP(A134,Articles!$A$6:$AF$3038,3),IF($C$15=2,VLOOKUP(A134,Articles!$A$6:$AF$3038,20),IF($C$15=3,VLOOKUP(A134,Articles!$A$6:$AF$3038,21),IF($C$15=4,VLOOKUP(A134,Articles!$A$6:$AF$3038,22),"Erreur"))))) ->  | G134: 0 | H134: =IF(ISBLANK(A134),0,VLOOKUP(A134,Articles!$A$6:$Q$3002,8)) -> 0 | I134: =IF(ISBLANK(A134),0,IF(Variables!$A$13="TTC",IF(H134=1,G134-(G134*100)/(100+Variables!$A$2),(IF(H134=2,G134-(G134*100)/(100+Variables!$A$3),0))),IF(H134=1,G134*Variables!$A$2/(100),(IF(H134=2,G134*Variables!$A$3/(100),0))))) -> 0 | J134: =IF(ISBLANK(A134),"",VLOOKUP(A134,Articles!$A$5:$AF$3000,11)) ->  | K134: =IF(ISBLANK(A134),"",(VLOOKUP(A134,Articles!$A$5:$AH$3002,34))*C134) -> 
B135: =IF(ISBLANK(A135),"",VLOOKUP(A135,Articles!$A$6:$AF$3002,2)) ->  | D135: =IF(ISBLANK(A135),"",VLOOKUP(A135,Articles!$A$6:$AF$3002,6)) ->  | E135: =IF(ISBLANK(A135),"",IF($C$15=1,VLOOKUP(A135,Articles!$A$6:$AF$3038,3),IF($C$15=2,VLOOKUP(A135,Articles!$A$6:$AF$3038,20),IF($C$15=3,VLOOKUP(A135,Articles!$A$6:$AF$3038,21),IF($C$15=4,VLOOKUP(A135,Articles!$A$6:$AF$3038,22),"Erreur"))))) ->  | G135: 0 | H135: =IF(ISBLANK(A135),0,VLOOKUP(A135,Articles!$A$6:$Q$3002,8)) -> 0 | I135: =IF(ISBLANK(A135),0,IF(Variables!$A$13="TTC",IF(H135=1,G135-(G135*100)/(100+Variables!$A$2),(IF(H135=2,G135-(G135*100)/(100+Variables!$A$3),0))),IF(H135=1,G135*Variables!$A$2/(100),(IF(H135=2,G135*Variables!$A$3/(100),0))))) -> 0 | J135: =IF(ISBLANK(A135),"",VLOOKUP(A135,Articles!$A$5:$AF$3000,11)) ->  | K135: =IF(ISBLANK(A135),"",(VLOOKUP(A135,Articles!$A$5:$AH$3002,34))*C135) -> 
B136: =IF(ISBLANK(A136),"",VLOOKUP(A136,Articles!$A$6:$AF$3002,2)) ->  | D136: =IF(ISBLANK(A136),"",VLOOKUP(A136,Articles!$A$6:$AF$3002,6)) ->  | E136: =IF(ISBLANK(A136),"",IF($C$15=1,VLOOKUP(A136,Articles!$A$6:$AF$3038,3),IF($C$15=2,VLOOKUP(A136,Articles!$A$6:$AF$3038,20),IF($C$15=3,VLOOKUP(A136,Articles!$A$6:$AF$3038,21),IF($C$15=4,VLOOKUP(A136,Articles!$A$6:$AF$3038,22),"Erreur"))))) ->  | G136: 0 | H136: =IF(ISBLANK(A136),0,VLOOKUP(A136,Articles!$A$6:$Q$3002,8)) -> 0 | I136: =IF(ISBLANK(A136),0,IF(Variables!$A$13="TTC",IF(H136=1,G136-(G136*100)/(100+Variables!$A$2),(IF(H136=2,G136-(G136*100)/(100+Variables!$A$3),0))),IF(H136=1,G136*Variables!$A$2/(100),(IF(H136=2,G136*Variables!$A$3/(100),0))))) -> 0 | J136: =IF(ISBLANK(A136),"",VLOOKUP(A136,Articles!$A$5:$AF$3000,11)) ->  | K136: =IF(ISBLANK(A136),"",(VLOOKUP(A136,Articles!$A$5:$AH$3002,34))*C136) -> 
B137: =IF(ISBLANK(A137),"",VLOOKUP(A137,Articles!$A$6:$AF$3002,2)) ->  | D137: =IF(ISBLANK(A137),"",VLOOKUP(A137,Articles!$A$6:$AF$3002,6)) ->  | E137: =IF(ISBLANK(A137),"",IF($C$15=1,VLOOKUP(A137,Articles!$A$6:$AF$3038,3),IF($C$15=2,VLOOKUP(A137,Articles!$A$6:$AF$3038,20),IF($C$15=3,VLOOKUP(A137,Articles!$A$6:$AF$3038,21),IF($C$15=4,VLOOKUP(A137,Articles!$A$6:$AF$3038,22),"Erreur"))))) ->  | G137: 0 | H137: =IF(ISBLANK(A137),0,VLOOKUP(A137,Articles!$A$6:$Q$3002,8)) -> 0 | I137: =IF(ISBLANK(A137),0,IF(Variables!$A$13="TTC",IF(H137=1,G137-(G137*100)/(100+Variables!$A$2),(IF(H137=2,G137-(G137*100)/(100+Variables!$A$3),0))),IF(H137=1,G137*Variables!$A$2/(100),(IF(H137=2,G137*Variables!$A$3/(100),0))))) -> 0 | J137: =IF(ISBLANK(A137),"",VLOOKUP(A137,Articles!$A$5:$AF$3000,11)) ->  | K137: =IF(ISBLANK(A137),"",(VLOOKUP(A137,Articles!$A$5:$AH$3002,34))*C137) -> 
B138: =IF(ISBLANK(A138),"",VLOOKUP(A138,Articles!$A$6:$AF$3002,2)) ->  | D138: =IF(ISBLANK(A138),"",VLOOKUP(A138,Articles!$A$6:$AF$3002,6)) ->  | E138: =IF(ISBLANK(A138),"",IF($C$15=1,VLOOKUP(A138,Articles!$A$6:$AF$3038,3),IF($C$15=2,VLOOKUP(A138,Articles!$A$6:$AF$3038,20),IF($C$15=3,VLOOKUP(A138,Articles!$A$6:$AF$3038,21),IF($C$15=4,VLOOKUP(A138,Articles!$A$6:$AF$3038,22),"Erreur"))))) ->  | G138: 0 | H138: =IF(ISBLANK(A138),0,VLOOKUP(A138,Articles!$A$6:$Q$3002,8)) -> 0 | I138: =IF(ISBLANK(A138),0,IF(Variables!$A$13="TTC",IF(H138=1,G138-(G138*100)/(100+Variables!$A$2),(IF(H138=2,G138-(G138*100)/(100+Variables!$A$3),0))),IF(H138=1,G138*Variables!$A$2/(100),(IF(H138=2,G138*Variables!$A$3/(100),0))))) -> 0 | J138: =IF(ISBLANK(A138),"",VLOOKUP(A138,Articles!$A$5:$AF$3000,11)) ->  | K138: =IF(ISBLANK(A138),"",(VLOOKUP(A138,Articles!$A$5:$AH$3002,34))*C138) -> 
B139: =IF(ISBLANK(A139),"",VLOOKUP(A139,Articles!$A$6:$AF$3002,2)) ->  | D139: =IF(ISBLANK(A139),"",VLOOKUP(A139,Articles!$A$6:$AF$3002,6)) ->  | E139: =IF(ISBLANK(A139),"",IF($C$15=1,VLOOKUP(A139,Articles!$A$6:$AF$3038,3),IF($C$15=2,VLOOKUP(A139,Articles!$A$6:$AF$3038,20),IF($C$15=3,VLOOKUP(A139,Articles!$A$6:$AF$3038,21),IF($C$15=4,VLOOKUP(A139,Articles!$A$6:$AF$3038,22),"Erreur"))))) ->  | G139: 0 | H139: =IF(ISBLANK(A139),0,VLOOKUP(A139,Articles!$A$6:$Q$3002,8)) -> 0 | I139: =IF(ISBLANK(A139),0,IF(Variables!$A$13="TTC",IF(H139=1,G139-(G139*100)/(100+Variables!$A$2),(IF(H139=2,G139-(G139*100)/(100+Variables!$A$3),0))),IF(H139=1,G139*Variables!$A$2/(100),(IF(H139=2,G139*Variables!$A$3/(100),0))))) -> 0 | J139: =IF(ISBLANK(A139),"",VLOOKUP(A139,Articles!$A$5:$AF$3000,11)) ->  | K139: =IF(ISBLANK(A139),"",(VLOOKUP(A139,Articles!$A$5:$AH$3002,34))*C139) -> 
B140: =IF(ISBLANK(A140),"",VLOOKUP(A140,Articles!$A$6:$AF$3002,2)) ->  | D140: =IF(ISBLANK(A140),"",VLOOKUP(A140,Articles!$A$6:$AF$3002,6)) ->  | E140: =IF(ISBLANK(A140),"",IF($C$15=1,VLOOKUP(A140,Articles!$A$6:$AF$3038,3),IF($C$15=2,VLOOKUP(A140,Articles!$A$6:$AF$3038,20),IF($C$15=3,VLOOKUP(A140,Articles!$A$6:$AF$3038,21),IF($C$15=4,VLOOKUP(A140,Articles!$A$6:$AF$3038,22),"Erreur"))))) ->  | G140: 0 | H140: =IF(ISBLANK(A140),0,VLOOKUP(A140,Articles!$A$6:$Q$3002,8)) -> 0 | I140: =IF(ISBLANK(A140),0,IF(Variables!$A$13="TTC",IF(H140=1,G140-(G140*100)/(100+Variables!$A$2),(IF(H140=2,G140-(G140*100)/(100+Variables!$A$3),0))),IF(H140=1,G140*Variables!$A$2/(100),(IF(H140=2,G140*Variables!$A$3/(100),0))))) -> 0 | J140: =IF(ISBLANK(A140),"",VLOOKUP(A140,Articles!$A$5:$AF$3000,11)) ->  | K140: =IF(ISBLANK(A140),"",(VLOOKUP(A140,Articles!$A$5:$AH$3002,34))*C140) -> 
B141: =IF(ISBLANK(A141),"",VLOOKUP(A141,Articles!$A$6:$AF$3002,2)) ->  | D141: =IF(ISBLANK(A141),"",VLOOKUP(A141,Articles!$A$6:$AF$3002,6)) ->  | E141: =IF(ISBLANK(A141),"",IF($C$15=1,VLOOKUP(A141,Articles!$A$6:$AF$3038,3),IF($C$15=2,VLOOKUP(A141,Articles!$A$6:$AF$3038,20),IF($C$15=3,VLOOKUP(A141,Articles!$A$6:$AF$3038,21),IF($C$15=4,VLOOKUP(A141,Articles!$A$6:$AF$3038,22),"Erreur"))))) ->  | G141: 0 | H141: =IF(ISBLANK(A141),0,VLOOKUP(A141,Articles!$A$6:$Q$3002,8)) -> 0 | I141: =IF(ISBLANK(A141),0,IF(Variables!$A$13="TTC",IF(H141=1,G141-(G141*100)/(100+Variables!$A$2),(IF(H141=2,G141-(G141*100)/(100+Variables!$A$3),0))),IF(H141=1,G141*Variables!$A$2/(100),(IF(H141=2,G141*Variables!$A$3/(100),0))))) -> 0 | J141: =IF(ISBLANK(A141),"",VLOOKUP(A141,Articles!$A$5:$AF$3000,11)) ->  | K141: =IF(ISBLANK(A141),"",(VLOOKUP(A141,Articles!$A$5:$AH$3002,34))*C141) -> 
B142: =IF(ISBLANK(A142),"",VLOOKUP(A142,Articles!$A$6:$AF$3002,2)) ->  | D142: =IF(ISBLANK(A142),"",VLOOKUP(A142,Articles!$A$6:$AF$3002,6)) ->  | E142: =IF(ISBLANK(A142),"",IF($C$15=1,VLOOKUP(A142,Articles!$A$6:$AF$3038,3),IF($C$15=2,VLOOKUP(A142,Articles!$A$6:$AF$3038,20),IF($C$15=3,VLOOKUP(A142,Articles!$A$6:$AF$3038,21),IF($C$15=4,VLOOKUP(A142,Articles!$A$6:$AF$3038,22),"Erreur"))))) ->  | G142: 0 | H142: =IF(ISBLANK(A142),0,VLOOKUP(A142,Articles!$A$6:$Q$3002,8)) -> 0 | I142: =IF(ISBLANK(A142),0,IF(Variables!$A$13="TTC",IF(H142=1,G142-(G142*100)/(100+Variables!$A$2),(IF(H142=2,G142-(G142*100)/(100+Variables!$A$3),0))),IF(H142=1,G142*Variables!$A$2/(100),(IF(H142=2,G142*Variables!$A$3/(100),0))))) -> 0 | J142: =IF(ISBLANK(A142),"",VLOOKUP(A142,Articles!$A$5:$AF$3000,11)) ->  | K142: =IF(ISBLANK(A142),"",(VLOOKUP(A142,Articles!$A$5:$AH$3002,34))*C142) -> 
B143: =IF(ISBLANK(A143),"",VLOOKUP(A143,Articles!$A$6:$AF$3002,2)) ->  | D143: =IF(ISBLANK(A143),"",VLOOKUP(A143,Articles!$A$6:$AF$3002,6)) ->  | E143: =IF(ISBLANK(A143),"",IF($C$15=1,VLOOKUP(A143,Articles!$A$6:$AF$3038,3),IF($C$15=2,VLOOKUP(A143,Articles!$A$6:$AF$3038,20),IF($C$15=3,VLOOKUP(A143,Articles!$A$6:$AF$3038,21),IF($C$15=4,VLOOKUP(A143,Articles!$A$6:$AF$3038,22),"Erreur"))))) ->  | G143: 0 | H143: =IF(ISBLANK(A143),0,VLOOKUP(A143,Articles!$A$6:$Q$3002,8)) -> 0 | I143: =IF(ISBLANK(A143),0,IF(Variables!$A$13="TTC",IF(H143=1,G143-(G143*100)/(100+Variables!$A$2),(IF(H143=2,G143-(G143*100)/(100+Variables!$A$3),0))),IF(H143=1,G143*Variables!$A$2/(100),(IF(H143=2,G143*Variables!$A$3/(100),0))))) -> 0 | J143: =IF(ISBLANK(A143),"",VLOOKUP(A143,Articles!$A$5:$AF$3000,11)) ->  | K143: =IF(ISBLANK(A143),"",(VLOOKUP(A143,Articles!$A$5:$AH$3002,34))*C143) -> 
